{"text_format":"1","workbook":"xlsx","n_sheets":22,"sheets":["Welcome to A&THEG","Table of Contents","Cropland (50%)","Cropland & Hayland Narrative","Rangeland (60%)","Rangeland Narrative","Pastureland (50%)","Pastureland Narrative","Upland Woodland (60%)","Upland Woodland Narrative","Riparian Area (70%)","Riparian Area Narrative","Wetland (70%)","Wetland Narrative","Ponds & Small Lakes (70%)","Ponds & Lakes Narrative","Stream SVAP II (70%)","SVAP II Narrative","Evaluation Summary","Glossary","Bibliography","Etc"],"not_rendered":{"charts":0,"images":195,"macros":1,"external_links":0,"defined_names":11,"comments":0,"pivot_tables":0},"unopened":[],"bounds":{"document_bytes":16777216,"sheet_cells":100000,"rows_first":2000,"rows_last":500,"rows_between":2000,"halvings":0,"cell_chars":16384,"cell_head_chars":4096},"cells_cut":0,"cells_raw":0,"read":"whole","date_system":"1900"}

{"sheet":"Welcome to A&THEG","index":0,"n_rows":109,"n_cols":11,"rows_kept":109,"cut":false,"hidden":false,"merged":[[1,2,1,10],[63,2,63,10],[65,2,71,10],[6,8,6,10],[50,8,50,10],[10,2,15,10],[17,2,20,10],[22,2,25,10],[29,2,33,10],[35,2,38,10],[40,2,47,10],[56,2,61,10],[81,2,87,10],[108,5,108,8],[107,5,107,8],[105,5,105,8],[8,2,8,10],[101,2,103,10],[97,3,100,9],[73,2,79,10]]}
[]
[null,null,"TECHNICAL NOTES"]
[null,null,"U.S. Department of Agriculture",null,null,null,null,null,null,null,"Natural Resources Conservation Service"]
[null,null,"Biology - 14 (revised)",null,null,null,null,null,null,null,"Spokane, Washington"]
[null,null,"Timothy P. Dring, Washington State Biologist",null,null,null,null,null,null,null,"March 2013"]
[null,null,"Deborah Virgovic, Washington State Fish Biologist",null,null,null,null,null,null,null,"PASSWORD: WELCOME"]
[null,null,"Rachel Maggi, Washington West Area Biologist",null,null,null,null,null,"Table of Contents"]
[]
[null,null,"Aquatic & Terrestrial Habitat Evaluation Guide"]
[]
[null,null,"This Habitat Evaluation Guide is designed to provide the NRCS planner with a relatively simple and objective method of determining the value of aquatic and terrestrial habitat in any Evaluation Area.  This guide can be used on land where wildlife is a primary objective, or on land (such as cropland) where wildlife is considered to be a secondary objective.  This guide can be used to evaluate habitat on different land uses including, cropland & hayland, rangeland, pastureland, upland woodland, riparian area, wetlands, ponds/small lakes and streams."]
[]
[]
[]
[]
[]
[]
[null,null,"Use this evaluation when planning a Resource Management System (RMS), or for general assessment of habitat which supports multiple species.  If an Evaluation Area is to be intensively managed for one species, use a species-specific habitat appraisal such as a Habitat Evaluation Procedure (HEP) AND contact your area or state biologist."]
[]
[]
[]
[]
[null,null,"Evaluate current conditions and conditions to be expected if no federal funds were applied (No Action) and after applying a management plan (Planned A and Planned B).  Management may include conservation practices that will raise the general habitat quality of the area, convert one habitat type to another, change grazing pressure, or alter timber management objectives, etc."]
[]
[]
[]
[]
[null,null,"PROCEDURE:"]
[]
[null,null,"1) Identify all areas in the Evaluation Area as cropland, woodland, rangeland, pasture, hayland, riparian, pond/small lake, stream or wetland.  If a field contains areas of more than one habitat type, evaluate each area within the field according to the criteria appropriate for the habitat type being assessed.  For example, a woody fence row along cropland would be scored in the upland woodland section."]
[]
[]
[]
[]
[]
[null,null,"2) If the Evaluation Area has only one field in a land use, or all fields of a land use are similar, select one field at random to represent that land use.  If the Evaluation Area has fields of the same habitat type that vary in quality, inventory each field and compute a weighted average score by averaging the same components for each field and placing that score in the box."]
[]
[]
[]
[]
[null,null,"3) Complete the inventory below in the field and compute the score for each land use (habitat type).  Interpolate between levels as needed (i.e. if the possible scores are 4, 3 or 1 and you feel the habitat is in-between 4 and 2, then score the habitat value as 3).  If values for all components (i.e. questions on the inventory form) of a habitat type are at or above Planning Criteria, the habitat score is the sum of the value for each component divided by the sum of highest value possible for each component.  If the value or any component of a habitat type are less than Planning Criteria, the habitat score is the lowest value achieved for that component, divided by the highest possible value for that component."]
[]
[]
[]
[]
[]
[]
[]
[]
[]
[null,null,"Top of Page",null,null,null,null,null,"Table of Contents"]
[]
[]
[]
[]
[]
[null,null,"4) If the score for any habitat type is below Planning Criteria, plan conservation practices that will meet or exceed the Planning Criteria score for that habitat type.  Repeat evaluation assuming the planned alternative is installed and all components for that habitat type are above Planning Criteria for at least one action alternative.  Use the Planned A and Planned B boxes for this procedure. Also, complete the No Action box by estimating changes that would occur if nothing is done to maintain, improve or manage a value (or element in SVAP).  No Action changes can be either positive or negative."]
[]
[]
[]
[]
[]
[]
[null,null,"Planning Criteria"]
[]
[null,null,"Why is the Planning Criteria level set differently depending on land use?  Because not all land uses are created equally.  Cropland & Hayland provide very good opportunities for food, but tend to be bad places for cover use, especially for nesting or fawning.  This is due to the regular use of mechanical treatments on these areas, i.e. (seeding, tillage, fertilizer or herbicide treatments, harvesting, etc.).  Pastureland is not subject to all the mechanical treatments, but it is typically not composed of native vegetation, is grazed, and may include fences, watering facilities or other practices that are not wildlife friendly, degrading or preventing wildlife movement and habitat connectivity."]
[]
[]
[]
[]
[]
[]
[]
[null,null,"Range and Forest habitats are generally composed of native vegetation and have wildlife species associated with specific plant communities.  These land uses are able to simultaneously provide habitat, while at the same time, allowing economic viability to the landowner.  Range and Forest habitat can be degraded by mismanagement, however these habitats can also be more easily managed than Cropland, Hayland or Pastureland for wildlife with greater overall benefits to native species providing the proper cover, food and water appropriately distributed on the landscape. So Range and Forest land uses receive a higher Planning Criteria level than Cropland, Hayland and Pasture."]
[]
[]
[]
[]
[]
[]
[]
[null,null,"The most important land uses are aquatic in nature and are so critical to both aquatic and terrestrial wildlife, that they have the highest Planning Criteria requirements.  Aquatic land uses also provide additional environmental benefits such as water recharge. They are very good at buffering  nutrients, pesticides, silt and runoff from urban areas.  They are a place for temporary storage of water during storm or flood events, and they sequester carbon and perform other functions.  Aquatic land uses are also more sensitive to degradation because their position on the landscape that allows them to provide so many functions, also puts them at higher risk of damage than other land uses."]
[]
[]
[]
[]
[]
[]
[]
[null,null,null,"Planning Criteria: Habitat quality will meet the following minimum levels:"]
[]
[null,null,null,null,null,"Cropland & Hayland",null,0.5]
[null,null,null,null,null,"Pastureland",null,0.5]
[null,null,null,null,null,"Rangeland",null,0.6]
[null,null,null,null,null,"Upland Woodland",null,0.6]
[null,null,null,null,null,"Aquatic Habitats *",null,0.7]
[]
[null,null,null,"* This includes Riparian Forest, Freshwater Wetlands, Ponds, Lakes, Reservoirs, Streams, Saltwater Wetlands, and Intertidal Zones, Estuaries, etc. (not all aquatic habitats are addressed in this guide)."]
[]
[]
[]
[null,null,"Achieving the desired planning criteria for a landuse, element or component in no way implies that regulatory requirements (such as ESA) have been met.  Always complete a CPA-52 Environmental Evaluation has a part of the planning process."]
[]
[]
[]
[null,null,null,null,"Please send comments to:",{"$f":"HYPERLINK(\"mailto: tim.dring@wa.usda.gov\",\"Tim Dring, Washington State Biologist\")","v":"Tim Dring, Washington State Biologist"}]
[]
[null,null,null,null,null,"click above or"]
[null,null,"Top of Page",null,null,"tim.dring@wa.usda.gov",null,null,null,"Table of Contents"]

{"sheet":"Table of Contents","index":1,"n_rows":53,"n_cols":15,"rows_kept":53,"cut":false,"hidden":false,"merged":[[35,1,36,11],[48,10,48,11],[47,10,47,11],[39,0,39,2],[39,10,39,11],[41,0,41,2],[41,10,41,11],[43,0,43,2],[43,10,43,11],[45,0,45,2],[45,10,45,11],[39,3,39,5],[41,3,41,5],[43,3,43,5],[45,3,45,5],[13,7,13,11],[11,1,11,11],[1,1,4,11],[6,1,9,11],[15,1,15,5],[15,7,15,11],[13,1,13,5],[17,1,17,5],[17,7,17,11],[19,1,19,5],[19,7,19,11],[21,1,21,5],[21,7,21,11],[29,1,29,11],[31,1,31,11],[33,1,33,11],[23,1,23,5],[23,7,23,11],[25,1,25,5],[25,7,25,11],[27,1,27,5],[27,7,27,11]]}
[]
[null,"Biology Technical Note 14 "]
[]
[]
[]
[]
[null,"Table of Contents"]
[]
[]
[]
[]
[null,"Welcome to the Aquatic & Terrestrial Habitat Evaluation Guide"]
[]
[null,"Cropland & Hayland Field Data Sheet",null,null,null,null,null,"Cropland & Hayland Narrative"]
[]
[null,"Rangeland Field Data Sheet",null,null,null,null,null,"Rangeland Narrative"]
[]
[null,"Pastureland Field Data Sheet",null,null,null,null,null,"Pastureland Narrative"]
[]
[null,"Upland Woodland Field Data Sheet",null,null,null,null,null,"Upland Woodland Narrative"]
[]
[null,"Riparian Area Field Data Sheet",null,null,null,null,null,"Riparian Area Narrative"]
[]
[null,"Wetland Field Data Sheet",null,null,null,null,null,"Wetland Narrative"]
[]
[null,"Ponds & Small Lakes Field Data Sheet",null,null,null,null,null,"Ponds & Small Lakes Narrative"]
[]
[null,"Stream Field Data Sheet (SVAP II)",null,null,null,null,null,"Stream Narrative (SVAP II)"]
[]
[null,"Evaluation Summary"]
[]
[null,"Glossary"]
[]
[null,"Bibliography"]
[]
[null,"Populating the cells below will populate all the information headers throughout the entire Excel Workbook."]
[]
[]
[]
["Client/Operating Unit:",null,null,null,null,null,null,null,null,"Tract Number:"]
[]
["Farm/Ranch Location:",null,null,null,null,null,null,null,null,"Farm Number:"]
[null,null,null,null,null,null,null,null,null,null,null,null,null,null,"NA"]
["Evaluation Date:",null,null,null,null,null,null,null,null,"Field Number(s):",null,null,null,null,"CRP"]
[null,null,null,null,null,null,null,null,null,null,null,null,null,null,"CSP"]
["Planner:",null,null,null,null,null,null,null,null,"Program:",null,null,null,null,"CStP"]
[null,null,null,null,null,null,null,null,null,null,null,null,null,null,"EQIP"]
[null,null,null,null,null,null,null,null,null,null,"Top of Page",null,null,null,"EWP"]
[null,null,null,null,null,null,null,null,null,null,"PASSWORD:TABLE",null,null,null,"F&RPP"]
[null,null,null,null,null,null,null,null,null,null,null,null,null,null,"GRP"]
[null,null,null,null,null,null,null,null,null,null,null,null,null,null,"WHIP"]
[null,null,null,null,null,null,null,null,null,null,null,null,null,null,"WLFW"]
[null,null,null,null,null,null,null,null,null,null,null,null,null,null,"WRP"]

{"sheet":"Cropland (50%)","index":2,"n_rows":162,"n_cols":19,"rows_kept":162,"cut":false,"hidden":false,"merged":[[160,13,160,15],[162,1,171,15],[54,13,54,15],[156,10,156,11],[157,10,157,11],[158,10,158,11],[150,12,150,13],[158,12,158,13],[157,12,157,13],[156,12,156,13],[155,12,155,13],[154,12,154,13],[153,12,153,13],[152,12,152,13],[151,12,151,13],[151,10,151,11],[152,10,152,11],[153,10,153,11],[154,10,154,11],[157,6,157,7],[158,6,158,7],[155,8,155,9],[156,8,156,9],[157,8,157,9],[158,8,158,9],[150,8,150,9],[151,8,151,9],[152,8,152,9],[153,8,153,9],[154,8,154,9],[151,6,151,7],[152,6,152,7],[153,6,153,7],[154,6,154,7],[1,2,2,4],[1,5,3,15],[5,1,5,4],[7,12,7,15],[3,2,4,4],[7,1,7,3],[13,1,13,3],[13,4,13,8],[9,1,9,3],[15,1,15,3],[15,4,15,8],[9,4,9,8],[9,14,9,15],[11,1,11,3],[11,4,11,8],[11,14,11,15],[13,12,13,15],[74,1,74,3],[91,1,91,3],[15,14,15,15],[17,14,17,15],[19,14,19,15],[18,14,18,15],[19,12,19,13],[18,12,18,13],[19,10,19,11],[21,1,21,4],[33,1,33,4],[23,13,23,15],[63,4,65,10],[80,4,84,12],[52,11,52,13],[59,1,59,5],[160,2,160,4],[127,1,127,4],[137,1,137,4],[103,7,104,15],[93,4,95,15],[147,13,147,15],[112,1,112,2],[149,12,149,13],[149,2,149,5],[149,6,149,7],[149,8,149,9],[149,10,149,11],[139,4,139,15],[119,4,123,15],[129,4,129,15],[106,7,107,15],[69,4,70,13],[147,2,147,4],[152,2,152,5],[158,3,158,4],[76,4,78,13],[109,7,111,15],[96,7,97,15],[150,6,150,7],[150,10,150,11],[151,2,151,5],[155,6,155,7],[155,10,155,11],[156,6,156,7],[117,1,117,3],[85,4,86,9],[87,3,90,13]]}
[]
[null,null,"NRCS",null,null,"Biology Technical Note # 14 Wildlife Habitat Evaluation Guide"]
[]
[null,null,"Natural Resources Conservation Service"]
[null,null,null,null,null,"Cropland & Hayland Field Data Sheet"]
[null,"WASHINGTON",null,null,null,"(Planning Criteria = 50%)",null,null,null,null,null,null,null,null,null,"PASSWORD:CROPLAND"]
[]
[null,"Table of Contents",null,null,null,null,null,null,null,null,null,null,"Revised March 2013"]
[]
[null,"Client/Operating Unit:",null,null,{"$f":"IF(ISBLANK('Table of Contents'!$D$40),\"Click on cell to left. \",'Table of Contents'!$D$40)","v":"Click on cell to left. "},null,null,null,null,null,null,null,null,"Tract Number:",{"$f":"IF(ISBLANK('Table of Contents'!$K$40),\" \",'Table of Contents'!$K$40)","v":" "}]
[]
[null,"Farm/Ranch Location:",null,null,{"$f":"IF(ISBLANK('Table of Contents'!$D$42),\" \",'Table of Contents'!$D$42)","v":" "},null,null,null,null,null,null,null,null,"Farm Number:",{"$f":"IF(ISBLANK('Table of Contents'!$K$42),\" \",'Table of Contents'!$K$42)","v":" "}]
[]
[null,"Evaluation Date:",null,null,{"$f":"IF(ISBLANK('Table of Contents'!$D$44),\" \",'Table of Contents'!$D$44)","v":" "},null,null,null,null,null,null,"Field Number(s):",{"$f":"IF(ISBLANK('Table of Contents'!$K$44),\" \",'Table of Contents'!$K$44)","v":" "}]
[]
[null,"Planner:",null,null,{"$f":"IF(ISBLANK('Table of Contents'!$D$46),\" \",'Table of Contents'!$D$46)","v":" "},null,null,null,null,null,null,null,null,"Proposed Treatment Acres:"]
[null,null,null,null,null,null,null,null,null,null,null,null,null,null,null,null,null,null,"NA"]
[null,null,"Cells with numbers that turn red are below the Planning Criteria.",null,null,null,null,null,null,null,null,null,null,"Program:",{"$f":"IF(ISBLANK('Table of Contents'!$K$46),\" \",'Table of Contents'!$K$46)","v":" "},null,null,null,"CRP"]
[null,null,null,null,null,null,null,null,null,null,null,"Other Habitat","Cropland",null,"Percent",null,null,null,"CSP"]
[null,null,null,null,null,null,null,null,null,"Calculate your acres ratio here for percentage:",null,null,{"$f":"IF(OR((ISBLANK(K20)),(ISBLANK(O16))),\" \",O16)","v":" "},null,{"$f":"IF(OR(K20<0.00001,M20=\" \"),\" \",K20/M20)","v":" "},null,null,null,"CStP"]
[null,null,null,null,null,null,null,null,null,null,null,null,null,null,null,null,null,null,"EQIP"]
[null,"Distance to Undisturbed Cover",null,null,null,null,null,null,null,null,null,null,null,null,null,"CROP-DUC",null,null,"EWP"]
[null,null,null,null,null,null,null,null,null,null,null,null,null,null,null,null,null,null,"F&RPP"]
[null,null,"Present","10 =","Less than 330 feet.",null,null,null,null,null,null,null,null,null,null,null,null,null,"GRP"]
[null,null,null,null,null,null,null,null,null,null,null,null,null,null,null,null,null,null,"WHIP"]
[null,null,"No Action","8 =","330 feet to 660 feet.",null,null,null,null,null,null,null,null,null,null,null,null,null,"WLFW"]
[null,null,null,null,null,null,null,null,null,null,null,null,null,null,null,null,null,null,"WRP"]
[null,null,"Planned A","6 =","660 feet to 1320 feet."]
[]
[null,null,"Planned B","PC 5 =","1320 feet to 2640 feet."]
[]
[null,null,null,"2 =","Greater than 2640 feet."]
[]
[null,"Crop Rotation and Plant Cover",null,null,null,null,null,null,null,null,null,null,null,null,null,"CROP-CRPC"]
[]
[null,null,"Present","8 =","Row crop/small grain/grass-legume rotation;"]
[null,null,null,null,"or row crops/small grain/tuber/grass-legume rotation;"]
[null,null,"No Action",null,"or greater than 2.5% of field in winter food plots or tree/shrub planting;"]
[null,null,null,null,"or greater than 10% perennial grassy cover undisturbed during the nesting season;"]
[null,null,"Planned A",null,"or greater than 10% of cropland fields flooded during waterfowl migration."]
[]
[null,null,"Planned B","6 =","Row crop/small grain; or row crop/grass-legume rotation;"]
[null,null,null,null,"or row crop/lentils/ tubers."]
[null,null,null,null,"or 0.5 to 2.5% of field in winter food plots or tree/shrub planting;"]
[null,null,null,null,"or 2.5 to 10% perennial grassy cover undisturbed during nesting season;"]
[null,null,null,null,"or 2.5 to 10% of cropland fields flooded during waterfowl migration."]
[]
[null,null,null,"PC 5 =","Continuous row crop; or small grain/lentils; or small grain/fallow;"]
[null,null,null,null,"or root/tuber crops; or orchards, vineyards and cane berries."]
[]
[]
[]
[]
[]
[null,null,null,null,null,null,null,null,null,null,null,null,null,"BACK TO TOP"]
[]
[]
[]
[]
[null,"Average Residue on Cropland After Planting",null,null,null,null,null,null,null,null,null,null,null,null,null,"CROP-AR"]
[]
[null,null,"Present","8 =","No-till and not grazed; residue greater than 70%."]
[]
[null,null,"No Action","7 =","No till and not grazed; or residue greater than 50% and not grazed and corn not chopped or removed."]
[]
[null,null,"Planned A"]
[]
[null,null,"Planned B","6 =","Residue greater than 50%."]
[]
[null,null,null,"PC 5 =","Residue 30 to 50%; or food plot, grassy cover, or spring-flooded cropland as in level 6 above for Crop Rotation and Plant Cover."]
[]
[]
[null,null,null,"1 =","Residue less than 30%."]
[]
[null,"Wildlife Water Source",null,null,null,null,null,null,null,null,null,null,null,null,null,"CROP-WS"]
[]
[null,null,"Present","4 =","Historic water availability in the evaluation area is still present or restored. (Score Prior Converted (PC) and Farmed Wetlands (FW) here)"]
[]
[null,null,"No Action"]
[]
[null,null,"Planned A","PC 2 =","Enhanced water availability in Evaluation Area for wildlife (guzzlers, spring development, wells, livestock exclusion, escape ramps installed in livestock watering facilities, elimination of agricultural runoff into surface water bodies, etc.)"]
[]
[null,null,"Planned B"]
[]
[]
[null,null,null,"1 =","Historic water source has been detrimentally altered due to human and/or livestock use."]
[]
[null,null,null,"Is there a natural water source present within the Evaluation Area?  If so, then please complete the riparian section of this Habitat Evaluation Guide."]
[]
[]
[]
[null,"Habitat Fragmentation",null,null,null,null,null,null,null,null,null,null,null,null,null,"CROP-HF"]
[]
[null,{"$f":"IF(AND(C101=FALSE,C104=FALSE,C105=FALSE,C105=FALSE,C106=FALSE,C107=FALSE,C108=FALSE),\" \",(10+(SUM($I$101,$I$103,$I$106,$I$109,$I$113))))","v":" "},"Present",null,"Unmitigated structural barriers within or adjacent to the evaluation area. Structures that restrict natural movement or dispersion of wildlife that results in degraded habitat are unmitigated barriers.  Check all that apply."]
[]
[null,{"$f":"IF(AND(D101=FALSE,D104=FALSE,D105=FALSE,D106=FALSE,D107=FALSE,D108=FALSE),\" \",(10+(SUM($K$101,$K$103,$K$106,$K$109,$K$113))))","v":" "},"No Action"]
[null,null,null,null,"PC = 5",null,10,"No unmitigated structures are present, some wildlife corridors are in place."]
[null,{"$f":"IF(AND(E101=FALSE,E104=FALSE,E105=FALSE,E106=FALSE,E107=FALSE,E108=FALSE),\" \",(10+(SUM($M$101,$M$103,$M$106,$M$109,$M$113))))","v":" "},"Planned A"]
[null,null,null,null,null,null,null,"Present",{"$f":"IF(C102=FALSE,0,-1)","v":0},"No Action",{"$f":"IF(D102=FALSE,0,-1)","v":0},"Planned A",{"$f":"IF(E102=FALSE,0,-1)","v":0},"Planned B",{"$f":"IF(F102=FALSE,0,-1)","v":0}]
[null,{"$f":"IF(AND(F101=FALSE,F104=FALSE,F105=FALSE,F106=FALSE,F107=FALSE,F108=FALSE),\" \",(10+(SUM($O$101,$O$103,$O$106,$O$109,$O$113))))","v":" "},"Planned B",null,null,null,-1,"Fences that have not been designed to be wildlife friendly"]
[null,null,false,false,false,false,null,"Present",{"$f":"IF(C104=FALSE,0,-1)","v":0},"No Action",{"$f":"IF(D104=FALSE,0,-1)","v":0},"Planned A",{"$f":"IF(E104=FALSE,0,-1)","v":0},"Planned B",{"$f":"IF(F104=FALSE,0,-1)","v":0}]
[null,null,null,null,null,null,-1,"Unnecessary access roads"]
[null,null,null,null,null,null,null,"Present",{"$f":"IF(C105=FALSE,0,-1)","v":0},"No Action",{"$f":"IF(D105=FALSE,0,-1)","v":0},"Planned A",{"$f":"IF(E105=FALSE,0,-1)","v":0},"Planned B",{"$f":"IF(F105=FALSE,0,-1)","v":0}]
[null,null,false,false,false,false,-1,"Above ground pipelines that could be updated and installed below ground"]
[null,null,false,false,false,false]
[null,null,false,false,false,false,null,"Present",{"$f":"IF(C106=FALSE,0,-1)","v":0},"No Action",{"$f":"IF(D106=FALSE,0,-1)","v":0},"Planned A",{"$f":"IF(E106=FALSE,0,-1)","v":0},"Planned B",{"$f":"IF(F106=FALSE,0,-1)","v":0}]
[null,null,false,false,false,false,-1,"Buildings or structures that are no longer needed as part of the farming or ranching operation"]
[null,null,false,false,false,false]
[null,null,null,null,null,null,null,"Present",{"$f":"IF(C107=FALSE,0,-1)","v":0},"No Action",{"$f":"IF(D107=FALSE,0,-1)","v":0},"Planned A",{"$f":"IF(E107=FALSE,0,-1)","v":0},"Planned B",{"$f":"IF(F107=FALSE,0,-1)","v":0}]
[null,null,null,null,null,null,-5,"No corridors within the evaluation area.  Corridors could be field borders, grassed waterways, hedgerows, shelterbelts, riparian areas, grassed terraces, buffers, etc."]
[]
[]
[null,"BACK TO TOP",null,null,null,null,null,"Present",{"$f":"IF(C108=FALSE,0,-5)","v":0},"No Action",{"$f":"IF(D108=FALSE,0,-5)","v":0},"Planned A",{"$f":"IF(E108=FALSE,0,-5)","v":0},"Planned B",{"$f":"IF(F108=FALSE,0,-5)","v":0}]
[]
[]
[]
[]
[null,"Nutrient Management",null,null,null,null,null,null,null,null,null,null,null,null,null,"CROP-NM"]
[]
[null,null,"Present","PC 3 =","Evaluation Area has a nutrient management plan and it is being applied OR the evaluation area does not need a plan because no fertilizer, commercial nutrients, or agriculturally generated manure are being applied."]
[]
[null,null,"No Action"]
[]
[null,null,"Planned A"]
[]
[null,null,"Planned B","1 =","No nutrient management plan is in place."]
[]
[null,"Integrated Pest Management",null,null,null,null,null,null,null,null,null,null,null,null,null,"CROP-IPM"]
[]
[null,null,"Present","PC 3 =","Evaluation Area has a integrated pest management plan and it is being applied."]
[]
[null,null,"No Action","1 =","No pest management plan is in place."]
[]
[null,null,"Planned A"]
[]
[null,null,"Planned B"]
[]
[null,"Weed Control",null,null,null,null,null,null,null,null,null,null,null,null,null,"CROP-HWP"]
[]
[null,null,"Present","PC 3 =","Evaluation Area has a Weed Control plan and it is being applied."]
[]
[null,null,"No Action","1 =","No Weed Control plan is in place."]
[]
[null,null,"Planned A"]
[]
[null,null,"Planned B"]
[]
[null,null,"Evaluation Summary",null,null,null,null,null,null,null,null,null,null,"BACK TO TOP"]
[]
[null,null,"Cropland & Hayland Summary",null,null,null,"Present",null,"No Action",null,"Planned A",null,"Planned B"]
[null,null,"Distance to undisturbed cover",null,null,null,{"$f":"IF(ISBLANK($B$24),\" \",$B$24/10)","v":" "},null,{"$f":"IF(ISBLANK($B$26),\" \",$B$26/10)","v":" "},null,{"$f":"IF(ISBLANK($B$28),\" \",$B$28/10)","v":" "},null,{"$f":"IF(ISBLANK($B$30),\" \",$B$30/10)","v":" "},null,"Present"]
[null,null,"Crop rotation and plant residue cover",null,null,null,{"$f":"IF(ISBLANK($B$36),\" \",$B$36/8)","v":" "},null,{"$f":"IF(ISBLANK($B$38),\" \",$B$38/8)","v":" "},null,{"$f":"IF(ISBLANK($B$40),\" \",$B$40/8)","v":" "},null,{"$f":"IF(ISBLANK($B$42),\" \",$B$42/8)","v":" "},null,"<.5"]
[null,null,"Average residue on cropland after planting",null,null,null,{"$f":"IF(ISBLANK($B$62),\" \",$B$62/8)","v":" "},null,{"$f":"IF(ISBLANK($B$64),\" \",$B$64/8)","v":" "},null,{"$f":"IF(ISBLANK($B$66),\" \",$B$66/8)","v":" "},null,{"$f":"IF(ISBLANK($B$68),\" \",$B$68/8)","v":" "},null,"No Action"]
[null,null,"Wildlife drinking water",null,null,null,{"$f":"IF(ISBLANK($B$77),\" \",$B$77/4)","v":" "},null,{"$f":"IF(ISBLANK($B$79),\" \",$B$79/4)","v":" "},null,{"$f":"IF(ISBLANK($B$81),\" \",$B$81/4)","v":" "},null,{"$f":"IF(ISBLANK($B$83),\" \",$B$83/4)","v":" "},null,"<.5"]
[null,null,"Habitat Fragmentation",null,null,null,{"$f":"IF($B$94=\" \",\" \",$B$94/10)","v":" "},null,{"$f":"IF($B$96=\" \",\" \",$B$96/10)","v":" "},null,{"$f":"IF($B$98=\" \",\" \",$B$98/10)","v":" "},null,{"$f":"IF($B$100=\" \",\" \",$B$100/10)","v":" "},null,"Planned A"]
[null,null,"Nutrient Management",null,null,null,{"$f":"IF(ISBLANK($B$120),\" \",$B$120/3)","v":" "},null,{"$f":"IF(ISBLANK($B$122),\" \",$B$122/3)","v":" "},null,{"$f":"IF(ISBLANK($B$124),\" \",$B$124/3)","v":" "},null,{"$f":"IF(ISBLANK($B$126),\" \",$B$126/3)","v":" "},null,"<.5"]
[null,null,"Integrated Pest Management",null,null,null,{"$f":"IF(ISBLANK($B$130),\" \",$B$130/3)","v":" "},null,{"$f":"IF(ISBLANK($B$132),\" \",$B$132/3)","v":" "},null,{"$f":"IF(ISBLANK($B$134),\" \",$B$134/3)","v":" "},null,{"$f":"IF(ISBLANK($B$136),\" \",$B$136/3)","v":" "},null,"Planned B"]
[null,null,"Weed Control",null,null,null,{"$f":"IF(ISBLANK($B$140),\" \",$B$140/3)","v":" "},null,{"$f":"IF(ISBLANK($B$142),\" \",$B$142/3)","v":" "},null,{"$f":"IF(ISBLANK($B$144),\" \",$B$144/3)","v":" "},null,{"$f":"IF(ISBLANK($B$146),\" \",$B$146/3)","v":" "},null,"<.5"]
[null,null,"Acres:",{"$f":"IF(ISBLANK($O$16),\" \",$O$16)","v":" "},null,null,{"$f":"IF(G160=0,H160,G160)","v":" "},null,{"$f":"IF(I160=0,J160,I160)","v":" "},null,{"$f":"IF(K160=0,L160,K160)","v":" "},null,{"$f":"IF(M160=0,N160,M160)","v":" "}]
[null,null,null,null,null,null,{"$f":"IF(AND(G151=\" \",G152=\" \",G153=\" \",G154=\" \",G155=\" \",G156=\" \",G157=\" \",G158=\" \"),\" \",DMIN($G$150:$G$158,\"Present\",O151:O152))","v":" "},{"$f":"IF(AND(G151=\" \",G152=\" \",G153=\" \",G154=\" \",G155=\" \",G156=\" \",G157=\" \",G158=\" \"),\" \",AVERAGE(G151:G158))","v":" "},{"$f":"IF(AND(I151=\" \",I152=\" \",I153=\" \",I154=\" \",I155=\" \",I156=\" \",I157=\" \",I158=\" \"),\" \",DMIN(I150:I158,\"No Action\",$O153:$O154))","v":" "},{"$f":"IF(AND(I151=\" \",I152=\" \",I153=\" \",I154=\" \",I155=\" \",I156=\" \",I157=\" \",I158=\" \"),\" \",AVERAGE(I151:I158))","v":" "},{"$f":"IF(AND(K151=\" \",K152=\" \",K153=\" \",K154=\" \",K155=\" \",K156=\" \",K157=\" \",K158=\" \"),\" \",DMIN(K150:K158,\"Planned A\",$O155:$O156))","v":" "},{"$f":"IF(AND(K151=\" \",K152=\" \",K153=\" \",K154=\" \",K155=\" \",K156=\" \",K157=\" \",K158=\" \"),\" \",AVERAGE(K151:K158))","v":" "},{"$f":"IF(AND(M151=\" \",M152=\" \",M153=\" \",M154=\" \",M155=\" \",M156=\" \",M157=\" \",M158=\" \"),\" \",DMIN(M150:M158,\"Planned B\",$O157:$O158))","v":" "},{"$f":"IF(AND(M151=\" \",M152=\" \",M153=\" \",M154=\" \",M155=\" \",M156=\" \",M157=\" \",M158=\" \"),\" \",AVERAGE(M151:M158))","v":" "}]
[null,null,null,null,null,null,null,null,null,null,null,null,null,"BACK TO TOP"]
[null,null,"Notes:"]

{"sheet":"Cropland & Hayland Narrative","index":3,"n_rows":218,"n_cols":9,"rows_kept":218,"cut":false,"hidden":false,"merged":[[217,1,217,3],[1,2,2,3],[1,4,3,8],[19,1,28,8],[5,1,5,3],[3,1,4,3],[7,1,7,3],[30,1,34,8],[9,1,12,8],[67,1,73,8],[57,1,60,8],[36,1,38,8],[42,1,44,8],[46,1,47,8],[49,1,50,8],[195,1,198,7],[62,1,62,3],[124,1,124,3],[77,1,84,8],[17,1,17,4],[40,1,40,4],[65,1,65,5],[75,1,75,3],[52,1,55,8],[91,1,91,3],[111,1,117,8],[119,1,121,8],[192,1,193,8],[93,1,96,8],[98,1,107,8],[86,1,89,8],[109,1,109,3],[137,1,137,3],[190,1,190,3],[186,1,186,3],[129,1,135,8],[172,1,180,8],[139,1,144,8],[146,1,148,8],[151,1,155,8],[158,1,162,8],[165,1,169,8]]}
[]
[null,null,"NRCS",null,"Biology Technical Note # 14 Wildlife Habitat Evaluation Guide"]
[]
[null,"Natural Resources Conservation Service"]
[null,null,null,null,"Cropland & Hayland Narrative"]
[null,"WASHINGTON",null,null,"(Planning Criteria = 50%)",null,null,null,"PASSWORD:CROPLAND N"]
[]
[null,"Table of Contents",null,null,null,null,null,null,"Revised March 2013"]
[]
[null,"Cropland and Hayland is land on which growing crops or producing hay is the primary objective. Forage which is harvested primarily mechanically, such as hay or silage is considered cropland, even if incidental grazing occurs.  Score the following under Cropland: Corn and grass silage, mint, alfalfa and hayland."]
[]
[]
[]
[null,null,null,null,null,null,"Other Habitat","Cropland","Percent"]
[null,null,null,null,null,"Calculate your acres ratio here for percentage:",null,null,{"$f":"IF(OR(ISBLANK(G15),ISBLANK(H15)),\" \",G15/H15)","v":" "}]
[null,null,null,null,null,null,"Acres","Acres"]
[]
[null,"Distance to Undisturbed Cover",null,null,null,null,null,null,"CROP-DUC"]
[]
[null,"Maximum distance from the approximate center of the evaluation area to a different habitat type with a score at the Planning Criteria (PC) level or above.  This element is intended to determine the maximum distance from the most open area to the nearest protective cover for wildlife. The measurement is to be taken from the point in the cropland or hayland that is farthest from another habitat type that would meet  Planning Criteria and is at least one of the following: upland woodland or riparian at least 1% of the evaluation area size, or rangeland, wetland, or unharvested pastureland at least 2% of the evaluation area size.  The percent of area considered to be other habitat can be calculated be dividing the other habitat acres by the acres of cropland or hayland in the evaluation area multiplied by 100. See above acreage calculator."]
[]
[]
[]
[]
[]
[]
[]
[]
[]
[]
[null,"Multiple habitat types can be combined together to total the percentage of different habitat.  For example, if the evaluation area is 20 acres, a 0.2 acre wetland and a 0.2 acre woodland can be combined to meet the 2% \"other habitat\" requirement.  If these other habitats were 500 feet away from the center of the cropland and both met the planning criteria level, the landowner would score an 8."]
[]
[]
[]
[]
[]
[null,"When using habitats which are not on the landowner's property as undisturbed cover, the evaluator should use best judgment when determining if the off-site habitat meets Planning Criteria."]
[]
[]
[]
[null,"Crop Rotation and Plant Cover",null,null,null,null,null,null,"CROP-CRPC"]
[]
[null,"Crop rotation may be defined as specified plant covers in the field, occurring either sequentially in consecutive seasons or simultaneously in separate areas (strip cropping)."]
[]
[]
[]
[null,"Winter food plot is an area within the cropland field that has been seeded to a wildlife food mix, or crop (corn, milo, etc.) not harvested, and left undisturbed over winter."]
[]
[]
[null,"Tree/Shrub Planting is an area within the cropland field that has been planted for wildlife with site-adapted trees and shrubs."]
[]
[]
[null,"Perennial grassy cover is a grassy area within the cropland field that is not grazed, hayed, burned, mowed, tilled, or otherwise disturbed during the nesting season.  Examples may include field border strips, grassed waterways, criterial area plantings or unharvested pastureland that meets planning criteria."]
[]
[]
[]
[]
[null,"Cropland field flooded during spring waterfowl migration is an area within the cropland field where in 3 years out of 5, a grain crop is unharvested, or crop residues are untilled and ungrazed.  Cropland will be flooded or ponded to a depth of 3 to 18 inches during spring waterfowl migration."]
[]
[]
[]
[]
[null,"Table of Contents",null,null,null,null,null,null,"BACK TO TOP"]
[]
[]
[null,"Average Residue on Cropland After Planting",null,null,null,null,null,null,"CROP-AR"]
[]
[null,"Compute this score based on the average for all crops in the rotation.  In addition to preventing soil erosion, residue can provide food resources as well as cover benefits for wildlife.  A field which has no fall tillage applied or is in permanent grass will provide more food from waste grain or other edible plant material than tilled ground.  A permanent grass field will provide high cover benefits in the form of winter thermal protection and spring nesting cover than those fields where the vegetation is plowed under for the winter."]
[]
[]
[]
[]
[]
[]
[]
[null,"Wildlife Water Source",null,null,null,null,null,null,"CROP-WS"]
[]
[null,"The amount of water available within a given area will strongly affect the diversity, range and population size of a species. In dry habitats, the limited rainfall means that there is no free water for part or all of the year and wildlife has to obtain water from their food by metabolism.  Throughout most of their lives, wildlife living in dry environments survive on very little water and many characteristics of their anatomy, physiology and behavior facilitate the conservation of body fluids.  Examples include: migratory movements to search for green forage and or water and many physiological characteristics of the kidneys, skin and blood system. "]
[]
[]
[]
[]
[]
[]
[]
[]
[null,"Water quality is as important as water quantity in agricultural landscapes where wildlife is a consideration. Decreases in water quality due to nutrient, organic, and chemical runoff, as well as sedimentation, will limit the use of a water source by wildlife.  Evaluate water quality according to the planning criteria outlined in the Field Office Technical Guide."]
[]
[]
[]
[]
[null,"Habitat Fragmentation",null,null,null,null,null,null,"CROP-HF"]
[]
[null,"Habitat fragmentation involves the division of large, contiguous areas of habitat into smaller patches isolated from one another.  While it is obvious that the numbers of a species are likely to decline if its habitat is reduced; fragmentation effects imply that the value of the remaining habitat also is diminished."]
[]
[]
[]
[]
[null,"Three types of fragmentation effects have been distinguished: patch-size effects, edge effects, and isolation effects. Patch-size effects are those that result from differential use or reproductive success associated with habitat patches of different sizes. Some of the patch-size effects may be induced by edge effects—phenomena such as avoidance, pairing success, predation, interspecific competition, prey availability, or brood parasitism by brown-headed cowbirds (Molothrus ater)—that may be different near the edge of a habitat as compared to the interior of a patch. Finally, isolation from similar habitat can influence use of a particular habitat patch because of reduced dispersal opportunities. Each of these factors—patch size, edge effects, and isolation—can affect the occurrence, density, or reproductive success of animals in a habitat patch."]
[]
[]
[]
[]
[]
[]
[]
[]
[]
[]
[null,"Nutrient Management",null,null,null,null,null,null,"CROP-NM"]
[]
[null,"Plant nutrients, which come primarily from chemical fertilizers, manure, and in some cases sewage sludge, are essential for crop production. When applied in proper quantities and at appropriate times, nutrients (especially nitrogen, phosphorus, and potassium) help achieve optimum crop yields. However, improper application of nutrients can cause water quality problems both locally and downstream. Nutrient management is the practice of using nutrients wisely for optimum economic benefit, while minimizing impact on the environment."]
[]
[]
[]
[]
[]
[]
[]
[null,"Water quality issues can occur when nutrients are added to the soil at a time when they could be removed in surface runoff from rainfall or snow melt at rates exceeding that removed by the crop, or if applied at times that they cannot be utilized by the crop."]
[]
[]
[]
[]
[null,"Table of Contents",null,null,null,null,null,null,"BACK TO TOP"]
[]
[]
[]
[]
[null,"When nitrogen or phosphorus are present in lakes or rivers at a high concentration, a condition called \"eutrophication\" or biological enrichment can occur. High nitrogen levels cause excess algae to grow in response to the enriched nutrient solution and few fish can be found. When the algae die, their decomposition consumes enough dissolved oxygen to suffocate fish and other animal life. Sources of nitrogen contributing to the problem include agricultural runoff, sewage treatment plants, atmospheric nitrogen, and other sources."]
[]
[]
[]
[]
[]
[]
[]
[null,"Integrated Pest Management",null,null,null,null,null,null,"CROP-IPM"]
[]
[null,"Integrated Pest Management (IPM) is an effective and environmentally sensitive approach to pest management that relies on a combination of common-sense practices. IPM programs use current, comprehensive information on the life cycles of pests and their interaction with the environment. This information, in combination with available pest control methods, is used to manage pest damage by the most economical means, and with the least possible hazard to people, property, and the environment."]
[]
[]
[]
[]
[]
[]
[null,"IPM is not a single pest control method but, rather, a series of pest management evaluations, decisions and controls. In practicing IPM, growers who are aware of the potential for pest infestation follow a four-tiered approach. The four steps include:"]
[]
[]
[]
[null,"Set Action Thresholds"]
[null,"Before taking any pest control action, IPM first sets an action threshold, a point at which pest populations or environmental conditions indicate that pest control action must be taken. Sighting a single pest does not always mean control is needed. The level at which pests will become an economic threat is critical to guide future pest control decisions."]
[]
[]
[]
[]
[]
[null,"Monitor and Identify Pests"]
[null,"Not all insects, weeds, and other living organisms require control. Many organisms are innocuous, and some are even beneficial. IPM programs work to monitor for pests and identify them accurately, so that appropriate control decisions can be made in conjunction with action thresholds. This monitoring and identification removes the possibility that pesticides will be used when they are not really needed or that the wrong kind of pesticide will be used."]
[]
[]
[]
[]
[]
[null,"Prevention"]
[null,"As a first line of pest control, IPM programs work to manage the crop, lawn, or indoor space to prevent pests from becoming a threat. In an agricultural crop, this may mean using cultural methods, such as rotating between different crops, selecting pest-resistant varieties, and planting pest-free rootstock. These control methods can be very effective and cost-efficient and present little to no risk to people or the environment."]
[]
[]
[]
[]
[]
[null,"Control"]
[null,"Once monitoring, identification, and action thresholds indicate that pest control is required, and preventive methods are no longer effective or available, IPM programs then evaluate the proper control method both for effectiveness and risk. Effective, less risky pest controls are chosen first, including highly targeted chemicals, such as pheromones to disrupt pest mating, or mechanical control, such as trapping or weeding. If further monitoring, identifications and action thresholds indicate that less risky controls are not working, then additional pest control methods would be employed, such as targeted spraying of pesticides. Broadcast spraying of non-specific pesticides is a last resort."]
[]
[]
[]
[]
[]
[]
[]
[]
[]
[]
[]
[]
[]
[null,"Table of Contents",null,null,null,null,null,null,"BACK TO TOP"]
[]
[]
[]
[null,"Weed Control",null,null,null,null,null,null,"CROP-HWP"]
[]
[null,"Weed Control is the eradication, reduction, or manipulation of herbaceous weed species including invasive, noxious, and prohibited plants."]
[]
[]
[null,"Weed Control is designed to achieve the desired plant community through the utilization of Integrated Pest Management (IPM) principles. This is accomplished by mechanical, chemical, biological, or a combination of these techniques."]
[]
[]
[]
[]
[null,"Weed Control is applied to accomplish one or more of the following:"]
[]
[null,"l Restore native or create desired plant communities"]
[]
[null,"l Manage noxious woody plants"]
[]
[null,"l Enhance accessibility, quantity, and quality of forage"]
[]
[null,"l Maintain or enhance wildlife habitat including habitat for threatened and endangered species"]
[]
[null,"l Protect soils and control erosion"]
[]
[null,"l Reduce fire hazard  "]
[]
[]
[]
[]
[null,"Table of Contents",null,null,null,null,null,null,"BACK TO TOP"]

{"sheet":"Rangeland (60%)","index":4,"n_rows":178,"n_cols":19,"rows_kept":178,"cut":false,"hidden":false,"merged":[[143,1,175,15],[177,13,177,15],[139,6,139,7],[139,8,139,9],[139,10,139,11],[139,12,139,13],[140,3,140,4],[140,6,140,7],[140,8,140,9],[140,10,140,11],[140,12,140,13],[137,6,137,7],[137,8,137,9],[137,10,137,11],[137,12,137,13],[138,6,138,7],[138,8,138,9],[138,10,138,11],[138,12,138,13],[135,6,135,7],[135,8,135,9],[135,10,135,11],[135,12,135,13],[136,6,136,7],[136,8,136,9],[136,10,136,11],[136,12,136,13],[134,6,134,7],[134,8,134,9],[134,10,134,11],[134,12,134,13],[132,6,132,7],[132,8,132,9],[132,10,132,11],[132,12,132,13],[133,6,133,7],[133,8,133,9],[133,10,133,11],[133,12,133,13],[131,2,131,5],[131,6,131,7],[131,8,131,9],[131,10,131,11],[131,12,131,13],[17,14,17,15],[13,4,13,8],[15,1,15,3],[15,4,15,8],[15,14,15,15],[13,1,13,3],[13,12,13,15],[1,2,2,4],[1,5,3,15],[5,1,5,4],[8,2,8,15],[3,2,4,4],[7,12,7,15],[7,1,7,3],[9,1,9,3],[9,4,9,8],[9,14,9,15],[11,1,11,3],[11,4,11,8],[11,14,11,15],[125,2,125,4],[94,1,94,3],[104,1,104,4],[114,1,114,4],[116,4,116,15],[125,13,125,15],[96,4,98,15],[106,4,106,15],[60,4,61,13],[56,4,59,15],[86,7,87,15],[20,1,20,3],[30,1,30,3],[40,1,40,3],[50,1,50,3],[63,3,64,13],[42,4,44,15],[52,4,54,11],[89,7,91,15],[76,7,77,15],[83,7,84,15],[66,13,66,15],[71,1,71,4],[73,4,75,15],[91,2,91,4]]}
[]
[null,null,"NRCS",null,null,"Biology Technical Note # 14 Wildlife Habitat Evaluation Guide"]
[]
[null,null,"Natural Resources Conservation Service"]
[null,null,null,null,null,"Rangeland Field Data Sheet"]
[null,"WASHINGTON",null,null,null,"(Planning Criteria = 60%)",null,null,null,null,null,null,null,null,null,"PASSWORD:RANGELAND"]
[]
[null,"Table of Contents",null,null,null,null,null,null,null,null,null,null,"Revised March 2013"]
[]
[null,"Client/Operating Unit:",null,null,{"$f":"IF(ISBLANK('Table of Contents'!$D$40),\"Click on cell to the left.\",'Table of Contents'!$D$40)","v":"Click on cell to the left."},null,null,null,null,null,null,null,null,"Tract Number:",{"$f":"IF(ISBLANK('Table of Contents'!$K$40),\" \",'Table of Contents'!$K$40)","v":" "}]
[]
[null,"Farm/Ranch Location:",null,null,{"$f":"IF(ISBLANK('Table of Contents'!$D$42),\" \",'Table of Contents'!$D$42)","v":" "},null,null,null,null,null,null,null,null,"Farm Number:",{"$f":"IF(ISBLANK('Table of Contents'!$K$42),\" \",'Table of Contents'!$K$42)","v":" "}]
[]
[null,"Evaluation Date:",null,null,{"$f":"IF(ISBLANK('Table of Contents'!$D$44),\" \",'Table of Contents'!$D$44)","v":" "},null,null,null,null,null,null,"Field Number(s):",{"$f":"IF(ISBLANK('Table of Contents'!$K$44),\" \",'Table of Contents'!$K$44)","v":" "}]
[]
[null,"Planner:",null,null,{"$f":"IF(ISBLANK('Table of Contents'!$D$46),\" \",'Table of Contents'!$D$46)","v":" "},null,null,null,null,null,null,null,null,"Proposed Treatment Acres:"]
[null,null,null,null,null,null,null,null,null,null,null,null,null,null,null,null,null,null,"NA"]
[null,null,"Cells with numbers that turn red are below the Planning Criteria.",null,null,null,null,null,null,null,null,null,null,"Program:",{"$f":"IF(ISBLANK('Table of Contents'!$K$46),\" \",'Table of Contents'!$K$46)","v":" "},null,null,null,"CRP"]
[null,null,null,null,null,null,null,null,null,null,null,null,null,null,null,null,null,null,"CSP"]
[null,null,null,null,null,null,null,null,null,null,null,null,null,null,null,null,null,null,"EQIP"]
[null,"Wildlife Food Source",null,null,null,null,null,null,null,null,null,null,null,null,null,"RANGE-FS",null,null,"EWP"]
[null,null,null,null,null,null,null,null,null,null,null,null,null,null,null,null,null,null,"F&RPP"]
[null,null,"Present","6 =","Greater than 50% palatable plant material.",null,null,null,null,null,null,null,null,null,null,null,null,null,"GRP"]
[null,null,null,null,null,null,null,null,null,null,null,null,null,null,null,null,null,null,"WHIP"]
[null,null,"No Action","PC 4 =","25% to 50% palatable plant material.",null,null,null,null,null,null,null,null,null,null,null,null,null,"WLFW"]
[null,null,null,null,null,null,null,null,null,null,null,null,null,null,null,null,null,null,"WRP"]
[null,null,"Planned A","2 =","10% to 24% palatable plant material."]
[]
[null,null,"Planned B","1 =","Less than 10% palatable plant material."]
[]
[null,"Grazing System",null,null,null,null,null,null,null,null,null,null,null,null,null,"RANGE-GS"]
[]
[null,null,"Present","3 =","No livestock use or proper use with prescribed grazing system applied."]
[]
[null,null,"No Action","PC 2 =","Moderate use, no prescribed grazing system."]
[]
[null,null,"Planned A","1 =","Improper use, with or without system."]
[]
[null,null,"Planned B"]
[]
[null,"Plant Community",null,null,null,null,null,null,null,null,null,null,null,null,null,"RANGE-PC"]
[]
[null,null,"Present","6 =","Vegetation is composed of a complex mosaic of desirable plant communities with an interspersion of grasses, forbs, and where adapted, shrubs and/or trees."]
[]
[null,null,"No Action"]
[]
[null,null,"Planned A","PC 4 =","Uniform mixture of grasses, forbs and (where adapted) woody plants. "]
[]
[null,null,"Planned B","1 =","Dominated by 1 or 2 species of grasses and/or woody plants."]
[]
[null,"Wildlife Water Source",null,null,null,null,null,null,null,null,null,null,null,null,null,"RANGE-WS"]
[]
[null,null,"Present","4 =","Historic water availability in the evaluation area is still present or restored."]
[]
[null,null,"No Action"]
[]
[null,null,"Planned A","PC 3 =","Enhanced water availability and water quality on evaluation area for wildlife (guzzlers, spring development, wells, livestock exclusion, elimination of agricultural runoff into surface water bodies, etc.)  Livestock water facilities are wildlife friendly."]
[]
[null,null,"Planned B"]
[]
[null,null,null,"1 =","Historic water source has been detrimentally altered due to human and/or livestock use."]
[]
[]
[null,null,null,"Is there a natural water source present within the Evaluation Area?  If so, then please complete the riparian section of this Habitat Evaluation Guide."]
[]
[]
[null,null,null,null,null,null,null,null,null,null,null,null,null,"BACK TO TOP"]
[]
[]
[]
[]
[null,"Habitat Fragmentation",null,null,null,null,null,null,null,null,null,null,null,null,null,"RANGE-HF"]
[]
[null,{"$f":"IF(AND(C81=FALSE,C84=FALSE,C85=FALSE,C85=FALSE,C86=FALSE,C87=FALSE,C88=FALSE),\" \",(10+(SUM($I$79,$I$81,$I$83,$I$86,$I$89,$I$93))))","v":" "},"Present",null,"Unmitigated structural barriers within or adjacent to the evaluation area. Structures that restrict natural movement or dispersion of wildlife that results in degraded habitat are unmitigated barriers.  Check all that apply."]
[]
[null,{"$f":"IF(AND(D81=FALSE,D84=FALSE,D85=FALSE,D86=FALSE,D87=FALSE,D88=FALSE),\" \",(10+(SUM($K$79,$K$81,$K$83,$K$86,$K$89,$K$93))))","v":" "},"No Action"]
[null,null,null,null,"PC = 6",null,10,"No unmitigated structures are present, some wildlife corridors are in place."]
[null,{"$f":"IF(AND(E81=FALSE,E84=FALSE,E85=FALSE,E86=FALSE,E87=FALSE,E88=FALSE),\" \",(10+(SUM($M$79,$M$81,$M$83,$M$86,$M$89,$M$93))))","v":" "},"Planned A"]
[null,null,null,null,null,null,null,"Present",{"$f":"IF(C82=FALSE,0,-1)","v":0},"No Action",{"$f":"IF(D82=FALSE,0,-1)","v":0},"Planned A",{"$f":"IF(E82=FALSE,0,-1)","v":0},"Planned B",{"$f":"IF(F82=FALSE,0,-1)","v":0}]
[null,{"$f":"IF(AND(F81=FALSE,F84=FALSE,F85=FALSE,F86=FALSE,F87=FALSE,F88=FALSE),\" \",(10+(SUM($O$79,$O$81,$O$83,$O$86,$O$89,$O$93))))","v":" "},"Planned B",null,null,null,-1,"Fences that have not been designed to be wildlife friendly"]
[null,null,false,false,false,false,null,"Present",{"$f":"IF(C84=FALSE,0,-1)","v":0},"No Action",{"$f":"IF(D84=FALSE,0,-1)","v":0},"Planned A",{"$f":"IF(E84=FALSE,0,-1)","v":0},"Planned B",{"$f":"IF(F84=FALSE,0,-1)","v":0}]
[null,null,null,null,null,null,-1,"Unnecessary access roads"]
[null,null,null,null,null,null,null,"Present",{"$f":"IF(C85=FALSE,0,-1)","v":0},"No Action",{"$f":"IF(D85=FALSE,0,-1)","v":0},"Planned A",{"$f":"IF(E85=FALSE,0,-1)","v":0},"Planned B",{"$f":"IF(F85=FALSE,0,-1)","v":0}]
[null,null,false,false,false,false,-1,"Above ground pipelines that could be updated and installed below ground"]
[null,null,false,false,false,false]
[null,null,false,false,false,false,null,"Present",{"$f":"IF(C86=FALSE,0,-1)","v":0},"No Action",{"$f":"IF(D86=FALSE,0,-1)","v":0},"Planned A",{"$f":"IF(E86=FALSE,0,-1)","v":0},"Planned B",{"$f":"IF(F86=FALSE,0,-1)","v":0}]
[null,null,false,false,false,false,-1,"Buildings or structures that are no longer needed as part of the farming or ranching operation"]
[null,null,false,false,false,false]
[null,null,null,null,null,null,null,"Present",{"$f":"IF(C87=FALSE,0,-1)","v":0},"No Action",{"$f":"IF(D87=FALSE,0,-1)","v":0},"Planned A",{"$f":"IF(E87=FALSE,0,-1)","v":0},"Planned B",{"$f":"IF(F87=FALSE,0,-1)","v":0}]
[null,null,null,null,null,null,-6,"No corridors within the evaluation area.  Corridors could be field borders, grassed waterways, hedgerows, shelterbelts, riparian areas, grassed terraces, buffers, etc."]
[]
[null,null,"BACK TO TOP"]
[null,null,null,null,null,null,null,"Present",{"$f":"IF(C88=FALSE,0,-6)","v":0},"No Action",{"$f":"IF(D88=FALSE,0,-6)","v":0},"Planned A",{"$f":"IF(E88=FALSE,0,-6)","v":0},"Planned B",{"$f":"IF(F88=FALSE,0,-6)","v":0}]
[]
[null,"Nutrient Management",null,null,null,null,null,null,null,null,null,null,null,null,null,"RANGE-NM"]
[]
[null,null,"Present","PC 3 =","Evaluation Area has a nutrient management plan and it is being applied OR the evaluation area does not need a plan because no fertilizer, commercial nutrients, or agriculturally generated manure are being applied."]
[]
[null,null,"No Action"]
[]
[null,null,"Planned A","1 =","No nutrient management plan is in place."]
[]
[null,null,"Planned B"]
[]
[null,"Integrated Pest Management",null,null,null,null,null,null,null,null,null,null,null,null,null,"RANGE-IPM"]
[]
[null,null,"Present","PC 3 =","Evaluation Area has a integrated pest management plan and it is being applied."]
[]
[null,null,"No Action","1 =","No pest management plan is in place."]
[]
[null,null,"Planned A"]
[]
[null,null,"Planned B"]
[]
[null,"Weed Control",null,null,null,null,null,null,null,null,null,null,null,null,null,"RANGE-HWC"]
[]
[null,null,"Present","PC 3 =","Evaluation Area has a Weed Control plan and it is being applied."]
[]
[null,null,"No Action","1 =","No Weed Control plan is in place."]
[]
[null,null,"Planned A"]
[]
[null,null,"Planned B"]
[]
[]
[null,null,"Evaluation Summary",null,null,null,null,null,null,null,null,null,null,"BACK TO TOP"]
[]
[]
[]
[]
[]
[null,null,"Rangeland Summary",null,null,null,"Present",null,"No Action",null,"Planned A",null,"Planned B"]
[null,null,"Wildlife food source",null,null,null,{"$f":"IF(ISBLANK($B$23),\" \",$B$23/6)","v":" "},null,{"$f":"IF(ISBLANK($B$25),\" \",$B$25/6)","v":" "},null,{"$f":"IF(ISBLANK($B$27),\" \",$B$27/6)","v":" "},null,{"$f":"IF(ISBLANK($B$29),\" \",$B$29/6)","v":" "},null,"Present"]
[null,null,"Grazing system",null,null,null,{"$f":"IF(ISBLANK($B$33),\" \",$B$33/3)","v":" "},null,{"$f":"IF(ISBLANK($B$35),\" \",$B$35/3)","v":" "},null,{"$f":"IF(ISBLANK($B$37),\" \",$B$37/3)","v":" "},null,{"$f":"IF(ISBLANK($B$39),\" \",$B$39/3)","v":" "},null,"<.6"]
[null,null,"Plant community",null,null,null,{"$f":"IF(ISBLANK($B$43),\" \",$B$43/6)","v":" "},null,{"$f":"IF(ISBLANK($B$45),\" \",$B$45/6)","v":" "},null,{"$f":"IF(ISBLANK($B$47),\" \",$B$47/6)","v":" "},null,{"$f":"IF(ISBLANK($B$49),\" \",$B$49/6)","v":" "},null,"No Action"]
[null,null,"Wildlife drinking water",null,null,null,{"$f":"IF(ISBLANK($B$53),\" \",$B$53/4)","v":" "},null,{"$f":"IF(ISBLANK($B$55),\" \",$B$55/4)","v":" "},null,{"$f":"IF(ISBLANK($B$57),\" \",$B$57/4)","v":" "},null,{"$f":"IF(ISBLANK($B$59),\" \",$B$59/4)","v":" "},null,"<.6"]
[null,null,"Habitat Fragmentation",null,null,null,{"$f":"IF($B$74=\" \",\" \",$B$74/10)","v":" "},null,{"$f":"IF($B$76=\" \",\" \",$B$76/10)","v":" "},null,{"$f":"IF($B$78=\" \",\" \",$B$78/10)","v":" "},null,{"$f":"IF($B$80=\" \",\" \",$B$80/10)","v":" "},null,"Planned A"]
[null,null,"Nutrient Management",null,null,null,{"$f":"IF(ISBLANK($B$97),\" \",$B$97/3)","v":" "},null,{"$f":"IF(ISBLANK($B$99),\" \",$B$99/3)","v":" "},null,{"$f":"IF(ISBLANK($B$101),\" \",$B$101/3)","v":" "},null,{"$f":"IF(ISBLANK($B$103),\" \",$B$103/3)","v":" "},null,"<.6"]
[null,null,"Integrated Pest Management",null,null,null,{"$f":"IF(ISBLANK($B$107),\" \",$B$107/3)","v":" "},null,{"$f":"IF(ISBLANK($B$109),\" \",$B$109/3)","v":" "},null,{"$f":"IF(ISBLANK($B$111),\" \",$B$111/3)","v":" "},null,{"$f":"IF(ISBLANK($B$113),\" \",$B$113/3)","v":" "},null,"Planned B"]
[null,null,"Weed Control",null,null,null,{"$f":"IF(ISBLANK($B$117),\" \",$B$117/3)","v":" "},null,{"$f":"IF(ISBLANK($B$119),\" \",$B$119/3)","v":" "},null,{"$f":"IF(ISBLANK($B$121),\" \",$B$121/3)","v":" "},null,{"$f":"IF(ISBLANK($B$123),\" \",$B$123/3)","v":" "},null,"<.6"]
[null,null,"Acres:",{"$f":"IF(ISBLANK($O$16),\" \",$O$16)","v":" "},null,null,{"$f":"IF(G142=0,H142,G142)","v":" "},null,{"$f":"IF(I142=0,J142,I142)","v":" "},null,{"$f":"IF(K142=0,L142,K142)","v":" "},null,{"$f":"IF(M142=0,N142,M142)","v":" "}]
[null,null,null,null,null,null,{"$f":"IF(AND(G133=\" \",G134=\" \",G135=\" \",G136=\" \",G137=\" \",G138=\" \",G139=\" \",G140=\" \"),\" \",DMIN($G$132:$G$140,\"Present\",O133:O134))","v":" "},{"$f":"IF(AND(G133=\" \",G134=\" \",G135=\" \",G136=\" \",G137=\" \",G138=\" \",G139=\" \",G140=\" \"),\" \",AVERAGE(G133:G140))","v":" "},{"$f":"IF(AND(I133=\" \",I134=\" \",I135=\" \",I136=\" \",I137=\" \",I138=\" \",I139=\" \",I140=\" \"),\" \",DMIN($I$132:$I$140,\"No Action\",O135:O136))","v":" "},{"$f":"IF(AND(I133=\" \",I134=\" \",I135=\" \",I136=\" \",I137=\" \",I138=\" \",I139=\" \",I140=\" \"),\" \",AVERAGE(I133:I140))","v":" "},{"$f":"IF(AND(K133=\" \",K134=\" \",K135=\" \",K136=\" \",K137=\" \",K138=\" \",K139=\" \",K140=\" \"),\" \",DMIN($K$132:$K$140,\"Planned A\",O137:O138))","v":" "},{"$f":"IF(AND(K133=\" \",K134=\" \",K135=\" \",K136=\" \",K137=\" \",K138=\" \",K139=\" \",K140=\" \"),\" \",AVERAGE(K133:K140))","v":" "},{"$f":"IF(AND(M133=\" \",M134=\" \",M135=\" \",M136=\" \",M137=\" \",M138=\" \",M139=\" \",M140=\" \"),\" \",DMIN($M$132:$M$140,\"Planned B\",O139:O140))","v":" "},{"$f":"IF(AND(M133=\" \",M134=\" \",M135=\" \",M136=\" \",M137=\" \",M138=\" \",M139=\" \",M140=\" \"),\" \",AVERAGE(M133:M140))","v":" "}]
[null,null,"Notes:"]
[]
[]
[]
[]
[]
[]
[]
[]
[]
[]
[]
[]
[]
[]
[]
[]
[]
[]
[]
[]
[]
[]
[]
[]
[]
[]
[]
[]
[]
[]
[]
[]
[]
[]
[null,null,null,null,null,null,null,null,null,null,null,null,null,"BACK TO TOP"]

{"sheet":"Rangeland Narrative","index":5,"n_rows":175,"n_cols":10,"rows_kept":175,"cut":false,"hidden":false,"merged":[[153,1,154,9],[156,1,158,9],[174,1,174,3],[174,8,174,9],[151,1,151,3],[142,1,149,9],[108,1,113,9],[126,1,130,9],[135,1,139,9],[71,1,74,9],[76,1,84,9],[88,1,93,9],[95,1,97,9],[131,8,131,9],[132,1,132,3],[120,1,123,9],[99,1,104,9],[115,1,117,9],[86,1,86,3],[106,1,106,3],[50,1,50,3],[66,1,66,3],[52,1,58,9],[60,1,63,9],[64,8,64,9],[1,2,2,3],[1,4,3,8],[5,1,5,3],[33,1,33,2],[69,1,69,3],[7,1,7,3],[3,1,4,3],[9,1,9,3],[44,1,48,9],[11,1,18,9],[20,1,21,9],[23,1,23,2],[25,1,29,9],[31,1,31,9],[35,1,36,9],[38,1,42,9]]}
[]
[null,null,"NRCS",null,"Biology Technical Note # 14 Wildlife Habitat Evaluation Guide"]
[]
[null,"Natural Resources Conservation Service"]
[null,null,null,null,"Rangeland Narrative"]
[null,"WASHINGTON",null,null,"(Planning Criteria = 60%)",null,null,null,null,"PASSWORD:RANGELAND N"]
[]
[null,"Table of Contents",null,null,null,null,null,null,null,"Revised March 2013"]
[]
[null,"Wildlife Food Source",null,null,null,null,null,null,null,"RANGE-FS"]
[]
[null,"Hoofed game are not the only wildlife using range.  Insects, rabbits, rodents, birds, reptiles,and other wildlife all compete for the available food.  When food is adequate in quantity, but of such poor quality that the animals are unable to eat and digest enough to obtain the necessary nutrients, malnutrition will result.  It is also important to note that wildlife do not always utilize the most highly nutritious plant material available.  Palatable plant materials are anything that are acceptable and nutritious food sources and can include forage, twigs, leaves, seeds, nectar, fruits, roots, etc. Higher plant diversity will also provide greater value to wildlife. Palatable plant material percentage should be estimated by weight or ocular estimate."]
[]
[]
[]
[]
[]
[]
[]
[]
[null,"Noxious weeds are not a suitable substitute for native vegetation when planning for a wildlife food source."]
[]
[]
[null,"Grazing System",null,null,null,null,null,null,null,"RANGE-GS"]
[]
[null,"If improperly managed, livestock presence can have negative impacts on all habitat elements.  These impacts can include, but are not limited to decreases in surface water quality, reduction in plant cover and species diversity, changes in hydrology, soil erosion, and an increase in noxious  weeds. When managed properly, livestock can be used as a management tool in areas where invasive vegetation will outcompete native species."]
[]
[]
[]
[]
[]
[null,"Livestock should be excluded from aquatic habitats and their associated buffer areas."]
[]
[null,"Plant Community",null,null,null,null,null,null,null,"RANGE-PC"]
[]
[null,"When planning for wildlife, habitat with diverse plant communities is almost always preferred.  Desirable plant communities are those which are not dominated by invasive species."]
[]
[]
[null,"It is important to remember that the same range habitat can be used by many species during different seasons to complete their lifecycles. Herbaceous vegetation can be a critical cover component for ground-nesting birds in the spring, whereas a woody species in the same community can provide an essential winter food resource for ungulates. Therefore it is essential that plant communities be composed of several different species of each vegetative layer."]
[]
[]
[]
[]
[]
[null,"Another example is a rangeland community composed primarily of grasses. This community will not provide the structural habitat elements necessary for the striped whipsnake and other reptiles, hairstreak butterfly, sage grouse, small mammals such as the pigmy rabbit, etc. In addition, lack of forb species will limit food resources for small mammals such as the sagebrush vole, yellowbelly marmot, and the mountain cottontail."]
[]
[]
[]
[]
[]
[null,"Wildlife Water Source",null,null,null,null,null,null,null,"RANGE-WS"]
[]
[null,"The amount of water available within a given area will strongly affect the diversity, range and population size of a species. In dry habitats, the limited rainfall means that there is no free water for part or all of the year and wildlife has to obtain water from their food by metabolism.  Throughout most of their lives, wildlife living in dry environments survive on very little water and many characteristics of their anatomy, physiology and behavior facilitate the conservation of body fluids.  Examples include: migratory movements to search for green forage and or water and many physiological characteristics of the kidneys, skin and blood system. "]
[]
[]
[]
[]
[]
[]
[]
[null,"Water quality is as important as water quantity in agricultural landscapes where wildlife is a consideration. Decreases in water quality due to nutrient, organic, and chemical runoff, as well as sedimentation, will limit the use of a water source by wildlife.  Evaluate water quality according to the quality criteria outlined in the Field Office Technical Guide."]
[]
[]
[]
[null,null,null,null,null,null,null,null,"BACK TO TOP"]
[]
[null,"Table of Contents"]
[]
[]
[null,"Habitat Fragmentation",null,null,null,null,null,null,null,"RANGE-HF"]
[]
[null,"Habitat fragmentation involves the division of large, contiguous areas of habitat into smaller patches isolated from one another.  While it is obvious that the numbers of a species are likely to decline if its habitat is reduced; fragmentation effects imply that the value of the remaining habitat also is diminished."]
[]
[]
[]
[]
[null,"Three types of fragmentation effects have been distinguished: patch-size effects, edge effects, and isolation effects. Patch-size effects are those that result from differential use or reproductive success associated with habitat patches of different sizes. Some of the patch-size effects may be induced by edge effects—phenomena such as avoidance, pairing success, predation, interspecific competition, prey availability, or brood parasitism by brown-headed cowbirds (Molothrus ater)—that may be different near the edge of a habitat as compared to the interior of a patch. Finally, isolation from similar habitat can influence use of a particular habitat patch because of reduced dispersal opportunities. Each of these factors—patch size, edge effects, and isolation—can affect the occurrence, density, or reproductive success of animals in a habitat patch."]
[]
[]
[]
[]
[]
[]
[]
[]
[]
[null,"Nutrient Management",null,null,null,null,null,null,null,"RANGE-NM"]
[]
[null,"Plant nutrients, which come primarily from chemical fertilizers, manure, and in some cases sewage sludge, are essential for crop production. When applied in proper quantities and at appropriate times, nutrients (especially nitrogen, phosphorus, and potassium) help achieve optimum crop yields. However, improper application of nutrients can cause water quality problems both locally and downstream. Nutrient management is the practice of using nutrients wisely for optimum economic benefit, while minimizing impact on the environment."]
[]
[]
[]
[]
[]
[]
[null,"Water quality problems can occur when nutrients are added to the soil at a time when they could be removed in surface runoff from rainfall or snow melt at rates exceeding that removed by the crop, or if applied at times that they cannot be utilized by the crop."]
[]
[]
[]
[null,"When nitrogen or phosphorus are present in lakes or rivers at a high concentration, a condition called \"eutrophication\" or biological enrichment can occur. High nitrogen levels cause excess algae to grow in response to the enriched nutrient solution and few fish can be found. When the algae die, their decomposition consumes enough dissolved oxygen to suffocate fish and other animal life. Sources of nitrogen contributing to the problem include agricultural runoff, sewage treatment plants, atmospheric nitrogen, and other sources."]
[]
[]
[]
[]
[]
[]
[null,"Integrated Pest Management",null,null,null,null,null,null,null,"RANGE-IPM"]
[]
[null,"Integrated Pest Management (IPM) is an effective and environmentally sensitive approach to pest management that relies on a combination of common-sense practices. IPM programs use current, comprehensive information on the life cycles of pests and their interaction with the environment. This information, in combination with available pest control methods, is used to manage pest damage by the most economical means, and with the least possible hazard to people, property, and the environment."]
[]
[]
[]
[]
[]
[]
[null,"IPM is not a single pest control method but, rather, a series of pest management evaluations, decisions and controls. In practicing IPM, growers who are aware of the potential for pest infestation follow a four-tiered approach. The four steps include:"]
[]
[]
[]
[null,"Set Action Thresholds"]
[null,"Before taking any pest control action, IPM first sets an action threshold, a point at which pest populations or environmental conditions indicate that pest control action must be taken. Sighting a single pest does not always mean control is needed. The level at which pests will either become an economic threat is critical to guide future pest control decisions."]
[]
[]
[]
[]
[null,"Monitor and Identify Pests"]
[null,"Not all insects, weeds, and other living organisms require control. Many organisms are innocuous, and some are even beneficial. IPM programs work to monitor for pests and identify them accurately, so that appropriate control decisions can be made in conjunction with action thresholds. This monitoring and identification removes the possibility that pesticides will be used when they are not really needed or that the wrong kind of pesticide will be used."]
[]
[]
[]
[]
[null,null,null,null,null,null,null,null,"BACK TO TOP"]
[null,"Table of Contents"]
[]
[null,"Prevention"]
[null,"As a first line of pest control, IPM programs work to manage the crop, lawn, or indoor space to prevent pests from becoming a threat. In an agricultural crop, this may mean using cultural methods, such as rotating between different crops, selecting pest-resistant varieties, and planting pest-free rootstock. These control methods can be very effective and cost-efficient and present little to no risk to people or the environment."]
[]
[]
[]
[]
[]
[null,"Control"]
[null,"Once monitoring, identification, and action thresholds indicate that pest control is required, and preventive methods are no longer effective or available, IPM programs then evaluate the proper control method both for effectiveness and risk. Effective, less risky pest controls are chosen first, including highly targeted chemicals, such as pheromones to disrupt pest mating, or mechanical control, such as trapping or weeding. If further monitoring, identifications and action thresholds indicate that less risky controls are not working, then additional pest control methods would be employed, such as targeted spraying of pesticides. Broadcast spraying of non-specific pesticides is a last resort."]
[]
[]
[]
[]
[]
[]
[]
[]
[null,"Weed Control",null,null,null,null,null,null,"RANGE-HWC"]
[]
[null,"Weed Control is the eradication, reduction, or manipulation of herbaceous weed species including invasive, noxious, and prohibited plants."]
[]
[]
[null,"Weed Control is designed to achieve the desired plant community through the utilization of Integrated Pest Management (IPM) principles. This is accomplished by mechanical, chemical, biological, or a combination of these techniques."]
[]
[]
[]
[null,"Weed Control is applied to accomplish one or more of the following:"]
[]
[null,"l Restore native or create desired plant communities"]
[]
[null,"l Manage noxious woody plants"]
[]
[null,"l Enhance accessibility, quantity, and quality of forage"]
[]
[null,"l Maintain or enhance wildlife habitat including habitat for threatened and endangered species"]
[]
[null,"l Protect soils and control erosion"]
[]
[null,"l Reduce fire hazard  "]
[]
[null,"Table of Contents",null,null,null,null,null,null,"BACK TO TOP"]

{"sheet":"Pastureland (50%)","index":6,"n_rows":176,"n_cols":19,"rows_kept":176,"cut":false,"hidden":false,"merged":[[18,10,18,11],[136,6,136,7],[136,8,136,9],[136,10,136,11],[136,12,136,13],[134,8,134,9],[134,10,134,11],[134,12,134,13],[135,6,135,7],[135,8,135,9],[135,10,135,11],[135,12,135,13],[134,6,134,7],[132,6,132,7],[132,8,132,9],[132,10,132,11],[137,6,137,7],[137,8,137,9],[137,10,137,11],[137,12,137,13],[138,3,138,4],[138,6,138,7],[138,8,138,9],[138,10,138,11],[138,12,138,13],[132,12,132,13],[133,6,133,7],[133,8,133,9],[133,10,133,11],[133,12,133,13],[130,6,130,7],[130,8,130,9],[130,10,130,11],[130,12,130,13],[131,6,131,7],[131,8,131,9],[131,10,131,11],[131,12,131,13],[129,2,129,5],[129,6,129,7],[129,8,129,9],[129,10,129,11],[129,12,129,13],[21,1,21,3],[32,1,32,4],[44,1,44,3],[64,1,64,3],[79,1,79,3],[26,3,27,3],[23,4,25,13],[66,4,68,15],[76,4,77,15],[26,4,29,13],[70,4,71,16],[73,4,74,16],[60,13,60,15],[46,4,50,13],[61,2,61,4],[15,1,15,3],[15,4,15,8],[15,14,15,15],[1,2,2,4],[1,5,3,15],[5,1,5,4],[7,12,7,15],[3,2,4,4],[7,1,7,3],[13,12,13,15],[116,1,116,4],[8,2,8,15],[9,1,9,3],[9,4,9,8],[9,14,9,15],[11,1,11,3],[11,4,11,8],[11,14,11,15],[13,1,13,3],[17,14,17,15],[18,12,18,13],[18,14,18,15],[19,10,19,11],[19,12,19,13],[19,14,19,15],[13,4,13,8],[175,13,175,15],[140,2,140,4],[140,13,140,15],[143,1,173,15],[52,4,54,13],[126,2,126,4],[81,4,83,14],[126,13,126,15],[108,4,108,15],[118,4,118,15],[85,4,88,13],[98,4,102,15],[90,4,91,11],[92,3,94,13],[96,1,96,3],[106,1,106,4]]}
[]
[null,null,"NRCS",null,null,"Biology Technical Note # 14 Wildlife Habitat Evaluation Guide"]
[]
[null,null,"Natural Resources Conservation Service"]
[null,null,null,null,null,"Pastureland Field Data Sheet"]
[null,"WASHINGTON",null,null,null,"(Planning Criteria = 50%)",null,null,null,null,null,null,null,null,null,"PASSWORD:PASTURELAND"]
[]
[null,"Table of Contents",null,null,null,null,null,null,null,null,null,null,"Revised March 2013"]
[]
[null,"Client/Operating Unit:",null,null,{"$f":"IF(ISBLANK('Table of Contents'!$D$40),\"Click on cell to the left.\",'Table of Contents'!$D$40)","v":"Click on cell to the left."},null,null,null,null,null,null,null,null,"Tract Number:",{"$f":"IF(ISBLANK('Table of Contents'!$K$40),\" \",'Table of Contents'!$K$40)","v":" "}]
[]
[null,"Farm/Ranch Location:",null,null,{"$f":"IF(ISBLANK('Table of Contents'!$D$42),\" \",'Table of Contents'!$D$42)","v":" "},null,null,null,null,null,null,null,null,"Farm Number:",{"$f":"IF(ISBLANK('Table of Contents'!$K$42),\" \",'Table of Contents'!$K$42)","v":" "}]
[]
[null,"Evaluation Date:",null,null,{"$f":"IF(ISBLANK('Table of Contents'!$D$44),\" \",'Table of Contents'!$D$44)","v":" "},null,null,null,null,null,null,"Field Number(s):",{"$f":"IF(ISBLANK('Table of Contents'!$K$44),\" \",'Table of Contents'!$K$44)","v":" "}]
[]
[null,"Planner:",null,null,{"$f":"IF(ISBLANK('Table of Contents'!$D$46),\" \",'Table of Contents'!$D$46)","v":" "},null,null,null,null,null,null,null,null,"Proposed Treatment Acres:"]
[]
[null,null,"Cells with numbers that turn red are below the Planning Criteria.",null,null,null,null,null,null,null,null,null,null,"Program:",{"$f":"IF(ISBLANK('Table of Contents'!$K$46),\" \",'Table of Contents'!$K$46)","v":" "},null,null,null,"NA"]
[null,null,null,null,null,null,null,null,null,null,"Other Habitat",null,"Pastureland",null,"Percent",null,null,null,"CRP"]
[null,null,null,null,null,null,null,null,null,"Calculate your acres ratio here for percentage:",null,null,{"$f":"IF(OR(ISBLANK(K20),ISBLANK(O16)),\" \",$O$16)","v":" "},null,{"$f":"IF(OR(ISBLANK(K20),(ISBLANK(O16))),\" \",K20/M20)","v":" "},null,null,null,"CSP"]
[null,null,null,null,null,null,null,null,null,null,null,null,null,null,null,null,null,null,"CStP"]
[null,"Harvesting System",null,null,null,null,null,null,null,null,null,null,null,null,null,"PASTURE-HS",null,null,"EQIP"]
[null,null,null,null,null,null,null,null,null,null,null,null,null,null,null,null,null,null,"EWP"]
[null,null,"Present","4 =","Harvested according to prescribed grazing system or mechanical forage harvest as a wildlife improvement tool, or left unharvested.",null,null,null,null,null,null,null,null,null,null,null,null,null,"F&RPP"]
[null,null,null,null,null,null,null,null,null,null,null,null,null,null,null,null,null,null,"GRP"]
[null,null,"No Action",null,null,null,null,null,null,null,null,null,null,null,null,null,null,null,"WHIP"]
[null,null,null,"PC 2 =","Moderate livestock use, no prescribed grazing system, or no mechanical forage harvest as a wildlife improvement tool.",null,null,null,null,null,null,null,null,null,null,null,null,null,"WLFW"]
[null,null,"Planned A",null,null,null,null,null,null,null,null,null,null,null,null,null,null,null,"WRP"]
[]
[null,null,"Planned B"]
[null,null,null,"1 =","Improper use, with or without system."]
[]
[null,"Distance to Undisturbed Cover",null,null,null,null,null,null,null,null,null,null,null,null,null,"PASTURE-DUC"]
[]
[null,null,"Present","10 =","Less than 330 feet."]
[]
[null,null,"No Action","8 =","330 feet to 660 feet."]
[]
[null,null,"Planned A","PC 6 =","660 feet to 1320 feet."]
[]
[null,null,"Planned B","4 =","1320 feet to 2640 feet."]
[]
[null,null,null,"2 =","Greater than 2640 feet."]
[]
[null,"Plant Diversity",null,null,null,null,null,null,null,null,null,null,null,null,null,"PASTURE-PD"]
[]
[null,null,"Present","4 =","Vegetation is a complex mosaic of herbaceous plant types with an interspersion of grasses, forbs, species diversity greater than below."]
[]
[null,null,"No Action"]
[]
[null,null,"Planned A"]
[]
[null,null,"Planned B","PC 2 =","Uniform mixture of grasses, edible forbs, diversity of species moderate, grass species dominated by more than 1 species, and forb species are at least 3.  "]
[]
[]
[]
[null,null,null,"1 =","Dominated by 1 species of grass, diversity of species low."]
[]
[]
[]
[null,null,null,null,null,null,null,null,null,null,null,null,null,"Back to Top"]
[null,null,"Evaluation Summary"]
[]
[]
[null,"Pasture Corridors",null,null,null,null,null,null,null,null,null,null,null,null,null,"PASTURE-PC"]
[]
[null,null,"Present","8 =","A buffer, clump, or strip of grass at least 40 feet in width or 2% of the total pastureland area is left undisturbed during the nesting season, October 1st through July 15th."]
[]
[]
[]
[null,null,"No Action","6 =","A buffer, clump, or strip of grass at least 20 feet in width or 1% of the total pastureland area is left during the nesting season, October 1st through July 15th."]
[]
[]
[null,null,"Planned A","PC 4 =","A buffer, clump, or strip of vegetation at least 20 feet in width or 1% of the total pastureland area is left during the nesting season, October 1st through July 15th."]
[]
[]
[null,null,"Planned B","1 =","Disturbance throughout the pasture during the nesting season, October 1st through July 15th."]
[]
[]
[null,"Wildlife Water Source",null,null,null,null,null,null,null,null,null,null,null,null,null,"PASTURE-WS"]
[]
[null,null,"Present","4 =","Historic water availability in the Evaluation Area is still present or restored. (Score Prior Converted (PC) and Farmed Wetlands (FW) here)"]
[]
[]
[null,null,"No Action"]
[null,null,null,"PC 2 =","Enhanced water availability in Evaluation Area for wildlife (guzzlers, spring development, wells, livestock exclusion, escape ramps installed in livestock watering facilities, elimination of agricultural runoff into surface water bodies, etc.)"]
[null,null,"Planned A"]
[]
[]
[null,null,"Planned B"]
[null,null,null,"1 =","Historic water source has been detrimentally altered due to human and/or livestock use."]
[]
[null,null,null,"Is there a natural water source present within the Evaluation Area?  If so, then please complete the riparian section of this Habitat Evaluation Guide."]
[]
[]
[]
[null,"Nutrient Management",null,null,null,null,null,null,null,null,null,null,null,null,null,"PASTURE-NM"]
[]
[null,null,"Present","PC 3 =","Evaluation Area has a nutrient management plan and it is being applied OR the evaluation area does not need a plan because no fertilizer, commercial nutrients, or agriculturally generated manure are being applied."]
[]
[null,null,"No Action"]
[]
[null,null,"Planned A"]
[]
[null,null,"Planned B","1 =","No nutrient management plan is in place."]
[]
[null,"Integrated Pest Management",null,null,null,null,null,null,null,null,null,null,null,null,null,"PASTURE-IPM"]
[]
[null,null,"Present","PC 3 =","Evaluation Area has a integrated pest management plan and it is being applied."]
[]
[null,null,"No Action","1 =","No pest management plan is in place."]
[]
[null,null,"Planned A"]
[]
[null,null,"Planned B"]
[]
[null,"Weed Control",null,null,null,null,null,null,null,null,null,null,null,null,null,"PASTURE-WC"]
[]
[null,null,"Present","PC 3 =","Evaluation Area has a weed control plan and it is being applied."]
[]
[null,null,"No Action","1 =","No weed control plan is in place."]
[]
[null,null,"Planned A"]
[]
[null,null,"Planned B"]
[]
[null,null,"Evaluation Summary",null,null,null,null,null,null,null,null,null,null,"Back to Top"]
[]
[]
[null,null,"Pastureland Summary",null,null,null,"Present",null,"No Action",null,"Planned A",null,"Planned B"]
[null,null,"Harvesting System",null,null,null,{"$f":"IF(ISBLANK($B$24),\" \",$B$24/4)","v":" "},null,{"$f":"IF(ISBLANK($B$26),\" \",$B$26/4)","v":" "},null,{"$f":"IF(ISBLANK($B$28),\" \",$B$28/4)","v":" "},null,{"$f":"IF(ISBLANK($B$30),\" \",$B$30/4)","v":" "},null,"Present"]
[null,null,"Distance to Undisturbed cover",null,null,null,{"$f":"IF(ISBLANK($B$35),\" \",$B$35/10)","v":" "},null,{"$f":"IF(ISBLANK($B$37),\" \",$B$37/10)","v":" "},null,{"$f":"IF(ISBLANK($B$39),\" \",$B$38/10)","v":" "},null,{"$f":"IF(ISBLANK($B$41),\" \",$B$41/10)","v":" "},null,"<.5"]
[null,null,"Plant Diversity",null,null,null,{"$f":"IF(ISBLANK($B$47),\" \",$B$47/4)","v":" "},null,{"$f":"IF(ISBLANK($B$49),\" \",$B$49/4)","v":" "},null,{"$f":"IF(ISBLANK($B$51),\" \",$B$51/4)","v":" "},null,{"$f":"IF(ISBLANK($B$53),\" \",$B$53/4)","v":" "},null,"No Action"]
[null,null,"Harvest Rotation",null,null,null,{"$f":"IF(ISBLANK($B$67),\" \",$B$67/8)","v":" "},null,{"$f":"IF(ISBLANK($B$71),\" \",$B$71/8)","v":" "},null,{"$f":"IF(ISBLANK($B$74),\" \",$B$74/8)","v":" "},null,{"$f":"IF(ISBLANK($B$77),\" \",$B$77/8)","v":" "},null,"<.5"]
[null,null,"Wildlife Drinking Water",null,null,null,{"$f":"IF(ISBLANK($B$82),\" \",$B$82/3)","v":" "},null,{"$f":"IF(ISBLANK($B$85),\" \",$B$85/3)","v":" "},null,{"$f":"IF(ISBLANK($B$87),\" \",$B$87/3)","v":" "},null,{"$f":"IF(ISBLANK($B$90),\" \",$B$90/3)","v":" "},null,"Planned A"]
[null,null,"Nutrient Management",null,null,null,{"$f":"IF(ISBLANK($B$99),\" \",$B$99/3)","v":" "},null,{"$f":"IF(ISBLANK($B$101),\" \",$B$101/3)","v":" "},null,{"$f":"IF(ISBLANK($B$103),\" \",$B$103/3)","v":" "},null,{"$f":"IF(ISBLANK($B$105),\" \",$B$105/3)","v":" "},null,"<.5"]
[null,null,"Integrated Pest Management",null,null,null,{"$f":"IF(ISBLANK($B$109),\" \",$B$109/3)","v":" "},null,{"$f":"IF(ISBLANK($B$111),\" \",$B$111/3)","v":" "},null,{"$f":"IF(ISBLANK($B$113),\" \",$B$113/3)","v":" "},null,{"$f":"IF(ISBLANK($B$115),\" \",$B$115/3)","v":" "},null,"Planned B"]
[null,null,"Weed Control",null,null,null,{"$f":"IF(ISBLANK($B$119),\" \",$B$119/3)","v":" "},null,{"$f":"IF(ISBLANK($B$121),\" \",$B$121/3)","v":" "},null,{"$f":"IF(ISBLANK($B$123),\" \",$B$123/3)","v":" "},null,{"$f":"IF(ISBLANK($B$125),\" \",$B$125/3)","v":" "},null,"<.5"]
[null,null,"Acres:",{"$f":"IF(ISBLANK($O$16),\" \",$O$16)","v":" "},null,null,{"$f":"IF(G140=0,H140,G140)","v":" "},null,{"$f":"IF(I140=0,J140,I140)","v":" "},null,{"$f":"IF(K140=0,L140,K140)","v":" "},null,{"$f":"IF(M140=0,N140,M140)","v":" "}]
[null,null,null,null,null,null,{"$f":"IF(AND(G131=\" \",G132=\" \",G133=\" \",G134=\" \",G135=\" \",G136=\" \",G137=\" \",G138=\" \"),\" \",DMIN($G$130:$G$138,\"Present\",O131:O132))","v":" "},{"$f":"IF(AND(G131=\" \",G132=\" \",G133=\" \",G134=\" \",G135=\" \",G136=\" \",G137=\" \",G138=\" \"),\" \",AVERAGE(G131:G138))","v":" "},{"$f":"IF(AND(I131=\" \",I132=\" \",I133=\" \",I134=\" \",I135=\" \",I136=\" \",I137=\" \",I138=\" \"),\" \",DMIN($I$130:$I$138,\"No Action\",O133:O134))","v":" "},{"$f":"IF(AND(I131=\" \",I132=\" \",I133=\" \",I134=\" \",I135=\" \",I136=\" \",I137=\" \",I138=\" \"),\" \",AVERAGE(I131:I138))","v":" "},{"$f":"IF(AND(K131=\" \",K132=\" \",K133=\" \",K134=\" \",K135=\" \",K136=\" \",K137=\" \",K138=\" \"),\" \",DMIN($K$130:$K$138,\"Planned A\",O135:O136))","v":" "},{"$f":"IF(AND(K131=\" \",K132=\" \",K133=\" \",K134=\" \",K135=\" \",K136=\" \",K137=\" \",K138=\" \"),\" \",AVERAGE(K131:K138))","v":" "},{"$f":"IF(AND(M131=\" \",M132=\" \",M133=\" \",M134=\" \",M135=\" \",M136=\" \",M137=\" \",M138=\" \"),\" \",DMIN($M$130:$M$138,\"Planned B\",O137:O138))","v":" "},{"$f":"IF(AND(M131=\" \",M132=\" \",M133=\" \",M134=\" \",M135=\" \",M136=\" \",M137=\" \",M138=\" \"),\" \",AVERAGE(M131:M138))","v":" "}]
[null,null,"Evaluation Summary",null,null,null,null,null,null,null,null,null,null,"Back to Top"]
[]
[null,null,"Notes:"]
[]
[]
[]
[]
[]
[]
[]
[]
[]
[]
[]
[]
[]
[]
[]
[]
[]
[]
[]
[]
[]
[]
[]
[]
[]
[]
[]
[]
[]
[]
[]
[]
[null,null,null,null,null,null,null,null,null,null,null,null,null,"Back to Top"]

{"sheet":"Pastureland Narrative","index":7,"n_rows":201,"n_cols":10,"rows_kept":201,"cut":false,"hidden":false,"merged":[[158,1,163,9],[166,1,174,9],[92,1,95,9],[105,1,110,9],[112,1,114,9],[116,1,121,9],[125,1,131,9],[53,1,54,9],[58,1,63,9],[65,1,66,9],[200,1,200,3],[200,8,200,9],[97,2,101,9],[132,8,132,9],[181,1,184,7],[178,1,179,8],[138,1,140,9],[176,1,176,3],[103,1,103,3],[123,1,123,3],[132,1,132,3],[143,1,147,9],[150,1,155,9],[1,2,2,3],[1,4,3,8],[5,1,5,3],[9,1,10,9],[3,1,4,3],[7,1,7,3],[84,1,91,9],[12,1,14,9],[18,1,23,9],[27,1,34,9],[36,1,40,9],[42,1,42,9],[16,1,16,2],[25,1,25,4],[73,1,80,9],[67,8,67,9],[56,1,56,2],[71,1,71,2],[82,1,82,3],[67,2,67,4],[44,1,48,9],[50,1,51,9]]}
[]
[null,null,"NRCS",null,"Biology Technical Note # 14 Wildlife Habitat Evaluation Guide"]
[]
[null,"Natural Resources Conservation Service"]
[null,null,null,null,"Pastureland Narrative"]
[null,"WASHINGTON",null,null,"(Planning Criteria = 50%)",null,null,null,null,"PASSWORD: PASTURELAND N"]
[]
[null,"Table of Contents",null,null,null,null,null,null,null,"Revised March 2013"]
[]
[null,"Pastureland is land in which the primary use is grazing, although incidental hay or silage harvest may occur. Include grasslands which are not regularly harvested such as wildlife habitat."]
[]
[]
[null,"Forage which is harvested primarily mechanically, such as hay or silage is considered cropland, even if incidental grazing occurs. Score the following under Cropland: Corn and grass silage, mint, alfalfa, and hayland."]
[]
[]
[]
[null,"Harvesting System",null,null,null,null,null,null,null,"PASTURE-HS"]
[]
[null,"Proper management of a grass stand will increase its health, which ultimately provides higher quality wildlife food and cover. Pastures which are either over or under-utilized can be less  attractive for wildlife. For example, a stand which is allowed to be overgrown with tall sod-forming grass species will eventually outcompete the legumes and other forb species preferred by many species of wildlife. Overgrazing can lead to soil compaction, erosion, and an abundance of unpalatable species."]
[]
[]
[]
[]
[]
[]
[null,"Distance to Undisturbed Cover",null,null,null,null,null,null,null,"PASTURE-DUC"]
[]
[null,"Maximum distance from the approximate center of the Evaluation Area to a different habitat type with a score at Planning Criteria level or above. This element is intended to determine the average distance from the most open area to the nearest protective cover for wildlife.  The measurement is to be taken from the point in the pastureland that is farthest from another habitat type that would meet Planning Criteria level or above.  Other habitat may be woodland or riparian at least 1% of evaluation area size, or rangeland, wetland, or unharvested pastureland (refer to the Harvest Rotation Criteria) at least 2% of evaluation area size.  See acreage calculator in the Pastureland worksheet."]
[]
[]
[]
[]
[]
[]
[]
[]
[null,"Multiple habitat types can be combined together to total the percentage of \"different habitat\". For example, if the evaluation area is 20 acres, a 0.2 ac wetland and a 0.2 ac woodland can be combined to meet the 2% \"other habitat\" requirement. If these other habitats were 500 feet away from the center of the pasture and both met the Planning Criteria level, the landowner would score an 8."]
[]
[]
[]
[]
[]
[null,"For more information please refer to Cropland Criteria: Distance to Undisturbed Cover."]
[]
[null,"Wildlife depend on cover to serve many functions including: nesting, escape, hiding and resting areas, and thermal protection. It is critical for wildlife to be able to take cover in diverse vegetation types within a short distance from watering and feeding areas. These undisturbed areas serve as critical edge habitat where the highest number and variety of species can be expected in a particular Evaluation Area."]
[]
[]
[]
[]
[]
[null,"It is critical that the undisturbed cover types be at a Planning Criteria level so that they provide the highest cover benefits possible in a small portion of the overall evaluation area."]
[]
[]
[null,"When using habitats which are not on the landowner's property as undisturbed cover, the evaluator should use best judgment when determining if the off-site habitat meets Planning Criteria."]
[]
[]
[null,"Plant Diversity",null,null,null,null,null,null,null,"PASTURE-PD"]
[]
[null,"Pastureland which is composed of many herbaceous plant types provides the largest food selection for a variety of wildlife species. The most desirable pasture stands have a mixture of several grass species and several forb species. Fields which have high interspersion between grass and forb species have the highest utilization by grazing wildlife. For example, a pasture with tall fescue, orchard grass, white clover, and red clover will provide food for more animal groups than a perennial rye grass pasture."]
[]
[]
[]
[]
[]
[]
[null,"Noxious weeds are not a suitable substitute for native vegetation when planning for a wildlife food source."]
[]
[null,null,"Table of Contents",null,null,null,null,null,"Back to Top"]
[]
[]
[]
[null,"Pasture Corridors",null,null,null,null,null,null,null,"PASTURE-PC"]
[]
[null,"Undisturbed grassland is a critical element in the success of ground-nesting birds.  It is important to provide herbaceous vegetation that is dense enough to facilitate nest-building, camouflage, and thermal protection for both adult and juvenile birds.  A less desired, but still functional cover type, is an undisturbed area of woody shrubs and other dense, low-growing vegetation. Vegetation should be left undisturbed in early fall to promote the growth of suitable nesting cover by the spring. Most ground-nesting birds have completed their nesting cycles by mid-July.  The planner has the option of planning the total percentage or the minimum width, whichever results in lower acreage."]
[]
[]
[]
[]
[]
[]
[]
[]
[null,"Wildlife Water Source",null,null,null,null,null,null,null,"PASTURE-WS"]
[]
[null,"The amount of water available within a given area will strongly affect the diversity, range and population size of a species. In dry habitats, the limited rainfall means that there is no free water for part or all of the year and wildlife has to obtain water from their food by metabolism.  Throughout most of their lives, wildlife living in dry environments survive on very little water and many characteristics of their anatomy, physiology and behavior facilitate the conservation of body fluids.  Examples include: migratory movements to search for green forage and or water and many physiological characteristics of the kidneys, skin and blood system. "]
[]
[]
[]
[]
[]
[]
[]
[null,"Water quality is as important as water quantity in agricultural landscapes where wildlife is a consideration. Decreases in water quality due to nutrient, organic, and chemical runoff, as well as sedimentation, will limit the use of a water source by wildlife.  Evaluate water quality according to the Planning Criteria outlined in the Field Office Technical Guide."]
[]
[]
[]
[]
[null,"Note:","If there was no historic surface water features present on the evaluation unit, the landowner is at the Planning Criteria level. If there were historical water features present on the site and they have been detrimentally impacted due to human and/or livestock abuse, the landowner will have to correct the problems before Planning Criteria is achieved."]
[]
[]
[]
[]
[]
[null,"Nutrient Management",null,null,null,null,null,null,null,"PASTURE-NM"]
[]
[null,"Plant nutrients, which come primarily from chemical fertilizers, manure, and in some cases sewage sludge, are essential for crop production. When applied in proper quantities and at appropriate times, nutrients (especially nitrogen, phosphorus, and potassium) help achieve optimum crop yields. However, improper application of nutrients can cause water quality problems both locally and downstream. Nutrient management is the practice of using nutrients wisely for optimum economic benefit, while minimizing impact on the environment."]
[]
[]
[]
[]
[]
[]
[null,"Water quality problems can occur when nutrients are added to the soil at a time when they could be removed in surface runoff from rainfall or snow melt at rates exceeding that removed by the crop, or if applied at times that they cannot be utilized by the crop."]
[]
[]
[]
[null,"When nitrogen or phosphorus are present in lakes or rivers at a high concentration, a condition called \"eutrophication\" or biological enrichment can occur. High nitrogen levels cause excess algae to grow in response to the enriched nutrient solution and few fish can be found. When the algae die, their decomposition consumes enough dissolved oxygen to suffocate fish and other animal life. Sources of nitrogen contributing to the problem include agricultural runoff, sewage treatment plants, atmospheric nitrogen, and other sources."]
[]
[]
[]
[]
[]
[]
[null,"Integrated Pest Management",null,null,null,null,null,null,null,"PASTURE-IPM"]
[]
[null,"Integrated Pest Management (IPM) is an effective and environmentally sensitive approach to pest management that relies on a combination of common-sense practices. IPM programs use current, comprehensive information on the life cycles of pests and their interaction with the environment. This information, in combination with available pest control methods, is used to manage pest damage by the most economical means, and with the least possible hazard to people, property, and the environment."]
[]
[]
[]
[]
[]
[]
[null,"Table of Contents",null,null,null,null,null,null,"Back to Top"]
[]
[]
[]
[]
[]
[null,"IPM is not a single pest control method but, rather, a series of pest management evaluations, decisions and controls. In practicing IPM, growers who are aware of the potential for pest infestation follow a four-tiered approach. The four steps include:"]
[]
[]
[]
[null,"Set Action Thresholds"]
[null,"Before taking any pest control action, IPM first sets an action threshold, a point at which pest populations or environmental conditions indicate that pest control action must be taken. Sighting a single pest does not always mean control is needed. The level at which pests will either become an economic threat is critical to guide future pest control decisions."]
[]
[]
[]
[]
[]
[null,"Monitor and Identify Pests"]
[null,"Not all insects, weeds, and other living organisms require control. Many organisms are innocuous, and some are even beneficial. IPM programs work to monitor for pests and identify them accurately, so that appropriate control decisions can be made in conjunction with action thresholds. This monitoring and identification removes the possibility that pesticides will be used when they are not really needed or that the wrong kind of pesticide will be used."]
[]
[]
[]
[]
[]
[]
[null,"Prevention"]
[null,"As a first line of pest control, IPM programs work to manage the crop, lawn, or indoor space to prevent pests from becoming a threat. In an agricultural crop, this may mean using cultural methods, such as rotating between different crops, selecting pest-resistant varieties, and planting pest-free rootstock. These control methods can be very effective and cost-efficient and present little to no risk to people or the environment."]
[]
[]
[]
[]
[]
[]
[null,"Control"]
[null,"Once monitoring, identification, and action thresholds indicate that pest control is required, and preventive methods are no longer effective or available, IPM programs then evaluate the proper control method both for effectiveness and risk. Effective, less risky pest controls are chosen first, including highly targeted chemicals, such as pheromones to disrupt pest mating, or mechanical control, such as trapping or weeding. If further monitoring, identifications and action thresholds indicate that less risky controls are not working, then additional pest control methods would be employed, such as targeted spraying of pesticides. Broadcast spraying of non-specific pesticides is a last resort."]
[]
[]
[]
[]
[]
[]
[]
[]
[]
[null,"Weed Control",null,null,null,null,null,null,null,"PASTURE-WC"]
[]
[null,"Weed Control is the eradication, reduction, or manipulation of herbaceous weed species including invasive, noxious, and prohibited plants."]
[]
[]
[null,"Weed Control is designed to achieve the desired plant community through the utilization of Integrated Pest Management (IPM) principles. This is accomplished by mechanical, chemical, biological, or a combination of these techniques."]
[]
[]
[]
[]
[null,"Weed Control is applied to accomplish one or more of the following:"]
[]
[null,"l Restore native or create desired plant communities"]
[]
[null,"l Manage noxious woody plants"]
[]
[null,"l Enhance accessibility, quantity, and quality of forage"]
[]
[null,"l Maintain or enhance wildlife habitat including habitat for threatened and endangered species"]
[]
[null,"l Protect soils and control erosion"]
[]
[null,"l Reduce fire hazard  "]
[]
[null,"Table of Contents",null,null,null,null,null,null,"Back to Top"]

{"sheet":"Upland Woodland (60%)","index":8,"n_rows":208,"n_cols":19,"rows_kept":208,"cut":false,"hidden":false,"merged":[[184,6,184,7],[184,8,184,9],[184,10,184,11],[184,12,184,13],[181,6,181,7],[182,6,182,7],[183,6,183,7],[181,8,181,9],[182,8,182,9],[181,10,181,11],[182,10,182,11],[181,12,181,13],[182,12,182,13],[183,8,183,9],[183,10,183,11],[183,12,183,13],[187,3,187,4],[187,6,187,7],[187,8,187,9],[187,10,187,11],[187,12,187,13],[185,6,185,7],[185,8,185,9],[185,10,185,11],[185,12,185,13],[186,6,186,7],[186,8,186,9],[186,10,186,11],[186,12,186,13],[179,6,179,7],[179,8,179,9],[179,10,179,11],[179,12,179,13],[180,6,180,7],[180,8,180,9],[180,10,180,11],[180,12,180,13],[177,6,177,7],[177,8,177,9],[177,10,177,11],[177,12,177,13],[178,6,178,7],[178,8,178,9],[178,10,178,11],[178,12,178,13],[176,2,176,5],[176,6,176,7],[176,8,176,9],[176,10,176,11],[176,12,176,13],[96,4,98,15],[120,1,120,3],[144,1,144,4],[154,1,154,4],[164,1,164,4],[141,2,141,4],[174,2,174,4],[146,4,146,15],[125,7,126,15],[132,7,133,15],[135,7,136,15],[138,7,140,15],[173,14,173,15],[156,4,156,15],[174,13,174,15],[166,4,168,13],[170,4,172,13],[122,4,124,12],[148,4,150,14],[77,1,77,2],[90,1,90,3],[82,4,83,15],[67,4,69,15],[79,4,80,15],[60,4,62,15],[64,4,65,15],[73,13,73,15],[85,4,86,15],[1,2,2,4],[1,5,3,15],[5,1,5,4],[7,12,7,15],[3,2,4,4],[7,1,7,3],[13,1,13,3],[45,4,46,15],[17,14,17,15],[13,12,13,15],[207,13,207,15],[189,2,189,4],[189,13,189,15],[192,1,205,15],[8,2,8,15],[9,1,9,3],[9,14,9,15],[11,1,11,3],[11,14,11,15],[15,1,15,3],[15,14,15,15],[20,1,20,3],[41,4,43,15],[36,4,39,15],[31,4,34,15],[22,4,29,15],[117,2,118,15],[92,4,94,15],[102,4,103,15],[109,4,111,15],[113,4,115,15],[105,1,105,3],[48,1,48,3],[58,1,58,4]]}
[]
[null,null,"NRCS",null,null,"Biology Technical Note # 14 Wildlife Habitat Evaluation Guide"]
[]
[null,null,"Natural Resources Conservation Service"]
[null,null,null,null,null,"Upland Woodland Field Data Sheet"]
[null,"WASHINGTON",null,null,null,"(Planning Criteria = 60%)",null,null,null,null,null,null,null,null,null,"WOODLAND"]
[]
[null,"Table of Contents",null,null,null,null,null,null,null,null,null,null,"Revised March 2013"]
[]
[null,"Client/Operating Unit:",null,null,{"$f":"IF(ISBLANK('Table of Contents'!$D$40),\"Click on cell to the left.\",'Table of Contents'!$D$40)","v":"Click on cell to the left."},null,null,null,null,null,null,null,null,"Tract Number:",{"$f":"IF(ISBLANK('Table of Contents'!$K$40),\" \",'Table of Contents'!$K$40)","v":" "}]
[]
[null,"Farm/Ranch Location:",null,null,{"$f":"IF(ISBLANK('Table of Contents'!$D$42),\" \",'Table of Contents'!$D$42)","v":" "},null,null,null,null,null,null,null,null,"Farm Number:",{"$f":"IF(ISBLANK('Table of Contents'!$K$42),\" \",'Table of Contents'!$K$42)","v":" "}]
[]
[null,"Evaluation Date:",null,null,{"$f":"IF(ISBLANK('Table of Contents'!$D$44),\" \",'Table of Contents'!$D$44)","v":" "},null,null,null,null,null,null,"Field Number(s):",{"$f":"IF(ISBLANK('Table of Contents'!$K$44),\" \",'Table of Contents'!$K$44)","v":" "}]
[]
[null,"Planner:",null,null,{"$f":"IF(ISBLANK('Table of Contents'!$D$46),\" \",'Table of Contents'!$D$46)","v":" "},null,null,null,null,null,null,null,null,"Proposed Treatment Acres:"]
[]
[null,null,"Cells with numbers that turn red are below the Planning Criteria.",null,null,null,null,null,null,null,null,null,null,"Program:",{"$f":"IF(ISBLANK('Table of Contents'!$K$46),\" \",'Table of Contents'!$K$46)","v":" "},null,null,null,"NA"]
[null,null,null,null,null,null,null,null,null,null,null,null,null,null,null,null,null,null,"CRP"]
[null,null,null,null,null,null,null,null,null,null,null,null,null,null,null,null,null,null,"CSP"]
[null,"Forest Diversity",null,null,null,null,null,null,null,null,null,null,null,null,null,"WOODLAND-FD",null,null,"CStP"]
[null,null,null,null,null,null,null,null,null,null,null,null,null,null,null,null,null,null,"EQIP"]
[null,null,"Present","6 =","Diverse mixture of tree heights and diameters, multiple tree species interspersed with  diverse understory vegetation (includes Evaluation Areas where ponderosa pine is the sole climax species).  The area meets the habitat requirements for at least one plant or animal listed as a species of concern by the Washington Department of Fish & Wildlife or the Washington Department of Natural Resources.",null,null,null,null,null,null,null,null,null,null,null,null,null,"EWP"]
[null,null,null,null,null,null,null,null,null,null,null,null,null,null,null,null,null,null,"F&RPP"]
[null,null,"No Action",null,null,null,null,null,null,null,null,null,null,null,null,null,null,null,"GRP"]
[null,null,null,null,null,null,null,null,null,null,null,null,null,null,null,null,null,null,"WHIP"]
[null,null,null,null,null,null,null,null,null,null,null,null,null,null,null,null,null,null,"WLFW"]
[null,null,"Planned A",null,null,null,null,null,null,null,null,null,null,null,null,null,null,null,"WRP"]
[]
[null,null,"Planned B"]
[]
[null,null,null,"5 =","Diverse mixture of tree heights and diameters, multiple tree species interspersed with diverse understory vegetation consisting of both a healthy shrub and herbaceous layer (includes Evaluation Areas where ponderosa pine is the sole climax species). "]
[]
[]
[]
[]
[null,null,null,"PC 4 =","Diverse mixture of tree height and diameters dominated by 2 or more tree species; interspersion and/or understory diversity is good to moderate, with either a healthy shrub or herbaceous layer.  (Includes Evaluation Areas where ponderosa pine is the sole climax species.)"]
[]
[]
[]
[]
[null,null,null,"3 =","A mixture of tree height and diameters dominated by 1 or 2 tree species; interspersion and/or understory diversity is low or absent.  (Includes Evaluation Areas where ponderosa pine is the sole climax species.)"]
[]
[]
[]
[null,null,null,"2 =","Uniform stand height and diameters with more than 80% stocking of 1 or 2 tree species."]
[]
[]
[null,"Grazing System ",null,null,null,null,null,null,null,null,null,null,null,null,null,"WOODLAND-GS"]
[]
[null,null,"Present","6 =","No livestock use or proper use with prescribed grazing system applied."]
[]
[null,null,"No Action","PC 4 =","Moderate use, no prescribed grazing system."]
[]
[null,null,"Planned A","2 =","Improper use, with or without system."]
[]
[null,null,"Planned B"]
[]
[null,"Downed Woody Material",null,null,null,null,null,null,null,null,null,null,null,null,null,"WOODLAND-DWM"]
[]
[null,null,"Present","6 =","Five logs per acre that are a minimum 12 inches in average diameter and greater than 20 feet in length, with four or five Coarse Woody Debris Classes present."]
[]
[null,null,"No Action"]
[]
[null,null,"Planned A","PC 4 =","Three logs per acre that are a minimum 12 inches in average diameter and greater than 20 feet in length, three or more Coarse Woody Debris Classes present."]
[]
[]
[null,null,"Planned B","2 =","Less than three logs per acre that are a minimum 12 inches in average diameter and greater than 20 feet or logs present represent two or less Coarse Woody Debris Classes."]
[]
[]
[]
[]
[]
[null,null,null,null,null,null,null,null,null,null,null,null,null,"Back to Top"]
[]
[]
[]
[null,"Snags",null,"(Snags must meet stage, diameter and height requirements to be considered)",null,null,null,null,null,null,null,null,null,null,null,"WOODLAND-SN"]
[]
[null,null,"Present","8 =","More than 4 snags, greater than 20 inch dbh and 60 feet height per acre.  Snags will be in stages 2 through 4."]
[]
[]
[null,null,"No Action","7 =","Two to four snags more than 20 inch dbh and/or 5 snags 8-20 inch dbh and a minimum height of 20 feet, per acre. Snags will be in stages 2 through 7."]
[]
[]
[null,null,"Planned A","PC 6 =","Three to five snags per acre 6-12 inch dbh and a minimum height of 10 feet.  Snags will be in stages 2 through 7."]
[]
[]
[null,null,"Planned B","1 =","No snags or snags less than 6 inch dbh."]
[]
[null,"Forest Openings",null,null,null,null,null,null,null,null,null,null,null,null,null,"WOODLAND-FO"]
[]
[null,null,"Present","6 =","Irregularly shaped openings well interspersed throughout the stand, with mixtures of grasses, forbs, and shrubs, occupying 5-33% of the total area and none more than 750 feet across."]
[]
[]
[]
[null,null,"No Action","PC 4 =","Openings with straight sides or poorly interspersed throughout the stand. Mixtures of grasses, forbs, and shrubs occupying 5-33% of total area, none more than 1500 feet across."]
[]
[]
[]
[null,null,"Planned A","2 =","Few openings that meet above criteria on less than 5% of area."]
[]
[null,null,"Planned B","1 =","No openings meeting above criteria, or larger than 1500 feet across and/or occupying more than 33% of the forest."]
[]
[]
[null,"Wildlife Water Source ",null,null,null,null,null,null,null,null,null,null,null,null,null,"WOODLAND-WS"]
[]
[null,null,"Present","6 =","Historic water availability on the Evaluation Area is still present or restored."]
[]
[null,null,null,"PC 4 =","Enhanced water availability and water quality on evaluation area for wildlife (guzzlers, spring development, wells, livestock exclusion, elimination of agricultural runoff into surface water bodies, etc.)  Livestock water facilities are wildlife friendly."]
[]
[null,null,"No Action"]
[]
[null,null,"Planned A","1 =","Historic water source has been detrimentally altered due to human and/or livestock use."]
[]
[null,null,"Planned B"]
[]
[null,null,"Is there a natural water source present within the Evaluation Area?  If so, than lease complete the riparian section of this Habitat Evaluation Guide."]
[]
[]
[null,"Habitat Fragmentation",null,null,null,null,null,null,null,null,null,null,null,null,null,"WOODLAND-HF"]
[]
[null,{"$f":"IF(AND(C130=FALSE,C133=FALSE,C134=FALSE,C134=FALSE,C135=FALSE,C136=FALSE,C137=FALSE),\" \",(10+(SUM($I$128,$I$130,$I$132,$I$135,$I$138,$I$142))))","v":" "},"Present",null,"Unmitigated structural barriers within or adjacent to the evaluation area. Structures that restrict natural movement or dispersion of wildlife that results in degraded habitat.  Check all that apply."]
[]
[null,{"$f":"IF(AND(D130=FALSE,D133=FALSE,D134=FALSE,D135=FALSE,D136=FALSE,D137=FALSE),\" \",(10+(SUM($K$128,$K$130,$K$132,$K$135,$K$138,$K$142))))","v":" "},"No Action"]
[null,null,null,null,"PC = 6",null,10,"No unmitigated structures are present, some wildlife corridors are in place."]
[null,{"$f":"IF(AND(E130=FALSE,E133=FALSE,E134=FALSE,E135=FALSE,E136=FALSE,E137=FALSE),\" \",(10+(SUM($M$128,$M$130,$M$132,$M$135,$M$138,$M$142))))","v":" "},"Planned A"]
[null,null,null,null,null,null,null,"Present",{"$f":"IF(C131=FALSE,0,-1)","v":0},"No Action",{"$f":"IF(D131=FALSE,0,-1)","v":0},"Planned A",{"$f":"IF(E131=FALSE,0,-1)","v":0},"Planned B",{"$f":"IF(F131=FALSE,0,-1)","v":0}]
[null,{"$f":"IF(AND(F130=FALSE,F133=FALSE,F134=FALSE,F135=FALSE,F136=FALSE,F137=FALSE),\" \",(10+(SUM($O$128,$O$130,$O$132,$O$135,$O$138,$O$142))))","v":" "},"Planned B",null,null,null,-1,"Fences that have not been designed to be wildlife friendly"]
[null,null,false,false,false,false,null,"Present",{"$f":"IF(C133=FALSE,0,-1)","v":0},"No Action",{"$f":"IF(D133=FALSE,0,-1)","v":0},"Planned A",{"$f":"IF(E133=FALSE,0,-1)","v":0},"Planned B",{"$f":"IF(F133=FALSE,0,-1)","v":0}]
[null,null,null,null,null,null,-1,"Unnecessary access roads"]
[null,null,null,null,null,null,null,"Present",{"$f":"IF(C134=FALSE,0,-1)","v":0},"No Action",{"$f":"IF(D134=FALSE,0,-1)","v":0},"Planned A",{"$f":"IF(E134=FALSE,0,-1)","v":0},"Planned B",{"$f":"IF(F134=FALSE,0,-1)","v":0}]
[null,null,false,false,false,false,-1,"Above ground pipelines that could be updated and installed below ground"]
[null,null,false,false,false,false]
[null,null,false,false,false,false,null,"Present",{"$f":"IF(C135=FALSE,0,-1)","v":0},"No Action",{"$f":"IF(D135=FALSE,0,-1)","v":0},"Planned A",{"$f":"IF(E135=FALSE,0,-1)","v":0},"Planned B",{"$f":"IF(F135=FALSE,0,-1)","v":0}]
[null,null,false,false,false,false,-1,"Buildings or structures that are no longer needed as part of the forest, farming or ranching operation"]
[null,null,false,false,false,false]
[null,null,null,null,null,null,null,"Present",{"$f":"IF(C136=FALSE,0,-1)","v":0},"No Action",{"$f":"IF(D136=FALSE,0,-1)","v":0},"Planned A",{"$f":"IF(E136=FALSE,0,-1)","v":0},"Planned B",{"$f":"IF(F136=FALSE,0,-1)","v":0}]
[null,null,null,null,null,null,-6,"No corridors within the evaluation area.  Corridors could be field borders, grassed waterways, hedgerows, shelterbelts, riparian areas, grassed terraces, buffers, etc."]
[]
[]
[null,null,"Back to Top",null,null,null,null,"Present",{"$f":"IF(C137=FALSE,0,-6)","v":0},"No Action",{"$f":"IF(D137=FALSE,0,-6)","v":0},"Planned A",{"$f":"IF(E137=FALSE,0,-6)","v":0},"Planned B",{"$f":"IF(F137=FALSE,0,-6)","v":0}]
[]
[]
[null,"Integrated Pest Management",null,null,null,null,null,null,null,null,null,null,null,null,null,"WOODLAND-IPM"]
[]
[null,null,"Present","PC 3 =","Evaluation Area has a integrated pest management plan and it is being applied."]
[]
[null,null,"No Action","2 =","Evaluation Area has a integrated pest management section in the forest management plan."]
[]
[null,null,"Planned A"]
[]
[null,null,"Planned B","1 =","No pest management plan is in place."]
[]
[null," Weed Control",null,null,null,null,null,null,null,null,null,null,null,null,null,"WOODLAND-WC"]
[]
[null,null,"Present","PC 3 =","Evaluation Area has a weed control plan and it is being applied."]
[]
[null,null,"No Action","1 =","No weed control plan is in place."]
[]
[null,null,"Planned A"]
[]
[null,null,"Planned B"]
[]
[null,"Forest Management Plan",null,null,null,null,null,null,null,null,null,null,null,null,null,"WOODLAND-FMP"]
[]
[null,null,"Present","3 =","Evaluation Area has a forest management plan with wildlife as a primary objective and it is being applied."]
[]
[null,null,"No Action"]
[]
[null,null,"Planned A","PC 2 =","Evaluation Area has a forest management plan without wildlife as a primary objective and it is being applied."]
[]
[null,null,"Planned B"]
[null,null,null,"1 =","No forest management plan is in place."]
[null,null,"Evaluation Summary",null,null,null,null,null,null,null,null,null,null,"Back to Top"]
[]
[null,null,"Upland Woodland Summary",null,null,null,"Present",null,"No Action",null,"Planned A",null,"Planned B"]
[null,null,"Forest Diversity",null,null,null,{"$f":"IF(ISBLANK($B$23),\" \",$B$23/6)","v":" "},null,{"$f":"IF(ISBLANK($B$25),\" \",$B$25/6)","v":" "},null,{"$f":"IF(ISBLANK($B$28),\" \",$B$28/6)","v":" "},null,{"$f":"IF(ISBLANK($B$30),\" \",$B$30/6)","v":" "},null,"Present"]
[null,null,"Grazing System",null,null,null,{"$f":"IF(ISBLANK($B$51),\" \",$B$51/6)","v":" "},null,{"$f":"IF(ISBLANK($B$53),\" \",$B$53/6)","v":" "},null,{"$f":"IF(ISBLANK($B$55),\" \",$B$55/6)","v":" "},null,{"$f":"IF(ISBLANK($B$57),\" \",$B$57/6)","v":" "},null,"<.6"]
[null,null,"Downed Woody Material",null,null,null,{"$f":"IF(ISBLANK($B$61),\" \",$B$61/6)","v":" "},null,{"$f":"IF(ISBLANK($B$63),\" \",$B$63/6)","v":" "},null,{"$f":"IF(ISBLANK($B$65),\" \",$B$65/6)","v":" "},null,{"$f":"IF(ISBLANK($B$68),\" \",$B$68/6)","v":" "},null,"No Action"]
[null,null,"Snags",null,null,null,{"$f":"IF(ISBLANK($B$80),\" \",$B$80/8)","v":" "},null,{"$f":"IF(ISBLANK($B$83),\" \",$B$83/8)","v":" "},null,{"$f":"IF(ISBLANK($B$86),\" \",$B$86/8)","v":" "},null,{"$f":"IF(ISBLANK($B$89),\" \",$B$89/8)","v":" "},null,"<.6"]
[null,null,"Forest Openings",null,null,null,{"$f":"IF(ISBLANK($B$93),\" \",$B$93/6)","v":" "},null,{"$f":"IF(ISBLANK($B$97),\" \",$B$97/6)","v":" "},null,{"$f":"IF(ISBLANK($B$101),\" \",$B$101/6)","v":" "},null,{"$f":"IF(ISBLANK($B$103),\" \",$B$103/6)","v":" "},null,"Planned A"]
[null,null,"Wildlife Drinking Water",null,null,null,{"$f":"IF(ISBLANK($B$108),\" \",$B$108/6)","v":" "},null,{"$f":"IF(ISBLANK($B$112),\" \",$B$112/6)","v":" "},null,{"$f":"IF(ISBLANK($B$114),\" \",$B$114/6)","v":" "},null,{"$f":"IF(ISBLANK($B$116),\" \",$B$116/6)","v":" "},null,"<.6"]
[null,null,"Habitat Fragmentation",null,null,null,{"$f":"IF($B$123=\" \",\" \",$B$123/10)","v":" "},null,{"$f":"IF($B$125=\" \",\" \",$B$125/10)","v":" "},null,{"$f":"IF($B$127=\" \",\" \",$B$127/10)","v":" "},null,{"$f":"IF($B$129=\" \",\" \",$B$129/10)","v":" "},null,"Planned B"]
[null,null,"Integrated Pest Management",null,null,null,{"$f":"IF(ISBLANK($B$147),\" \",$B$147/3)","v":" "},null,{"$f":"IF(ISBLANK($B$149),\" \",$B$149/3)","v":" "},null,{"$f":"IF(ISBLANK($B$151),\" \",$B$151/3)","v":" "},null,{"$f":"IF(ISBLANK($B$153),\" \",$B$153/3)","v":" "},null,"<.6"]
[null,null,"Weed Control",null,null,null,{"$f":"IF(ISBLANK($B$157),\" \",$B$157/3)","v":" "},null,{"$f":"IF(ISBLANK($B$159),\" \",$B$159/3)","v":" "},null,{"$f":"IF(ISBLANK($B$161),\" \",$B$161/3)","v":" "},null,{"$f":"IF(ISBLANK($B$163),\" \",$B$163/3)","v":" "}]
[null,null,"Forest Management Plan",null,null,null,{"$f":"IF(ISBLANK($B$167),\" \",$B$167/3)","v":" "},null,{"$f":"IF(ISBLANK($B$169),\" \",$B$169/3)","v":" "},null,{"$f":"IF(ISBLANK($B$171),\" \",$B$171/3)","v":" "},null,{"$f":"IF(ISBLANK($B$173),\" \",$B$173/3)","v":" "}]
[null,null,"Acres:",{"$f":"IF(ISBLANK($O$16),\" \",$O$16)","v":" "},null,null,{"$f":"IF(G189=0,H189,G189)","v":" "},null,{"$f":"IF(I189=0,J189,I189)","v":" "},null,{"$f":"IF(K189=0,L189,K189)","v":" "},null,{"$f":"IF(M189=0,N189,M189)","v":" "}]
[null,null,null,null,null,null,{"$f":"IF(AND(G178=\" \",G179=\" \",G180=\" \",G181=\" \",G182=\" \",G183=\" \",G184=\" \",G185=\" \",G186=\" \",G187=\" \"),\" \",DMIN($G$177:$G$187,\"Present\",O178:O179))","v":" "},{"$f":"IF(AND(G178=\" \",G179=\" \",G180=\" \",G181=\" \",G182=\" \",G183=\" \",G184=\" \",G185=\" \",G186=\" \",G187=\" \"),\" \",AVERAGE(G178:G187))","v":" "},{"$f":"IF(AND(I178=\" \",I179=\" \",I180=\" \",I181=\" \",I182=\" \",I183=\" \",I184=\" \",I185=\" \",I186=\" \",I187=\" \"),\" \",DMIN($I$177:$I$187,\"No Action\",O180:O181))","v":" "},{"$f":"IF(AND(I178=\" \",I179=\" \",I180=\" \",I181=\" \",I182=\" \",I183=\" \",I184=\" \",I185=\" \",I186=\" \",I187=\" \"),\" \",AVERAGE(I178:I187))","v":" "},{"$f":"IF(AND(K178=\" \",K179=\" \",K180=\" \",K181=\" \",K182=\" \",K183=\" \",K184=\" \",K185=\" \",K186=\" \",K187=\" \"),\" \",DMIN($K$177:$K$187,\"Planned A\",O182:O183))","v":" "},{"$f":"IF(AND(K178=\" \",K179=\" \",K180=\" \",K181=\" \",K182=\" \",K183=\" \",K184=\" \",K185=\" \",K186=\" \",K187=\" \"),\" \",AVERAGE(K178:K187))","v":" "},{"$f":"IF(AND(M178=\" \",M179=\" \",M180=\" \",M181=\" \",M182=\" \",M183=\" \",M184=\" \",M185=\" \",M186=\" \",M187=\" \"),\" \",DMIN($M$177:$M$187,\"Planned B\",O184:O185))","v":" "},{"$f":"IF(AND(M178=\" \",M179=\" \",M180=\" \",M181=\" \",M182=\" \",M183=\" \",M184=\" \",M185=\" \",M186=\" \",M187=\" \"),\" \",AVERAGE(M178:M187))","v":" "}]
[null,null,"Evaluation Summary",null,null,null,null,null,null,null,null,null,null,"Back to Top"]
[]
[null,null,"Notes:"]
[]
[]
[]
[]
[]
[]
[]
[]
[]
[]
[]
[]
[]
[]
[]
[null,null,null,null,null,null,null,null,null,null,null,null,null,"Back to Top"]

{"sheet":"Upland Woodland Narrative","index":9,"n_rows":430,"n_cols":14,"rows_kept":430,"cut":false,"hidden":false,"merged":[[429,1,429,3],[429,12,429,13],[59,12,59,14],[54,8,56,13],[393,12,393,13],[37,1,37,3],[119,6,119,8],[189,1,189,3],[260,1,260,3],[393,1,393,3],[417,12,417,13],[275,6,276,11],[118,12,118,13],[189,12,189,13],[259,12,259,13],[73,12,74,13],[73,8,74,9],[73,6,74,7],[377,1,381,12],[42,1,45,13],[421,1,428,13],[419,1,419,7],[333,1,333,7],[75,12,76,13],[27,4,29,5],[27,6,29,7],[35,8,37,8],[401,1,403,11],[398,1,399,13],[384,1,390,12],[370,1,374,12],[106,6,107,11],[127,6,128,11],[146,6,147,10],[165,6,168,10],[330,12,330,13],[47,1,47,7],[335,1,338,12],[340,1,348,12],[330,1,330,7],[352,1,357,12],[359,1,361,12],[364,1,367,12],[49,1,53,13],[62,1,62,13],[64,4,64,5],[65,4,66,5],[303,1,306,13],[1,2,2,4],[3,1,4,4],[5,1,5,4],[1,5,3,11],[9,1,9,3],[24,4,26,5],[11,1,23,13],[24,6,26,7],[24,2,26,3],[24,10,26,10],[24,12,26,12],[24,11,26,11],[7,1,7,3],[27,2,29,3],[64,1,64,3],[65,1,66,3],[67,1,68,3],[69,1,70,3],[64,12,64,13],[65,12,66,13],[67,12,68,13],[69,12,70,13],[64,10,64,11],[65,10,66,11],[67,10,68,11],[69,10,70,11],[32,9,34,9],[32,8,34,8],[27,12,29,12],[27,11,29,11],[27,10,29,10],[32,10,34,10],[30,2,30,8],[67,4,68,5],[69,4,70,5],[38,7,38,11],[30,9,30,13],[40,1,40,3],[301,1,301,3],[71,12,72,13],[77,2,80,2],[71,1,72,3],[73,1,74,3],[75,1,76,3],[35,9,37,9],[35,10,37,10],[83,1,85,13],[94,1,100,13],[64,6,64,7],[65,6,66,7],[67,8,68,9],[69,8,70,9],[71,8,72,9],[71,10,72,11],[75,8,76,9],[75,6,76,7],[73,10,74,11],[185,1,187,7],[75,10,76,11],[67,6,68,7],[69,6,70,7],[87,2,89,13],[57,9,58,13],[350,1,350,4],[396,1,396,2],[316,1,316,3],[140,6,140,8],[159,6,159,8],[179,6,179,8],[210,6,210,8],[233,6,233,8],[256,6,256,8],[280,6,280,8],[298,6,298,8],[318,1,323,13],[308,2,314,13],[71,6,72,7],[64,8,64,9],[65,8,66,9],[75,4,76,5],[71,4,72,5],[73,4,74,5]]}
[]
[null,null,"NRCS",null,null,"Biology Technical Note # 14 Wildlife Habitat Evaluation Guide"]
[]
[null,"Natural Resources Conservation Service"]
[null,null,null,null,null,"Upland Woodland Narrative"]
[null,"WASHINGTON",null,null,null,"(Planning Criteria = 60%)",null,null,null,null,null,null,null,"PASSWORD:WOODLAND N"]
[]
[null,"Table of Contents",null,null,null,null,null,null,null,null,null,null,null,"Revised March 2013"]
[]
[null,"Forest Diversity",null,null,null,null,null,null,null,null,null,null,null,"WOODLAND-FD"]
[]
[null,"A diverse mixture of tree species, heights, and diameters is more valuable to wildlife than uniform stands. Understory vegetation is more likely to be present in areas without the dense canopy caused by a monoculture.  In naturally functioning forest ecosystems, insects, disease, fire, and windthrow damage all contribute to create a multi-aged stand consisting of many species of trees, shrubs and herbaceous vegetation.  In forests managed for timber harvesting, even-aged trees which are periodically harvested by clearcutting or selective thinning prove to be the most efficient method of production.  However, this practice results in low tree species diversity within stands, while maintaining maximum plant diversity between stands.  Uneven growth stage management targets establishment of several tree layers in the stand which results in maximum diversity within stand structure, but minimum between stand diversity.  This management regime reduces wildlife habitat because the large openings and edge which is necessary for understory production is low or missing.  For maximum habitat benefits, both the even-age and uneven-age management strategies should be implemented.  This will allow maximum wildlife utilization of the tract due to the development of forest openings, edge, stand structure and understory diversity."]
[]
[]
[]
[]
[]
[]
[]
[]
[]
[]
[]
[]
[null,null,"Even-age timber unit",null,"Clear-cut or selective harvest unit",null,"Even-age timber unit",null,null,null,"Uneven-age timber unit","Uneven-age timber unit","Uneven-age timber unit"]
[]
[]
[null,null,"Clear-cut or selective harvest unit",null,"Even-age timber unit",null,"Clear-cut or selective harvest unit",null,null,null,"Uneven-age timber unit","Uneven-age timber unit","Uneven-age timber unit"]
[]
[]
[null,null,"Even-age Management",null,null,null,null,null,null,"Uneven-age Management"]
[]
[null,null,null,null,null,null,null,null,"Uneven-age timber unit","Clear-cut or selective harvest unit","Uneven-age timber unit"]
[]
[]
[null,null,null,null,null,null,null,null,"Clear-cut or selective harvest unit","Even-age timber unit","Even-age timber unit"]
[]
[null,"Table of Contents"]
[null,null,null,null,null,null,null,"Maximum Forest Diversity"]
[]
[null,"Grazing System",null,null,null,null,null,null,null,null,null,null,null,"WOODLAND-GS"]
[]
[null,"Natural understory vegetation provides little livestock forage. Livestock grazing can affect tree health, soil compaction, erosion, and understory vegetation composition.  Consider incorporating only a small portion of a woodlot into a pasture; this will provide livestock shade and shelter from adverse weather without jeopardizing the entire stand."]
[]
[]
[]
[]
[null,"Downed Woody Material",null,null,null,null,null,null,null,null,null,null,null,"WOODLAND-DWM"]
[]
[null,"Downed wood enhances wildlife habitat by providing sites for feeding, resting, reproduction, and travel routes. Decomposing wood on the forest floor is a habitat element for forest birds, small mammals, reptiles and amphibians, and invertebrates. In addition, woody material on the ground provides sites for nitrogen fixation and nutrient cycling, moisture regimes for establishment of seedlings, and mycorrhizal fungi growth mediums.  "]
[]
[]
[]
[]
[null,null,null,null,null,null,null,null,"Large end diameter measured at the point that best represents the overall log volume. (before the wood crumbles and falls apart due to decay)"]
[]
[]
[null,null,null,null,null,null,null,null,null,"Downed Wood in Riparian Narrative "]
[]
[null,"Example of where to measure diameter on Coarse Woody Debris",null,null,null,null,null,null,null,null,null,null,"BACK TO TOP"]
[]
[]
[null,"Coarse Woody Debris Classification"]
[]
[null,"Feature",null,null,"Class 1",null,"Class 2",null,"Class 3",null,"Class 4",null,"Class 5"]
[null,"Wood Texture",null,null,"Intact, hard",null,"Intact, hard to partly decaying",null,"Hard, large pieces, partly decaying",null,"Small, blocky pieces",null,"Many small pieces, soft portions"]
[]
[null,"Portion on the ground",null,null,"Elevated on support points",null,"Elevated but sagging slightly",null,"Sagging, near or on ground or broken",null,"All of log on ground, sinking",null,"All of log on ground, partly sunken"]
[]
[null,"Twigs greater than 1.5 inches (if originally present)",null,null,"Present",null,"Greatly reduced",null,"Absent",null,"Absent",null,"Absent"]
[]
[null,"Bark",null,null,"Intact",null,"Intact or partly missing",null,"Partly to mostly missing",null,"Trace",null,"Absent"]
[]
[null,"Shape",null,null,"Round",null,"Round",null,"Round",null,"Round to oval",null,"Oval"]
[]
[null,"Invading Roots",null,null,"None",null,"None",null,"In sapwood",null,"In heartwood",null,"In heartwood"]
[]
[]
[]
[]
[]
[]
[]
[null,"If downed woody material is identified as a missing component, consult a wildlife biologist before planning to the Quality Criteria level. Utilization of onsite material may be a conflict with local or state forest harvest regulations."]
[]
[]
[]
[null,"Note:","When determining downed woody material and snag densities utilize a sampling method which closely estimates the actual numbers.  Do not attempt to count all the snags in a 100 acre plot, for example, sample five, 1 acre plots, and divide by five to get a per acre estimate."]
[]
[]
[]
[]
[null,"Snags",null,null,null,null,null,null,null,null,null,null,null,"WOODLAND-SN"]
[]
[null,"Snags are utilized for their associated foraging, nesting, roosting, and perching values.  Snags which have loosened bark provide nesting and forage for a large number of species because of decayed heartwood.  To mimic natural forest conditions, snags of varying tree species, ages and decay stages should be encouraged.  Snags can be created by killing live trees using various techniques including herbicide treatments, topping, girdling, high-cut and inoculation with fungal rots.  These techniques have varied costs, success rates, and risk to human and forest health.  Careful evaluation of these factors should be performed before selecting a technique. "]
[]
[]
[]
[]
[]
[]
[]
[null,null,null,null,null,null,"Condition: Live"]
[]
[null,null,null,null,null,null,"Foliage: Green"]
[]
[null,null,null,null,null,null,"Limbs: Limbs within the green crown are alive.  Lower limbs may be dead due "]
[]
[]
[null,null,null,null,null,null,"Bark: Intact (there may be some animal damage)"]
[]
[null,null,null,null,null,null,"Heartwood Decay: None to minor amount"]
[]
[null,null,null,null,null,null,"Sapwood Decay: None"]
[]
[null,null,null,null,null,null,"Top Breakage: None"]
[]
[null,null,null,null,null,null,"Bole^ Form: Intact"]
[null,null,null,null,null,null,null,null,null,null,null,null,"BACK TO TOP"]
[null,null,null,null,null,null,"Snags Riparian Narrative"]
[]
[]
[]
[null,null,null,null,null,null,"Condition: Living Snag"]
[]
[null,null,null,null,null,null,"Foliage: Green with some foliage chlorotic or red"]
[]
[null,null,null,null,null,null,"Limbs: Dead limbs within the green crown structure and below the green crown "]
[]
[]
[null,null,null,null,null,null,"Bark: Mostly or completely intact"]
[]
[null,null,null,null,null,null,"Heartwood Decay: None to moderate"]
[]
[null,null,null,null,null,null,"Sapwood Decay: None to incipient*"]
[]
[null,null,null,null,null,null,"Top Breakage: May be present"]
[]
[null,null,null,null,null,null,"Bole^ Form: Intact"]
[]
[null,null,null,null,null,null,"Snags Riparian Narrative"]
[]
[null,null,null,null,null,null,"Condition: Recent Dead "]
[]
[null,null,null,null,null,null,"Foliage: Foliage is red or missing"]
[]
[null,null,null,null,null,null,"Limbs: All limbs dead and most present including twigs and fines"]
[]
[]
[null,null,null,null,null,null,"Bark: mostly or completely  intact"]
[]
[null,null,null,null,null,null,"Heartwood Decay: None to moderate amount"]
[]
[null,null,null,null,null,null,"Sapwood Decay: None to incipient*"]
[]
[null,null,null,null,null,null,"Top Breakage: may be present"]
[]
[null,null,null,null,null,null,"Bole^ Form: Intact"]
[]
[null,null,null,null,null,null,"Snags Riparian Narrative"]
[]
[null,null,null,null,null,null,"Condition: Dead-loose bark "]
[]
[null,null,null,null,null,null,"Foliage: No foliage present"]
[]
[null,null,null,null,null,null,"Limbs: Many larger limbs present. Some twigs may be present, but some are missing"]
[]
[]
[]
[null,null,null,null,null,null,"Bark: Up to 75% loose or missing"]
[]
[null,null,null,null,null,null,"Heartwood Decay: None to advanced"]
[]
[null,null,null,null,null,null,"Sapwood Decay: None to incipient*"]
[]
[null,null,null,null,null,null,"Top Breakage: may be present"]
[]
[null,null,null,null,null,null,"Bole^ Form: Intact"]
[]
[null,null,null,null,null,null,"Snags Riparian Narrative"]
[]
[null,"* Incipient = In an initial stage; beginning to happen or develop"]
[]
[null,"** Stob = A short, straight piece of wood."]
[]
[null,"^Bole =  that part of the trunk of a tree beneath the point where branching commences\n"]
[]
[]
[]
[null,"Table of Contents",null,null,null,null,null,null,null,null,null,null,"BACK TO TOP"]
[]
[]
[]
[]
[null,null,null,null,null,null,"Condition: Dead- clean "]
[]
[null,null,null,null,null,null,"Foliage: No foliage present"]
[]
[null,null,null,null,null,null,"Limbs: Most limbs missing with branch stobs** present"]
[]
[null,null,null,null,null,null,"Bark: Greater than 75% loose or missing"]
[]
[null,null,null,null,null,null,"Heartwood Decay: incipient* to advanced"]
[]
[null,null,null,null,null,null,"Sapwood Decay: None to 25% decay"]
[]
[null,null,null,null,null,null,"Top Breakage: Up to one third missing"]
[]
[null,null,null,null,null,null,"Bole^ Form: Mostly intact"]
[]
[null,null,null,null,null,null,"Snags Riparian Narrative"]
[]
[]
[]
[]
[]
[]
[null,null,null,null,null,null,"Condition: Dead- broken top "]
[]
[null,null,null,null,null,null,"Foliage: No foliage present"]
[]
[null,null,null,null,null,null,"Limbs: Limbs and most stobs** are gone"]
[]
[null,null,null,null,null,null,"Bark: Greater than 75% loose or missing"]
[]
[null,null,null,null,null,null,"Heartwood Decay: incipient* to advanced"]
[]
[null,null,null,null,null,null,"Sapwood Decay: 25% or more decay"]
[]
[null,null,null,null,null,null,"Top Breakage: One third to one half missing"]
[]
[null,null,null,null,null,null,"Bole^ Form: Starting to lose form"]
[]
[null,null,null,null,null,null,"Snags Riparian Narrative"]
[]
[]
[]
[]
[]
[]
[null,null,null,null,null,null,"Condition: Dead- decomposed "]
[]
[null,null,null,null,null,null,"Foliage: No foliage present"]
[]
[null,null,null,null,null,null,"Limbs: Limbs and most stobs** are gone"]
[]
[null,null,null,null,null,null,"Bark: Greater than 75% loose or missing"]
[]
[null,null,null,null,null,null,"Heartwood Decay: Advanced to crumbly"]
[]
[null,null,null,null,null,null,"Sapwood Decay: 50% to advanced"]
[]
[null,null,null,null,null,null,"Top Breakage: More than one half missing"]
[]
[null,null,null,null,null,null,"Bole^ Form: Losing form"]
[]
[null,null,null,null,null,null,"Snags Riparian Narrative"]
[]
[]
[null,null,null,null,null,null,null,null,null,null,null,null,"BACK TO TOP"]
[null,"Table of Contents"]
[]
[]
[null,null,null,null,null,null,"Condition: Dead slab or high stump"]
[]
[null,null,null,null,null,null,"Foliage: No foliage present"]
[]
[null,null,null,null,null,null,"Limbs: Limbs and most stobs** are gone"]
[]
[null,null,null,null,null,null,"Bark: Greater than 75% loose or missing"]
[]
[null,null,null,null,null,null,"Heartwood Decay: None to advanced"]
[]
[null,null,null,null,null,null,"Sapwood Decay: None to advanced"]
[]
[null,null,null,null,null,null,"Top Breakage:  Less than one third for slab or top removed by chainsaw for stump"]
[]
[]
[null,null,null,null,null,null,"Bole^ Form: Intact to losing form"]
[]
[null,null,null,null,null,null,"Snags Riparian Narrative"]
[]
[null,null,null,null,null,null,"Condition: Dead-loss of form"]
[]
[null,null,null,null,null,null,"Foliage: No foliage present"]
[]
[null,null,null,null,null,null,"Limbs: Limbs and most stobs** are gone"]
[]
[null,null,null,null,null,null,"Bark: Greater than 75% loose or missing"]
[]
[null,null,null,null,null,null,"Heartwood Decay: Crumbly"]
[]
[null,null,null,null,null,null,"Sapwood Decay: Advanced to crumbly"]
[]
[null,null,null,null,null,null,"Top Breakage:  Greater than one half"]
[]
[null,null,null,null,null,null,"Bole^ Form: Mostly lost form"]
[]
[null,null,null,null,null,null,"Snags Riparian Narrative"]
[]
[]
[null,"Forest Openings",null,null,null,null,null,null,null,null,null,null,null,"WOODLAND-FO"]
[]
[null,"Canopy openings in dense forest are critical for herbaceous understory growth. Openings may include infrequently used forest roads, meadows, clear-cut areas, cropland, pastureland, and other areas which promote the growth of grasses and forbs or a combination of these features. Additionally, irregular shaped openings increase the amount of edge which is important to wildlife."]
[]
[]
[]
[]
[null,"Note:","Talus slopes are composed of dislodged rock fragments that accumulate at the base of steep slopes or cliffs.  They are considered to be a priority habitat by the Washington Department of Fish & Wildlife, however, they do not provide the herbaceous understory growth desired under this category.  For this reason do not include them in making Forest Opening calculations. For example if a tract is 160 acres in size and 60 acres of it are talus slope, then base the Woodland calculations on 100 acres."]
[]
[]
[]
[]
[]
[]
[]
[null,"Wildlife Water Source",null,null,null,null,null,null,null,null,null,null,null,"WOODLAND-WS"]
[]
[null,"The amount of water available within a given area will strongly affect the diversity, range and population size of a species. In dry habitats, the limited rainfall means that there is no free water for part or all of the year and wildlife has to obtain water from their food by metabolism.  Throughout most of their lives, wildlife living in dry environments survive on very little water and many characteristics of their anatomy, physiology and behavior facilitate the conservation of body fluids.  Examples include: migratory movements to search for green forage and or water and many physiological characteristics of the kidneys, skin and blood system. "]
[]
[]
[]
[]
[]
[]
[null,"Water quality is as important as water quantity in agricultural landscapes where wildlife is a "]
[null,"consideration. Decreases in water quality due to nutrient, organic, and chemical runoff as well as"]
[null,"sedimentation will limit the use of a water source by wildlife.  Evaluate water quality according to"]
[null,"the planning criteria outlined in the Field Office Technical Guide."]
[]
[null,"See note in Pastureland also.",null,null,null,null,null,null,null,null,null,null,"BACK TO TOP"]
[]
[]
[null,"Habitat Fragmentation",null,null,null,null,null,null,null,null,null,null,null,"WOODLAND-HF"]
[]
[null,"Habitat fragmentation involves the division of large, contiguous areas of habitat into smaller patches isolated from one another.  While it is obvious that the numbers of a species are likely to decline if its habitat is reduced; fragmentation effects imply that the value of the remaining habitat also is diminished."]
[]
[]
[]
[]
[null,"Three types of fragmentation effects have been distinguished: patch-size effects, edge effects, and isolation effects. Patch-size effects are those that result from differential use or reproductive success associated with habitat patches of different sizes. Some of the patch-size effects may be induced by edge effects—phenomena such as avoidance, pairing success, predation, interspecific competition, prey availability, or brood parasitism by brown-headed cowbirds (Molothrus ater)—that may be different near the edge of a habitat as compared to the interior of a patch. Finally, isolation from similar habitat can influence use of a particular habitat patch because of reduced dispersal opportunities. Each of these factors—patch size, edge effects, and isolation—can affect the occurrence, density, or reproductive success of animals in a habitat patch."]
[]
[]
[]
[]
[]
[]
[]
[]
[]
[null,"Integrated Pest Management",null,null,null,null,null,null,null,null,null,null,null,"WOODLAND-IPM"]
[]
[null,"Integrated Pest Management (IPM) is an effective and environmentally sensitive approach to pest management that relies on a combination of common-sense practices. IPM programs use current, comprehensive information on the life cycles of pests and their interaction with the environment. This information, in combination with available pest control methods, is used to manage pest damage by the most economical means, and with the least possible hazard to people, property, and the environment."]
[]
[]
[]
[]
[]
[]
[null,"IPM is not a single pest control method but, rather, a series of pest management evaluations, decisions and controls. In practicing IPM, growers who are aware of the potential for pest infestation follow a four-tiered approach. The four steps include:"]
[]
[]
[]
[null,"Set Action Thresholds"]
[null,"Before taking any pest control action, IPM first sets an action threshold, a point at which pest populations or environmental conditions indicate that pest control action must be taken. Sighting a single pest does not always mean control is needed. The level at which pests will either become an economic threat is critical to guide future pest control decisions."]
[]
[]
[]
[]
[null,"Monitor and Identify Pests"]
[null,"Not all insects, weeds, and other living organisms require control. Many organisms are innocuous, and some are even beneficial. IPM programs work to monitor for pests and identify them accurately, so that appropriate control decisions can be made in conjunction with action thresholds. This monitoring and identification removes the possibility that pesticides will be used when they are not really needed or that the wrong kind of pesticide will be used."]
[]
[]
[]
[]
[]
[null,"Prevention"]
[null,"As a first line of pest control, IPM programs work to manage the crop, lawn, or indoor space to prevent pests from becoming a threat. In an agricultural crop, this may mean using cultural methods, such as rotating between different crops, selecting pest-resistant varieties, and planting pest-free rootstock. These control methods can be very effective and cost-efficient and present little to no risk to people or the environment."]
[]
[]
[]
[]
[]
[null,"Control"]
[null,"Once monitoring, identification, and action thresholds indicate that pest control is required, and preventive methods are no longer effective or available, IPM programs then evaluate the proper control method both for effectiveness and risk. Effective, less risky pest controls are chosen first, including highly targeted chemicals, such as pheromones to disrupt pest mating, or mechanical control, such as trapping or weeding. If further monitoring, identifications and action thresholds indicate that less risky controls are not working, then additional pest control methods would be employed, such as targeted spraying of pesticides. Broadcast spraying of non-specific pesticides is a last resort."]
[]
[]
[]
[]
[]
[]
[]
[]
[null,"Table of Contents",null,null,null,null,null,null,null,null,null,null,"BACK TO TOP"]
[]
[]
[null,"Weed Control",null,null,null,null,null,null,null,null,null,null,null,"WOODLAND-WC"]
[]
[null,"Weed control is the eradication, reduction, or manipulation of weed species including invasive, noxious, and prohibited plants and addresses both herbaceous and woody species."]
[]
[]
[null,"Weed control is designed to achieve the desired plant community through the utilization of Integrated Pest Management (IPM) principles. This is accomplished by mechanical, chemical, biological, or a combination of these techniques."]
[]
[]
[]
[null,"Weed control is applied to accomplish one or more of the following:"]
[]
[null,"l Restore native or create desired plant communities"]
[]
[null,"l Manage noxious woody plants"]
[]
[null,"l Enhance accessibility, quantity, and quality of forage"]
[]
[null,"l Maintain or enhance wildlife habitat including habitat for threatened and endangered species"]
[]
[null,"l Protect soils and control erosion"]
[]
[null,"l Reduce fire hazard  ",null,null,null,null,null,null,null,null,null,null,"BACK TO TOP"]
[]
[null,"Forest Management Plan",null,null,null,null,null,null,null,null,null,null,null,"WOODLAND-FMP"]
[]
[null,"When a landowner invests the resources needed to develop a forest management plan, they are engaged and showing commitment to managing their forest to meet their desired objectives.  Often small forest landowners have wildlife habitat as a primary objective in their forest management plan. Even if the landowner's primary objective is timber production, this can mean a healthier forest and would likely improve habitat when compared to not having any plan.  A landowner with no forest management plan may not be aware of the Washington State Forest Practice Rules, basic forestry and silvaculture concepts or the needs of wildlife which depend on forest habitats."]
[]
[]
[]
[]
[]
[]
[]
[null,"Table of Contents",null,null,null,null,null,null,null,null,null,null,"BACK TO TOP"]

{"sheet":"Riparian Area (70%)","index":10,"n_rows":367,"n_cols":34,"rows_kept":367,"cut":false,"hidden":false,"merged":[[37,10,39,20],[40,10,42,22],[43,10,45,21],[123,5,123,7],[154,10,159,24],[170,5,170,7],[170,10,172,24],[34,10,36,22],[86,17,86,19],[86,21,86,23],[54,3,54,5],[61,3,61,5],[93,21,93,22],[64,3,64,5],[64,7,64,9],[64,11,64,13],[114,12,116,24],[80,17,80,19],[80,21,80,23],[87,9,87,11],[87,13,87,15],[87,17,87,19],[87,21,87,23],[79,9,79,11],[342,12,342,14],[342,15,342,17],[342,18,342,20],[337,12,337,14],[338,12,338,14],[338,15,338,17],[331,15,331,17],[332,15,332,17],[333,15,333,17],[334,15,334,17],[335,18,335,20],[336,18,336,20],[335,15,335,17],[336,15,336,17],[337,15,337,17],[334,18,334,20],[332,18,332,20],[333,18,333,20],[79,13,79,15],[79,17,79,19],[79,21,79,23],[86,9,86,11],[86,13,86,15],[329,9,329,11],[264,7,267,24],[123,10,125,24],[250,7,251,24],[80,9,80,11],[80,13,80,15],[247,7,249,24],[314,2,314,8],[314,9,314,11],[314,12,314,14],[304,9,305,9],[236,7,237,24],[143,8,144,8],[321,15,321,17],[321,12,321,14],[316,12,316,14],[317,12,317,14],[318,12,318,14],[320,12,320,14],[330,9,330,11],[330,12,330,14],[117,12,118,23],[128,9,129,9],[171,5,171,6],[171,1,171,2],[168,1,168,2],[154,1,154,3],[139,1,139,5],[149,20,150,23],[121,1,121,4],[329,2,329,8],[277,1,277,3],[277,5,277,7],[324,12,324,14],[329,12,329,14],[329,15,329,17],[325,12,325,14],[326,12,326,14],[324,15,324,17],[325,15,325,17],[326,15,326,17],[277,10,283,24],[317,2,317,8],[346,2,346,7],[337,18,337,20],[338,18,338,20],[339,18,339,20],[340,18,340,20],[341,18,341,20],[340,15,340,17],[341,15,341,17],[337,2,337,8],[338,2,338,8],[339,2,339,8],[341,2,341,8],[342,2,342,4],[342,5,342,8],[339,9,339,11],[340,9,340,11],[341,9,341,11],[342,9,342,11],[339,15,339,17],[337,9,337,11],[338,9,338,11],[339,12,339,14],[340,12,340,14],[341,12,341,14],[334,2,334,8],[335,2,335,8],[336,2,336,8],[334,12,334,14],[335,12,335,14],[336,12,336,14],[334,9,334,11],[332,2,332,8],[333,2,333,8],[335,9,335,11],[336,9,336,11],[332,12,332,14],[333,12,333,14],[332,9,332,11],[333,9,333,11],[331,2,331,8],[331,18,331,20],[314,18,314,20],[326,18,326,20],[329,18,329,20],[330,18,330,20],[324,9,324,11],[325,9,325,11],[326,9,326,11],[325,2,325,8],[324,2,324,8],[323,2,323,8],[324,18,324,20],[326,5,326,8],[315,2,315,8],[315,9,315,11],[316,9,316,11],[317,9,317,11],[318,9,318,11],[319,9,319,11],[322,2,322,8],[322,9,322,11],[330,2,330,8],[331,12,331,14],[349,1,364,24],[319,12,319,14],[322,12,322,14],[323,12,323,14],[290,9,291,9],[289,1,289,3],[289,5,289,7],[301,1,301,3],[301,5,301,7],[323,15,323,17],[323,18,323,20],[325,18,325,20],[313,15,313,17],[314,15,314,17],[330,15,330,17],[331,9,331,11],[311,2,311,7],[316,2,316,8],[313,12,313,14],[315,12,315,14],[318,2,318,8],[326,2,326,4],[323,9,323,11],[319,2,319,8],[19,23,19,24],[21,23,21,24],[19,6,19,8],[21,6,21,8],[23,6,23,8],[186,10,190,24],[191,10,195,24],[196,10,198,24],[225,7,226,24],[49,1,50,24],[77,21,77,23],[84,9,84,11],[84,13,84,15],[84,17,84,19],[84,21,84,23],[56,3,56,5],[40,2,40,4],[29,5,29,7],[75,1,75,4],[75,5,75,7],[31,6,31,7],[34,6,34,8],[21,20,21,22],[37,6,37,8],[1,2,2,10],[1,11,3,23],[3,1,4,10],[5,1,6,10],[7,20,7,24],[9,23,9,24],[11,23,11,24],[15,23,15,24],[17,23,17,24],[17,6,17,8],[17,10,17,12],[7,12,7,16],[8,2,8,16],[9,6,9,18],[11,6,11,18],[9,19,9,22],[11,19,11,22],[15,6,15,13],[9,1,9,5],[11,1,11,5],[13,2,13,5],[15,4,15,5],[7,1,7,5],[40,6,40,8],[97,21,97,22],[101,21,101,22],[105,21,105,22],[93,12,93,18],[111,12,113,24],[239,6,242,6],[146,9,147,9],[127,10,128,24],[130,10,131,24],[133,10,134,24],[136,10,137,24],[144,9,145,9],[228,7,229,24],[231,7,231,24],[222,7,224,24],[222,4,222,6],[191,9,194,9],[239,7,242,24],[141,5,141,7],[228,6,229,6],[233,6,234,6],[143,10,145,21],[179,10,181,24],[19,10,19,12],[21,10,21,12],[23,10,23,12],[112,11,113,11],[13,6,13,13],[57,7,57,9],[56,11,56,13],[57,11,57,13],[56,15,56,17],[57,15,57,17],[54,15,54,17],[54,11,54,13],[54,7,54,9],[77,13,77,15],[77,17,77,19],[13,18,13,24],[56,7,56,9],[95,12,95,18],[97,12,97,18],[31,10,33,23],[91,12,91,18],[61,11,61,13],[61,15,61,17],[63,7,63,9],[321,2,321,8],[320,2,320,8],[320,9,320,11],[321,9,321,11],[316,15,316,17],[317,15,317,17],[318,15,318,17],[319,15,319,17],[320,15,320,17],[186,5,186,7],[253,7,254,24],[256,7,256,24],[258,7,259,24],[279,9,280,9],[313,9,313,11],[152,1,152,5],[160,10,164,24],[261,7,262,24],[220,1,220,6],[174,10,178,24],[275,1,275,6],[289,10,292,23],[287,1,287,8],[299,1,299,4],[236,6,237,6],[184,1,184,7],[245,1,245,10],[225,4,225,5],[247,4,247,6],[225,6,226,6],[233,7,234,24],[25,2,26,15],[31,2,31,3],[34,2,34,4],[37,2,37,4],[61,7,61,9],[186,1,186,4],[170,1,170,4],[89,11,89,16],[168,3,168,20],[64,15,64,17],[173,9,174,9],[107,12,110,23],[99,12,99,18],[101,12,101,18],[105,12,105,18],[103,12,103,18],[77,9,77,11],[29,1,29,3],[27,11,27,20],[141,1,141,3],[57,3,57,5],[63,3,63,5],[63,11,63,13],[63,15,63,17],[346,21,346,24],[311,21,311,24],[366,21,366,24],[271,21,271,24],[202,20,203,24],[27,1,27,10],[86,5,87,7],[67,20,68,23],[107,11,108,11],[123,1,123,3],[89,1,89,5],[103,1,103,4],[313,2,313,8],[322,15,322,17],[313,18,313,20],[315,18,315,20],[316,18,316,20],[317,18,317,20],[318,18,318,20],[319,18,319,20],[320,18,320,20],[321,18,321,20],[322,18,322,20],[315,15,315,17]]}
[]
[null,null,"NRCS",null,null,null,null,null,null,null,null,"Biology Technical Note # 14 Wildlife Habitat Evaluation Guide"]
[]
[null,"Natural Resources Conservation Service"]
[null,null,null,null,null,null,null,null,null,null,null,"Riparian Area Field Data Sheet"]
[null,"WASHINGTON",null,null,null,null,null,null,null,null,null,"(Planning Criteria = 70%)",null,null,null,null,null,null,null,null,null,null,null,null,"PASSWORD:RIPARIAN"]
[]
[null,"Table of Contents",null,null,null,null,null,null,null,null,null,null,null,null,null,null,null,null,null,null,"Revised March 2013"]
[]
[null,"Client/Operating Unit:",null,null,null,null,{"$f":"IF(ISBLANK('Table of Contents'!$D$40),\"Click on cell to the left.\",'Table of Contents'!$D$40)","v":"Click on cell to the left."},{"$f":"IF(ISBLANK('Table of Contents'!$D$40),\"Click on cell to the left.\",'Table of Contents'!$D$40)","v":"Click on cell to the left."},{"$f":"IF(ISBLANK('Table of Contents'!$D$40),\"Click on cell to the left.\",'Table of Contents'!$D$40)","v":"Click on cell to the left."},{"$f":"IF(ISBLANK('Table of Contents'!$D$40),\"Click on cell to the left.\",'Table of Contents'!$D$40)","v":"Click on cell to the left."},{"$f":"IF(ISBLANK('Table of Contents'!$D$40),\"Click on cell to the left.\",'Table of Contents'!$D$40)","v":"Click on cell to the left."},{"$f":"IF(ISBLANK('Table of Contents'!$D$40),\"Click on cell to the left.\",'Table of Contents'!$D$40)","v":"Click on cell to the left."},{"$f":"IF(ISBLANK('Table of Contents'!$D$40),\"Click on cell to the left.\",'Table of Contents'!$D$40)","v":"Click on cell to the left."},{"$f":"IF(ISBLANK('Table of Contents'!$D$40),\"Click on cell to the left.\",'Table of Contents'!$D$40)","v":"Click on cell to the left."},{"$f":"IF(ISBLANK('Table of Contents'!$D$40),\"Click on cell to the left.\",'Table of Contents'!$D$40)","v":"Click on cell to the left."},{"$f":"IF(ISBLANK('Table of Contents'!$D$40),\"Click on cell to the left.\",'Table of Contents'!$D$40)","v":"Click on cell to the left."},{"$f":"IF(ISBLANK('Table of Contents'!$D$40),\"Click on cell to the left.\",'Table of Contents'!$D$40)","v":"Click on cell to the left."},{"$f":"IF(ISBLANK('Table of Contents'!$D$40),\"Click on cell to the left.\",'Table of Contents'!$D$40)","v":"Click on cell to the left."},{"$f":"IF(ISBLANK('Table of Contents'!$D$40),\"Click on cell to the left.\",'Table of Contents'!$D$40)","v":"Click on cell to the left."},"Tract Number:",null,null,null,{"$f":"IF(ISBLANK('Table of Contents'!$K$40),\" \",'Table of Contents'!$K$40)","v":" "}]
[]
[null,"Farm/Ranch Location:",null,null,null,null,{"$f":"IF(ISBLANK('Table of Contents'!$D$42),\" \",'Table of Contents'!$D$42)","v":" "},{"$f":"IF(ISBLANK('Table of Contents'!$D$42),\" \",'Table of Contents'!$D$42)","v":" "},{"$f":"IF(ISBLANK('Table of Contents'!$D$42),\" \",'Table of Contents'!$D$42)","v":" "},{"$f":"IF(ISBLANK('Table of Contents'!$D$42),\" \",'Table of Contents'!$D$42)","v":" "},{"$f":"IF(ISBLANK('Table of Contents'!$D$42),\" \",'Table of Contents'!$D$42)","v":" "},{"$f":"IF(ISBLANK('Table of Contents'!$D$42),\" \",'Table of Contents'!$D$42)","v":" "},{"$f":"IF(ISBLANK('Table of Contents'!$D$42),\" \",'Table of Contents'!$D$42)","v":" "},{"$f":"IF(ISBLANK('Table of Contents'!$D$42),\" \",'Table of Contents'!$D$42)","v":" "},{"$f":"IF(ISBLANK('Table of Contents'!$D$42),\" \",'Table of Contents'!$D$42)","v":" "},{"$f":"IF(ISBLANK('Table of Contents'!$D$42),\" \",'Table of Contents'!$D$42)","v":" "},{"$f":"IF(ISBLANK('Table of Contents'!$D$42),\" \",'Table of Contents'!$D$42)","v":" "},{"$f":"IF(ISBLANK('Table of Contents'!$D$42),\" \",'Table of Contents'!$D$42)","v":" "},{"$f":"IF(ISBLANK('Table of Contents'!$D$42),\" \",'Table of Contents'!$D$42)","v":" "},"Farm Number:",null,null,null,{"$f":"IF(ISBLANK('Table of Contents'!$K$42),\" \",'Table of Contents'!$K$42)","v":" "}]
[]
[null,null,"Evaluation Date:",null,null,null,{"$f":"IF(ISBLANK('Table of Contents'!$D$44),\" \",'Table of Contents'!$D$44)","v":" "},{"$f":"IF(ISBLANK('Table of Contents'!$D$44),\" \",'Table of Contents'!$D$44)","v":" "},{"$f":"IF(ISBLANK('Table of Contents'!$D$44),\" \",'Table of Contents'!$D$44)","v":" "},{"$f":"IF(ISBLANK('Table of Contents'!$D$44),\" \",'Table of Contents'!$D$44)","v":" "},{"$f":"IF(ISBLANK('Table of Contents'!$D$44),\" \",'Table of Contents'!$D$44)","v":" "},{"$f":"IF(ISBLANK('Table of Contents'!$D$44),\" \",'Table of Contents'!$D$44)","v":" "},{"$f":"IF(ISBLANK('Table of Contents'!$D$44),\" \",'Table of Contents'!$D$44)","v":" "},{"$f":"IF(ISBLANK('Table of Contents'!$D$44),\" \",'Table of Contents'!$D$44)","v":" "},null,null,null,"Field Number(s):",{"$f":"IF(ISBLANK('Table of Contents'!$K$44),\" \",'Table of Contents'!$K$44)","v":" "}]
[]
[null,null,null,null,"Planner:",null,{"$f":"IF(ISBLANK('Table of Contents'!$D$46),\" \",'Table of Contents'!$D$46)","v":" "},{"$f":"IF(ISBLANK('Table of Contents'!$D$46),\" \",'Table of Contents'!$D$46)","v":" "},{"$f":"IF(ISBLANK('Table of Contents'!$D$46),\" \",'Table of Contents'!$D$46)","v":" "},{"$f":"IF(ISBLANK('Table of Contents'!$D$46),\" \",'Table of Contents'!$D$46)","v":" "},{"$f":"IF(ISBLANK('Table of Contents'!$D$46),\" \",'Table of Contents'!$D$46)","v":" "},{"$f":"IF(ISBLANK('Table of Contents'!$D$46),\" \",'Table of Contents'!$D$46)","v":" "},{"$f":"IF(ISBLANK('Table of Contents'!$D$46),\" \",'Table of Contents'!$D$46)","v":" "},{"$f":"IF(ISBLANK('Table of Contents'!$D$46),\" \",'Table of Contents'!$D$46)","v":" "},null,null,null,null,null,null,null,null,"Proposed Treatment Acres LB:",{"$f":"IF($G$24<0.0001,\" \",$G$24)","v":" "},{"$f":"IF($G$24<0.0001,\" \",$G$24)","v":" "}]
[]
[null,null,null,null,null,"Proposed Riparian Area:","Left Bank",null,null,null,"Right Bank",null,null,null,null,null,null,null,null,null,null,null,"Proposed Treatment Acres RB:",{"$f":"IF($K$24<0.0001,\" \",$K$24)","v":" "},{"$f":"IF($G$24<0.0001,\" \",$G$24)","v":" "}]
[]
[null,null,null,null,null,"Width (Feet):",null,null,null,null,null,null,null,null,null,null,null,null,null,null,null,null,"Total Treatment Acres Both Sides:",{"$f":"IF(AND(X16=\" \",X18=\" \"),\" \",X16+X18)","v":" "}]
[]
[null,null,null,null,null,"Length (Feet):",null,null,null,null,null,null,null,null,null,null,null,null,null,null,"Program:",null,null,{"$f":"IF(ISBLANK('Table of Contents'!$K$46),\" \",'Table of Contents'!$K$46)","v":" "}]
[]
[null,null,null,null,null,"Acres:",{"$f":"IF(AND(G170<0.00001,G22<0.00001),\" \",(G20*G22)/43560)","v":" "},null,null,null,{"$f":"IF(AND(K170<0.00001,K22<0.00001),\" \",(K20*K22)/43560)","v":" "},null,null," "]
[]
[null,null,"Cells with numbers that turn red are below the Planning Criteria.",null,null,null,null,null,null,null,null,null,null,null,null,null,null,false]
[null,null,null,null,null,null,null,null,null,null,null,null,null,null,null,null,null,null,null,null,null,null,null,null,null,null,null,"F&RPP"]
[null,"Riparian Area Quantity (Width X Length)",null,null,null,null,null,null,null,null,null,null,null,null,null,null,null,null,null,null,null,null,null,null,"RIPARIAN-RFQ"]
[]
[null,{"$f":"IF(AND($B$32=\" \",$B$35=\" \",$B$38=\" \",$B$41=\" \"),\" \",IF($Y$44=TRUE,\"Buffer Width\",\"Left Bank\"))","v":" "},null,null,null,{"$f":"IF(AND($F$32=\" \",$F35=\" \",$F$38=\" \",$F$41=\" \"),\" \",\"Right Bank\")","v":" "},{"$f":"IF(AND($B$32=\" \",$B35=\" \",$B$38=\" \",$B$41=\" \",$F$32=\" \",$F35=\" \",$F$38=\" \",$F$41=\" \"),\" \",Left Bank)","v":" "},{"$f":"IF(AND($B$32=\" \",$B35=\" \",$B$38=\" \",$B$41=\" \",$F$32=\" \",$F35=\" \",$F$38=\" \",$F$41=\" \"),\" \",Left Bank)","v":" "},null,"Channel Type (check one)"]
[]
[null,{"$f":"IF($Y$32=TRUE,$B$59,IF($Y$35=TRUE,$C$59,IF($Y$38=TRUE,$D$59,IF($Y$41=TRUE,$E59,IF($Y$44=TRUE,$F$59,\" \")))))","v":" "},{"$f":"IF($B$32=\" \",\" \",\"Present\")","v":" "},null,null,{"$f":"IF($Y$32=TRUE,$B$61,IF($Y$35=TRUE,$C$61,IF($Y$38=TRUE,$D$61,IF($Y$41=TRUE,$E61,IF($Y$44=TRUE,$F$61,\" \")))))","v":" "},{"$f":"IF($F$32=\" \",\" \",\"Present\")","v":" "},null,null,null,"Drainage Ditch, Irrigation Ditch or Fishless Channel (PC = 75% shade, during the month of lowest flow and 20 foot width at maturity with a 15 foot grass buffer on the outside 35 foot total.)",null,null,null,null,null,null,null,null,null,null,null,null,null,false,null,null,"Is there a buffer composed of trees and/or shrubs that provides at least 75% shade during the month of lowest flow and is the buffer a minimum of 20 feet wide with a 15 foor grass buffer on the outside, 35 foot total?"]
[]
[]
[null,{"$f":"IF($Y$32=TRUE,$G$59,IF($Y$35=TRUE,$H$59,IF($Y$38=TRUE,$I$59,IF($Y$41=TRUE,$J59,IF($Y$44=TRUE,$K$59,\" \")))))","v":" "},{"$f":"IF($B$35=\" \",\" \",\"No Action\")","v":" "},null,null,{"$f":"IF($Y$32=TRUE,$G$61,IF($Y$35=TRUE,$H$61,IF($Y$38=TRUE,$I$61,IF($Y$41=TRUE,$J61,IF($Y$44=TRUE,$K$61,\" \")))))","v":" "},{"$f":"IF($F$35=\" \",\" \",\"No Action\")","v":" "},null,null,null,"Small Stream (Less than 2 ft BF** width, gradients 16% or less), Fish Bearing Channel (PC = 50 foot width*)",null,null,null,null,null,null,null,null,null,null,null,null,null,false,null,null,"Is there a buffer composed of trees and/or shrubs that is at least 50 feet wide?"]
[]
[]
[null,{"$f":"IF($Y$32=TRUE,$L$59,IF($Y$35=TRUE,$M$59,IF($Y$38=TRUE,$N$59,IF($Y$41=TRUE,$O$59,IF($Y$44=TRUE,$P$59,\" \")))))","v":" "},{"$f":"IF($B$38=\" \",\" \",\"Planned A\")","v":" "},null,null,{"$f":"IF($Y$32=TRUE,$L$61,IF($Y$35=TRUE,$M$61,IF($Y$38=TRUE,$N$61,IF($Y$41=TRUE,$O$61,IF($Y$44=TRUE,$P$61,\" \")))))","v":" "},{"$f":"IF($F$38=\" \",\" \",\"Planned A\")","v":" "},null,null,null,"Med Stream (2-20 ft BF**), Fish Bearing Channel (PC = 100 foot width*)",null,null,null,null,null,null,null,null,null,null,null,null,null,false,null,null,"Is there a buffer composed of trees and/or shrubs that is at least 100 feet wide?"]
[]
[]
[null,{"$f":"IF($Y$32=TRUE,$Q$59,IF($Y$35=TRUE,$R$59,IF($Y$38=TRUE,$S$59,IF($Y$41=TRUE,$T59,IF($Y$44=TRUE,$U$59,\" \")))))","v":" "},{"$f":"IF($B$41=\" \",\" \",\"Planned B\")","v":" "},null,null,{"$f":"IF($Y$32=TRUE,$Q$61,IF($Y$35=TRUE,$R$61,IF($Y$38=TRUE,$S$61,IF($Y$41=TRUE,$T$61,IF($Y$44=TRUE,$U$61,\" \")))))","v":" "},{"$f":"IF($F$41=\" \",\" \",\"Planned B\")","v":" "},null,null,null,"Large Stream or River (Greater than 20 ft BF**, gradients less than 4%), Fish Bearing Channel (PC = 150 Foot width*)",null,null,null,null,null,null,null,null,null,null,null,null,null,false,null,null,"Is there a buffer composed of trees and/or shrubs that is at least 150 feet wide?"]
[]
[]
[null," * per side",null,null,null,null,null,null,null,null,"Estuaries, Wetlands, Ponds or Lakes (PC = 50 foot width)",null,null,null,null,null,null,null,null,null,null,null,null,null,false,null,null,"Is there a buffer composed of trees and/or shrubs that is at least 50 feet wide?"]
[]
[null,"** Bankfull Width",null,null,null,null,null,null,null,null,null,null,null,null,null,null,null,null,null,null,null,null,null,null,true,null,null,"Check one of the Channel Types above."]
[]
[null,{"$f":"IF($Y$32=TRUE,\"Riparian Buffer Percent Shade\",\"Riparian Buffer Width\")","v":"Riparian Buffer Width"}]
[]
[null,{"$f":"VLOOKUP(TRUE,$Y$32:$AB$46,4,FALSE)","v":"Check one of the Channel Types above."},null,null,null,null,null,null,null,null,null,null,null,null,null,null,null,null,null,null,null,null,null,null,null,null,null,null,null,null,150,100,50]
[null,null,null,null,null,null,null,null,null,null,null,null,null,null,null,null,null,null,null,null,null,null,null,null,null,null,null,null," "," "," "," "," "]
[null,null,null,null,null,null,null,null,null,null,null,null,null,null,null,null,null,null,null,null,null,null,null,null,null,null,null,null,0.05," ",0,0,0,0]
[null,{"$f":"IF($Y$44=TRUE,\"RIPARIAN BUFFER WIDTH\",\"LEFT BANK\")","v":"LEFT BANK"},null,null,null,null,null,null,null,null,null,null,null,null,null,null,null,null,null,null,null,null,null,null,null,null,null,"Check a Box Above",0.15,0,0,0,1,1]
[null,null,null,null,null,null,null,null,null,null,null,null,null,null,null,null,null,null,null,null,null,null,null,null,null,null,null,null,0.25,5,0,1,1,2]
[null,null,null,"Present",null,null,null,"No Action",null,null,null,"Planned A",null,null,null,"Planned B",null,null,null,null,null,null,null,null,null,null,null,null,0.35,10,1,1,2,3]
[null,null,null,null,null,null,null,null,null,null,null,null,null,null,null,null,null,null,null,null,null,null,null,null,null,null,null,null,0.45,15,1,1,3,4]
[null,null,null,null,null,null,null,null,null,null,null,null,null,null,null,null,null,null,null,null,null,null,null,null,null,null,null,null,0.55000000000000004,20,1,2,4,5]
[null,null,null,{"$f":"IF($Y$32=TRUE,\"Percent\",\"Feet\")","v":"Feet"},null,null,null,{"$f":"IF($Y$32=TRUE,\"Percent\",\"Feet\")","v":"Feet"},null,null,null,{"$f":"IF($Y$32=TRUE,\"Percent\",\"Feet\")","v":"Feet"},null,null,null,{"$f":"IF($Y$32=TRUE,\"Percent\",\"Feet\")","v":"Feet"},null,null,null,null,null,null,null,null,null,null,null,null,0.65,25,1,2,4,6]
[null,{"$f":"IF(OR($D$57=\" \",$Y$32=FALSE),\" \",VLOOKUP($D$57,$AC$52:$AH$62,6,FALSE))","v":" "},{"$f":"IF(OR($D$57=\" \",$Y$35=FALSE),\" \",VLOOKUP($D$57,$AD$52:$AG$66,4,FALSE))","v":" "},{"$f":"IF(OR($D$57=\" \",$Y$38=FALSE),\" \",VLOOKUP($D$57,$AD$52:$AF$80,3,FALSE))","v":" "},{"$f":"IF(OR($D$57=\" \",$Y$41=FALSE),\" \",VLOOKUP($D$57,$AD$52:$AE$97,2,FALSE))","v":" "},{"$f":"IF(OR($D$57=\" \",$Y$44=FALSE),\" \",VLOOKUP($D$57,$AD$52:$AG$66,3,FALSE))","v":" "},{"$f":"IF(OR($H$57=\" \",$Y$32=FALSE),\" \",VLOOKUP($H$57,$AC$52:$AH$62,6,FALSE))","v":" "},{"$f":"IF(OR($H$57=\" \",$Y$35=FALSE),\" \",VLOOKUP($H$57,$AD$52:$AG$66,4,FALSE))","v":" "},{"$f":"IF(OR($H$57=\" \",$Y$38=FALSE),\" \",VLOOKUP($H$57,$AD$52:$AF$80,3,FALSE))","v":" "},{"$f":"IF(OR($H$57=\" \",$Y$41=FALSE),\" \",VLOOKUP($H$57,$AD$52:$AE$97,2,FALSE))","v":" "},{"$f":"IF(OR($H$57=\" \",$Y$44=FALSE),\" \",VLOOKUP($H$57,$AD$52:$AG$66,3,FALSE))","v":" "},{"$f":"IF(OR($L$57=\" \",$Y$32=FALSE),\" \",VLOOKUP($L$57,$AC$52:$AH$62,6,FALSE))","v":" "},{"$f":"IF(OR($L$57=\" \",$Y$35=FALSE),\" \",VLOOKUP($L$57,$AD$52:$AG$66,4,FALSE))","v":" "},{"$f":"IF(OR($L$57=\" \",$Y$38=FALSE),\" \",VLOOKUP($L$57,$AD$52:$AF$80,3,FALSE))","v":" "},{"$f":"IF(OR($L$57=\" \",$Y$41=FALSE),\" \",VLOOKUP($L$57,$AD$52:$AE$97,2,FALSE))","v":" "},{"$f":"IF(OR($L$57=\" \",$Y$44=FALSE),\" \",VLOOKUP($L$57,$AD$52:$AG$66,3,FALSE))","v":" "},{"$f":"IF(OR($P$57=\" \",$Y$32=FALSE),\" \",VLOOKUP($P$57,$AC$52:$AH$62,6,FALSE))","v":" "},{"$f":"IF(OR($P$57=\" \",$Y$35=FALSE),\" \",VLOOKUP($P$57,$AD$52:$AG$66,4,FALSE))","v":" "},{"$f":"IF(OR($P$57=\" \",$Y$38=FALSE),\" \",VLOOKUP($P$57,$AD$52:$AF$80,3,FALSE))","v":" "},{"$f":"IF(OR($P$57=\" \",$Y$41=FALSE),\" \",VLOOKUP($P$57,$AD$51:$AE$97,2,FALSE))","v":" "},{"$f":"IF(OR($P$57=\" \",$Y$44=FALSE),\" \",VLOOKUP($P$57,$AD$52:$AG$66,3,FALSE))","v":" "},null,null,null,null,null,null,null,0.75,30,2,2,5,7]
[null,"RIGHT BANK",null,null,null,null,null,null,null,null,null,null,null,null,null,null,null,null,null,null,null,null,null,null,null,null,null,null,0.85,35,2,3,6,8]
[null,{"$f":"IF(OR($D$64=\" \",$Y$32=FALSE),\" \",VLOOKUP($D$64,$AC$52:$AH$62,6,FALSE))","v":" "},{"$f":"IF(OR($D$64=\" \",$Y$35=FALSE),\" \",VLOOKUP($D$64,$AD$52:$AG$66,4,FALSE))","v":" "},{"$f":"IF(OR($D$64=\" \",$Y$38=FALSE),\" \",VLOOKUP($D$64,$AD$52:$AF$80,3,FALSE))","v":" "},{"$f":"IF(OR($D$64=\" \",$Y$41=FALSE),\" \",VLOOKUP($D$64,$AD$52:$AE$97,2,FALSE))","v":" "},{"$f":"IF(OR($D$64=\" \",$Y$44=FALSE),\" \",VLOOKUP($D$64,$AD$52:$AG$66,3,FALSE))","v":" "},{"$f":"IF(OR($H$64=\" \",$Y$32=FALSE),\" \",VLOOKUP($H$64,$AC$52:$AH$62,6,FALSE))","v":" "},{"$f":"IF(OR($H$64=\" \",$Y$35=FALSE),\" \",VLOOKUP($H$64,$AD$52:$AG$66,4,FALSE))","v":" "},{"$f":"IF(OR($H$64=\" \",$Y$38=FALSE),\" \",VLOOKUP($H$64,$AD$52:$AF$80,3,FALSE))","v":" "},{"$f":"IF(OR($H$64=\" \",$Y$41=FALSE),\" \",VLOOKUP($H$64,$AD$52:$AE$97,2,FALSE))","v":" "},{"$f":"IF(OR($H$64=\" \",$Y$44=FALSE),\" \",VLOOKUP($H$64,$AD$52:$AG$66,3,FALSE))","v":" "},{"$f":"IF(OR($L$64=\" \",$Y$32=FALSE),\" \",VLOOKUP($L$64,$AC$52:$AH$66,6,FALSE))","v":" "},{"$f":"IF(OR($L$64=\" \",$Y$35=FALSE),\" \",VLOOKUP($L$64,$AD$52:$AG$66,4,FALSE))","v":" "},{"$f":"IF(OR($L$64=\" \",$Y$38=FALSE),\" \",VLOOKUP($L$64,$AD$52:$AF$80,3,FALSE))","v":" "},{"$f":"IF(OR($L$64=\" \",$Y$41=FALSE),\" \",VLOOKUP($L$64,$AD$52:$AE$97,2,FALSE))","v":" "},{"$f":"IF(OR($L$64=\" \",$Y$44=FALSE),\" \",VLOOKUP($L$64,$AD$52:$AG$66,3,FALSE))","v":" "},{"$f":"IF(OR($P$64=\" \",$Y$32=FALSE),\" \",VLOOKUP($P$64,$AC$52:$AH$62,6,FALSE))","v":" "},{"$f":"IF(OR($P$64=\" \",$Y$35=FALSE),\" \",VLOOKUP($P$64,$AD$52:$AG$66,4,FALSE))","v":" "},{"$f":"IF(OR($P$64=\" \",$Y$38=FALSE),\" \",VLOOKUP($P$64,$AD$52:$AF$80,3,FALSE))","v":" "},{"$f":"IF(OR($P$64=\" \",$Y$41=FALSE),\" \",VLOOKUP($P$64,$AD$52:$AE$97,2,FALSE))","v":" "},{"$f":"IF(OR($P$64=\" \",$Y$44=FALSE),\" \",VLOOKUP($P$64,$AD$52:$AG$66,3,FALSE))","v":" "},null,null,null,null,null,null,null,0.95,40,2,3,6,9]
[null,null,null,"Present",null,null,null,"No Action",null,null,null,"Planned A",null,null,null,"Planned B",null,null,null,null,null,null,null,null,null,null,null,null,1,45,2,3,7,10]
[null,null,null,null,null,null,null,null,null,null,null,null,null,null,null,null,null,null,null,null,null,null,null,null,null,null,null,null,null,50,2,4,8]
[null,null,null,null,null,null,null,null,null,null,null,null,null,null,null,null,null,null,null,null,null,null,null,null,null,null,null,null,null,60,3,4,9]
[null,null,null,{"$f":"IF($Y$32=TRUE,\"Percent\",\"Feet\")","v":"Feet"},null,null,null,{"$f":"IF($Y$32=TRUE,\"Percent\",\"Feet\")","v":"Feet"},null,null,null,{"$f":"IF($Y$32=TRUE,\"Percent\",\"Feet\")","v":"Feet"},null,null,null,{"$f":"IF($Y$32=TRUE,\"Percent\",\"Feet\")","v":"Feet"},null,null,null,null,null,null,null,null,null,null,null,null,null,65,3,4,9]
[null,null,null,null,null,null,null,null,null,{"$f":"IF(OR($D$57=\" \",Y39=FALSE),\" \",VLOOKUP($D$57,AC61:AG74,5,FALSE))","v":" "},null,{"$f":"IF(OR($D$57=\" \",Y39=FALSE),\" \",VLOOKUP($D$57,AD61:AG74,4,FALSE))","v":" "},null,{"$f":"IF(OR($D$57=\" \",Y39=FALSE),\" \",VLOOKUP($D$57,AD61:AF78,3,FALSE))","v":" "},null,{"$f":"IF(OR($D$57=\" \",Y39=FALSE),\" \",VLOOKUP($D$57,AD61:AE130,2,FALSE))","v":" "},null,{"$f":"IF(OR($D$57=\" \",Y49=FALSE),\" \",VLOOKUP($D$57,AD61:AG78,3,FALSE))","v":" "},null,null,null,null,null,null,null,null,null,null,null,70,3,5,10]
[null,null,null,null,null,null,null,null,null,null,null,null,null,null,null,null,null,null,null,null,null,null,null,null,null,null,null,null,null,75,3,5]
[null,null,null," ",null,null,null," ",null,null,null," ",null,null,null," ",null,null,null,null,"Back to Top",null,null,null,null,null,null,null,null,80,4,6]
[null,null,null,null,null,null,null,null,null,null,null,null,null,null,null,null,null,null,null,null,null,null,null,null,null,null,null,null,null,85,4,6]
[null,null,null,null,null,null,null,null,null,null,null,null,null,null,null,null,null,null,null,null,null,null,null,null,null,null,null,null,null,90,4,6]
[null,null,null,null,null,null,null,null,null,null,null,null,null,null,null,null,null,null,null,null,null,null,null,null,null,null,null,null,null,95,4,7]
[null,null,null,null,null,null,null,null,null,null,null,null,null,null,null,null,null,null,null,null,null,null,null,null,null,null,null,null,null,100,5,7]
[null,null,null,null,null,null,null,null,null,null,null,null,null,null,null,null,null,null,null,null,null,null,null,null,null,null,null,null,null,105,5,7]
[null,"Riparian Buffer Length",null,null,null,null,null,null,null,null,null,null,null,null,null,null,null,null,null,null,null,null,null,null,null,null,null,null,null,110,5,8]
[null,null,null,null,null,null,null,null,null,null,null,null,null,null,null,null,null,null,null,null,null,null,null,null,null,null,null,null,null,115,5,8]
[null,{"$f":"IF($Y$44=TRUE,\"Buffer Length\",\"Left Bank\")","v":"Left Bank"},null,null,null,"Right Bank",null,null,null,{"$f":"IF($Y$44=TRUE,\"RIPARIAN BUFFER LENGTH\",\"LEFT BANK\")","v":"LEFT BANK"},null,null,null,null,null,null,null,null,null,null,null,null,null,null,null,null,null,null,null,120,6,8]
[null,null,null,null,null,null,null,null,null,null,null,null,null,null,null,null,null,null,null,null,null,null,null,null,null,null,null,null,null,125,6,9]
[null,{"$f":"IF($J$80=\" \",\" \",VLOOKUP($J$80,$AC$51:$AH$62,6,FALSE))","v":" "},"Present",null,null,{"$f":"IF($J$87=\" \",\" \",VLOOKUP($J$87,$AC$51:$AH$62,6,FALSE))","v":" "},"Present",null,null,"Present",null,null,null,"No Action",null,null,null,"Planned A",null,null,null,"Planned B",null,null,null,null,null,null,null,130,6,9]
[null,null,null,null,null,null,null,null,null,null,null,null,null,null,null,null,null,null,null,null,null,null,null,null,null,null,null,null,null,135,6,9]
[null,{"$f":"IF($N$80=\" \",\" \",VLOOKUP($N$80,$AC$51:$AH$62,6,FALSE))","v":" "},"No Action",null,null,{"$f":"IF($N$87=\" \",\" \",VLOOKUP($N$87,$AC$51:$AH$62,6,FALSE))","v":" "},"No Action",null,null," ",null,null,null," ",null,null,null," ",null,null,null," ",null,null,null,null,null,null,null,140,6,10]
[null,null,null,null,null,null,null,null,null,"Percent",null,null,null,"Percent",null,null,null,"Percent",null,null,null,"Percent",null,null,null,null,null,null,null,145,6]
[null,null,null,null,null,null,null,null,null,null,null,null,null,null,null,null,null,null,null,null,null,null,null,null,null,null,null,null,null,150,7]
[null,{"$f":"IF($R$80=\" \",\" \",VLOOKUP($R$80,$AC$51:$AH$62,6,FALSE))","v":" "},"Planned A",null,null,{"$f":"IF($R$87=\" \",\" \",VLOOKUP($R$87,$AC$51:$AH$62,6,FALSE))","v":" "},"Planned A",null,null,"RIGHT BANK",null,null,null,null,null,null,null,null,null,null,null,null,null,null,null,null,null,null,null,155,7]
[null,null,null,null,null,null,null,null,null,null,null,null,null,null,null,null,null,null,null,null,null,null,null,null,null,null,null,null,null,160,7]
[null,{"$f":"IF($V$80=\" \",\" \",VLOOKUP($V$80,$AC$51:$AH$62,6,FALSE))","v":" "},"Planned B",null,null,{"$f":"IF($V$87=\" \",\" \",VLOOKUP($V$87,$AC$51:$AH$62,6,FALSE))","v":" "},"Planned B",null,null,"Present",null,null,null,"No Action",null,null,null,"Planned A",null,null,null,"Planned B",null,null,null,null,null,null,null,165,8]
[null,null,null,null,null,null,null,null,null,null,null,null,null,null,null,null,null,null,null,null,null,null,null,null,null,null,null,null,null,170,8]
[null,null,null,null,null,"PC = 70%",null,null,null," ",null,null,null," ",null,null,null," ",null,null,null," ",null,null,null,null,null,null,null,175,8]
[null,null,null,null,null,null,null,null,null,"Percent",null,null,null,"Percent",null,null,null,"Percent",null,null,null,"Percent",null,null,null,null,null,null,null,180,8]
[null,null,null,null,null,null,null,null,null,null,null,null,null,null,null,null,null,null,null,null,null,null,null,null,null,null,null,null,null,185,8]
[null,"Site Index Height",null,null,null,null,null,null,null,null,null,{"$f":"IF($Y$32=TRUE,\"SKIP THIS VARIABLE\",\" \")","v":" "},null,null,null,null,null,null,null,null,null,null,null,null,"RIPARIAN-SIH",null,null,null,null,190,9]
[null,null,null,null,null,null,null,null,null,null,null,null,null,null,null,null,null,null,null,null,null,null,null,null,null,null,null,null,null,195,9]
[null,null,null,null,null,null,null,null,"1.",null,null,"Soil Type:",null,null,null,null,null,null,null,null,null,null,null,null,null,null,null,null,null,200,9]
[null,null,null,null,null,null,null,null,null,null,null,null,null,null,null,null,null,null,null,null,null,null,null,null,null,null,null,null,null,205,9]
[null,null,null,null,null,null,null,null,null,null,null,"Tree Species:",null,null,null,null,null,null,null,null,"Height:",null,null,"Feet",null,null,null,null,null,210,10]
[null,null,null,null,null,null,null,null,null,null,null,null,null,null,null,null,null,null,null,null,null,null,null,null,null,null,null,null,null,215,10]
[null,null,null,null,null,null,null,null,"2.",null,null,"Soil Type:",null,null,null,null,null,null,null,null,null,null,null,null,null,null,null,null,null,220,10]
[null,null,null,null,null,null,null,null,null,null,null,null,null,null,null,null,null,null,null,null,null,null,null,null,null,null,null,null,null,">220",10]
[null,null,null,null,null,null,null,null,null,null,null,"Tree Species:",null,null,null,null,null,null,null,null,"Height:",null,null,"Feet"]
[]
[null,null,null,null,null,null,null,null,"3.",null,null,"Soil Type:"]
[]
[null,null,null,null,null,null,null,null,null,null,null,"Tree Species:",null,null,null,null,null,null,null,null,"Height:",null,null,"Feet"]
[]
[null,{"$f":"IF($Y$44=TRUE,\" \",IF($Y$32=TRUE,\"Skip this Variable\",\"Left Bank\"))","v":"Left Bank"},null,null,null,"Right Bank",null,null,"4.",null,null,"Soil Type:"]
[]
[null,null,"Present",null,null,null,"Present",null,null,null,null,"Tree Species:",null,null,null,null,null,null,null,null,"Height:",null,null,"Feet",null,null,null,null,null,"Tree Species"]
[]
[null,null,"No Action",null,null,null,"No Action",null,null,null,null,"5 =","Existing tree species have potential to reach 75-100% of the site index height for the soil type.",null,null,null,null,null,null,null,null,null,null,null,null,null,null,null,null,"Alaska-Cedar"]
[null,null,null,null,null,null,null,null,null,null,null,null,null,null,null,null,null,null,null,null,null,null,null,null,null,null,null,null,null,"Black Cottonwood"]
[null,null,"Planned A",null,null,null,"Planned A",null,null,null,null,null,null,null,null,null,null,null,null,null,null,null,null,null,null,null,null,null,null,"Douglas-Fir"]
[null,null,null,null,null,null,null,null,null,null,null,null,null,null,null,null,null,null,null,null,null,null,null,null,null,null,null,null,null,"Engelmann Spruce"]
[null,null,"Planned B",null,null,null,"Planned B",null,null,null,"PC","4 =","Existing tree species have potential to reach 50-74% of the site index height for the soil type.",null,null,null,null,null,null,null,null,null,null,null,null,null,null,null,null,"Grand Fir"]
[null,null,null,null,null,null,null,null,null,null,null,null,null,null,null,null,null,null,null,null,null,null,null,null,null,null,null,null,null,"Lodgepole  Pine"]
[null,null,null,null,null,null,null,null,null,null,null,null,null,null,null,null,null,null,null,null,null,null,null,null,null,null,null,null,null,"Mountain Hemlock"]
[null,null,null,null,null,null,null,null,null,null,null,"3 =","Existing tree species have potential to reach 25 -49% of the site index height for the soil type.",null,null,null,null,null,null,null,null,null,null,null,null,null,null,null,null,"Noble Fir"]
[null,null,null,null,null,null,null,null,null,null,null,null,null,null,null,null,null,null,null,null,null,null,null,null,null,null,null,null,null,"Pacific Silver Fir"]
[null,null,null,null,null,null,null,null,null,null,null,null,null,null,null,null,null,null,null,null,null,null,null,null,null,null,null,null,null,"Ponderosa Pine"]
[null,null,null,null,null,null,null,null,null,null,null,"1 =","Existing tree species have potential to reach less than 25% of the index height for the soil type.",null,null,null,null,null,null,null,null,null,null,null,null,null,null,null,null,"Red Alder"]
[null,null,null,null,null,null,null,null,null,null,null,null,null,null,null,null,null,null,null,null,null,null,null,null,null,null,null,null,null,"Sitka Spruce"]
[null,null,null,null,null,null,null,null,null,null,null,null,null,null,null,null,null,null,null,null,null,null,null,null,null,null,null,null,null,"Subalpine Fir"]
[null,null,null,null,null,null,null,null,null,null,null,null,null,null,null,null,null,null,null,null,null,null,null,null,null,null,null,null,null,"Subalpine Larch"]
[null,"Bank Stability",null,null,null,null,null,null,null,null,null,null,null,null,null,null,null,null,null,null,null,null,null,null,"RIPARIAN-BS",null,null,null,null,"Western Hemlock"]
[null,null,null,null,null,null,null,null,null,null,null,null,null,null,null,null,null,null,null,null,null,null,null,null,null,null,null,null,null,"Western Larch"]
[null,{"$f":"IF($Y$44=TRUE,\" \",\"Left Bank\")","v":"Left Bank"},null,null,null,"Right Bank",null,null,null,"5 =","Banks stabilized with living woody vegetation; erosion or bank failure absent or minimal; little potential for future problems.",null,null,null,null,null,null,null,null,null,null,null,null,null,null,null,null,null,null,"Western Redcedar"]
[null,null,null,null,null,null,null,null,null,null,null,null,null,null,null,null,null,null,null,null,null,null,null,null,null,null,null,null,null,"Western White Pine"]
[null,null,"Present",null,null,null,"Present",null,null,null,null,null,null,null,null,null,null,null,null,null,null,null,null,null,null,null,null,null,null,"Whitebark Pine"]
[]
[null,null,"No Action",null,null,null,"No Action",null,null,"4 =","Banks stabilized by means other than live vegetation or Rip Rap; erosion or failure absent or minimal; little potential for future problems."]
[null,null,null,null,null,null,null,null,null,"PC"]
[]
[null,null,null,null,null,null,null,null,null,"3 =","Moderately stable; infrequent, small areas of bank erosion along less than a third of the bank in the reach."]
[null,null,"Planned A",null,null,null,"Planned A"]
[]
[null,null,"Planned B",null,null,null,"Planned B",null,null,"2 =","Moderately unstable with one to two thirds of the bank in the reach having areas of erosion."]
[]
[]
[null,null,null,null,null,null,null,null,null,"1 =","Unstable; many eroded areas with greater than two thirds of the reach exhibiting active erosion."]
[]
[]
[null,"Grazing System ",null,null,null,null,null,null,null,null,null,null,null,null,null,null,null,null,null,null,null,null,null,null,"RIPARIAN-GS"]
[]
[null,{"$f":"IF($Y$44=TRUE,\" \",\"Left Bank\")","v":"Left Bank"},null,null,null,"Right Bank"]
[]
[null,null,"Present",null,null,null,"Present",null,"PC","6 =","No livestock use or proper use with prescribed grazing system applied."]
[]
[null,null,"No Action",null,null,null,"No Action"]
[null,null,null,null,null,null,null,null,null,"1 ="]
[null,null,"Planned A",null,null,null,"Planned A",null,null,null,"Improper use, with or without prescribed grazing system."]
[]
[null,null,"Planned B",null,null,null,"Planned B",null,null,null,null,null,null,null,null,null,null,null,null,null,"Back to Top"]
[]
[]
[null,"Plant Community",null,null,null,null,null,null,null,null,null,null,null,null,null,null,null,null,null,null,null,null,null,null,"RIPARIAN-PC"]
[]
[null,{"$f":"IF($Y$44=TRUE,\" \",\"Left Bank\")","v":"Left Bank"},null,null,null,"Right Bank",null,null,null,"4 =","Diverse mixture of tree heights and diameters, mixed tree species interspersed with diverse understory vegetation. Vegetation should be composed of natural vegetation. (This includes Evaluation Areas where ponderosa pine is the sole climax species.)"]
[]
[null,null,"Present",null,null,null,"Present"]
[]
[null,null,"No Action",null,null,null,"No Action"]
[]
[null,null,"Planned A",null,null,null,"Planned A",null,null,"3 =","Diverse mixture of tree height and diameters dominated by 1 or 2 tree species; interspersion and/or understory diversity is low or absent.  (This includes Evaluation Areas where ponderosa pine is the sole climax species.)"]
[]
[null,null,"Planned B",null,null,null,"Planned B",null,null,"PC"]
[]
[]
[]
[null,null,null,null,null,null,null,null,null,"1 =","Uniform height and diameters dominated by 1 or 2 tree species. "]
[]
[null,"Snags",null,{"$f":"IF($Y$32=TRUE,\"SKIP THIS VARIABLE\",\"(Snags must meet stage, diameter and height requirements to be considered)\")","v":"(Snags must meet stage, diameter and height requirements to be considered)"},null,null,null,null,null,null,null,null,null,null,null,null,null,null,null,null,null,null,null,null,"RIPARIAN-SN"]
[]
[null,{"$f":"IF($Y$44=TRUE,\" \",IF($Y$32=TRUE,\"Skip this Variable\",\"Left Bank\"))","v":"Left Bank"},null,null,null,"Right Bank",null,null,null,"8 =","More than 4 snags, greater than 20 inch dbh and 60 feet height per acre.  Snags will be in stages 2 through 4."]
[]
[null,null,"Present",null,null,null,"Present"]
[null,null,null,null,null,null,null,null,null,"7 = "]
[null,null,"No Action",null,null,null,"No Action",null,null,null,"Two to four snags more than 20 inch dbh and/or 5 snags 8-20 inch dbh and a minimum height of 20 feet, per acre. Snags will be in stages 2 through 7."]
[]
[null,null,"Planned A",null,null,null,"Planned A"]
[]
[null,null,"Planned B",null,null,null,"Planned B"]
[null,null,null,null,null,null,null,null,null,"6 =","Three to five snags per acre 6-12 inch dbh and a minimum height of 10 feet.  Snags will be in stages 2 through 7."]
[null,null,null,null,null,null,null,null,null,"PC"]
[]
[null,null,null,null,null,null,null,null,null,"1 =","No snags or snags less than 6 inch dbh."]
[]
[null,"Downed Woody Material",null,null,null,null,null,null,null,null,null,{"$f":"IF($Y$32=TRUE,\"SKIP THIS VARIABLE\",\" \")","v":" "},null,null,null,null,null,null,null,null,null,null,null,null,"RIPARIAN-DWM"]
[]
[null,{"$f":"IF($Y$44=TRUE,\" \",IF($Y$32=TRUE,\"Skip this Variable\",\"Left Bank\"))","v":"Left Bank"},null,null,null,"Right Bank",null,null,null,"4 =","Five logs per acre that are a minimum 12 inches in average diameter and greater than 20 feet in length, with four or five Coarse Woody Debris Classes present."]
[]
[null,null,"Present",null,null,null,"Present"]
[]
[null,null,"No Action",null,null,null,"No Action"]
[null,null,null,null,null,null,null,null,null,"3 = PC","Three logs per acre that are a minimum 12 inches in average diameter and greater than 20 feet in length, three or more Coarse Woody Debris Classes present."]
[null,null,"Planned A",null,null,null,"Planned A"]
[]
[null,null,"Planned B",null,null,null,"Planned B",null,null,false]
[]
[null,null,null,null,null,null,null,null,null,"1 =","Less than three logs per acre that are a minimum 12 inches in average diameter and greater than 20 feet or logs present represent two or less Coarse Woody Debris Classes."]
[]
[]
[]
[]
[]
[null,null,null,null,null,null,null,null,null,null,null,null,null,null,null,null,null,null,null,null,"Back to Top"]
[]
[]
[]
[]
[]
[]
[]
[]
[]
[]
[]
[]
[]
[]
[]
[]
[]
[null,"Habitat Fragmentation",null,null,null,null,null,{"$f":"IF($Y$44=TRUE,\"of Riparian Buffer\",\"(Left Bank)\")","v":"(Left Bank)"},null,null,null,null,null,null,null,null,null,null,null,null,null,null,null,null,"RIPARIAN-HFL"]
[]
[null,{"$f":"IF(AND(C231=FALSE,C234=FALSE,C235=FALSE,C235=FALSE,C236=FALSE,C237=FALSE,C238=FALSE),\" \",(10+(SUM($L$228,$L$231,$L$233,$L$236,$L$239,$L$244))))","v":" "},"Present",null,"PC = 7",null,null,"Unmitigated structural barriers within or adjacent to the evaluation area. Structures that restrict natural movement or dispersion of wildlife that results in degraded habitat.  Check all that apply."]
[]
[null,{"$f":"IF(AND(D231=FALSE,D234=FALSE,D235=FALSE,D236=FALSE,D237=FALSE,D238=FALSE),\" \",(10+(SUM($P$228,$P$231,$P$233,$P$236,$P$239,$P$244))))","v":" "},"No Action"]
[null,null,null,null,null,null,10,"No unmitigated structures are present, some wildlife corridors are in place."]
[null,{"$f":"IF(AND(E231=FALSE,E234=FALSE,E235=FALSE,E236=FALSE,E237=FALSE,E238=FALSE),\" \",(10+(SUM($T$228,$T$231,$T$233,$T$236,$T$239,$T$244))))","v":" "},"Planned A"]
[null,null,null,null,null,null,null,null,null,null,"Present",{"$f":"IF($C$231=FALSE,0,0)","v":0},null,null,"No Action",{"$f":"IF($D$231=FALSE,0,0)","v":0},null,null,"Planned A",{"$f":"IF($E$231=FALSE,0,0)","v":0},null,null,"Planned B",{"$f":"IF($F$231=FALSE,0,0)","v":0}]
[null,{"$f":"IF(AND(F231=FALSE,F238=FALSE,F234=FALSE,F235=FALSE,F236=FALSE,F237=FALSE),\" \",(10+(SUM($X$228,$X$231,$X$233,$X$236,$X$239,$X$244))))","v":" "},"Planned B",null,null,null,-1,"Fences that have not been designed to be wildlife friendly"]
[]
[null,null,false,false,false,false,null,null,null,null,"Present",{"$f":"IF($C$234=FALSE,0,-1)","v":0},null,null,"No Action",{"$f":"IF($D$234=FALSE,0,-1)","v":0},null,null,"Planned A",{"$f":"IF($E$234=FALSE,0,-1)","v":0},null,null,"Planned B",{"$f":"IF($F$234=FALSE,0,-1)","v":0}]
[null,null,null,null,null,null,-1,"Unnecessary access roads"]
[null,null,null,null,null,null,null,null,null,null,"Present",{"$f":"IF($C$235=FALSE,0,-1)","v":0},null,null,"No Action",{"$f":"IF($D$235=FALSE,0,-1)","v":0},null,null,"Planned A",{"$f":"IF($E$235=FALSE,0,-1)","v":0},null,null,"Planned B",{"$f":"IF($F$235=FALSE,0,-1)","v":0}]
[null,null,false,false,false,false,-1,"Above ground pipelines that could be updated and installed below ground"]
[null,null,false,false,false,false]
[null,null,false,false,false,false,null,null,null,null,"Present",{"$f":"IF($C$236=FALSE,0,-1)","v":0},null,null,"No Action",{"$f":"IF($D$236=FALSE,0,-1)","v":0},null,null,"Planned A",{"$f":"IF($E$236=FALSE,0,-1)","v":0},null,null,"Planned B",{"$f":"IF($F$236=FALSE,0,-1)","v":0}]
[null,null,false,false,false,false,-1,"Buildings or structures that are no longer needed as part of the farming or ranching operation"]
[null,null,false,false,false,false]
[null,null,null,null,null,null,null,null,null,null,"Present",{"$f":"IF($C$237=FALSE,0,-1)","v":0},null,null,"No Action",{"$f":"IF($D$237=FALSE,0,-1)","v":0},null,null,"Planned A",{"$f":"IF($E$237=FALSE,0,-1)","v":0},null,null,"Planned B",{"$f":"IF($F$237=FALSE,0,-1)","v":0}]
[null,null,null,null,null,null,-6,"No corridors within the evaluation area.  Corridors could be field borders, grassed waterways, hedgerows, shelterbelts, riparian areas, grassed terraces, buffers, etc."]
[]
[]
[]
[null,null,null,null,null,null,null,null,null,null,"Present",{"$f":"IF($C$238=FALSE,0,-6)","v":0},null,null,"No Action",{"$f":"IF($D$238=FALSE,0,-6)","v":0},null,null,"Planned A",{"$f":"IF($E$238=FALSE,0,-6)","v":0},null,null,"Planned B",{"$f":"IF($F$238=FALSE,0,-6)","v":0}]
[]
[null,"Habitat Fragmentation (Right Bank)",null,null,null,null,null,null,null,null,null,null,null,null,null,null,null,null,null,null,null,null,null,null,"RIPARIAN-HFR"]
[]
[null,{"$f":"IF(AND(C256=FALSE,C259=FALSE,C260=FALSE,C260=FALSE,C261=FALSE,C262=FALSE,C263=FALSE),\" \",(10+(SUM($L$253,$L$256,$L$258,$L$261,$L$264,$L$269))))","v":" "},"Present",null,"PC = 7",null,null,"Unmitigated structural barriers within or adjacent to the evaluation area. Structures that restrict natural movement or dispersion of wildlife that results in degraded habitat.  Check all that apply."]
[]
[null,{"$f":"IF(AND(D256=FALSE,D259=FALSE,D260=FALSE,D261=FALSE,D262=FALSE,D263=FALSE),\" \",(10+(SUM($P$253,$P$256,$P$258,$P$261,$P$264,$P$269))))","v":" "},"No Action"]
[null,null,null,null,null,null,10,"No unmitigated structures are present, some wildlife corridors are in place."]
[null,{"$f":"IF(AND(E256=FALSE,E259=FALSE,E260=FALSE,E261=FALSE,E262=FALSE,E263=FALSE),\" \",(10+(SUM($T$253,$T$256,$T$258,$T$261,$T$264,$T$269))))","v":" "},"Planned A"]
[null,null,null,null,null,null,null,null,null,null,"Present",{"$f":"IF($C$256=FALSE,0,0)","v":0},null,null,"No Action",{"$f":"IF($D$257=FALSE,0,-1)","v":0},null,null,"Planned A",{"$f":"IF($E$257=FALSE,0,-1)","v":0},null,null,"Planned B",{"$f":"IF($F$257=FALSE,0,-1)","v":0}]
[null,{"$f":"IF(AND(F256=FALSE,F263=FALSE,F259=FALSE,F260=FALSE,F261=FALSE,F262=FALSE),\" \",(10+(SUM($X$253,$X$256,$X$258,$X$261,$X$264,$X$269))))","v":" "},"Planned B",null,null,null,-1,"Fences that have not been designed to be wildlife friendly"]
[]
[null,null,false,false,false,false,null,null,null,null,"Present",{"$f":"IF($C$259=FALSE,0,-1)","v":0},null,null,"No Action",{"$f":"IF($D$259=FALSE,0,-1)","v":0},null,null,"Planned A",{"$f":"IF($E$259=FALSE,0,-1)","v":0},null,null,"Planned B",{"$f":"IF($F$259=FALSE,0,-1)","v":0}]
[null,null,null,null,null,null,-1,"Unnecessary access roads"]
[null,null,null,null,null,null,null,null,null,null,"Present",{"$f":"IF($C$260=FALSE,0,-1)","v":0},null,null,"No Action",{"$f":"IF($D$260=FALSE,0,-1)","v":0},null,null,"Planned A",{"$f":"IF($E$260=FALSE,0,-1)","v":0},null,null,"Planned B",{"$f":"IF($F$260=FALSE,0,-1)","v":0}]
[null,null,false,false,false,false,-1,"Above ground pipelines that could be updated and installed below ground"]
[null,null,false,false,false,false]
[null,null,false,false,false,false,null,null,null,null,"Present",{"$f":"IF($C$261=FALSE,0,-1)","v":0},null,null,"No Action",{"$f":"IF($D$261=FALSE,0,-1)","v":0},null,null,"Planned A",{"$f":"IF($E$261=FALSE,0,-1)","v":0},null,null,"Planned B",{"$f":"IF($F$261=FALSE,0,-1)","v":0}]
[null,null,false,false,false,false,-1,"Buildings or structures that are no longer needed as part of the farming or ranching operation"]
[null,null,false,false,false,false]
[null,null,null,null,null,null,null,null,null,null,"Present",{"$f":"IF($C$262=FALSE,0,-1)","v":0},null,null,"No Action",{"$f":"IF($D$262=FALSE,0,-1)","v":0},null,null,"Planned A",{"$f":"IF($E$262=FALSE,0,-1)","v":0},null,null,"Planned B",{"$f":"IF($F$262=FALSE,0,-1)","v":0}]
[null,null,null,null,null,null,-6,"No corridors within the evaluation area.  Corridors could be field borders, grassed waterways, hedgerows, shelterbelts, riparian areas, grassed terraces, buffers, etc."]
[]
[]
[]
[null,null,null,null,null,null,null,null,null,null,"Present",{"$f":"IF($C$263=FALSE,0,-6)","v":0},null,null,"No Action",{"$f":"IF($D$263=FALSE,0,-6)","v":0},null,null,"Planned A",{"$f":"IF($E$263=FALSE,0,-6)","v":0},null,null,"Planned B",{"$f":"IF($F$263=FALSE,0,-6)","v":0}]
[]
[]
[null,null,null,null,null,null,null,null,null,null,null,null,null,null,null,null,null,null,null,null,null,"Back to Top"]
[]
[]
[]
[null,"Nutrient Management",null,null,null,null,null,null,null,null,null,null,null,null,null,null,null,null,null,null,null,null,null,null,"RIPARIAN-NM"]
[]
[null,{"$f":"IF($Y$44=TRUE,\" \",\"Left Bank\")","v":"Left Bank"},null,null,null,"Right Bank",null,null,null,"3 =","Evaluation Area has a nutrient management plan and it is being applied OR the evaluation area does not need a plan because no fertilizer, commericial nutrients, or agriculturally generated manure are being applied."]
[]
[null,null,"Present",null,null,null,"Present",null,null,"PC"]
[]
[null,null,"No Action",null,null,null,"No Action"]
[]
[null,null,"Planned A",null,null,null,"Planned A"]
[]
[null,null,"Planned B",null,null,null,"Planned B",null,null,"1 =","No nutrient management plan is in place."]
[]
[null,"Integrated Pest Management",null,null,null,null,null,null,null,null,null,null,null,null,null,null,null,null,null,null,null,null,null,null,"RIPARIAN-IPM"]
[]
[null,{"$f":"IF($Y$44=TRUE,\" \",\"Left Bank\")","v":"Left Bank"},null,null,null,"Right Bank",null,null,null,"3 =","Evaluation Area has a integrated pest management plan and it is being applied."]
[null,null,null,null,null,null,null,null,null,"PC"]
[null,null,"Present",null,null,null,"Present"]
[]
[null,null,"No Action",null,null,null,"No Action"]
[]
[null,null,"Planned A",null,null,null,"Planned A",null,null,"1 =","No pest management plan is in place."]
[]
[null,null,"Planned B",null,null,null,"Planned B"]
[]
[null,"Weed Control",null,null,null,null,null,null,null,null,null,null,null,null,null,null,null,null,null,null,null,null,null,null,"RIPARIAN-WC"]
[]
[null,{"$f":"IF($Y$44=TRUE,\" \",\"Left Bank\")","v":"Left Bank"},null,null,null,"Right Bank"]
[]
[null,null,"Present",null,null,null,"Present",null,null,"3 =","Evaluation Area has a weed control plan and it is being applied."]
[null,null,null,null,null,null,null,null,null,"PC"]
[null,null,"No Action",null,null,null,"No Action"]
[]
[null,null,"Planned A",null,null,null,"Planned A"]
[]
[null,null,"Planned B",null,null,null,"Planned B",null,null,"1 =","No herbaceous weed control plan is in place."]
[]
[null,null,"Evaluation Summary",null,null,null,null,null,null,null,null,null,null,null,null,null,null,null,null,null,null,"Back to Top"]
[]
[null,null,{"$f":"IF($Y$44=TRUE,\"Riparian Area Summary\",\"Riparian Area Summary (LB)\")","v":"Riparian Area Summary (LB)"},null,null,null,null,null,null,"Present",null,null,"No Action",null,null,"Planned A",null,null,"Planned B"]
[null,null,"Riparian Quantity (Width)",null,null,null,null,null,null,{"$f":"IF(B32=\" \",\" \",B32/10)","v":" "},null,null,{"$f":"IF(B35=\" \",\" \",B35/10)","v":" "},null,null,{"$f":"IF(B38=\" \",\" \",B38/10)","v":" "},null,null,{"$f":"IF(B41=\" \",\" \",B41/10)","v":" "},null,null,"Present"]
[null,null,"Riparian Quantity (Length)",null,null,null,null,null,null,{"$f":"IF(B78=\" \",\" \",B78/10)","v":" "},null,null,{"$f":"IF(B80=\" \",\" \",B80/10)","v":" "},null,null,{"$f":"IF(B83=\" \",\" \",B83/10)","v":" "},null,null,{"$f":"IF(B85=\" \",\" \",B85/10)","v":" "},null,null,"<.7"]
[null,null,{"$f":"IF($Y$32=TRUE,\" \",\"Site Index Height\")","v":"Site Index Height"},null,null,null,null,null,null,{"$f":"IF(OR($Y$32=TRUE,(ISBLANK($B$106))),\" \",$B$106/5)","v":" "},null,null,{"$f":"IF(OR($Y$32=TRUE,(ISBLANK($B$108))),\" \",$B$108/5)","v":" "},null,null,{"$f":"IF(OR($Y$32=TRUE,(ISBLANK($B$110))),\" \",$B$110/5)","v":" "},null,null,{"$f":"IF(OR($Y$32=TRUE,(ISBLANK($B$112))),\" \",$B$112/5)","v":" "},null,null,"No Action"]
[null,null,"Bank Stability",null,null,null,null,null,null,{"$f":"IF(ISBLANK($B$126),\" \",$B$126/5)","v":" "},null,null,{"$f":"IF(ISBLANK($B$128),\" \",$B$128/5)","v":" "},null,null,{"$f":"IF(ISBLANK($B$132),\" \",$B$132/5)","v":" "},null,null,{"$f":"IF(ISBLANK($B$134),\" \",$B$134/5)","v":" "},null,null,"<.7"]
[null,null,"Grazing System",null,null,null,null,null,null,{"$f":"IF(ISBLANK($B$144),\" \",$B$144/6)","v":" "},null,null,{"$f":"IF(ISBLANK($B$146),\" \",$B$146/6)","v":" "},null,null,{"$f":"IF(ISBLANK($B$148),\" \",$B$148/6)","v":" "},null,null,{"$f":"IF(ISBLANK($B$150),\" \",$B$150/6)","v":" "},null,null,"Planned A"]
[null,null,"Plant Community",null,null,null,null,null,null,{"$f":"IF(ISBLANK($B$157),\" \",$B$157/4)","v":" "},null,null,{"$f":"IF(ISBLANK($B$159),\" \",$B$159/4)","v":" "},null,null,{"$f":"IF(ISBLANK($B$161),\" \",$B$161/4)","v":" "},null,null,{"$f":"IF(ISBLANK($B$163),\" \",$B$163/4)","v":" "},null,null,"<.7"]
[null,null,{"$f":"IF($Y$32=TRUE,\" \",\"Snags\")","v":"Snags"},null,null,null,null,null,null,{"$f":"IF(OR($Y$32=TRUE,(ISBLANK($B$173))),\" \",$B$173/8)","v":" "},null,null,{"$f":"IF(OR($Y$32=TRUE,(ISBLANK($B$175))),\" \",$B$175/8)","v":" "},null,null,{"$f":"IF(OR($Y$32=TRUE,(ISBLANK($B$177))),\" \",$B$177/8)","v":" "},null,null,{"$f":"IF(OR($Y$32=TRUE,(ISBLANK($B$179))),\" \",$B$179/8)","v":" "},null,null,"Planned B"]
[null,null,{"$f":"IF($Y$32=TRUE,\" \",\"Downed Woody Material\")","v":"Downed Woody Material"},null,null,null,null,null,null,{"$f":"IF(OR($Y$32=TRUE,(ISBLANK($B$189))),\" \",$B$189/4)","v":" "},null,null,{"$f":"IF(OR($Y$32=TRUE,(ISBLANK($B$191))),\" \",$B$191/4)","v":" "},null,null,{"$f":"IF(OR($Y$32=TRUE,(ISBLANK($B$193))),\" \",$B$193/4)","v":" "},null,null,{"$f":"IF(OR($Y$32=TRUE,(ISBLANK($B$195))),\" \",$B$195/4)","v":" "},null,null,"<.7"]
[null,null,"Habitat Fragmentation",null,null,null,null,null,null,{"$f":"IF($B$223=\" \",\" \",$B$223/10)","v":" "},null,null,{"$f":"IF($B$225=\" \",\" \",$B$225/10)","v":" "},null,null,{"$f":"IF($B$227=\" \",\" \",$B$227/10)","v":" "},null,null,{"$f":"IF($B$229=\" \",\" \",$B$229/10)","v":" "}]
[null,null,"Nutrient Management",null,null,null,null,null,null,{"$f":"IF(ISBLANK($B$280),\" \",$B$280/3)","v":" "},null,null,{"$f":"IF(ISBLANK($B$282),\" \",$B$282/3)","v":" "},null,null,{"$f":"IF(ISBLANK($B$284),\" \",$B$284/3)","v":" "},null,null,{"$f":"IF(ISBLANK($B$286),\" \",$B$286/3)","v":" "}]
[null,null,"Integrated Pest Management",null,null,null,null,null,null,{"$f":"IF(ISBLANK($B$292),\" \",$B$292/3)","v":" "},null,null,{"$f":"IF(ISBLANK($B$294),\" \",$B$294/3)","v":" "},null,null,{"$f":"IF(ISBLANK($B$296),\" \",$B$296/3)","v":" "},null,null,{"$f":"IF(ISBLANK($B$298),\" \",$B$298/3)","v":" "}]
[null,null,"Weed Control",null,null,null,null,null,null,{"$f":"IF(ISBLANK($B$304),\" \",$B$304/3)","v":" "},null,null,{"$f":"IF(ISBLANK($B$306),\" \",$B$306/3)","v":" "},null,null,{"$f":"IF(ISBLANK($B$308),\" \",$B$308/3)","v":" "},null,null,{"$f":"IF(ISBLANK($B$310),\" \",$B$310/3)","v":" "}]
[null,null,"Acres:",null,null,{"$f":"IF(ISBLANK($X$16),\" \",$X$16)","v":" "},{"$f":"IF(ISBLANK($P$16),\" \",$P$16)","v":" "},{"$f":"IF(ISBLANK($P$16),\" \",$P$16)","v":" "},{"$f":"IF(ISBLANK($P$16),\" \",$P$16)","v":" "},{"$f":"IF(J328=0,K328,J328)","v":" "},null,null,{"$f":"IF(M328=0,N328,M328)","v":" "},null,null,{"$f":"IF(P328=0,Q328,P328)","v":" "},null,null,{"$f":"IF(S328=0,T328,S328)","v":" "}]
[null,null,null,null,null,null,null,null,null,{"$f":"IF(AND(J315=\" \",J316=\" \",J317=\" \",J318=\" \",J319=\" \",J320=\" \",J321=\" \",J322=\" \",J323=\" \",J324=\" \",J325=\" \",J326=\" \"),\" \",DMIN($J314:$J326,\"Present\",V315:V316))","v":" "},{"$f":"IF(J315=\" \",\" \",AVERAGE(J315:J326))","v":" "},null,{"$f":"IF(AND(M315=\" \",M316=\" \",M317=\" \",M318=\" \",M319=\" \",M320=\" \",M321=\" \",M322=\" \",M323=\" \",M324=\" \",M325=\" \",M326=\" \"),\" \",DMIN($M314:$M326,\"No Action\",V317:V318))","v":" "},{"$f":"IF(M315=\" \",\" \",AVERAGE(M315:M326))","v":" "},null,{"$f":"IF(AND(P315=\" \",P316=\" \",P317=\" \",P318=\" \",P319=\" \",P320=\" \",P321=\" \",P322=\" \",P323=\" \",P324=\" \",P325=\" \",P326=\" \"),\" \",DMIN($P314:$P326,\"Planned A\",V319:V320))","v":" "},{"$f":"IF(P315=\" \",\" \",AVERAGE(P315:P326))","v":" "},null,{"$f":"IF(AND(S315=\" \",S316=\" \",S317=\" \",S318=\" \",S319=\" \",S320=\" \",S321=\" \",S322=\" \",S323=\" \",S324=\" \",S325=\" \",S326=\" \"),\" \",DMIN($S314:$S326,\"Planned B\",V321:V322))","v":" "},{"$f":"IF(S315=\" \",\" \",AVERAGE(S315:S326))","v":" "}]
[]
[null,null,"Riparian Area Summary (RB)",null,null,null,null,null,null,"Present",null,null,"No Action",null,null,"Planned A",null,null,"Planned B"]
[null,null,"Riparian Quantity (Width)",null,null,null,null,null,null,{"$f":"IF(F32=\" \",\" \",F32/10)","v":" "},null,null,{"$f":"IF(F35=\" \",\" \",F35/10)","v":" "},null,null,{"$f":"IF(F38=\" \",\" \",F38/10)","v":" "},null,null,{"$f":"IF(F41=\" \",\" \",F41/10)","v":" "},null,null,"Present"]
[null,null,"Riparian Quantity (Length)",null,null,null,null,null,null,{"$f":"IF(F78=\" \",\" \",F78/10)","v":" "},null,null,{"$f":"IF(F80=\" \",\" \",F80/10)","v":" "},null,null,{"$f":"IF(F83=\" \",\" \",F83/10)","v":" "},null,null,{"$f":"IF(F85=\" \",\" \",F85/10)","v":" "},null,null,"<.7"]
[null,null,{"$f":"IF($Y$32=TRUE,\" \",\"Site Index Height\")","v":"Site Index Height"},null,null,null,null,null,null,{"$f":"IF(OR($Y$32=TRUE,(ISBLANK($F$106))),\" \",$F$106/5)","v":" "},null,null,{"$f":"IF(OR($Y$32=TRUE,(ISBLANK($F$108))),\" \",$F$108/5)","v":" "},null,null,{"$f":"IF(OR($Y$32=TRUE,(ISBLANK($F$110))),\" \",$F$110/5)","v":" "},null,null,{"$f":"IF(OR($Y$32=TRUE,(ISBLANK($F$112))),\" \",$F$112/5)","v":" "},null,null,"No Action"]
[null,null,"Bank Stability",null,null,null,null,null,null,{"$f":"IF(ISBLANK($F$126),\" \",$F$126/5)","v":" "},null,null,{"$f":"IF(ISBLANK($F$128),\" \",$F$128/5)","v":" "},null,null,{"$f":"IF(ISBLANK($F$132),\" \",$F$132/5)","v":" "},null,null,{"$f":"IF(ISBLANK($F$134),\" \",$F$134/5)","v":" "},null,null,"<.7"]
[null,null,"Grazing System",null,null,null,null,null,null,{"$f":"IF(ISBLANK($F$144),\" \",$F$144/6)","v":" "},null,null,{"$f":"IF(ISBLANK($F$146),\" \",$F$146/6)","v":" "},null,null,{"$f":"IF(ISBLANK($F$148),\" \",$F$148/6)","v":" "},null,null,{"$f":"IF(ISBLANK($F$150),\" \",$F$150/6)","v":" "},null,null,"Planned A"]
[null,null,"Plant Community",null,null,null,null,null,null,{"$f":"IF(ISBLANK($F$157),\" \",$F$157/4)","v":" "},null,null,{"$f":"IF(ISBLANK($F$159),\" \",$F$159/4)","v":" "},null,null,{"$f":"IF(ISBLANK($F$161),\" \",$F$161/4)","v":" "},null,null,{"$f":"IF(ISBLANK($F$163),\" \",$F$163/4)","v":" "},null,null,"<.7"]
[null,null,{"$f":"IF($Y$32=TRUE,\" \",\"Snags\")","v":"Snags"},null,null,null,null,null,null,{"$f":"IF(OR($Y$32=TRUE,(ISBLANK($F$173))),\" \",$F$173/8)","v":" "},null,null,{"$f":"IF(OR($Y$32=TRUE,(ISBLANK($F$175))),\" \",$F$175/8)","v":" "},null,null,{"$f":"IF(OR($Y$32=TRUE,(ISBLANK($F$177))),\" \",$F$177/8)","v":" "},null,null,{"$f":"IF(OR($Y$32=TRUE,(ISBLANK($F$179))),\" \",$F$179/8)","v":" "},null,null,"Planned B"]
[null,null,{"$f":"IF($Y$32=TRUE,\" \",\"Downed Woody Material\")","v":"Downed Woody Material"},null,null,null,null,null,null,{"$f":"IF(OR($Y$32=TRUE,(ISBLANK($F$189))),\" \",$F$189/4)","v":" "},null,null,{"$f":"IF(OR($Y$32=TRUE,(ISBLANK($F$191))),\" \",$F$191/4)","v":" "},null,null,{"$f":"IF(OR($Y$32=TRUE,(ISBLANK($F$193))),\" \",$F$193/4)","v":" "},null,null,{"$f":"IF(OR($Y$32=TRUE,(ISBLANK($F$195))),\" \",$F$195/4)","v":" "},null,null,"<.7"]
[null,null,"Habitat Fragmentation",null,null,null,null,null,null,{"$f":"IF($B$248=\" \",\" \",$B$248/10)","v":" "},null,null,{"$f":"IF($B$250=\" \",\" \",$B$250/10)","v":" "},null,null,{"$f":"IF($B$252=\" \",\" \",$B$252/10)","v":" "},null,null,{"$f":"IF($B$254=\" \",\" \",$B$254/10)","v":" "}]
[null,null,"Nutrient Management",null,null,null,null,null,null,{"$f":"IF(ISBLANK($F$280),\" \",$F$280/3)","v":" "},null,null,{"$f":"IF(ISBLANK($F$282),\" \",$F$282/3)","v":" "},null,null,{"$f":"IF(ISBLANK($F$284),\" \",$F$284/3)","v":" "},null,null,{"$f":"IF(ISBLANK($F$286),\" \",$F$286/3)","v":" "}]
[null,null,"Integrated Pest Management",null,null,null,null,null,null,{"$f":"IF(ISBLANK($F$292),\" \",$F$292/3)","v":" "},null,null,{"$f":"IF(ISBLANK($F$294),\" \",$F$294/3)","v":" "},null,null,{"$f":"IF(ISBLANK($F$296),\" \",$F$296/3)","v":" "},null,null,{"$f":"IF(ISBLANK($F$298),\" \",$F$298/3)","v":" "}]
[null,null,"Weed Control",null,null,null,null,null,null,{"$f":"IF(ISBLANK($F$304),\" \",$F$304/3)","v":" "},null,null,{"$f":"IF(ISBLANK($F$306),\" \",$F$306/3)","v":" "},null,null,{"$f":"IF(ISBLANK($F$308),\" \",$F$308/3)","v":" "},null,null,{"$f":"IF(ISBLANK($F$310),\" \",$F$310/3)","v":" "}]
[null,null,"Acres:",null,null,{"$f":"IF(ISBLANK($X$18),\" \",$X$18)","v":" "},null,null,null,{"$f":"IF(J344=0,K344,J344)","v":" "},null,null,{"$f":"IF(M344=0,N344,M344)","v":" "},null,null,{"$f":"IF(P344=0,Q344,P344)","v":" "},null,null,{"$f":"IF(S344=0,T344,S344)","v":" "}]
[null,null,null,null,null,null,null,null,null,{"$f":"IF(AND(J331=\" \",J332=\" \",J333=\" \",J334=\" \",J335=\" \",J336=\" \",J337=\" \",J338=\" \",J339=\" \",J340=\" \",J341=\" \",J342=\" \"),\" \",DMIN($J330:$J342,\"Present\",V331:V332))","v":" "},{"$f":"IF(J331=\" \",\" \",AVERAGE(J331:J342))","v":" "},null,{"$f":"IF(AND(M331=\" \",M332=\" \",M333=\" \",M334=\" \",M335=\" \",M336=\" \",M337=\" \",M338=\" \",M339=\" \",M340=\" \",M341=\" \",M342=\" \"),\" \",DMIN($M330:$M342,\"No Action\",V333:V334))","v":" "},{"$f":"IF(M331=\" \",\" \",AVERAGE(M331:M342))","v":" "},null,{"$f":"IF(AND(P331=\" \",P332=\" \",P333=\" \",P334=\" \",P335=\" \",P336=\" \",P337=\" \",P338=\" \",P339=\" \",P340=\" \",P341=\" \",P342=\" \"),\" \",DMIN($P330:$P342,\"Planned A\",V335:V336))","v":" "},{"$f":"IF(P331=\" \",\" \",AVERAGE(P331:P342))","v":" "},null,{"$f":"IF(AND(S331=\" \",S332=\" \",S333=\" \",S334=\" \",S335=\" \",S336=\" \",S337=\" \",S338=\" \",S339=\" \",S340=\" \",S341=\" \",S342=\" \"),\" \",DMIN($S330:$S342,\"Planned B\",V337:V338))","v":" "},{"$f":"IF(S331=\" \",\" \",AVERAGE(S331:S342))","v":" "}]
[]
[]
[null,null,"Evaluation Summary",null,null,null,null,null,null,null,null,null,null,null,null,null,null,null,null,null,null,"Back to Top"]
[]
[null,null,"Notes:"]
[]
[]
[]
[]
[]
[]
[]
[]
[]
[]
[]
[]
[]
[]
[]
[]
[]
[null,null,null,null,null,null,null,null,null,null,null,null,null,null,null,null,null,null,null,null,null,"Back to Top"]

{"sheet":"Riparian Area Narrative","index":11,"n_rows":401,"n_cols":25,"rows_kept":401,"cut":false,"hidden":false,"merged":[[169,17,169,18],[170,17,170,18],[171,17,171,18],[172,17,172,18],[173,17,173,18],[174,17,174,18],[165,1,168,7],[168,19,168,20],[169,19,169,20],[170,19,170,20],[171,19,171,20],[172,19,172,20],[181,19,181,20],[180,19,180,20],[179,19,179,20],[178,19,178,20],[177,19,177,20],[176,19,176,20],[175,19,175,20],[174,19,174,20],[173,19,173,20],[164,9,164,10],[164,11,164,12],[165,9,165,10],[165,11,165,12],[166,9,166,10],[166,11,166,12],[167,9,167,10],[167,11,167,12],[168,17,168,18],[165,13,165,14],[166,13,166,14],[69,5,69,14],[74,7,75,18],[83,5,84,20],[98,5,100,22],[102,5,107,22],[15,6,17,12],[18,6,18,12],[19,6,19,12],[20,6,20,12],[24,5,25,22],[27,5,28,22],[30,3,30,10],[34,5,35,20],[43,5,43,14],[47,7,48,18],[56,3,56,10],[60,5,61,20],[370,1,377,24],[355,1,360,24],[348,1,353,24],[379,1,379,4],[381,1,382,24],[384,1,386,24],[400,20,401,23],[276,1,276,7],[299,17,299,20],[325,1,327,24],[329,1,333,24],[296,20,297,23],[335,1,335,8],[337,1,341,24],[343,1,345,24],[363,1,367,24],[306,1,314,24],[301,1,304,24],[316,1,316,6],[318,1,323,24],[290,2,293,24],[299,21,299,24],[299,1,299,6],[294,1,295,24],[297,1,297,12],[195,21,196,24],[136,21,137,24],[154,11,154,12],[155,11,155,12],[152,13,152,14],[152,15,152,16],[152,21,152,22],[152,23,152,24],[161,5,161,6],[162,5,162,6],[163,5,163,6],[153,7,153,8],[154,7,154,8],[155,7,155,8],[156,7,156,8],[157,7,157,8],[158,7,158,8],[159,7,159,8],[160,7,160,8],[161,7,161,8],[162,7,162,8],[163,7,163,8],[156,5,156,6],[9,1,14,24],[252,1,253,24],[256,1,261,24],[148,1,151,4],[148,5,151,8],[141,9,147,12],[141,17,147,20],[148,9,151,12],[148,13,151,16],[121,1,121,24],[125,1,129,24],[141,1,147,4],[141,5,147,8],[141,21,147,24],[141,13,147,16],[148,21,151,24],[153,5,153,6],[154,5,154,6],[155,5,155,6],[152,5,152,6],[152,7,152,8],[152,11,152,12],[153,11,153,12],[130,1,135,24],[157,5,157,6],[158,5,158,6],[159,5,159,6],[160,5,160,6],[161,11,161,12],[162,11,162,12],[163,11,163,12],[152,9,152,10],[153,9,153,10],[154,9,154,10],[155,9,155,10],[156,9,156,10],[157,9,157,10],[158,9,158,10],[159,9,159,10],[160,9,160,10],[161,9,161,10],[162,9,162,10],[163,9,163,10],[156,11,156,12],[157,11,157,12],[158,11,158,12],[159,11,159,12],[160,11,160,12],[153,13,153,14],[154,13,154,14],[155,13,155,14],[156,13,156,14],[154,17,154,18],[154,19,154,20],[155,17,155,18],[159,19,159,20],[160,17,160,18],[160,19,160,20],[155,19,155,20],[156,17,156,18],[156,19,156,20],[157,17,157,18],[157,19,157,20],[164,15,164,16],[165,15,165,16],[166,15,166,16],[167,15,167,16],[162,13,162,14],[163,13,163,14],[164,13,164,14],[157,13,157,14],[158,13,158,14],[159,13,159,14],[160,13,160,14],[161,13,161,14],[173,23,173,24],[175,23,175,24],[176,23,176,24],[178,23,178,24],[179,23,179,24],[180,23,180,24],[181,23,181,24],[168,23,168,24],[170,23,170,24],[171,23,171,24],[172,23,172,24],[162,23,162,24],[163,23,163,24],[164,23,164,24],[153,21,153,22],[154,21,154,22],[155,21,155,22],[148,17,151,20],[152,17,152,18],[152,19,152,20],[153,17,153,18],[153,19,153,20],[160,23,160,24],[156,23,156,24],[153,23,153,24],[154,23,154,24],[155,23,155,24],[157,23,157,24],[158,23,158,24],[159,23,159,24],[161,23,161,24],[156,21,156,22],[157,21,157,22],[158,21,158,22],[159,21,159,22],[183,9,183,10],[183,11,183,12],[184,9,184,10],[184,11,184,12],[185,9,185,10],[185,11,185,12],[1,2,2,10],[1,11,3,23],[3,1,4,10],[5,1,6,10],[7,1,7,4],[123,1,123,8],[140,1,140,24],[164,17,164,18],[164,19,164,20],[161,17,161,18],[161,19,161,20],[162,17,162,18],[162,19,162,20],[163,17,163,18],[163,19,163,20],[158,17,158,18],[158,19,158,20],[159,17,159,18],[272,1,274,24],[278,1,289,24],[233,1,237,24],[238,1,239,24],[201,1,207,24],[243,1,249,24],[241,1,241,5],[213,1,216,24],[219,1,230,24],[217,1,217,4],[263,1,264,24],[266,1,268,24],[270,1,270,24],[254,1,254,10],[231,1,231,5],[199,1,199,5],[189,9,189,10],[189,11,189,12],[190,9,190,10],[190,11,190,12],[189,23,189,24],[190,23,190,24],[190,21,190,22],[185,21,185,22],[186,21,186,22],[187,21,187,22],[188,21,188,22],[189,21,189,22],[186,9,186,10],[186,11,186,12],[187,9,187,10],[187,11,187,12],[188,9,188,10],[188,11,188,12],[183,21,183,22],[184,21,184,22],[165,23,165,24],[187,23,187,24],[188,23,188,24],[186,23,186,24],[183,23,183,24],[182,23,182,24],[184,23,184,24],[185,23,185,24],[174,23,174,24],[169,23,169,24],[175,21,175,22],[176,21,176,22],[177,21,177,22],[178,21,178,22],[179,21,179,22],[170,21,170,22],[171,21,171,22],[172,21,172,22],[173,21,173,22],[166,23,166,24],[167,23,167,24],[177,23,177,24],[182,21,182,22],[182,9,182,10],[182,11,182,12],[167,17,167,18],[167,19,167,20],[165,17,165,18],[165,19,165,20],[166,17,166,18],[166,19,166,20],[178,9,181,12],[174,21,174,22],[165,21,165,22],[166,21,166,22],[167,21,167,22],[168,21,168,22],[169,21,169,22],[167,13,167,14],[175,17,175,18],[176,17,176,18],[177,17,177,18],[178,17,178,18],[179,17,179,18],[180,17,180,18],[181,17,181,18],[111,5,115,22],[117,5,120,22],[15,13,17,19],[18,13,18,19],[19,13,19,19],[20,13,20,19],[180,21,180,22],[181,21,181,22],[160,21,160,22],[161,21,161,22],[162,21,162,22],[163,21,163,22],[164,21,164,22],[153,15,153,16],[154,15,154,16],[155,15,155,16],[157,15,157,16],[156,15,156,16],[158,15,158,16],[159,15,159,16],[160,15,160,16],[161,15,161,16],[162,15,162,16],[163,15,163,16]]}
[]
[null,null,"NRCS",null,null,null,null,null,null,null,null,"Biology Technical Note # 14 Wildlife Habitat Evaluation Guide"]
[]
[null,"Natural Resources Conservation Service"]
[null,null,null,null,null,null,null,null,null,null,null,"Riparian Area Narrative"]
[null,"WASHINGTON",null,null,null,null,null,null,null,null,null,"(Planning Criteria = 70%)",null,null,null,null,null,null,null,null,null,null,null,null,"PASSWORD:RIPARIAN N"]
[]
[null,"Table of Contents",null,null,null,null,null,null,null,null,null,null,null,null,null,null,null,null,null,null,null,null,null,null,"Revised March 2013"]
[]
[null,"Riparian forest habitat includes the area beginning at the ordinary high water line and extends to that portion of the terrestrial landscape that directly influences the aquatic ecosystem by providing shade, fine and large woody material, nutrients, organic and inorganic debris and terrestrial insects.  This is also important habitat for wildlife.  The riparian forest habitat area encompasses the entire extent of vegetation adapted to wet conditions as well as adjacent upland forest communities that directly influence the stream or wetland system."]
[]
[]
[]
[]
[]
[null,null,null,null,null,null,"Washington Department of Natural Resources Stream Classifications",null,null,null,null,null,null,"Channel Type"]
[]
[]
[null,null,null,null,null,null,"N, Np,Ns",null,null,null,null,null,null,"Ditches - Irrigation Ditches"]
[null,null,null,null,null,null,"F",null,null,null,null,null,null,"Small and Medium Streams"]
[null,null,null,null,null,null,"F or S",null,null,null,null,null,null,"Large Streams or Rivers"]
[]
[null,null,"R","What is a Ditch or Irrigation Ditch?"]
[]
[null,null,null,null,"O","These are channels for converying water that NEVER were streams historically; these were constructed solely for the purpose of moving water to or from a farm."]
[]
[]
[null,null,null,null,"O","Ditches can have seasonal fish use during winter months when fish move into channel reaches and flooded fields where flow rates are reduced or stagnate."]
[]
[]
[null,null,"R","What is a Fishless Stream?"]
[]
[null,null,null,null,"O","A Fishless Stream is a naturally occuring channel which has no fish living in it."]
[]
[null,null,null,null,"O","Fishless Streams are identified and mapped by the Washington Department of Fish & Wildlife (WDFW) via two programs:"]
[]
[]
[null,null,null,null,null,null,"n","Priority Habitats & Species Program (PHS)"]
[]
[null,null,null,null,null,null,"n","SalmonScape Program"]
[]
[null,null,null,null,"O","These maps can be found online at:"]
[]
[null,null,null,null,null,"http://wdfw.wa.gov/mapping/salmonscape/"]
[]
[null,null,null,null,"O","Who can determine if a stream is fishless?"]
[]
[null,null,null,null,null,null,"n","Only a biologist who works for these agencies can make a Fishless Stream determination:"]
[]
[]
[null,null,null,null,null,null,null,"o","Washington Department of Fish & Wildlife (WDFW)"]
[]
[null,null,null,null,null,null,null,"o","Natural Resources Conservation Service (NRCS)"]
[]
[null,null,null,null,null,null,null,"o","Tribes"]
[]
[null,null,"R","What is a Fish Bearing Stream?"]
[]
[null,null,null,null,"O","A Fish Bearing Stream is a naturally occuring channel which has fish living in it."]
[]
[null,null,null,null,"O","Fish Bearing Streams are identified and mapped by the Washington Department of Fish & Wildlife (WDFW) via two programs:"]
[]
[]
[null,null,null,null,null,null,"n","Priority Habitats & Species Program (PHS)"]
[]
[null,null,null,null,null,null,"n","SalmonScape Program"]
[]
[null,null,null,null,null,"These maps can be found online at:"]
[]
[null,null,null,null,null,"http://wdfw.wa.gov/mapping/salmonscape/"]
[]
[]
[null,null,null,null,"O","Who can determine if a stream is fish bearing?"]
[]
[null,null,null,null,null,null,"n","Only a biologist who works for these agencies can make a Fishless Stream determination:"]
[]
[]
[null,null,null,null,null,null,null,"o","Washington Department of Fish & Wildlife (WDFW)"]
[]
[null,null,null,null,null,null,null,"o","Natural Resources Conservation Service (NRCS)"]
[]
[null,null,null,null,null,null,null,"o","Tribes"]
[]
[null,null,null,null,"O","Often, Fish Bearing Streams have been or are modified.  These are some of the ways modifications have occurred:"]
[]
[]
[null,null,null,null,null,null,"n","Occasionally ditched"]
[]
[null,null,null,null,null,null,"n","Moved and/or straightened historically"]
[]
[null,null,null,null,null,null,"n","Occasionally cleaned and/or dredged"]
[]
[null,null,null,null,null,null,"n","Removal of woody debris and/or trees"]
[]
[null,null,null,null,null,null,"n","Removal of gravels, silts and other substrates"]
[]
[null,null,"R","What is a stream that is entrenched and not connected to its floodplain?"]
[]
[null,null,null,null,"O","This is when a stream's bed or bottom has downcut or degraded (entrenched) and the stream no longer flows out of its banks and on to the historical floodplain during normal bankfull events (not connected)."]
[]
[]
[]
[null,null,null,null,"O","When streams have too much substrate for the amount of water within the stream, substrates are not moved through the system and begin to accumulate. When this happens, multiple channels may form and/or the channel bottom rises.  This can cause severe flooding in the floodplain because the channel is now higher. This channel aggradation also prevents the stream from properly connecting with the floodplain."]
[]
[]
[]
[]
[]
[]
[null,null,"R","What is a Wetland, Pond or Small Lake?"]
[]
[null,null,null,null,"O","A wetland is an area in which the soil is saturated enough with water to support the growth of hydrophytic vegetation (wetland plants).  Wetlands have both scientific and statutary (legal) definitions and wetlands are identifed based on their hydrology (how wet they are and when), soils and the plant communities they support.  Wetlands will also be an average depth of less than 6.5 feet."]
[]
[]
[]
[]
[]
[null,null,null,null,"O","Ponds and Small Lakes are permanent bodies of water with an average depth greater than 6.5 feet.  They will usually be smaller than five acres. They can be natural or man-made, excavated or diked."]
[]
[]
[]
[null,"Left bank and right bank are to be determined by looking downstream."]
[]
[null,"Riparian Forest Width X Length",null,null,null,null,null,null,null,null,null,null,null,null,null,null,null,null,null,null,null,null,null,null,"RIPARIAN-RFQ"]
[]
[null,"The quality of the riparian zone increases with width and structural complexity of the vegetation within it.  A separate streambank analysis for riparian width should occur for both sides of the stream.  This will allow for differences in management activities on either side of the stream or for changes in ownership.  For example: if a property line runs down the center of the stream, then it may be appropriate to only evaluate one side."]
[]
[]
[]
[]
[null,"If there is more than one waterbody present on the planning unit, complete an SVAP for each waterbody.  If there are several constructed ditches/irrigation ditches that are completely the same (i.e., same land unit, same condition for all SVAP elements, such as riparian vegetation, bank condition,  etc.) then they can be combined onto one SVAP form.  Just ensure the notes are clear as to how many separate waterbodies are present and alternatives developed to resolve the resource concerns need to address all of these waterbodies.  "]
[]
[]
[]
[]
[]
[null,null,null,null,null,null,null,null,null,null,null,null,null,null,null,null,null,null,null,null,null,"Back to Top"]
[]
[]
[]
[null,"Riparian Area Width Chart"]
[null,"Channel Type",null,null,null,"Drainage Ditch, Irrigation Ditch or Fishless Channel ",null,null,null,"Small Stream (Less than 2 ft BF** width, gradients 16% or less), Fish Bearing Channel",null,null,null,"Wetlands, Ponds or Lakes",null,null,null,"Med Stream (2-20 ft BF**), Fish Bearing Channel",null,null,null,"Large Stream or River (Greater than 20 ft BF**, gradients less than 4%), Fish Bearing Channel"]
[]
[]
[]
[]
[]
[]
[null,"Planning Criteria Level *",null,null,null,"75% shade at maturity, during the month of lowest flow.***",null,null,null,"50 foot width",null,null,null,"50 foot width",null,null,null,"100 foot width",null,null,null,"150 foot width"]
[]
[]
[]
[null,null,null,null,null,"Percent",null,"Points",null,"Feet",null,"Points",null,"Feet",null,"Points",null,"Feet",null,"Points",null,"Feet",null,"Points"]
[null,null,"PC =",null,null,0,null,0,null,0,null,0,null,0,null,0,null,0,null,0,null,0,null,0]
[null," ",null,null,null,0.15,null,1,null,5,null,1,null,5,null,1,null,5,null,0,null,5,null,0]
[null,null,null,null,null,0.25,null,2,null,10,null,1,null,10,null,1,null,10,null,1,null,10,null,0]
[null," * per side",null,null,null,0.35,null,3,null,15,null,2,null,15,null,2,null,15,null,1,null,15,null,1]
[null,null,null,null,null,0.45,null,4,null,20,null,3,null,20,null,3,null,20,null,1,null,20,null,1]
[null,"** Bankfull Width",null,null,null,0.55000000000000004,null,5,null,25,null,4,null,25,null,4,null,25,null,2,null,25,null,1]
[null,null,null,null,null,0.65,null,6,null,30,null,4,null,30,null,4,null,30,null,2,null,30,null,1]
[null,null,null,null,null,0.75,null,7,null,35,null,5,null,35,null,5,null,35,null,2,null,35,null,2]
[null,null,null,null,null,0.85,null,8,null,40,null,5,null,40,null,5,null,40,null,3,null,40,null,2]
[null,null,null,null,null,0.95,null,9,null,45,null,6,null,45,null,6,null,45,null,3,null,45,null,2]
[null,null,null,null,null,1,null,10,null,50,null,7,null,50,null,7,null,50,null,3,null,50,null,2]
[null,null,null,null,null,null,null,null,null,55,null,8,null,55,null,8,null,55,null,4,null,55,null,2]
[null,"*** Minimum Width is 20 feet for trees and shrubs with an outside grassed field border at least 15 feet wide.",null,null,null,null,null,null,null,60,null,8,null,60,null,8,null,60,null,4,null,60,null,3]
[null,null,null,null,null,null,null,null,null,65,null,9,null,65,null,9,null,65,null,4,null,65,null,3]
[null,null,null,null,null,null,null,null,null,70,null,10,null,70,null,10,null,70,null,5,null,70,null,3]
[null,null,null,null,null,null,null,null,null,null,null,null,null,null,null,null,null,75,null,5,null,75,null,3]
[null,null,null,null,null,null,null,null,null,null,null,null,null,null,null,null,null,80,null,6,null,80,null,4]
[null,null,null,null,null,null,null,null,null,null,null,null,null,null,null,null,null,85,null,6,null,85,null,4]
[null,null,null,null,null,null,null,null,null,null,null,null,null,null,null,null,null,90,null,6,null,90,null,4]
[null,null,null,null,null,null,null,null,null,null,null,null,null,null,null,null,null,95,null,7,null,95,null,4]
[null,null,null,null,null,null,null,null,null,null,null,null,null,null,null,null,null,100,null,7,null,100,null,5]
[null,null,null,null,null,null,null,null,null,null,null,null,null,null,null,null,null,105,null,7,null,105,null,5]
[null,null,null,null,null,null,null,null,null,null,null,null,null,null,null,null,null,110,null,8,null,110,null,5]
[null,null,null,null,null,null,null,null,null,null,null,null,null,null,null,null,null,115,null,8,null,115,null,5]
[null,null,null,null,null,null,null,null,null,null,null,null,null,null,null,null,null,120,null,8,null,120,null,6]
[null,null,null,null,null,null,null,null,null,"150 foot width Continued",null,null,null,null,null,null,null,125,null,9,null,125,null,6]
[null,null,null,null,null,null,null,null,null,null,null,null,null,null,null,null,null,130,null,9,null,130,null,6]
[null,null,null,null,null,null,null,null,null,null,null,null,null,null,null,null,null,135,null,9,null,135,null,6]
[null,null,null,null,null,null,null,null,null,null,null,null,null,null,null,null,null,140,null,10,null,140,null,6]
[null,null,null,null,null,null,null,null,null,"Feet",null,"Points",null,null,null,null,null,null,null,null,null,145,null,6]
[null,null,null,null,null,null,null,null,null,190,null,9,null,null,null,null,null,null,null,null,null,150,null,7]
[null,null,null,null,null,null,null,null,null,195,null,9,null,null,null,null,null,null,null,null,null,155,null,7]
[null,null,null,null,null,null,null,null,null,200,null,9,null,null,null,null,null,null,null,null,null,160,null,7]
[null,null,null,null,null,null,null,null,null,205,null,9,null,null,null,null,null,null,null,null,null,165,null,8]
[null,null,null,null,null,null,null,null,null,210,null,10,null,null,null,null,null,null,null,null,null,170,null,8]
[null,null,null,null,null,null,null,null,null,215,null,10,null,null,null,null,null,null,null,null,null,175,null,8]
[null,null,null,null,null,null,null,null,null,220,null,10,null,null,null,null,null,null,null,null,null,180,null,8]
[null,null,null,null,null,null,null,null,null,">220",null,10,null,null,null,null,null,null,null,null,null,185,null,8]
[]
[]
[]
[]
[null,null,null,null,null,null,null,null,null,null,null,null,null,null,null,null,null,null,null,null,null,"Back to Top"]
[]
[]
[]
[null,"Site Index Height",null,null,null,null,null,null,null,null,null,null,null,null,null,null,null,null,null,null,null,null,null,null,"RIPARIAN-SIH"]
[]
[null,"The presence of trees which can achieve the site index height have the greatest opportunity to provide shade and thermal buffering to the stream, lake or wetland.  Thermal buffering is especially critical to stream habitat during the summer because it provides shade to keep water cool, which increases dissolved oxygen, and limits algal and submerged vegetative growth.  In winter, riparian areas with a coniferous element can also prevent streams from freezing.  Stocking rates of existing vegetation need to meet Riparian Forest Buffer Specification 391 in order to meet the Planning Criteria level for this element."]
[]
[]
[]
[]
[]
[]
[null,"1. Determine soil type of the site."]
[null,"2. Determine site index species and potential height."]
[null,"3. Inventory woody vegetation (shrubs and trees) present on the site and their potential heights."]
[null,"4. Determine if current woody vegetation heights have the potential to reach the height in step #2."]
[]
[null,"If the site will not support site index species as listed in the soil survey, alternative species can be planted which have the potential to reach similar heights. If the soil does not have a site index species, determine the tallest tree (preferably conifer but deciduous OK) that would grow on the soil."]
[]
[]
[]
[null,"Bank Stability",null,null,null,null,null,null,null,null,null,null,null,null,null,null,null,null,null,null,null,null,null,null,"RIPARIAN-BS"]
[]
[null,"Although some natural bank erosion is considered normal in a healthy stream system, excessive bank erosion can cause substantial decreases in aquatic habitat and surface water quality.  For example, streambanks contributing large amounts of fine sediment into a stream can cause damage to spawning habitat on and off site.  In most cases streambank erosion caused by human or livestock activities is detrimental to the stream system.  Examples of activities which can cause streambank erosion beyond natural levels include: unrestricted livestock access, road crossings, logging, and off-road vehicle access.  The following characteristics may indicate natural erosion is occurring on a site: undercut bank armored with woody vegetation (roots), streambank sloughing on outside meanders and constriction points, and banks opposite of large woody debris.  Streambanks stabilized with woody vegetation provide the highest terrestrial and aquatic wildlife habitat values.  Banks stabilized by means other than vegetation still provide vital habitat functions guide as the section of stream or edge of wetland within the Evaluation Area.  Bioengineering projects that include live vegetation will score at a 5."]
[]
[]
[]
[]
[]
[]
[]
[]
[]
[]
[]
[null,"Grazing System ",null,null,null,null,null,null,null,null,null,null,null,null,null,null,null,null,null,null,null,null,null,null,"RIPARIAN-GS"]
[]
[null,"If improperly managed, livestock presence in aquatic habitats can have negative impacts on all habitat elements.  These impacts can include, but are not limited to decreases in surface water quality, reduction in plant cover and species diversity, changes in hydrology, and soil erosion.  To ensure the long term habitat sustainability, livestock should be excluded from aquatic habitats and their associated buffer areas."]
[]
[]
[]
[]
[null,"When managed properly, livestock can be used as a management tool in areas where invasive vegetation will outcompete native species."]
[]
[]
[null,"Plant Community",null,null,null,null,null,null,null,null,null,null,null,null,null,null,null,null,null,null,null,null,null,null,"RIPARIAN-PC"]
[]
[null,"A diverse mixture of tree species, heights, and diameters is more valuable to wildlife than uniform stands. In natural functioning riparian ecosystems, insects, disease, flooding, fire, erosion, and windthrow damage all contribute to creating a mixed stand. Where sufficient hydrology exists, natural riparian communities contain several species of trees, shrubs, and herbaceous vegetation. Riparian areas should have multiple canopy layers which will provide varied habitat niches for many species of wildlife. An exception to multiple canopy layers is ponderosa pine forests where understory growth can be highly variable. "]
[]
[]
[]
[]
[]
[]
[null,"Snags",null,null,null,null,null,null,null,null,null,null,null,null,null,null,null,null,null,null,null,null,null,null,"RIPARIAN-SN"]
[]
[null,"For more information on snags such as stages etc. Go the the snag section in Upland Woodlands Narrative."]
[]
[null,"Snags Upland Woodlands Narrative"]
[]
[null,"Snags are utilized for their associated foraging, nesting, roosting, and perching values.  Snags which have loosened bark provide nesting and forage for a large number of species because of decayed heartwood.  To mimic natural riparian conditions, snags of varying tree species, ages and decay stages should be encouraged.  Snags can be created from killing live trees using various techniques including herbicide treatments, topping, girdling, high-cut and inoculation with fungal rots*. Snags also play a key role in large woody debris recruitment into surface water.  "]
[]
[]
[]
[]
[]
[]
[null,"*These techniques have varied costs, success rates, and risk to human and forest health. Careful evaluation of these factors should be preformed before selecting a technique."]
[]
[]
[null,"If woody vegetation is planned on a site that is currently without, evaluate future snag density based on the potential for these trees to naturally become snags. A landowner can meet Planning Criteria for snags by planting trees which have the potential to meet the Planning Criteria size."]
[]
[]
[]
[null,"Bird boxes are not a substitute for long term snag production. "]
[]
[null,"When evaluating this element, count all snags which are within the riparian area as defined in the riparian width question. For example, if the landowner currently has a 5 foot riparian buffer and they need to increase the buffer to 35 feet to meet Planning Criteria, evaluate all snags within 35 feet of the waterbody."]
[]
[]
[]
[null,"Downed Woody Material",null,null,null,null,null,null,null,null,null,null,null,null,null,null,null,null,null,null,null,null,null,null,"RIPARIAN-DWM"]
[]
[null,"Downed wood enhances wildlife habitat by providing sites for feeding, resting, reproduction, and travel routes. Decomposing wood on the riparian forest floor is a habitat element for birds, small mammals, reptiles, amphibians, and invertebrates. In addition, woody material on the ground provides sites for nitrogen fixation and nutrient cycling, moisture regimes for establishment of seedlings and mycorrhizal fungi growth mediums.  Logs which have begun decomposition but still retain branches and bark are the most beneficial for wildlife.  An additional function for downed wood is its potential to be transported into the stream channel by overland movement from floodwater or by falling directly into the stream to become large woody debris. Large woody debris serves several important instream functions which are discussed in the Instream portion of this Habitat Guide.  If downed woody material is identified as a missing component, consult a wildlife biologist before planning to the Planning Criteria level. Utilization of onsite material may be a conflict with local or state forest harvest regulations."]
[]
[]
[]
[]
[]
[]
[]
[]
[]
[]
[]
[null,"Note:","When determining downed woody material and snag densities utilize a sampling method which closely estimates the actual numbers.  Do not attempt to count all the snags in a 100 acre plot, for example, instead sample five, 1 acre plots, and divide by five to get a per acre estimate."]
[]
[]
[]
[null,"For more information on Downed Wood such as classes etc. Go the the Downed Wood section in Upland Woodlands Narrative."]
[]
[null,null,null,null,null,null,null,null,null,null,null,null,null,null,null,null,null,null,null,null,"Back to Top"]
[null,"Downed Wood Upland Woodlands Narrative"]
[]
[null,"Habitat Fragmentation",null,null,null,null,null,null,null,null,null,null,null,null,null,null,null,"RIPARIAN-HFL",null,null,null,"RIPARIAN-HFR"]
[]
[null,"Habitat fragmentation involves the division of large, contiguous areas of habitat into smaller patches isolated from one another.  While it is obvious that the numbers of a species are likely to decline if its habitat is reduced; fragmentation effects imply that the value of the remaining habitat also is diminished."]
[]
[]
[]
[]
[null,"Three types of fragmentation effects have been distinguished: patch-size effects, edge effects, and isolation effects. Patch-size effects are those that result from differential use or reproductive success associated with habitat patches of different sizes. Some of the patch-size effects may be induced by edge effects—phenomena such as avoidance, pairing success, predation, interspecific competition, prey availability, or brood parasitism by brown-headed cowbirds (Molothrus ater)—that may be different near the edge of a habitat as compared to the interior of a patch. Finally, isolation from similar habitat can influence use of a particular habitat patch because of reduced dispersal opportunities. Each of these factors—patch size, edge effects, and isolation—can affect the occurrence, density, or reproductive success of animals in a habitat patch."]
[]
[]
[]
[]
[]
[]
[]
[]
[]
[null,"Nutrient Management",null,null,null,null,null,null,null,null,null,null,null,null,null,null,null,null,null,null,null,null,null,null,"RIPARIAN-NM"]
[]
[null,"Plant nutrients, which come primarily from chemical fertilizers, manure, and in some cases sewage sludge, are essential for crop production. When applied in proper quantities and at appropriate times, nutrients (especially nitrogen, phosphorus, and potassium) help achieve optimum crop yields. However, improper application of nutrients can cause water quality problems both locally and downstream. Nutrient management is the practice of using nutrients wisely for optimum economic benefit, while minimizing impact on the environment."]
[]
[]
[]
[]
[]
[]
[null,"Water quality problems can occur when nutrients are added to the soil at a time when they could be removed in surface runoff from rainfall or snow melt at rates exceeding that removed by the crop, or if applied at times that they cannot be utilized by the crop."]
[]
[]
[]
[null,"When nitrogen or phosphorus are present in lakes or rivers at a high concentration, a condition called \"eutrophication\" or biological enrichment can occur. High nitrogen levels cause excess algae to grow in response to the enriched nutrient solution and few fish can be found. When the algae die, their decomposition consumes enough dissolved oxygen to suffocate fish and other animal life. Sources of nitrogen contributing to the problem include agricultural runoff, sewage treatment plants, atmospheric nitrogen, and other sources."]
[]
[]
[]
[]
[]
[null,"Integrated Pest Management",null,null,null,null,null,null,null,null,null,null,null,null,null,null,null,null,null,null,null,null,null,null,"RIPARIAN-IPM"]
[]
[null,"Integrated Pest Management (IPM) is an effective and environmentally sensitive approach to pest management that relies on a combination of common-sense practices. IPM programs use current, comprehensive information on the life cycles of pests and their interaction with the environment. This information, in combination with available pest control methods, is used to manage pest damage by the most economical means, and with the least possible hazard to people, property, and the environment."]
[]
[]
[]
[]
[]
[null,"IPM is not a single pest control method but, rather, a series of pest management evaluations, decisions and controls. In practicing IPM, growers who are aware of the potential for pest infestation follow a four-tiered approach. The four steps include:"]
[]
[]
[]
[null,"Set Action Thresholds"]
[null,"Before taking any pest control action, IPM first sets an action threshold, a point at which pest populations or environmental conditions indicate that pest control action must be taken. Sighting a single pest does not always mean control is needed. The level at which pests will either become an economic threat is critical to guide future pest control decisions."]
[]
[]
[]
[]
[]
[null,"Monitor and Identify Pests"]
[null,"Not all insects, weeds, and other living organisms require control. Many organisms are innocuous, and some are even beneficial. IPM programs work to monitor for pests and identify them accurately, so that appropriate control decisions can be made in conjunction with action thresholds. This monitoring and identification removes the possibility that pesticides will be used when they are not really needed or that the wrong kind of pesticide will be used."]
[]
[]
[]
[]
[]
[]
[null,"Prevention"]
[null,"As a first line of pest control, IPM programs work to manage the crop, lawn, or indoor space to prevent pests from becoming a threat. In an agricultural crop, this may mean using cultural methods, such as rotating between different crops, selecting pest-resistant varieties, and planting pest-free rootstock. These control methods can be very effective and cost-efficient and present little to no risk to people or the environment."]
[]
[]
[]
[]
[]
[null,"Control"]
[null,"Once monitoring, identification, and action thresholds indicate that pest control is required, and preventive methods are no longer effective or available, IPM programs then evaluate the proper control method both for effectiveness and risk. Effective, less risky pest controls are chosen first, including highly targeted chemicals, such as pheromones to disrupt pest mating, or mechanical control, such as trapping or weeding. If further monitoring, identifications and action thresholds indicate that less risky controls are not working, then additional pest control methods would be employed, such as targeted spraying of pesticides. Broadcast spraying of non-specific pesticides is a last resort."]
[]
[]
[]
[]
[]
[]
[]
[]
[null," Weed Control",null,null,null,null,null,null,null,null,null,null,null,null,null,null,null,null,null,null,null,null,null,null,"RIPARIAN-WC"]
[]
[null,"Weed control is the eradication, reduction, or manipulation of weed species including invasive, noxious, and prohibited plants and addresses both herbaceous and woody species."]
[]
[]
[null,"Weed control is designed to achieve the desired plant community through the utilization of Integrated Pest Management (IPM) principles. This is accomplished by mechanical, chemical, biological, or a combination of these techniques."]
[]
[]
[]
[null,"Weed control is applied to accomplish one or more of the following:"]
[]
[null,"l Restore native or create desired plant communities"]
[]
[null,"l Manage noxious woody plants"]
[]
[null,"l Enhance accessibility, quantity, and quality of forage"]
[]
[null,"l Maintain or enhance wildlife habitat including habitat for threatened and endangered species"]
[]
[null,"l Protect soils and control erosion"]
[]
[null,"l Reduce fire hazard  ",null,null,null,null,null,null,null,null,null,null,null,null,null,null,null,null,null,null,"Back to Top"]

{"sheet":"Wetland (70%)","index":12,"n_rows":103,"n_cols":19,"rows_kept":103,"cut":false,"hidden":false,"merged":[[102,13,102,15],[84,1,99,15],[78,3,78,4],[78,6,78,7],[78,8,78,9],[78,10,78,11],[78,12,78,13],[77,6,77,7],[77,8,77,9],[77,10,77,11],[77,12,77,13],[75,6,75,7],[75,8,75,9],[75,10,75,11],[75,12,75,13],[76,6,76,7],[76,8,76,9],[76,10,76,11],[76,12,76,13],[74,2,74,5],[74,6,74,7],[74,8,74,9],[74,10,74,11],[74,12,74,13],[17,14,17,15],[22,4,24,13],[22,3,23,3],[26,4,28,13],[30,4,32,13],[20,1,20,3],[13,4,13,8],[15,1,15,3],[15,4,15,8],[15,14,15,15],[13,1,13,3],[13,12,13,15],[1,2,2,4],[1,5,3,15],[7,12,7,15],[5,1,5,4],[3,2,4,4],[7,1,7,3],[8,2,8,15],[9,1,9,3],[9,4,9,8],[9,14,9,15],[11,1,11,3],[11,4,11,8],[11,14,11,15],[34,1,34,3],[53,1,53,3],[68,12,68,14],[68,2,68,4],[36,4,40,13],[41,3,42,3],[41,4,44,13],[45,4,46,11],[48,4,49,11]]}
[]
[null,null,"NRCS",null,null,"Biology Technical Note # 14 Wildlife Habitat Evaluation Guide"]
[]
[null,null,"Natural Resources Conservation Service"]
[null,null,null,null,null,"Wetlands Field Data Sheet"]
[null,"WASHINGTON",null,null,null,"(Planning Criteria = 70%)",null,null,null,null,null,null,null,null,null,"PASSWORD:WETLAND"]
[]
[null,"Table of Contents",null,null,null,null,null,null,null,null,null,null,"Revised March 2013"]
[null,null,null,null,null,null,null,null,null,null,null,null,null,null,null,null,null,null,"NA"]
[null,"Client/Operating Unit:",null,null,{"$f":"IF(ISBLANK('Table of Contents'!$D$40),\"Click on cell to the left.\",'Table of Contents'!$D$40)","v":"Click on cell to the left."},null,null,null,null,null,null,null,null,"Tract Number:",{"$f":"IF(ISBLANK('Table of Contents'!$K$40),\" \",'Table of Contents'!$K$40)","v":" "},null,null,null,"CRP"]
[null,null,null,null,null,null,null,null,null,null,null,null,null,null,null,null,null,null,"CSP"]
[null,"Farm/Ranch Location:",null,null,{"$f":"IF(ISBLANK('Table of Contents'!$D$42),\" \",'Table of Contents'!$D$42)","v":" "},null,null,null,null,null,null,null,null,"Farm Number:",{"$f":"IF(ISBLANK('Table of Contents'!$K$42),\" \",'Table of Contents'!$K$42)","v":" "},null,null,null,"CStP"]
[null,null,null,null,null,null,null,null,null,null,null,null,null,null,null,null,null,null,"EQIP"]
[null,"Evaluation Date:",null,null,{"$f":"IF(ISBLANK('Table of Contents'!$D$44),\" \",'Table of Contents'!$D$44)","v":" "},null,null,null,null,null,null,"Field Number(s):",{"$f":"IF(ISBLANK('Table of Contents'!$K$44),\" \",'Table of Contents'!$K$44)","v":" "},null,null,null,null,null,"EWP"]
[null,null,null,null,null,null,null,null,null,null,null,null,null,null,null,null,null,null,"F&RPP"]
[null,"Planner:",null,null,{"$f":"IF(ISBLANK('Table of Contents'!$D$46),\" \",'Table of Contents'!$D$46)","v":" "},null,null,null,null,null,null,null,null,"Proposed Treatment Acres:",null,null,null,null,"GRP"]
[null,null,null,null,null,null,null,null,null,null,null,null,null,null,null,null,null,null,"WHIP"]
[null,null,"Cells with numbers that turn red are below the Planning Criteria.",null,null,null,null,null,null,null,null,null,null,"Program:",{"$f":"IF(ISBLANK('Table of Contents'!$K$46),\" \",'Table of Contents'!$K$46)","v":" "},null,null,null,"WLFW"]
[null,null,null,null,null,null,null,null,null,null,null,null,null,null,null,null,null,null,"WRP"]
[]
[null,"Water Regime",null,null,null,null,null,null,null,null,null,null,null,null,null,"WETLAND-WR"]
[]
[null,null,"Present","4 =","Natural surface or subsurface flow patterns are not adversely altered by human and/or livestock disturbance."]
[]
[null,null,"No Action"]
[]
[null,null,"Planned A","PC 3 =","Natural surface or subsurface flow patterns altered by human and/or livestock disturbance, but hydrology is functioning on its own."]
[]
[null,null,"Planned B"]
[]
[null,null,null,"1 =","Natural surface or subsurface flow patterns are severely altered by disturbance.  Seldom saturated at or near the surface.  Obvious shift to less water-dependant plants in vegetative community."]
[]
[]
[]
[null,"Plant Diversity",null,null,null,null,null,null,null,null,null,null,null,null,null,"WETLAND-PD"]
[]
[null,null,"Present","10 =","Multiple species of emergent, aquatic, or woody vegetation or a combination of community types.  Vegetation is well interspersed with open water."]
[]
[null,null,"No Action"]
[]
[null,null,"Planned A"]
[null,null,null,"9 =","Multiple species of emergent, aquatic, or woody vegetation or a combination of communities.  Vegetation is poorly interspersed with open water."]
[null,null,"Planned B"]
[]
[]
[null,null,null,"PC 8 =","Two or three dominant species of any community type well interspersed with open water."]
[]
[]
[null,null,null,"4 =","Two or three dominant species of any community type poorly interspersed with open water."]
[]
[]
[null,null,null,"1 =","One dominant species of plant, whether interspersed with open water or not."]
[]
[null,"Grazing System",null,null,null,null,null,null,null,null,null,null,null,null,null,"WETLAND-GS"]
[]
[null,null,"Present","4 =","No livestock use"]
[]
[null,null,"No Action","PC 3 =","Proper use with a prescribed grazing system applied."]
[]
[null,null,"Planned A","2 =","Moderate use, no prescribed grazing system."]
[]
[null,null,"Planned B","1 =","Improper use, with or without system."]
[]
[null,"Please complete the riparian section of this Habitat Evaluation Guide."]
[]
[null," Evaluate water quality according to the quality criteria outlined in the Field Office "]
[null," Technical Guide."]
[]
[null,null,"Evaluation Summary",null,null,null,null,null,null,null,null,null,"Back to Top"]
[]
[]
[]
[]
[]
[null,null,"Wetland Summary",null,null,null,"Present",null,"No Action",null,"Planned A",null,"Planned B"]
[null,null,"Water Regime",null,null,null,{"$f":"IF(ISBLANK($B$23),\" \",$B$23/4)","v":" "},null,{"$f":"IF(ISBLANK($B$25),\" \",$B$25/4)","v":" "},null,{"$f":"IF(ISBLANK($B$27),\" \",$B$27/4)","v":" "},null,{"$f":"IF(ISBLANK($B$29),\" \",$B$29/4)","v":" "},null,"Present"]
[null,null,"Plant Diversity",null,null,null,{"$f":"IF(ISBLANK($B$37),\" \",$B$37/10)","v":" "},null,{"$f":"IF(ISBLANK($B$39),\" \",$B$39/10)","v":" "},null,{"$f":"IF(ISBLANK($B$41),\" \",$B$41/10)","v":" "},null,{"$f":"IF(ISBLANK($B$43),\" \",$B$43/10)","v":" "},null,"<.7"]
[null,null,"Grazing System",null,null,null,{"$f":"IF(ISBLANK($B$56),\" \",$B$56/4)","v":" "},null,{"$f":"IF(ISBLANK($B$58),\" \",$B$58/4)","v":" "},null,{"$f":"IF(ISBLANK($B$60),\" \",$B$60/4)","v":" "},null,{"$f":"IF(ISBLANK($B$62),\" \",$B$62/4)","v":" "},null,"No Action"]
[null,null,"Acres:",{"$f":"IF(ISBLANK($O$16),\" \",$O$16)","v":" "},null,null,{"$f":"IF(G80=0,H80,G80)","v":" "},null,{"$f":"IF(I80=0,J80,I80)","v":" "},null,{"$f":"IF(K80=0,L80,K80)","v":" "},null,{"$f":"IF(M80=0,N80,M80)","v":" "},null,"<.7"]
[null,null,null,null,null,null,{"$f":"IF(AND(G76=\" \",G77=\" \",G78=\" \"),\" \",DMIN($G75:$G78,\"Present\",O76:O77))","v":" "},{"$f":"IF(G76=\" \",\" \",AVERAGE(G76:G78))","v":" "},{"$f":"IF(AND(I76=\" \",I77=\" \",I78=\" \"),\" \",DMIN($I75:$I78,\"No Action\",O78:O79))","v":" "},{"$f":"IF(I76=\" \",\" \",AVERAGE(I76:I78))","v":" "},{"$f":"IF(AND(K76=\" \",K77=\" \",K78=\" \"),\" \",DMIN($K75:$K78,\"Planned A\",O80:O81))","v":" "},{"$f":"IF(K76=\" \",\" \",AVERAGE(K76:K78))","v":" "},{"$f":"IF(AND(M76=\" \",M77=\" \",M78=\" \"),\" \",DMIN($M75:$M78,\"Planned B\",O82:O83))","v":" "},{"$f":"IF(M76=\" \",\" \",AVERAGE(M76:M78))","v":" "},"Planned A"]
[null,null,null,null,null,null,null,null,null,null,null,null,null,null,"<.7"]
[null,null,null,null,null,null,null,null,null,null,null,null,null,null,"Planned B"]
[null,null,null,null,null,null,null,null,null,null,null,null,null,null,"<.7"]
[null,null,"Notes:"]
[]
[]
[]
[]
[]
[]
[]
[]
[]
[]
[]
[]
[]
[]
[]
[]
[]
[]
[null,null,null,null,null,null,null,null,null,null,null,null,null,"Back to Top"]

{"sheet":"Wetland Narrative","index":13,"n_rows":104,"n_cols":10,"rows_kept":104,"cut":false,"hidden":false,"merged":[[1,2,2,3],[1,4,3,8],[3,1,4,3],[5,1,5,3],[24,1,26,9],[7,1,7,3],[19,1,22,9],[11,1,13,9],[15,1,17,9],[103,8,103,9],[9,1,9,2],[91,1,91,2],[70,1,70,4],[70,6,70,9],[44,1,46,10],[64,1,65,9],[28,1,28,4],[28,6,28,9],[29,1,30,4],[29,6,30,9],[31,1,32,4],[31,6,32,9],[33,1,34,4],[33,6,34,9],[35,1,36,4],[29,5,30,5],[31,5,32,5],[33,5,34,5],[48,1,48,2],[39,5,40,5],[41,5,42,5],[56,8,56,9],[35,6,36,9],[50,1,54,9],[39,1,40,4],[41,1,42,4],[39,6,40,9],[41,6,42,9],[37,1,38,4],[37,6,38,9],[35,5,36,5],[37,5,38,5]]}
[]
[null,null,"NRCS",null,"Biology Technical Note # 14 Wildlife Habitat Evaluation Guide"]
[]
[null,"Natural Resources Conservation Service"]
[null,null,null,null,"Wetlands Narrative"]
[null,"WASHINGTON",null,null,"(Planning Criteria = 70%)",null,null,null,null,"PASSWORD:WETLAND N"]
[]
[null,"Table of Contents",null,null,null,null,null,null,null,"Revised March 2013"]
[]
[null,"Water Regime",null,null,null,null,null,null,null,"WETLAND-WR"]
[]
[null,"Examples of human disturbance which can cause hydrologic alterations include: drain tile, ditches, filled areas, roads, improperly placed culverts, land leveling, overgrazing, stream down-cutting, deforestation, etc."]
[]
[]
[]
[null,"In some cases, the disturbance may not be drastic enough to cause significant changes in hydrology. In some cases, hydrology can still exist even though drainage control has been implemented in the past. Examples: old drain tile, poorly maintained ditches, breached dikes."]
[]
[]
[]
[null,"Quality Criteria can be achieved by making small changes to restore hydrology (i.e. installing a seasonal water control structure, partially filling a ditch or removing a section of drain tile). The highest category can be attained by making drastic changes to restore hydrology (i.e. filling entire ditch, removing entire underground drainage system, recreating natural topography)."]
[]
[]
[]
[]
[null,"One method of analyzing shifts in wetland hydrology is to study plant community composition.  Use other wetlands within the same drainage area as a reference to determine if the plants currently found on the site are less water dependent then those which would have been found historically."]
[]
[]
[]
[null,"Historical",null,null,null,null,"Current"]
[null,"cattails, bulrushes, sedges",null,null,null,null,"soft rush, reed canarygrass, buttercup, Douglas spirea"]
[]
[null,"sedges, rushes, bulrushes",null,null,null,null,"red alder, Douglas spirea, Douglas fir"]
[]
[null,"sedges, rushes, bulrushes",null,null,null,null,"velvetgrass, buttercup, soft rush"]
[]
[null,"smartweed, bulrush, cattail, burreed, spikerush ",null,null,null,null,"red-osier dogwood, willow, black hawthorn"]
[]
[null,"red-osier dogwood, willow, black cottonwood",null,null,null,null,"Douglas fir, snowberry"]
[]
[null,"sedges, rushes, bulrushes",null,null,null,null,"tall wheatgrass"]
[]
[null,"sedges, rushes, quaking aspen, willow",null,null,null,null,"reed canarygrass"]
[]
[]
[null,"These are only examples; there are other plant community shifts possible.  When planning wetland restoration or enhancement, the communities listed above under \"Historical\" may not be the desired future plant community."]
[]
[]
[]
[null,"Plant Diversity",null,null,null,null,null,null,null,"WETLAND-PD"]
[]
[null,"When planning for wildlife, habitat with diverse plant communities is almost always preferred.  The Plant Diversity section of the Wetland Evaluation is designed to consider this characteristic of wetlands.  Additionally, this section addresses the interspersion of diverse plant communities with water.  Interspersion may be defined as erratically distributed throughout.  Some water must be present throughout the year."]
[]
[]
[]
[]
[]
[null,null,null,null,null,null,null,null,"Back to Top"]
[]
[]
[]
[]
[null,"Emergent vegetation includes non-woody vegetation such as cattails, grasses, sedges, rushes, "]
[null,"bulrushes, and certain forbs."]
[]
[null,"Aquatic vegetation grows in open water and can be either floating or submerged. Some examples include water lilies, pondweed, and duckweed. Algae is not considered aquatic vegetation."]
[]
[]
[null,"Woody vegetation includes shrubs and trees, such as spirea, salmonberry, willow, and alder."]
[]
[]
[null,"Well Interspersed",null,null,null,null,"Poorly Interspersed"]
[]
[]
[]
[]
[]
[]
[]
[]
[]
[]
[]
[]
[]
[]
[]
[]
[null,null,null,"Herbaceous vegetation",null,null,null,"Water "]
[]
[null,null,null,"Woody vegetation"]
[]
[null,"Grazing System ",null,null,null,null,null,null,null,"WETLAND-GS"]
[]
[null,"If improperly managed, livestock presence in aquatic habitats can have negative impacts on all"]
[null,"habitat elements.  These impacts can include, but are not limited to decreases in surface water"]
[null,"quality, reduction in plant cover and species diversity, changes in hydrology, and soil erosion."]
[null,"To ensure the long term habitat sustainability, livestock should be excluded from aquatic habitats"]
[null,"and their associated buffer areas."]
[]
[null,"When managed properly, livestock can be used as a management tool in areas where invasive"]
[null,"vegetation will outcompete native species."]
[]
[]
[null,null,null,null,null,null,null,null,"Back to Top"]

{"sheet":"Ponds & Small Lakes (70%)","index":14,"n_rows":110,"n_cols":19,"rows_kept":110,"cut":false,"hidden":false,"merged":[[109,13,109,15],[89,2,89,4],[92,1,107,15],[87,3,87,4],[87,6,87,7],[87,8,87,9],[87,10,87,11],[87,12,87,13],[85,6,85,7],[85,8,85,9],[85,10,85,11],[85,12,85,13],[86,6,86,7],[86,8,86,9],[86,10,86,11],[86,12,86,13],[83,6,83,7],[83,8,83,9],[83,10,83,11],[83,12,83,13],[84,6,84,7],[84,8,84,9],[84,10,84,11],[84,12,84,13],[82,2,82,5],[82,6,82,7],[82,8,82,9],[82,10,82,11],[82,12,82,13],[42,3,43,3],[42,4,45,15],[46,4,48,14],[52,4,52,14],[54,4,54,11],[54,3,55,3],[37,4,41,15],[1,2,2,4],[1,5,3,15],[5,1,5,4],[7,12,7,15],[3,2,4,4],[7,1,7,3],[20,1,20,3],[35,1,35,2],[17,14,17,15],[31,4,33,13],[22,4,26,13],[27,3,28,3],[27,4,30,15],[13,1,13,3],[13,4,13,8],[15,1,15,3],[15,4,15,8],[15,14,15,15],[8,2,8,15],[9,1,9,3],[9,4,9,8],[9,14,9,15],[11,1,11,3],[11,4,11,8],[11,14,11,15],[13,12,13,15],[50,1,50,2],[60,1,60,5],[78,13,78,15],[78,4,78,6],[70,4,74,15],[64,4,69,15],[64,3,65,3],[55,4,55,11],[56,4,56,13],[58,4,58,13]]}
[]
[null,null,"NRCS",null,null,"Biology Technical Note # 14 Wildlife Habitat Evaluation Guide"]
[]
[null,null,"Natural Resources Conservation Service"]
[null,null,null,null,null,"Ponds & Small Lakes Field Data Sheet"]
[null,"WASHINGTON",null,null,null,"(Planning Criteria = 70%)",null,null,null,null,null,null,null,null,null,"PASSWORD:POND"]
[]
[null,"Table of Contents",null,null,null,null,null,null,null,null,null,null,"Revised March 2013"]
[null,null,null,null,null,null,null,null,null,null,null,null,null,null,null,null,null,null,"NA"]
[null,"Client/Operating Unit:",null,null,{"$f":"IF(ISBLANK('Table of Contents'!$D$40),\"Click on cell to the left.\",'Table of Contents'!$D$40)","v":"Click on cell to the left."},null,null,null,null,null,null,null,null,"Tract Number:",{"$f":"IF(ISBLANK('Table of Contents'!$K$40),\" \",'Table of Contents'!$K$40)","v":" "},null,null,null,"CRP"]
[null,null,null,null,null,null,null,null,null,null,null,null,null,null,null,null,null,null,"CSP"]
[null,"Farm/Ranch Location:",null,null,{"$f":"IF(ISBLANK('Table of Contents'!$D$42),\" \",'Table of Contents'!$D$42)","v":" "},null,null,null,null,null,null,null,null,"Farm Number:",{"$f":"IF(ISBLANK('Table of Contents'!$K$42),\" \",'Table of Contents'!$K$42)","v":" "},null,null,null,"CStP"]
[null,null,null,null,null,null,null,null,null,null,null,null,null,null,null,null,null,null,"EQIP"]
[null,"Evaluation Date:",null,null,{"$f":"IF(ISBLANK('Table of Contents'!$D$44),\" \",'Table of Contents'!$D$44)","v":" "},null,null,null,null,null,null,"Field Number(s):",{"$f":"IF(ISBLANK('Table of Contents'!$K$44),\" \",'Table of Contents'!$K$44)","v":" "},null,null,null,null,null,"EWP"]
[null,null,null,null,null,null,null,null,null,null,null,null,null,null,null,null,null,null,"F&RPP"]
[null,"Planner:",null,null,{"$f":"IF(ISBLANK('Table of Contents'!$D$46),\" \",'Table of Contents'!$D$46)","v":" "},null,null,null,null,null,null,null,null,"Proposed Treatment Acres:",null,null,null,null,"GRP"]
[null,null,null,null,null,null,null,null,null,null,null,null,null,null,null,null,null,null,"WHIP"]
[null,null,"Cells with numbers that turn red are below the Planning Criteria.",null,null,null,null,null,null,null,null,null,null,"Program:",{"$f":"IF(ISBLANK('Table of Contents'!$K$46),\" \",'Table of Contents'!$K$46)","v":" "},null,null,null,"WLFW"]
[null,null,null,null,null,null,null,null,null,null,null,null,null,null,null,null,null,null,"WRP"]
[]
[null,"Water Quality",null,null,null,null,null,null,null,null,null,null,null,null,null,"POND-WQU"]
[]
[null,null,"Present","4 =","Water is clear with little algal growth, no oil sheen or metals present, bottom substrate is >30% visible at depths of 3 feet (or as far out and down as you can see)."]
[]
[null,null,"No Action"]
[]
[null,null,"Planned A"]
[null,null,null,"PC 3 =","Water is fairly clear with moderal algal growth, water is slightly turbid after storm events but clears quickly, bottom substrate is >30% visible at depths of 3 feet (or as far out and down as you can see)."]
[null,null,"Planned B"]
[]
[]
[null,null,null,"1 =","Water is pea-green in color with high algal growth, oil sheen and metals present, water is very turbid most of the time, bottom substrate is not visible."]
[]
[]
[]
[null,"Substrate",null,null,null,null,null,null,null,null,null,null,null,null,null,"POND-SUB"]
[]
[null,null,"Present","4 =","Lakes: Good mix of silt-free gravels or bedrock, especially along lake margins.  Less than 10% of substrate is embedded.  Submerged woody debris is visible along the shoreline. Ponds: substrate may be sand or silt but is free of aquatic algae."]
[]
[null,null,"No Action"]
[]
[null,null,"Planned A"]
[null,null,null,"PC 3 =","Lakes: Bedrock or gravel is only 10-20 % embedded.  Little submerged woody debris is available to fish and macro-invertebrates. Ponds: substrate has some algal growth on it."]
[null,null,"Planned B"]
[]
[]
[null,null,null,"1 =","Lakes: Gravel protruding from silt layers or bottom is all sand and fine silt. Greater than 40% of substrate is embedded.  No submerged woody debris is present. Ponds: substrate is covered by algal growth."]
[]
[]
[]
[null,"Cover",null,null,null,null,null,null,null,null,null,null,null,null,null,"POND-COV"]
[]
[null,null,"Present","4 =","8 or more habitat features are available"]
[]
[null,null,"No Action","PC 3 =","4 to 6 habitat features are available"]
[]
[null,null,"Planned A","1 =","Less than 2 habitat features are available"]
[]
[null,null,"Planned B"]
[]
[null,"Water Withdrawals / Water Quantity",null,null,null,null,null,null,null,null,null,null,null,null,null,"POND-WWQ"]
[]
[null,null,"Present","4 =","No water-withdrawal sites."]
[]
[null,null,"No Action","PC 3 =","Water withdrawal (pump or diversion structure) meets WDFW screening criteria and water withdrawls do not significantly alter the lake or pond levels at any time of the year (unless the pond or lake is being managed to address aquatic invasive species, such as bull frogs)."]
[]
[null,null,"Planned A"]
[]
[null,null,"Planned B"]
[]
[null,null,null,"1 =","Water withdrawal does not meet WDFW criteria or involves annual modifications at diversion site and water withdrawls significantly alter the lake or pond levels at any time of the year (unless the pond or lake is being managed to address aquatic invasive species, such as bull frogs)."]
[]
[]
[]
[]
[null,"Please complete the riparian section of this Habitat Evaluation Guide."]
[null," Evaluate water quality according to the quality criteria outlined in the Field Office Technical Guide."]
[]
[null,null,null,null,"Evaluation Summary",null,null,null,null,null,null,null,null,"Back to Top"]
[]
[]
[]
[null,null,"Ponds & Small Lakes Summary",null,null,null,"Present",null,"No Action",null,"Planned A",null,"Planned B"]
[null,null,"Water Quality",null,null,null,{"$f":"IF(ISBLANK($B$23),\" \",$B$23/4)","v":" "},null,{"$f":"IF(ISBLANK($B$25),\" \",$B$25/4)","v":" "},null,{"$f":"IF(ISBLANK($B$27),\" \",$B$27/4)","v":" "},null,{"$f":"IF(ISBLANK($B$29),\" \",$B$29/4)","v":" "},null,"Present"]
[null,null,"Substrate",null,null,null,{"$f":"IF(ISBLANK($B$38),\" \",$B$38/4)","v":" "},null,{"$f":"IF(ISBLANK($B$40),\" \",$B$40/4)","v":" "},null,{"$f":"IF(ISBLANK($B$42),\" \",$B$42/4)","v":" "},null,{"$f":"IF(ISBLANK($B$44),\" \",$B$44/4)","v":" "},null,"<.7"]
[null,null,"Cover",null,null,null,{"$f":"IF(ISBLANK($B$53),\" \",$B$53/4)","v":" "},null,{"$f":"IF(ISBLANK($B$55),\" \",$B$55/4)","v":" "},null,{"$f":"IF(ISBLANK($B$57),\" \",$B$57/4)","v":" "},null,{"$f":"IF(ISBLANK($B$59),\" \",$B$59/4)","v":" "},null,"No Action"]
[null,null,"Water Withdrawals / Water Quantity",null,null,null,{"$f":"IF(ISBLANK($B$63),\" \",$B$63/4)","v":" "},null,{"$f":"IF(ISBLANK($B$65),\" \",$B$65/4)","v":" "},null,{"$f":"IF(ISBLANK($B$67),\" \",$B$67/4)","v":" "},null,{"$f":"IF(ISBLANK($B$69),\" \",$B$69/4)","v":" "},null,"<.7"]
[null,null,"Acres:",{"$f":"IF(ISBLANK($O$16),\" \",$O$16)","v":" "},null,null,{"$f":"IF(G89=0,H89,G89)","v":" "},null,{"$f":"IF(I89=0,J89,I89)","v":" "},null,{"$f":"IF(K89=0,L89,K89)","v":" "},null,{"$f":"IF(M89=0,N89,M89)","v":" "},null,"Planned A"]
[null,null,null,null,null,null,{"$f":"IF(AND(G84=\" \",G85=\" \",G86=\" \",G87=\" \"),\" \",DMIN($G83:$G87,\"Present\",O84:O85))","v":" "},{"$f":"IF(G84=\" \",\" \",AVERAGE(G84:G87))","v":" "},{"$f":"IF(AND(I84=\" \",I85=\" \",I86=\" \",I87=\" \"),\" \",DMIN($I83:$I87,\"No Action\",O86:O87))","v":" "},{"$f":"IF(I84=\" \",\" \",AVERAGE(I84:I87))","v":" "},{"$f":"IF(AND(K84=\" \",K85=\" \",K86=\" \",K87=\" \"),\" \",DMIN($K83:$K87,\"Planned A\",O88:O89))","v":" "},{"$f":"IF(AND(K84=\" \",K85=\" \",K86=\" \",K87=\" \"),\" \",AVERAGE(K84:K87))","v":" "},{"$f":"IF(AND(M84=\" \",M85=\" \",M86=\" \",M87=\" \"),\" \",DMIN($M83:$M87,\"Planned B\",O90:O92))","v":" "},{"$f":"IF((AND(M84=\" \",M85=\" \",M86=\" \",M87=\" \")),\" \",AVERAGE(M84:M87))","v":" "},"<.7"]
[null,null,"Evaluation Summary",null,null,null,null,null,null,null,null,null,null,null,"Planned B"]
[]
[null,null,"Notes:",null,null,null,null,null,null,null,null,null,null,null,"<.7"]
[]
[]
[]
[]
[]
[]
[]
[]
[]
[]
[]
[]
[]
[]
[]
[]
[]
[null,null,null,null,null,null,null,null,null,null,null,null,null,"Back to Top"]

{"sheet":"Ponds & Lakes Narrative","index":15,"n_rows":114,"n_cols":10,"rows_kept":114,"cut":false,"hidden":false,"merged":[[93,1,96,9],[98,1,104,9],[65,1,66,9],[68,1,69,9],[42,1,46,9],[48,1,48,9],[50,1,52,9],[54,1,55,9],[1,2,2,3],[1,4,3,8],[3,1,4,3],[5,1,5,3],[9,1,13,9],[7,1,7,3],[15,1,15,2],[31,1,31,2],[84,1,84,4],[113,8,113,9],[60,8,60,9],[82,1,82,4],[82,5,82,9],[78,1,80,9],[71,1,73,9],[75,1,76,9],[17,1,22,9],[24,1,29,9],[33,1,38,9],[57,1,58,9],[106,1,110,9],[86,1,92,9]]}
[]
[null,null,"NRCS",null,"Biology Technical Note # 14 Wildlife Habitat Evaluation Guide"]
[]
[null,"Natural Resources Conservation Service"]
[null,null,null,null,"Ponds & Small Lakes Narrative"]
[null,"WASHINGTON",null,null,"(Planning Criteria = 75%)",null,null,null,null,"PASSWORD: POND N"]
[]
[null,"Table of Contents",null,null,null,null,null,null,null,"Revised March 2013"]
[]
[null,"Small lakes could be natural lakes on a client's property that are smaller than 5 acres in size. They will typically be affected by wind and minor wave action.  Ponds could be natural, but mostly man-made, and smaller than 5 acres in size.  These may be more intensively managed, such as providing a source of water for livestock.  All waterbodies have riparian areas; therefore, conducting the Riparian Area worksheet is required.  "]
[]
[]
[]
[]
[]
[null,"Water Quality  ",null,null,null,null,null,null,null,"POND-WQU"]
[]
[null,"Water quality encompasses several values critical to waterbodies, such as water temperature, turbidity (excess sediment), excess nutrients, pesticides, pH, pollutants (oil, gas, trash) and heavy metals to name a few.  The Washington Department of Ecology (WDOE) measures, monitors and has a website that discusses what water quality parameters do not meet state water quality standards.  It is recommeded that planners check this website to see what water quality parameters are on the WDOE's 303(d) list as elements not meeting these standards."]
[]
[]
[]
[]
[]
[]
[null,"When using this tool to score water quality, look at the water for evidence of degraded water quality, such as an oil sheen on the surface or metal precipitates along the margins.  Does the water look clear and clean to you?  Does the waterbody smell like rotten eggs (evidence of high sulfur content).  Is there significant amounts of algal growth in the waterbody? (aquatic plants are good).  How deep into the water column can you see? (this can assess how much sediment is suspended in the water column).  Use the information from WDOE and your visual observation to score this element. "]
[]
[]
[]
[]
[]
[]
[null,"Substrate",null,null,null,null,null,null,null,"POND-SUB"]
[]
[null,"Lakes typically have sandy or silty substrates in the deeper areas with bedrock, sands and gravels around the margins.  Ponds typically have sandy or silty bottoms with little or no gravels.  Substrate around lake margins can be used by fish for spawning, while other organisms, such as amphibians, may use aquatic vegetation for laying eggs.   Lake margins should also have submerged woody debris to provide cover for fish and feeding substrate for some macro-invertebrates."]
[]
[]
[]
[]
[]
[]
[null,"Cover",null,null,null,null,null,null,null,"POND-COV"]
[]
[null,"Pond and lake dwelling organisms, and fish in particular, must have cover in order to hide from predators and avoid solar radiation.  Depending upon their size, aquatic organisms use all available forms of cover, including surface agitation in pools and riffles; boulders, cobbles; submerged and emergent aquatic vegetation; undercut banks; overhanging vegetation and logs/large wood. "]
[]
[]
[]
[]
[]
[null,"Cover Type Definitions"]
[]
[null,"Logs/Large Wood: Trees or parts of trees that are at least 4 inches in diameter and 25 feet long.  Large wood can be used as basking logs for turtles or as cover for fish, amphibians and aquatic insects. "]
[]
[]
[]
[null,"Small Wood Accumulations: submerged accumulations of small wood pieces, twigs, branches, leaves, roots.  These act provide structural complexity and are used by small aquatic species."]
[]
[]
[null,"Undercut Banks: Formed by the wind action moving water against the shoreline and washing away the earthen material underneath the roots of live trees and shrubs.  "]
[]
[]
[null,null,null,null,null,null,null,null,"Back to Top"]
[]
[]
[]
[]
[null,"Overhanging Vegetation: Live trees, shrubs, vines or perennial herbaceous vegetation that hangs immediately over the pond or lake surface."]
[]
[]
[null,"Large Boulders: submerged or partially submerged large rocks (>20 inches in diameter). These may not be natural to a lake or pond.  "]
[]
[]
[null,"Small Boulder clusters - groups of 2 or more smaller rocks (>10 and < 20 inches in diameter) interspersed relatively close together in the pond or lake.  These may not be natural to the lake or pond."]
[]
[]
[]
[null,"Thick Root Mats: mats of roots and rootlets, generally from trees but sometimes from dense shrubs at or beneath the water surface."]
[]
[]
[null,"Aquatic Vegetation: Can be emergent (cattails, sedges), floating leaf (water Lilly, etc.), or submerged (starwort, etc.). Vegetation must be dense enough to support attachment of invertebrates and concealment of fish and other aquatic species."]
[]
[]
[]
[null,"Other Locally Important Habitat Features:"]
[]
[null,"Water Withdrawals / Water Quantity",null,null,null,null,null,null,null,"POND-WWQ"]
[]
[null,"Water withdrawal, even though it may be legal, can cause adverse affects to lake and pond habitat (i.e., water quality and quantity).  Habitat may become inaccessable, as well as stranding aquatic species as the lake or pond if water level is lowered. Habitat can also become lethal if water is lowered allowing the water that is left to increase in temperature.   Landowners and operators should be encouraged to develop watering systems that conserve water so that more can be left in the pond or lake."]
[]
[]
[]
[]
[]
[]
[null,"ADD INFO ON WETLAND CRITTERS:  Some fish, such as chum and pink salmon, hatch and leave the stream prior to summer low flows. Others, such as juvenile steelhead and coho, stay in the stream for at least one entire year, moving downstream as it becomes dry and returning upstream as the flow increases. "]
[]
[]
[]
[]
[null,"With the proper water right approval from the Washington State Department of Ecology, an operator is allowed to remove part of the pond or lake for agricultural and domestic use.  If this is done without considering aquatic life, fish and other  organisms can be sucked into pumps or stranded in fields or in various parts of a watering system.  Some of these watering structures are temporary, and require work within the lake or pond using heavy equipment to install and remove each year and maintain during the irrigation season.  This can cause disruption of spawning areas and negative impacts to water quality.   "]
[]
[]
[]
[]
[]
[]
[]
[null,"Structures that are used to withdraw water from a lake or pond should by designed so that they are stable and require a minimum of instream disturbance for their maintenance.  All pumps and diversion structures must be designed to prevent the entrance of fish (RCW 75.20.040 & 061; RCW 77.16.220) by following the screening criteria of WDFW.  Most diversion structures also require a fish bypass  system to direct stranded fish back to the main channel."]
[]
[]
[]
[]
[]
[]
[null,null,null,null,null,null,null,null,"Back to Top"]

{"sheet":"Stream SVAP II (70%)","index":16,"n_rows":801,"n_cols":27,"rows_kept":801,"cut":false,"hidden":false,"merged":[[735,3,737,24],[745,3,747,22],[756,3,758,24],[766,3,768,23],[776,3,778,24],[786,3,787,7],[769,1,774,25],[779,1,784,25],[748,1,753,25],[759,1,764,25],[738,1,743,25],[612,7,614,24],[615,7,617,24],[618,7,620,25],[621,7,623,25],[639,1,641,16],[634,4,635,15],[704,1,706,25],[714,3,717,24],[725,3,727,24],[444,7,446,25],[447,7,448,24],[474,7,477,25],[462,7,467,25],[280,21,280,26],[589,7,590,19],[591,7,592,18],[593,7,594,18],[595,7,596,20],[217,1,217,7],[260,10,262,24],[272,10,274,24],[256,1,256,12],[270,1,270,25],[357,1,366,25],[314,21,314,26],[438,7,440,25],[441,7,443,25],[155,7,158,25],[159,7,164,25],[197,7,200,25],[114,19,114,24],[109,1,109,4],[111,1,111,4],[107,15,107,16],[113,8,113,16],[107,5,107,7],[119,14,119,25],[112,1,112,4],[113,5,113,7],[105,21,107,25],[105,18,105,20],[105,1,105,16],[108,21,110,25],[112,5,112,7],[112,8,112,14],[38,22,38,24],[39,17,39,21],[39,22,39,24],[34,22,34,24],[37,15,37,21],[36,3,36,9],[36,10,36,12],[35,10,35,12],[38,15,38,21],[35,22,35,24],[673,23,673,25],[674,17,674,19],[648,2,648,6],[130,1,130,6],[181,1,181,6],[112,15,112,16],[115,19,115,24],[368,1,368,6],[329,2,329,5],[329,6,329,11],[343,6,343,11],[165,7,168,25],[170,1,176,25],[112,21,113,25],[132,7,137,25],[139,7,143,25],[670,17,670,19],[670,20,670,22],[670,23,670,25],[670,14,670,16],[112,18,112,20],[672,20,672,22],[145,7,148,25],[149,7,154,25],[800,2,800,6],[680,17,680,19],[680,20,680,22],[680,23,680,25],[681,14,681,16],[681,17,681,19],[681,20,681,22],[681,23,681,25],[675,14,675,16],[675,17,675,19],[675,20,675,22],[675,23,675,25],[676,20,676,22],[680,14,680,16],[676,23,676,25],[677,14,677,16],[800,21,800,26],[699,21,699,26],[792,1,797,25],[788,3,790,25],[692,11,692,14],[695,11,695,14],[693,11,693,14],[694,11,694,14],[674,20,674,22],[674,23,674,25],[676,14,676,16],[676,17,676,19],[679,20,679,22],[679,23,679,25],[678,14,678,16],[678,17,678,19],[678,20,678,22],[678,23,678,25],[679,14,679,16],[679,17,679,19],[677,17,677,19],[677,20,677,22],[677,23,677,25],[658,23,658,25],[660,14,660,16],[660,17,660,19],[668,14,668,16],[668,17,668,19],[668,20,668,22],[668,23,668,25],[669,14,669,16],[669,17,669,19],[669,20,669,22],[669,23,669,25],[666,20,666,22],[666,23,666,25],[667,17,667,19],[667,20,667,22],[667,23,667,25],[661,14,661,16],[661,17,661,19],[662,20,662,22],[662,23,662,25],[663,14,663,16],[663,17,663,19],[663,20,663,22],[663,23,663,25],[260,1,260,3],[379,7,381,25],[304,5,305,6],[304,7,307,25],[370,7,372,25],[183,7,187,25],[177,21,177,26],[661,20,661,22],[661,23,661,25],[660,20,660,22],[659,20,659,22],[659,23,659,25],[658,17,658,19],[495,2,498,25],[654,20,654,22],[654,23,654,25],[210,1,215,25],[201,1,204,25],[206,1,208,25],[243,21,243,26],[373,7,375,25],[376,7,378,25],[264,10,266,15],[382,21,382,26],[178,21,178,26],[416,7,418,25],[419,7,422,25],[423,7,425,25],[426,7,428,25],[400,7,403,25],[404,7,406,26],[331,7,333,20],[334,7,336,19],[337,7,339,19],[340,7,342,19],[345,7,347,20],[272,5,272,7],[386,1,392,25],[303,1,303,3],[308,7,311,25],[301,7,303,25],[407,1,412,25],[219,7,222,25],[223,7,227,25],[228,7,232,25],[233,7,236,25],[237,7,239,25],[240,7,242,25],[1,11,3,23],[1,2,2,10],[3,1,4,10],[5,1,6,10],[7,1,7,6],[31,10,31,12],[31,15,31,21],[32,10,32,12],[32,15,32,21],[32,22,32,24],[9,23,9,24],[11,23,11,24],[15,23,15,24],[17,23,17,24],[7,20,7,25],[19,22,19,24],[13,9,13,13],[13,19,13,24],[17,9,17,15],[19,9,19,14],[15,9,15,15],[13,15,13,18],[24,10,27,17],[7,11,7,15],[13,4,13,8],[33,15,33,21],[36,15,36,21],[33,10,33,12],[15,6,15,8],[21,10,21,16],[102,9,103,11],[102,12,103,14],[102,1,103,2],[102,3,103,4],[77,1,77,2],[78,1,78,2],[79,1,79,2],[79,3,79,12],[94,1,96,2],[94,3,96,8],[94,9,96,14],[97,1,97,2],[78,14,78,16],[79,14,79,16],[89,1,89,10],[68,1,68,2],[69,1,69,2],[73,1,73,2],[11,9,11,17],[9,9,9,17],[44,19,48,25],[99,1,99,2],[99,3,99,6],[99,9,99,14],[81,1,81,25],[51,19,53,25],[27,1,27,5],[9,4,9,8],[11,4,11,8],[36,22,36,24],[34,10,34,12],[34,15,34,21],[47,15,47,17],[47,1,49,12],[36,1,36,2],[44,7,44,9],[43,14,43,25],[48,15,48,17],[33,22,33,24],[40,22,40,24],[37,22,37,24],[67,1,67,2],[690,12,691,23],[718,1,723,25],[728,1,733,25],[555,1,560,25],[576,1,581,25],[600,1,608,25],[562,1,562,9],[689,16,689,17],[707,1,712,25],[648,21,648,26],[672,3,672,11],[658,14,658,16],[674,14,674,16],[665,1,665,2],[668,1,668,2],[677,1,677,2],[676,1,676,2],[675,1,675,2],[666,14,666,16],[669,1,669,2],[659,1,659,2],[585,2,585,10],[652,14,653,16],[657,14,657,16],[687,18,687,23],[688,18,688,23],[689,18,689,23],[656,23,656,25],[533,1,538,25],[656,1,656,2],[348,7,350,19],[351,7,353,20],[354,7,356,20],[546,7,548,23],[549,7,550,14],[551,7,552,14],[553,7,554,14],[564,7,566,23],[567,7,569,25],[570,7,572,25],[573,7,575,25],[587,7,588,20],[688,16,688,17],[687,12,687,15],[688,12,688,15],[689,12,689,15],[686,18,686,23],[658,20,658,22],[670,1,670,2],[672,17,672,19],[93,1,93,14],[85,16,103,25],[102,5,103,8],[98,1,98,2],[98,3,98,6],[97,3,97,6],[97,9,97,14],[100,1,100,2],[100,3,100,6],[188,7,192,25],[188,5,189,6],[193,7,196,25],[655,20,655,22],[655,23,655,25],[219,1,219,3],[110,8,110,14],[111,8,111,14],[108,15,108,16],[109,15,109,16],[110,15,110,16],[111,15,111,16],[101,9,101,14],[673,14,673,16],[671,14,671,16],[672,14,672,16],[668,3,668,13],[662,1,662,2],[663,1,663,2],[664,1,664,2],[662,14,662,16],[686,12,686,15],[666,1,666,2],[667,1,667,2],[672,1,672,2],[679,3,679,13],[680,3,680,13],[681,3,681,13],[686,16,686,17],[671,17,671,19],[666,17,666,19],[681,1,681,2],[680,1,680,2],[679,1,679,2],[678,1,678,2],[673,17,673,19],[671,1,671,2],[672,23,672,25],[597,1,597,23],[610,2,610,6],[665,14,665,16],[665,17,665,19],[665,20,665,22],[665,23,665,25],[671,20,671,22],[671,23,671,25],[659,14,659,16],[659,17,659,19],[654,14,654,16],[657,1,657,2],[624,1,632,25],[652,17,653,19],[651,14,651,25],[655,14,655,16],[655,17,655,19],[654,17,654,19],[657,20,657,22],[657,17,657,19],[657,23,657,25],[652,23,653,25],[660,1,660,2],[673,20,673,22],[282,1,289,25],[297,7,300,25],[272,1,272,3],[699,2,699,6],[39,1,43,11],[55,19,55,24],[87,1,87,2],[87,5,87,6],[655,1,655,2],[654,1,654,2],[656,14,656,16],[394,1,394,6],[656,17,656,19],[656,20,656,22],[652,20,653,22],[429,1,434,25],[453,1,458,25],[687,16,687,17],[674,1,674,2],[673,1,673,2],[667,14,667,16],[468,7,472,25],[660,23,660,25],[664,14,664,16],[664,17,664,19],[664,20,664,22],[664,23,664,25],[662,17,662,19],[661,1,661,2],[231,1,231,3],[260,5,260,7],[247,1,254,25],[414,1,414,7],[436,2,436,11],[460,2,460,11],[481,1,481,11],[515,1,515,7],[540,1,540,8],[542,7,545,25],[293,7,296,25],[449,21,449,26],[512,21,512,26],[583,21,583,26],[343,1,343,5],[319,1,327,25],[291,1,291,6],[293,1,293,3],[479,7,480,10],[108,1,108,4],[110,1,110,4],[87,9,87,10],[90,1,91,10],[100,9,100,14],[101,3,101,6],[52,15,52,17],[108,5,108,7],[109,5,109,7],[64,7,64,10],[77,14,77,16],[64,1,64,5],[74,14,74,16],[75,14,75,16],[62,16,62,24],[64,23,64,24],[66,23,66,24],[107,8,107,14],[101,1,101,2],[107,1,107,4],[57,4,57,11],[98,9,98,14],[66,1,66,12],[483,7,485,21],[486,7,488,22],[489,7,491,22],[492,7,494,22],[528,2,531,25],[517,7,519,22],[520,7,521,14],[522,7,523,14],[524,7,525,14],[526,7,527,15],[500,1,509,25],[122,1,122,4],[122,5,122,13],[122,14,122,25],[49,15,49,17],[49,19,50,24],[121,5,121,13],[121,14,121,25],[110,5,110,7],[111,5,111,7],[108,8,108,14],[109,8,109,14],[108,18,108,20],[70,1,70,2],[71,1,71,2],[72,1,72,2],[76,1,76,2],[119,5,119,13],[120,1,120,4],[120,5,120,13],[120,14,120,25],[121,1,121,4],[74,1,74,2],[75,1,75,2],[76,14,76,16]]}
[]
[null,null,"NRCS",null,null,null,null,null,null,null,null,"Biology Technical Note # 14 Wildlife Habitat Evaluation Guide"]
[]
[null,"Natural Resources Conservation Service"]
[null,null,null,null,null,null,null,null,null,null,null,"Stream Field Data Sheet (SVAP II)"]
[null,"WASHINGTON",null,null,null,null,null,null,null,null,null,"(Planning Criteria = 70%)",null,null,null,null,null,null,null,null,null,null,null,null,null,"PASSWORD:SVAP"]
[]
[null,"Table of Contents",null,null,null,null,null,null,null,null,null,null,null,null,null,null,null,null,null,null,"Revised March 2013"]
[]
[null,null,null,null,"Client/Operating Unit:",null,null,null,null,{"$f":"IF(ISBLANK('Table of Contents'!$D$40),\"Click on cell to the left.\",'Table of Contents'!$D$40)","v":"Click on cell to the left."},null,null,null,null,null,null,null,null,null,null,null,null,"Tract Number:",{"$f":"IF(ISBLANK('Table of Contents'!$K$40),\" \",'Table of Contents'!$K$40)","v":" "}]
[]
[null,null,null,null,"Farm/Ranch Location:",null,null,null,null,{"$f":"IF(ISBLANK('Table of Contents'!$D$42),\" \",'Table of Contents'!$D$42)","v":" "},null,null,null,null,null,null,null,null,null,null,null,null,"Farm Number:",{"$f":"IF(ISBLANK('Table of Contents'!$K$42),\" \",'Table of Contents'!$K$42)","v":" "}]
[]
[null,null,null,null,"Evaluation Date:",null,null,null,null,{"$f":"IF(ISBLANK('Table of Contents'!$D$44),\" \",'Table of Contents'!$D$44)","v":" "},null,null,null,null,null,"Field Number(s):",null,null,null,{"$f":"IF(ISBLANK('Table of Contents'!$K$44),\" \",'Table of Contents'!$K$44)","v":" "}]
[]
[null,null,null,null,null,null,"Planner:",null,null,{"$f":"IF(ISBLANK('Table of Contents'!$D$46),\" \",'Table of Contents'!$D$46)","v":" "},null,null,null,null,null,null,null,null,null,null,null,null,"Proposed Treatment Acres:"]
[]
[null,null,null,null,null,null,null,null,"Stream Name:",null,null,null,null,null,null,null,null,null,null,null,null,null,"Program:",{"$f":"IF(ISBLANK('Table of Contents'!$K$46),\" \",'Table of Contents'!$K$46)","v":" "}]
[]
[null,false,null,null,null,null,null,null,"Tributary to:",null,null,null,null,null,null,null,null,null,null,null,null,"Hydrologic Unit Code (HUC):"]
[]
[null,false,null,null,null,null,null,null,null,null,"Is this a 303d listed stream? *",null,null,null,null,null,null,null,null,null,null,"Temperature",null,null,"pH"]
[null,null,null,null,null,null,null,null,null,null,null,false,null,false]
[null,false,null,null,null,"Flow Rate:",null,"High",null,null,null,"Yes",null,"No",null,null,null,null,null,null,null,"Dissolved Oxygen",null,null,"Turbidity"]
[null,null,null,null,null,null,null,null,null,null,"* (Reference Washington Department of Ecology for this Information) Check all that apply."]
[null,null,null," ",null,null,null,"Medium",null,null,null,null,null,null,null,null,null,null,null,null,null,"Pesticides",null,null,"Nutrients"]
[]
[null,"SVAP Summary",null,null,null,null,null,"Low",null,null,null,null,null,null,null,null,null,null,null,null,null,"Fecal Coliform",null,null,"Sediment"]
[]
[null,"1. Preliminary Assessment"]
[]
[null,"Type*",null,null,null,null,null,null,null,null,"Number",null,null,null,null,"Landuse*",null,null,null,null,null,null,"Percent"]
[null,"Dams",null,null,null,null,null,null,null,null,null,null,null,null,null,"Cropland"]
[null,"Water Control Structures",null,null,null,null,null,null,null,null,null,null,null,null,null,"Hayland"]
[null,"Irrigation Diversions",null,null,null,null,null,null,null,null,null,null,null,null,null,"Grazing/Pasture"]
[null,"Road Crossings",null,null,null,null,null,null,null,null,null,null,null,null,null,"Land in Conservation"]
[null,"Other:",null,null,null,null,null,null,null,null,null,null,null,null,null,"Forest"]
[null,"* Includes Evaluation Area.",null,null,null,null,null,null,null,null,null,null,null,null,null,"Urban"]
[null,null,null,null,null,null,null,null,null,null,null,null,null,null,null,"Industrial"]
[null,"How many Confined Animal Feeding Operations (CAFO's) are there? (Number of CAFO's up to three miles upstream of the Evaluation Area*)",null,null,null,null,null,null,null,null,null,null,null,null,null,"Other:"]
[null,null,null,null,null,null,null,null,null,null,null,null,null,null,null,{"$f":"COUNT(W33:W40)","v":0},null,null,null,null,null,"Total:",{"$f":"IF(P41=0,\" \",SUM(W33:W40))","v":" "}]
[null,null,null,null,null,null,null,null,null,null,null,null,null,null,null,"* Includes Evaluation Area."]
[]
[null,null,null,null,null,null,null,null,null,null,null,null,null,null,"Stream Miles"]
[null,null,null,null,null,null,null,null,null,null,null,null,null,null,null,null,null,null,null,"Number of stream miles on the landowners property"]
[]
[]
[null,"Aquatic species of management concern that would be expected to occur in the reach: ",null,null,null,null,null,null,null,null,null,null,null,false]
[null,null,null,null,null,null,null,null,null,null,null,null,null,false]
[null,null,null,null,null,null,null,null,null,null,null,null,null,false,null,null,null,null,null,"Number of total stream miles"]
[null,null,"Salmonids",null,null,null,null,null,null,false]
[null,null,"Char",null,null,null,null,null,null,false,null,null,null,null,null,null,null,null,null,"Percent of total stream under landowners control"]
[null,null,"Resident  Trout",null,null,null,null,null,null,false,null,null,null,null,null,{"$f":"IF(OR(P48<0.00001,P50<0.00001),\" \",P48/P50)","v":" "}]
[null,null,"Lamprey",null,null,null,null,null,null,false]
[null,null,"Non-Native Species",null,null,null,null,null,null,false]
[null,null,"Dace, whitefish",null,null,null,null,null,null,false,null,null,null,null,null,null,null,null,null,"Back to Top"]
[null,null,null,null,null,null,null,null,null,false]
[null,null,"Other:"]
[]
[]
[]
[]
[null,"Stream hydrology",null,null,null,null,null,null,null,null,null,null,null,null,null,null," Weather conditions today:"]
[]
[null," Intermittent",null,null,null,null,false,"Perennial",null,null,null,null,false,null,null,null,null,null,null,null,null,null,"Ambient Temperature:"]
[null,"             "]
[null,{"$f":"IF(G65=TRUE,\"Months of Year Wetted:\",(IF(M65=TRUE,\"Months of Year at Base Flow:\",\" \")))","v":" "},null,null,null,null,null,null,null,null,null,null,null,null,null,null,null,null,null,null,null,null,"Cloud Cover:"]
[null,null,null,"October",null,null,null,false,{"$f":"N(H68)","v":0}]
[null,null,null,"November",null,null,null,false,{"$f":"N(H69)","v":0},null,null,null,null,null,null,null,null,"Gradient:"]
[null,null,null,"December",null,null,null,false,0,null,null,null,null,null,null,false,null,null,null,"Low (0-2%)"]
[null,null,null,"January",null,null,null,false,0,null,null,null,null,null,null,false,null,null,null,"High (>2%)"]
[null,null,null,"February",null,null,null,false,0]
[null,null,null,"March",null,null,null,false,0]
[null,null,null,"April",null,null,null,false,0,null,null,null,null,null,null,"Dominant substrate (%):"]
[null,null,null,"May",null,null,null,false,0,null,null,null,null,null,null,null,null,"Boulder (>250 mm)"]
[null,null,null,"June",null,null,null,false,0,null,null,null,null,null,null,null,null,"Cobble (60-250mm)"]
[null,null,null,"July",null,null,null,false,0,null,null,null,null,null,null,null,null,"Gravel (2-60mm)"]
[null,null,null,"August",null,null,null,false,0,null,null,null,null,null,null,null,null,"Sand (2-0.06mm)"]
[null,null,null,"September",null,null,null,false,0,null,null,null,null,null,null,null,null,"Fine Sediments (<0.06mm)"]
[null,{"$f":"IF(AND(G65=FALSE,M65=FALSE),\" \",SUM(I68:I79))","v":" "},null,{"$f":"IF(G65=TRUE,\"Months of Year Wetted\",(IF(M65=TRUE,\"Months of Year at Base Flow\",\" \")))","v":" "},null,null,null,null,null,null,null,null,null,{"$f":"COUNT(O75:O79)","v":0},{"$f":"IF((N80=0),\" \",(SUM(O75:O79)))","v":" "},null,null,"Total"]
[]
[null," 2. Field Assessment: "]
[]
[null,"Reach Location",null,null,null,null,null,null,null,null,null,null,null,null,null,null,"Reach Description:"]
[]
[null,"Section",null,null,null,"Range",null,null,null,"Township"]
[]
[]
[]
[null,null,null,null,null,null,null,null,null,null,null,"Lat./Long."]
[null,"(degrees°minutes'seconds\" (just the numbers))"]
[]
[]
[null,"Weather Conditions over past 5 days   "]
[null,"Day",null,"Precipation Amount (in inches)",null,null,null,null,null,"Average Daytime Temperature (Fahrenheit)"]
[]
[]
[null,-1]
[null,-2]
[null,-3]
[null,-4]
[null,-5,null,null,null,null,null,null,{"$f":"COUNT(D98:G102)","v":0},null,null,null,null,null,null,{"$f":"COUNT(J98:J102)","v":0}]
[null,null,null,{"$f":"IF((I102=0),\" \",SUM(D98:D102))","v":" "},null,"Total Precip.",null,null,null,{"$f":"IF((P102=0),\" \",AVERAGE(J98:J102))","v":" "},null,null,"Average Temp."]
[]
[]
[null,"Riparian Cover Type(s):",null,null,null,null,null,null,null,null,null,null,null,null,null,null,null,null,null,null,null,"Bankfull channel width (Feet)"]
[]
[null,"Type",null,null,null,"Percent",null,null,"Most Dominant Plant",null,null,null,null,null,null,"Height",null,null,null,null,null,null,null,null,null,null,{"$f":"COUNT(AB105:AB108)","v":0}]
[null,"Forest",null,null,null,null,null,null,null,null,null,null,null,null,null,null,null,null,{"$f":"IF(S106<0.00001,\" \",S106*12)","v":" "},null,null,"Reach Length (12X bankfull width) (Feet)"]
[null,"Shrub"]
[null,"Herbaceous"]
[null,"Mixed"]
[null,"None",null,null,null,null,null,null,null,null,null,null,null,null,null,null,null,null,null,null,null,"Floodplain Width (Feet)"]
[null,{"$f":"COUNT(F108:F113)","v":0},null,null,"Total:",{"$f":"IF((B114=0),\" \",(SUM(F108:F113)))","v":" "}]
[null,"Measure height in Feet."]
[null,null,null,null,null,null,null,null,null,null,null,null,null,null,null,null,null,null,null,"Back to Top"]
[]
[]
[null,"Photo Point Locations and Descriptions:"]
[null,"Photo Pt. #",null,null,null,"GPS Coordinates/Waypoints",null,null,null,null,null,null,null,null,"Description"]
[null,1]
[null,2]
[null,3]
[]
[null,"Stream Visual Assessment Protocol (SVAP)"]
[]
[null,"B.  SVAP II Scores"]
[]
[null,null,"Cells with numbers that turn red are below the Planning Criteria."]
[]
[null,"Channel Condition",null,null,null,null,null,null,null,null,null,null,null,null,null,null,null,null,null,null,null,null,null,null,null,"Element 1"]
[]
[null,null,"Present",null,null,null,"10/9 =","Natural, stable channel with established bank vegetation.  No discernible signs of incision (such as vertical  banks) or aggradation (such as very shallow multiple channels); Active channel and floodplain are connected throughout reach, and flooded at natural intervals; Streambanks low with few or no bank failures; Stage I: Score 10, Stage; V: Score 9 (if terrace is visible); No more than  1 bar forming in channel."]
[]
[null,null,"No Action"]
[]
[null,null,"Planned A"]
[]
[]
[null,null,"Planned B",null,null,null,"8/7/6 =","If channel is incising (appears to be downcutting or degrading).  Evidence  of past incision and some recovery; some bank erosion possible; Active channel and floodplain are connected in most areas, inundated seasonally; Streambanks may be low or appear to be steepening; Top of point bars are below active floodplain.  Stage I: Score 8 Stage V: Score 7-8 Stage IV: Score 6."]
[]
[]
[]
[]
[]
[null,null,null,null,null,null,null,"If channel is aggrading (appears to be filling in and is relatively wide and shallow).  Minimal lateral migration and bank erosion; A few shallow places in reach, due to sediment deposits; Minimal bar formation (less than 3)."]
[]
[]
[]
[null,null,null,null,null,null,"5/4/3 =","If channel is incising (appears to be downcutting or degrading).  Active incision evident; plants are stressed, dying or falling in channel; Active channel appears to be disconnected from the floodplain, with infrequent or no inundation; Steep banks, bank failures evident or  imminent; Point bars located adjacent to steep banks. Stage IV: Score 5 Stage III: Score 4 Stage II: Score  3."]
[]
[]
[]
[]
[]
[null,null,null,null,null,null,null,"If channel is aggrading (appears to be filling in and is relatively wide and shallow).  Moderate lateral migration and bank erosion; Deposition of sediments causing channel to be very shallow in places; 3-4 bars in channel."]
[]
[]
[]
[null,null,null,null,null,null,"2/1 =","If channel is incising (appears to be downcutting or degrading) Headcuts or surface cracks on banks; active incision; vegetation very sparse; Little or no connection between floodplain and stream channel, and no inundation; Steep streambanks and failures prominent; Point bars, if present, located adjacent to steep banks.  Stage II or III, scores ranging from 2 to 0, depending on severity.  "]
[]
[]
[]
[]
[]
[null,null,null,null,null,null,null,"If channel is aggrading (appears to be filling in and is relatively wide and shallow).  Severe lateral channel migration, and bank erosion; Deposition of sediments causing channel to be very shallow in reach; Braided channels (5 or more bars in channel)."]
[]
[]
[]
[null,"Notes:"]
[]
[]
[]
[]
[]
[]
[]
[]
[null,null,null,null,null,null,null,null,null,null,null,null,null,null,null,null,null,null,null,null,null,"Back to Top"]
[]
[]
[null,"Hydrologic Alteration",null,null,null,null,null,null,null,null,null,null,null,null,null,null,null,null,null,null,null,null,null,null,null,"Element 2"]
[]
[null,null,"Present",null,null,null,"10/9 =","Bankfull or higher flows occur according to the flow regime that is characteristic of the site, generally every 1 to 2 years, and no dams, dikes, or development in the floodplain‡, or water control  structures are present ; and natural flow regime† prevails."]
[]
[null,null,"No Action"]
[]
[null,null,"Planned A"]
[null,null,null,null,null,"8/7/6 =",null,"Bankfull or higher flows occur only once every 3 to 5 years, or less often than the local natural flow regime.  Developments in the floodplain, stream water withdrawals, flow augmentation, or water control structures may be present but do not significantly alter the natural flow regime†. "]
[null,null,"Planned B"]
[]
[]
[]
[null,null,null,null,null,null,"5/4/3 =","Bankfull or higher flows occur only once every 6 to 10 years, or less often than the local natural flow regime.  Developments in the floodplain, stream water withdrawals, flow augmentation, or water control structures alter the natural flow regime†."]
[]
[]
[]
[null,null,null,null,null,null,"2/1 =","Bankfull or higher flows rarely occur.  Stream water withdrawals completely de-water channel; and/or flow augmentation, stormwater, or urban runoff discharges directly into stream and severely alters the natural flow regime†."]
[]
[]
[]
[null,"‡  “Development in the floodplain” refers to transportation infrastructure (i.e., roads, railways, etc.), commercial or residential development, land conversion for agriculture or other uses, and similar activities that alter the timing, concentration, and delivery of precipitation as surface runoff or subsurface drainage."]
[]
[]
[]
[]
[null,"† As used here, “natural flow regime” refers to streamflow patterns unaffected by water withdrawals, floodplain development, agricultural or wastewater effluents, and practices that change surface runoff (e.g., dikes and levees) or subsurface drainage (e.g., tile drainage systems)."]
[]
[]
[null,"Notes:"]
[]
[]
[]
[]
[]
[]
[]
[null,"Bank Condition ",null,null,null,null,null,null,null,null,null,null,null,null,null,null,null,null,null,null,null,null,null,null,null,"Element 3"]
[]
[null,"Left Bank",null,null,null,null,"10/9 =","Banks are stable; protected by roots of natural vegetation, wood, and rock†; No man-made structures present on bank; No excessive erosion or bank failures‡; No recreational or livestock access."]
[]
[null,null,"Present"]
[]
[null,null,"No Action",null,null,null,"8/7/6 =","Banks are moderately stable, protected by roots of natural vegetation,  wood, or rock or a combination of materials; Limited number of structures present on bank; Evidence of  erosion or bank failures, some with re-establishment of vegetation; Recreational use and/or grazing do not negatively impact bank condition."]
[]
[null,null,"Planned A"]
[]
[]
[null,null,"Planned B",null,null,null,"5/4/3 =","Banks are moderately unstable; very little protection of banks by roots of natural wood, vegetation, or rock; Man-made structures cover more than half of reach or entire bank; Excessive bank erosion or active bank failures; Recreational and/or livestock use are contributing to bank instability."]
[]
[]
[null,"Right Bank"]
[]
[null,null,"Present",null,null,null,"2/1 =","Banks are unstable; no bank protection with roots, wood, rock or vegetation; Riprap, and/or other  structures dominate banks; Numerous active bank failures; Recreational and/or livestock use are contributing to bank instability."]
[]
[null,null,"No Action"]
[]
[null,null,"Planned A",null,null,null,null,"† Natural wood and rock does not mean riprap, gabions, log cribs, or other man-made revetments."]
[]
[]
[null,null,"Planned B",null,null,null,null,"‡ “Bank failure” refers to a section of streambank that collapses and falls into the stream, usually because of slope instability."]
[]
[]
[null,null,null,null,null,null,null,null,null,null,null,null,null,null,null,null,null,null,null,null,null,"Back to Top"]
[]
[]
[null,"Notes:"]
[]
[]
[]
[]
[]
[]
[]
[]
[]
[null,"Riparian Area Quantity",null,null,null,null,null,null,null,null,null,null,null,null,null,null,null,null,null,null,null,null,null,null,null,"Element 4 East"]
[]
[null,"Riparian Buffer Width"]
[]
[null,"Left Bank",null,null,null,"Right Bank",null,null,null,null,"Complete the Riparian Area Tab to populate these entries."]
[]
[null,{"$f":"('Riparian Area (70%)'!$B$32)","v":" "},"Present",null,null,{"$f":"('Riparian Area (70%)'!$F$32)","v":" "},"Present"]
[]
[null,{"$f":"('Riparian Area (70%)'!$B$35)","v":" "},"No Action",null,null,{"$f":"('Riparian Area (70%)'!$F$35)","v":" "},"No Action",null,null,null,"To Riparian Area Tab"]
[]
[null,{"$f":"('Riparian Area (70%)'!$B$38)","v":" "},"Planned A",null,null,{"$f":"('Riparian Area (70%)'!$F$38)","v":" "},"Planned A"]
[]
[null,{"$f":"('Riparian Area (70%)'!$B$41)","v":" "},"Planned B",null,null,{"$f":"('Riparian Area (70%)'!$F$41)","v":" "},"Planned B"]
[]
[null,"Riparian Buffer Length"]
[]
[null,"Left Bank",null,null,null,"Right Bank",null,null,null,null,"Complete the Riparian Area Tab to populate these entries."]
[]
[null,{"$f":"('Riparian Area (70%)'!$B$78)","v":" "},"Present",null,null,{"$f":"('Riparian Area (70%)'!$F$78)","v":" "},"Present"]
[]
[null,{"$f":"('Riparian Area (70%)'!$B$80)","v":" "},"No Action",null,null,{"$f":"('Riparian Area (70%)'!$F$80)","v":" "},"No Action"]
[]
[null,{"$f":"('Riparian Area (70%)'!$B$83)","v":" "},"Planned A",null,null,{"$f":"('Riparian Area (70%)'!$F$83)","v":" "},"Planned A"]
[]
[null,{"$f":"('Riparian Area (70%)'!$B$85)","v":" "},"Planned B",null,null,{"$f":"('Riparian Area (70%)'!$F$85)","v":" "},"Planned B",null,null,null,null,null,null,null,null,null,null,null,null,null,null,"Back to Top"]
[]
[]
[]
[]
[]
[]
[]
[]
[]
[]
[null,"Riparian Area Quality",null,null,null,null,null,null,null,null,null,null,null,null,null,null,null,null,null,null,null,null,null,null,null,"Element 5"]
[]
[null,"Left Bank",null,null,null,null,"10/9 =","Natural and diverse riparian vegetation with composition, density and age structure appropriate for the site.  No invasive species or concentrated flows through area."]
[]
[null,null,"Present"]
[]
[null,null,"No Action",null,null,null,"8/7/6 =","Natural and diverse riparian vegetation with composition, density and age structure appropriate for the site.  Invasive species present in small numbers (20% cover or less)."]
[]
[null,null,"Planned A"]
[]
[null,null,"Planned B",null,null,null,"5/4/3 =","Natural vegetation compromised.  Evidence of concentrated flows running through the riparian area.  Invasive species common (>20%<50% cover)."]
[]
[null,"Right Bank"]
[null,null,null,null,null,"2/1 =",null,"Little or no natural vegetation.  Evidence of concentrated flows running through the riparian area.  Invasive species widespread (>50% cover)."]
[null,null,"Present"]
[]
[null,null,"No Action"]
[null,null,null,null,null,null,null,"Score should represent the entire stream riparian area within the property.  Score for this element = left bank score + right bank score /2."]
[null,null,"Planned A"]
[]
[null,null,"Planned B"]
[]
[]
[null,null,null,null,null,null,null,null,null,null,null,null,null,null,null,null,null,null,null,null,null,"Back to Top"]
[]
[]
[]
[null,"Notes:"]
[]
[]
[]
[]
[]
[]
[]
[]
[]
[]
[null,null,"Canopy Cover:",null,null,null," Coldwater Streams",null,null,null,null,null,false,null,null,null,null,null,null,null,null,null,null,null,null,"Element 6 Cold"]
[]
[null,null,"Present",null,null,null,"10/9 =",">75% of water surface shaded within the length of the stream in landowner’s property."]
[]
[]
[null,null,"No Action",null,null,null,"8/7/6 =","75% to 50% of water surface shaded within the length of the stream in landowner’s property."]
[]
[]
[null,null,"Planned A",null,null,null,"5/4/3 =","49% to 20% of water surface shaded within the length of the stream in landowner’s property."]
[]
[]
[null,null,"Planned B",null,null,null,"2/1 =","<20% of  water surface shaded within the length of the stream in landowner’s property."]
[]
[]
[null,"Canopy Cover: ",null,null,null,null," Warmwater Streams",null,null,null,null,null,false,null,null,null,null,null,null,null,null,null,null,null,null,"Element 6 Warm"]
[]
[null,null,"Present",null,null,null,"10/9 =","50 to 75% of water surface shaded within the length of the stream in landowner’s property."]
[]
[]
[null,null,"No Action",null,null,null,"8/7/6 =",">75% of water surface shaded within the length of the stream in landowner’s property."]
[]
[]
[null,null,"Planned A",null,null,null,"5/4/3 =","49% to 20% of water surface shaded within the length of the stream in landowner’s property."]
[]
[]
[null,null,"Planned B",null,null,null,"2/1 =","<20%  of water surface shaded within the length of the stream in landowner’s property."]
[]
[null,"Notes:"]
[]
[]
[]
[]
[]
[]
[]
[]
[]
[]
[]
[null,"Water Appearance",null,null,null,null,null,null,null,null,null,null,null,null,null,null,null,null,null,null,null,null,null,null,null,"Element 7"]
[]
[null,null,"Present",null,null,null,"10/9 =","Very clear, or clarity appropriate to site (3-6’). No motor oil sheen on surface; no evidence of metal  precipitates in streams."]
[]
[]
[null,null,"No Action",null,null,null,"8/7/6 =","Slightly turbid, especially after storm event, but water clears rapidly (>1.5-3’); no motor oil sheen on surface; no evidence of metal precipitates in stream."]
[]
[]
[null,null,"Planned A",null,null,null,"5/4/3 =","Turbid most of the time (0.5-1.5’) and/or presence of metal precipitates and/or motor oil sheen present in slackwater areas."]
[]
[]
[null,null,"Planned B",null,null,null,"2/1 =","High turbidity most of the time (<0.5’) and/or considerable amount of metal precipitates and/or motor oil sheen  present throughout reach."]
[]
[]
[null,null,null,null,null,null,null,null,null,null,null,null,null,null,null,null,null,null,null,null,null,"Back to Top"]
[]
[]
[null,"Notes:"]
[]
[]
[]
[]
[]
[]
[]
[]
[null,"Nutrient Enrichment",null,null,null,null,null,null,null,null,null,null,null,null,null,null,null,null,null,null,null,null,null,null,null,"Element 8"]
[]
[null,null,"Present",null,null,null,"10/9 =","Clear water along entire reach; little algal growth present. "]
[]
[null,null,"No Action",null,null,null,"8/7/6 =","Fairly clear or slightly greenish water; moderate algal growth on substrates. "]
[]
[null,null,"Planned A",null,null,null,"5/4/3 =","Greenish water particularly in slow sections; abundant algal growth, especially during warmer months; and/or slight odor of ammonia or rotten eggs; and/or sporadic growth of aquatic plants within slack water areas."]
[]
[null,null,"Planned B"]
[]
[null,null,null,null,null,null,"2/1 =","Pea green color present; thick algal mats dominating stream; and/or strong odor of ammonia or rotten eggs, and/or dense stands of aquatic plants widely dispersed."]
[]
[null,"Notes:"]
[]
[]
[]
[]
[]
[]
[]
[null,"Manure or Human Waste",null,null,null,null,null,null,null,null,null,null,null,null,null,null,null,null,null,null,null,null,null,null,null,"Element 9"]
[]
[null,null,"Present",null,null,null,"10/9 =","Livestock do not have  access to stream; no pipes or concentrated flows discharging animal waste or sewage directly into stream."]
[]
[]
[null,null,"No Action",null,null,null,"8/7/6 =","Livestock access to stream is controlled and/or  limited to small watering or crossing areas; no pipes or concentrated flows discharging animal waste or sewage directly into stream."]
[]
[]
[]
[null,null,"Planned A",null,null,null,"5/4/3 =","Livestock have unlimited access to stream during some portion of the year; pipes or concentrated flows discharge treated animal waste or sewage directly into stream. "]
[]
[]
[null,null,"Planned B",null,null,null,"2/1 =","Livestock have unlimited access to stream during entire year; pipes or concentrated flows discharge untreated animal waste or sewage directly into stream."]
[]
[null,"Notes:"]
[]
[]
[]
[]
[]
[]
[]
[null,null,"Pools: Low-Gradient Streams (<2%)",null,null,null,null,null,null,null,null,null,null,null,null,null,null,null,null,null,null,null,null,null,null,"Element 10 Low"]
[]
[null,null,"Present",null,null,null,"10/9 =","More than 2 deep pools separated by riffles, each with greater than 30% of the pool bottom obscured by depth, wood, or other cover. Shallow pools also present."]
[null,false]
[]
[null,null,"No Action",null,null,null,"8/7/6 =","One or 2 deep pools separated by riffles, each with greater than 30% of the pool bottom obscured by depth wood, or other cover; at least one shallow pool present."]
[]
[]
[null,null,"Planned A",null,null,null,"5/4/3 =","Pools present but shallow (< 2 times maximum depth of the upstream riffle). Only 10 – 30% of pool bottoms are obscured due to depth or wood cover."]
[]
[]
[null,null,"Planned B",null,null,null,"2/1 =","Pools absent, but some slow water habitat is available; no cover discernible. OR Reach is dominated by shallow continuous pools or slow water."]
[]
[null,null,null,null,null,null,null,null,null,null,null,null,null,null,null,null,null,null,null,null,null,"Back to Top"]
[]
[]
[null,"Notes:"]
[]
[]
[]
[]
[]
[]
[]
[null,null,"Pools: High-Gradient Streams (>2%)",null,null,null,null,null,null,null,null,null,null,null,null,null,null,null,null,null,null,null,null,null,null,"Element 10 High"]
[]
[null,null,"Present",null,null,null,"10/9 =","More than 3 deep pools separated by boulders or wood, each with greater than 30% of the pool bottom obscured by depth, wood, or other cover. For small streams, pool bottoms may not be completely obscured by depth, but pools are deep enough to provide adequate cover for resident fish.  Shallow pools also present."]
[]
[null,null,"No Action"]
[]
[]
[]
[null,null,"Planned A",null,null,null,"8/7/6 =","Two to 3 deep pools, each with greater than 30% of the pool bottom obscured by depth wood, or other cover; at least one shallow pool present. For small streams, pool bottoms may not be completely obscured by depth, but pools are deep enough to provide some cover for resident fish.  At least one shallow pool also present."]
[]
[null,null,"Planned B"]
[]
[null,false]
[]
[null,null,null,null,null,null,"5/4/3 =","Pools present but relatively shallow, with only 10 – 30% of pool bottoms  obscured by depth or wood cover.  For small streams, pool bottoms may not be completely obscured by depth, but pools are deep enough to provide minimal cover for resident fish. No shallow pools present."]
[]
[]
[]
[]
[null,null,null,null,null,null,"2/1 =","Pools absent."]
[]
[null,"Barriers to Aquatic Species Movement",null,null,null,null,null,null,null,null,null,null,null,null,null,null,null,null,null,null,null,null,null,null,null,"Element 11"]
[]
[null,null,"Present",null,null,null,"10 =","No artificial barriers that prohibit movement of aquatic organisms during any time of the year."]
[]
[]
[null,null,"No Action",null,null,null,"9/8/7 =","Physical structures, water withdrawals and/or water quality seasonally restrict movement of aquatic species."]
[]
[]
[null,null,"Planned A",null,null,null,"6/5/4/3 =","Physical structures, water withdrawals and/or water quality restrict movement  of aquatic species throughout the year."]
[]
[]
[null,null,"Planned B",null,null,null,"2/1 =","Physical structures, water withdrawals and/or water quality prohibit movement of aquatic species."]
[]
[]
[null,null,"When addressing this element, assess a length of stream at least 12 times the bankfull width, or the entire stream length on the landowner’s property, whichever is greater.  Be sure to detail in the notes the species and life stages of aquatic organisms for which you are evaluating barriers."]
[]
[]
[]
[null,"Notes:"]
[]
[]
[]
[]
[]
[]
[]
[]
[]
[]
[]
[]
[null,null,null,null,null,null,null,null,null,null,null,null,null,null,null,null,null,null,null,null,null,"Back to Top"]
[]
[]
[null,"Fish Habitat Complexity",null,null,null,null,null,null,null,null,null,null,null,null,null,null,null,null,null,null,null,null,null,null,null,"Element 12"]
[]
[null,null,"Present",null,null,null,"10/9 =","10 or more habitat features available, at least one of which is considered optimal in reference sites (e.g., large wood in forested streams.)"]
[]
[]
[null,null,"No Action",null,null,null,"8/7 =","8 to 9 habitat features available."]
[]
[null,null,"Planned A",null,null,null,"6/5 =","6 to 7 habitat features available."]
[]
[null,null,"Planned B",null,null,null,"4/3 =","4 to 5 habitat features available."]
[]
[null,null,null,null,null,null,"2/1 =","Less than 4 habitat features available."]
[]
[null,null,"Fish habitat features:  Logs/Large wood, deep pools, other pools (i.e. scour, plunge, shallow, pocket) overhanging vegetation, boulders, cobble, riffles, undercut banks, thick root mats, dense macrophyte beds, backwater pools, and other off-channel habitats."]
[]
[]
[]
[null,"Notes:"]
[]
[]
[]
[]
[]
[]
[]
[null,"Aquatic Invertebrate Habitat ",null,null,null,null,null,null,null,null,null,null,null,null,null,null,null,null,null,null,null,null,null,null,null,"Element 13"]
[]
[null,null,"Present",null,null,null,"10/9 =","At least 9 types of habitat present; a combination of wood with riffles should be present and suitable in addition to other types of habitat.  (If non-forested stream, consider reference site’s optimal habitat type needed for this high score.)"]
[]
[]
[]
[null,null,"No Action",null,null,null,"8/7/6 =","8 to 6 types of habitat; site may be in need of more wood or reference habitat features,  and  stable wood-riffle sections."]
[]
[]
[null,null,"Planned A",null,null,null,"5/4 =","5 to 4 types of habitat present"]
[]
[null,null,"Planned B",null,null,null,"3/2 =","3 to 2 types of  habitat present."]
[]
[null,null,null,null,null,null,"1 =","None to 1 type of habitat present."]
[null,"Notes:"]
[]
[]
[]
[]
[]
[]
[]
[null,"Aquatic Invertebrate Community ",null,null,null,null,null,null,null,null,null,null,null,null,null,null,null,null,null,null,null,null,null,null,null,"Element 14"]
[]
[null,null,"Present",null,null,null,"10/9/8 =","Invertebrate community is diverse and well represented by Group I or intolerant species; One or two species do not dominate."]
[]
[]
[null,null,"No Action",null,null,null,"7/6/5 =","Invertebrate community is well represented by Group II or facultative species, and Group I species are also present; one or two species do not dominate."]
[]
[]
[null,null,"Planned A",null,null,null,"4/3/2 =","Invertebrate community is composed mainly of Groups II and III, and/or 1 or 2 species of any group may dominate."]
[]
[]
[null,null,"Planned B",null,null,null,"1 =","Invertebrate community composition is predominantly Group III species and/or only 1 or 2 species of any group is present and abundance is low."]
[]
[null,"Notes:"]
[]
[]
[]
[]
[]
[]
[]
[null,null,null,null,null,null,null,null,null,null,null,null,null,null,null,null,null,null,null,null,null,"Back to Top"]
[]
[null,null,"Riffle Embeddedness (optional)",null,null,null,null,null,null,null,null,false,null,null,null,null,null,null,null,null,null,null,null,null,null,"Element 15"]
[]
[null,null,"Present",null,null,null,"10/9 =","Gravel or cobble substrates are less than 10% embedded."]
[]
[null,null,"No Action",null,null,null,"8/7 =","Gravel or cobble substrates are 10-20% embedded. "]
[]
[null,null,"Planned A",null,null,null,"6/5 =","Gravel or cobble substrates are 21-30% embedded."]
[]
[null,null,"Planned B",null,null,null,"4/3 =","Gravel or cobble substrates are 31-40% embedded."]
[]
[null,null,null,null,null,null,"2/1 =","Gravel or cobble substrates are more than 40% embedded."]
[]
[null,"This element should be used only in riffle areas and in streams where this is a natural feature. "]
[]
[null,"Notes:"]
[]
[]
[]
[]
[]
[]
[]
[]
[]
[]
[null,null,"Salinity (optional)",null,null,null,null,false,null,null,null,null,null,null,null,null,null,null,null,null,null,null,null,null,null,"Element 16"]
[]
[null,null,"Present",null,null,null,"10/9/8 =","No wilting, bleaching, leaf burn or stunting of aquatic vegetation, no streamside salt- tolerant vegetation present."]
[]
[]
[null,null,"No Action",null,null,null,"7/6/5 =","Minimal wilting, bleaching, leaf burn, or stunting of aquatic vegetation; some salt-tolerant stream side vegetation."]
[]
[]
[null,null,"Planned A",null,null,null,"4/3 =","Aquatic vegetation may show significant wilting, bleaching, leaf burn, or stunting; dominance of salt-tolerant streamside vegetation."]
[]
[]
[null,null,"Planned B",null,null,null,"2/1 =","Severe wilting, bleaching, leaf burn, or stunting; presence of only salt tolerant aquatic vegetation; most streamside vegetation is salt tolerant."]
[]
[null,"Notes:"]
[]
[]
[]
[]
[]
[]
[]
[]
[]
[]
[null,null,null,null,"Do not assess this element unless elevated salinity levels caused by people are suspected."]
[]
[]
[null,"Please complete the riparian section of this Habitat Evaluation Guide."]
[]
[null,"Evaluate water quality according to the quality criteria outlined in the Field Office Technical Guide."]
[]
[]
[]
[]
[]
[]
[]
[]
[null,null,"Evaluation Summary",null,null,null,null,null,null,null,null,null,null,null,null,null,null,null,null,null,null,"Back to Top"]
[]
[]
[null,null,null,null,null,null,null,null,null,null,null,null,null,null,"Score"]
[null,null,null,null,null,null,null,null,null,null,null,null,null,null,"Present",null,null,"No Action",null,null,"Planned A",null,null,"Planned           B"]
[null,null,null,"Element"]
[null,1,null,"Channel Condition",null,null,null,null,null,null,null,null,null,null,{"$f":"IF(ISBLANK($B133),\" \",$B133)","v":" "},null,null,{"$f":"IF(ISBLANK($B135),\" \",$B135)","v":" "},null,null,{"$f":"IF(ISBLANK($B137),\" \",$B137)","v":" "},null,null,{"$f":"IF(ISBLANK($B140),\" \",$B140)","v":" "}]
[null,2,null,"Hydrologic Alteration",null,null,null,null,null,null,null,null,null,null,{"$f":"IF(ISBLANK($B184),\" \",$B184)","v":" "},null,null,{"$f":"IF(ISBLANK($B186),\" \",$B186)","v":" "},null,null,{"$f":"IF(ISBLANK($B188),\" \",$B188)","v":" "},null,null,{"$f":"IF(ISBLANK($B190),\" \",$B190)","v":" "}]
[null,"3L",null,"Bank Condition (Left Bank)",null,null,null,null,null,null,null,null,null,null,{"$f":"IF(ISBLANK($B222),\" \",$B222)","v":" "},null,null,{"$f":"IF(ISBLANK($B224),\" \",$B224)","v":" "},null,null,{"$f":"IF(ISBLANK($B226),\" \",$B226)","v":" "},null,null,{"$f":"IF(ISBLANK($B229),\" \",$B229)","v":" "}]
[null,"3R",null,"Bank Condition (Right Bank)",null,null,null,null,null,null,null,null,null,null,{"$f":"IF(ISBLANK($B234),\" \",$B234)","v":" "},null,null,{"$f":"IF(ISBLANK($B236),\" \",$B236)","v":" "},null,null,{"$f":"IF(ISBLANK($B238),\" \",$B238)","v":" "},null,null,{"$f":"IF(ISBLANK($B241),\" \",$B241)","v":" "}]
[null,null,"3AV","Bank Condition (Average)",null,null,null,null,null,null,null,null,null,null,{"$f":"IF(OR(ISBLANK($B222),ISBLANK($B234)),\" \",((($O657+$O658)/2)))","v":" "},null,null,{"$f":"IF(OR(ISBLANK($B224),ISBLANK($B236)),\" \",((($R657+$R658)/2)))","v":" "},null,null,{"$f":"IF(OR(ISBLANK($B226),ISBLANK($B238)),\" \",((($U657+$U658)/2)))","v":" "},null,null,{"$f":"IF(OR(ISBLANK($B229),ISBLANK($B241)),\" \",((($X657+$X658)/2)))","v":" "}]
[null,"4WL",null,"Riparian Quantity Width (Left Bank)",null,null,null,null,null,null,null,null,null,null,{"$f":"IF(ISBLANK($B263),\" \",$B263)","v":" "},null,null,{"$f":"IF(ISBLANK($B265),\" \",$B265)","v":" "},null,null,{"$f":"IF(ISBLANK($B267),\" \",$B267)","v":" "},null,null,{"$f":"IF(ISBLANK($B269),\" \",$B269)","v":" "}]
[null,"4WR",null,"Riparian Quantity Width (Right Bank)",null,null,null,null,null,null,null,null,null,null,{"$f":"IF(ISBLANK($F$263),\" \",$F$263)","v":" "},null,null,{"$f":"IF(ISBLANK($F$265),\" \",$F$265)","v":" "},null,null,{"$f":"IF(ISBLANK($F$267),\" \",$F$267)","v":" "},null,null,{"$f":"IF(ISBLANK($F$269),\" \",$F$269)","v":" "}]
[null,"4WAV",null,"Riparian Quantity Width (Average)",null,null,null,null,null,null,null,null,null,null,{"$f":"IF(OR($O660=\" \",O661=\" \"),\" \",((($O660+$O661)/2)))","v":" "},null,null,{"$f":"IF(OR($O660=\" \",R661=\" \"),\" \",((($O660+$O661)/2)))","v":" "},null,null,{"$f":"IF(OR($U660=\" \",U661=\" \"),\" \",((($U660+$U661)/2)))","v":" "},null,null,{"$f":"IF(OR($X660=\" \",X661=\" \"),\" \",((($X660+$X661)/2)))","v":" "}]
[null,"4LL",null,"Riparian Quantity Length (Left Bank)",null,null,null,null,null,null,null,null,null,null,{"$f":"IF(ISBLANK($B275),\" \",$B275)","v":" "},null,null,{"$f":"IF(ISBLANK($B277),\" \",$B277)","v":" "},null,null,{"$f":"IF(ISBLANK($B279),\" \",$B279)","v":" "},null,null,{"$f":"IF(ISBLANK($B281),\" \",$B281)","v":" "}]
[null,"4LR",null,"Riparian Quantity Length (Right Bank)",null,null,null,null,null,null,null,null,null,null,{"$f":"IF(ISBLANK($F$275),\" \",$F$275)","v":" "},null,null,{"$f":"IF(ISBLANK($F$277),\" \",$F$277)","v":" "},null,null,{"$f":"IF(ISBLANK($F$279),\" \",$F$279)","v":" "},null,null,{"$f":"IF(ISBLANK($F$281),\" \",$F$281)","v":" "}]
[null,"4LAV",null,"Riparian Quantity Length (Average)",null,null,null,null,null,null,null,null,null,null,{"$f":"IF(OR($O663=\" \",O664=\" \"),\" \",((($O663+$O664)/2)))","v":" "},null,null,{"$f":"IF(OR($O663=\" \",R664=\" \"),\" \",((($O663+$O664)/2)))","v":" "},null,null,{"$f":"IF(OR($O663=\" \",U664=\" \"),\" \",((($U663+$U664)/2)))","v":" "},null,null,{"$f":"IF(OR($O663=\" \",X664=\" \"),\" \",((($X663+$X664)/2)))","v":" "}]
[null,"5L",null,"Riparian Quality (Left Bank)",null,null,null,null,null,null,null,null,null,null,{"$f":"IF(ISBLANK($B296),\" \",$B296)","v":" "},null,null,{"$f":"IF(ISBLANK($B298),\" \",$B298)","v":" "},null,null,{"$f":"IF(ISBLANK($B300),\" \",$B300)","v":" "},null,null,{"$f":"IF(ISBLANK($B302),\" \",$B302)","v":" "}]
[null,"5R",null,"Riparian Quality (Right Bank)",null,null,null,null,null,null,null,null,null,null,{"$f":"IF(ISBLANK($B306),\" \",$B306)","v":" "},null,null,{"$f":"IF(ISBLANK($B308),\" \",$B308)","v":" "},null,null,{"$f":"IF(ISBLANK($B310),\" \",$B310)","v":" "},null,null,{"$f":"IF(ISBLANK($B312),\" \",$B312)","v":" "}]
[null,"5AV",null,"Riparian Quality (Average)",null,null,null,null,null,null,null,null,null,null,{"$f":"IF(OR(ISBLANK($B296),ISBLANK($B306)),\" \",((($O666+$O667)/2)))","v":" "},null,null,{"$f":"IF(OR(ISBLANK($B298),ISBLANK($B308)),\" \",((($R666+$R667)/2)))","v":" "},null,null,{"$f":"IF(OR(ISBLANK($B300),ISBLANK($B310)),\" \",((($U666+$U667)/2)))","v":" "},null,null,{"$f":"IF(OR(ISBLANK($B302),ISBLANK($B312)),\" \",((($X666+$X667)/2)))","v":" "}]
[null,6,null,{"$f":"IF(AND(M330=TRUE,M344=FALSE),\"Canopy Cover (Cold Water)\",IF(AND($M$344=TRUE,M332=FALSE),\"Canopy Cover (Warm Water)\",\"Canopy Cover (Check Cold or Warm)\"))","v":"Canopy Cover (Check Cold or Warm)"},null,null,null,null,null,null,null,null,null,null,{"$f":"IF(AND(ISBLANK($B332),(ISBLANK($B346))),\" \",IF($M$330=TRUE,$B332,IF($M$344=TRUE,$B346,\" \")))","v":" "},null,null,{"$f":"IF(AND(ISBLANK($B335),(ISBLANK($B349))),\" \",IF($M$330=TRUE,$B335,IF($M$344=TRUE,$B349,\" \")))","v":" "},null,null,{"$f":"IF(AND(ISBLANK($B338),(ISBLANK($B352))),\" \",IF($M$330=TRUE,$B338,IF($M$344=TRUE,$B352,\" \")))","v":" "},null,null,{"$f":"IF(AND(ISBLANK($B341),(ISBLANK($B355))),\" \",IF($M$330=TRUE,$B341,IF($M$344=TRUE,$B355,\" \")))","v":" "}]
[null,7,null,"Water Appearance",null,null,null,null,null,null,null,null,null,null,{"$f":"IF(ISBLANK($B371),\" \",$B371)","v":" "},null,null,{"$f":"IF(ISBLANK($B374),\" \",$B374)","v":" "},null,null,{"$f":"IF(ISBLANK($B377),\" \",$B377)","v":" "},null,null,{"$f":"IF(ISBLANK($B380),\" \",$B380)","v":" "}]
[null,8,null,"Nutrient Enrichment",null,null,null,null,null,null,null,null,null,null,{"$f":"IF(ISBLANK($B397),\" \",$B397)","v":" "},null,null,{"$f":"IF(ISBLANK($B399),\" \",$B399)","v":" "},null,null,{"$f":"IF(ISBLANK($B401),\" \",$B401)","v":" "},null,null,{"$f":"IF(ISBLANK($B403),\" \",$B403)","v":" "}]
[null,9,null,"Manure or Human Waste",null,null,null,null,null,null,null,null,null,null,{"$f":"IF(ISBLANK($B417),\" \",$B417)","v":" "},null,null,{"$f":"IF(ISBLANK($B420),\" \",$B420)","v":" "},null,null,{"$f":"IF(ISBLANK($B424),\" \",$B424)","v":" "},null,null,{"$f":"IF(ISBLANK($B427),\" \",$B427)","v":" "}]
[null,{"$f":"IF(AND(B440=TRUE,B473=FALSE),\"10L\",IF(AND(B440=FALSE,B473=TRUE),\"10H\",10))","v":10},null,{"$f":"IF(AND($B$440=TRUE,$B$473=FALSE),\"Pools (Low Gradient)\",IF(AND($B$473=TRUE,$B$440=FALSE),\"Pools (High Gradient)\",\"Pools (Check High or Low)\"))","v":"Pools (Check High or Low)"},null,null,null,null,null,null,null,null,null,null,{"$f":"IF(AND(($B$440=FALSE),($B$473=FALSE)),\" \",IF($B$440=TRUE,$B$439,$B$463))","v":" "},null,null,{"$f":"IF(AND(($B$440=FALSE),($B$473=FALSE)),\" \",IF($B$440=TRUE,$B$442,$B$465))","v":" "},null,null,{"$f":"IF(AND(($B$440=FALSE),($B$473=FALSE)),\" \",IF($B$440=TRUE,$B$445,$B$469))","v":" "},null,null,{"$f":"IF(AND(($B$440=FALSE),($B$473=FALSE)),\" \",IF($B$440=TRUE,$B$448,$B$471))","v":" "}]
[null,11,null,"Barriers to Movement",null,null,null,null,null,null,null,null,null,null,{"$f":"IF(ISBLANK($B484),\" \",$B484)","v":" "},null,null,{"$f":"IF(ISBLANK($B487),\" \",$B487)","v":" "},null,null,{"$f":"IF(ISBLANK($B490),\" \",$B490)","v":" "},null,null,{"$f":"IF(ISBLANK($B493),\" \",$B493)","v":" "}]
[null,12,null,"Fish Habitat Complexity",null,null,null,null,null,null,null,null,null,null,{"$f":"IF(ISBLANK($B518),\" \",$B518)","v":" "},null,null,{"$f":"IF(ISBLANK($B521),\" \",$B521)","v":" "},null,null,{"$f":"IF(ISBLANK($B523),\" \",$B523)","v":" "},null,null,{"$f":"IF(ISBLANK($B525),\" \",$B525)","v":" "}]
[null,13,null,"Aquatic Invertebrate Habitat ",null,null,null,null,null,null,null,null,null,null,{"$f":"IF(ISBLANK($B543),\" \",$B543)","v":" "},null,null,{"$f":"IF(ISBLANK($B547),\" \",$B547)","v":" "},null,null,{"$f":"IF(ISBLANK($B550),\" \",$B550)","v":" "},null,null,{"$f":"IF(ISBLANK($B552),\" \",$B552)","v":" "}]
[null,14,null,"Aquatic Invertebrate Community",null,null,null,null,null,null,null,null,null,null,{"$f":"IF(ISBLANK($B565),\" \",$B565)","v":" "},null,null,{"$f":"IF(ISBLANK($B568),\" \",$B568)","v":" "},null,null,{"$f":"IF(ISBLANK($B571),\" \",$B571)","v":" "},null,null,{"$f":"IF(ISBLANK($B574),\" \",$B574)","v":" "}]
[null,15,null,"Riffle Embeddedness*",null,null,null,null,null,null,null,null,null,{"$f":"IF((L586=FALSE),\"Not Scored\",\"Included\")","v":"Not Scored"},{"$f":"IF(OR(($L$586=FALSE),(ISBLANK($B588))),\" \",$B588)","v":" "},null,null,{"$f":"IF(OR(($L$586=FALSE),(ISBLANK($B590))),\" \",$B590)","v":" "},null,null,{"$f":"IF(OR(($L$586=FALSE),(ISBLANK($B592))),\" \",$B592)","v":" "},null,null,{"$f":"IF(OR(($L$586=FALSE),(ISBLANK($B594))),\" \",$B594)","v":" "}]
[null,16,null,"Salinity*",null,null,null,null,null,null,null,null,null,{"$f":"IF((H611=FALSE),\"Not Scored\",\"Included\")","v":"Not Scored"},{"$f":"IF(OR(($H$611=FALSE),(ISBLANK($B613))),\" \",$B613)","v":" "},null,null,{"$f":"IF(OR(($H$611=FALSE),(ISBLANK($B616))),\" \",$B616)","v":" "},null,null,{"$f":"IF(OR(($H$611=FALSE),(ISBLANK($B619))),\" \",$B619)","v":" "},null,null,{"$f":"IF(OR(($H$611=FALSE),(ISBLANK($B622))),\" \",$B622)","v":" "}]
[null,"A.",null,"Sum of all elements scored:",null,null,null,null,null,null,null,null,null,null,{"$f":"IF(O681=\" \",\" \",SUM(O655,O656,O659,O662,O665,O668,O669:O679))","v":" "},null,null,{"$f":"IF(R681=\" \",\" \",SUM(R655,R656,R659,R662,R665,R668,R669:R679))","v":" "},null,null,{"$f":"IF(U681=\" \",\" \",SUM(U655,U656,U659,U662,U665,U668,U669:U679))","v":" "},null,null,{"$f":"IF(X681=\" \",\" \",SUM(X655,X656,X659,X662,X665,X668,X669:X679))","v":" "}]
[null,"B.",null,"Number of  elements scored:",null,null,null,null,null,null,null,null,null,null,{"$f":"IF(COUNT(O655,O656,O659,O662,O665,O668,O669,O670,O671,O672,O673,O674,O675,O676,O677,O678,O679)=0,\" \",COUNT(O655,O656,O659,O662,O665,O668,O669,O670,O671,O672,O673,O674,O675,O676,O677,O678,O679))","v":" "},null,null,{"$f":"IF(COUNT(R655,R656,R659,R662,R665,R668,R669,R670,R671,R672,R673,R674,R675,R676,R677,R678,R679)=0,\" \",COUNT(R655,R656,R659,R662,R665,R668,R669,R670,R671,R672,R673,R674,R675,R676,R677,R678,R679))","v":" "},null,null,{"$f":"IF(COUNT(U655,U656,U659,U662,U665,U668,U669,U670,U671,U672,U673,U674,U675,U676,U677,U678,U679)=0,\" \",COUNT(U655,U656,U659,U662,U665,U668,U669,U670,U671,U672,U673,U674,U675,U676,U677,U678,U679))","v":" "},null,null,{"$f":"IF(COUNT(X655,X656,X659,X662,X665,X668,X669,X670,X671,X672,X673,X674,X675,X676,X677,X678,X679)=0,\" \",COUNT(X655,X656,X659,X662,X665,X668,X669,X670,X671,X672,X673,X674,X675,X676,X677,X678,X679))","v":" "}]
[null,"A/B",null,"Overall score:",null,null,null,null,null,null,null,null,null,null,{"$f":"IF(O681=\" \",\" \",(O680/O681))","v":" "},null,null,{"$f":"IF(R681=\" \",\" \",(R680/R681))","v":" "},null,null,{"$f":"IF(U681=\" \",\" \",(U680/U681))","v":" "},null,null,{"$f":"IF(X681=\" \",\" \",(X680/X681))","v":" "}]
[]
[null,"* Elements in tan (15 & 16) are optional."]
[]
[null,null,null,"1 to 2.9     Severely Degraded",null,null,null,null,null,null,null,null,"Stream Condition O"]
[null,null,null,"3 to 4.9     Poor",null,null,null,null,null,null,null,null,"Present:",null,null,null,{"$f":"$O$682","v":" "},null,{"$f":"IF(COUNT($O$655:$O$679)=0,\" \",$P$693)","v":" "}]
[null,null,null,"5 to 6.9     Fair",null,null,null,null,null,null,null,null,"No Action:",null,null,null,{"$f":"$R$682","v":" "},null,{"$f":"IF(COUNT($R$655:$R$679)=0,\" \",$P$694)","v":" "}]
[null,null,null,"7 to 8.9     Good",null,null,null,null,null,null,null,null,"Planned A:",null,null,null,{"$f":"$U$682","v":" "},null,{"$f":"IF(COUNT($U$655:$U$679)=0,\" \",$P$695)","v":" "}]
[null,null,null,"9 to 10      Excellent",null,null,null,null,null,null,null,null,"Planned B:",null,null,null,{"$f":"$X$682","v":" "},null,{"$f":"IF(COUNT($X$655:$X$679)=0,\" \",$P$696)","v":" "}]
[null,null,null,null,null,null,null,null,null,null,null,null,"O Stream Conditions in red are below planning criteria."]
[]
[null,null,null,null,null,null,null,null,null,null,null,"Present:",null,null,null,{"$f":"IF(Q687<2.999,\"Severely Degraded\",Q693)","v":"Excellent"},{"$f":"IF(Q687<4.999,\"Poor\",R693)","v":"Excellent"},{"$f":"IF(Q687<6.999,\"Fair\",S693)","v":"Excellent"},{"$f":"IF(Q687<8.999,\"Good\",T693)","v":"Excellent"},"Excellent"]
[null,null,null,null,null,null,null,null,null,null,null,"No Action:",null,null,null,{"$f":"IF(Q688<2.999,\"Severely Degraded\",Q694)","v":"Excellent"},{"$f":"IF(Q688<4.999,\"Poor\",R694)","v":"Excellent"},{"$f":"IF(Q688<6.999,\"Fair\",S694)","v":"Excellent"},{"$f":"IF(Q688<8.999,\"Good\",T694)","v":"Excellent"},"Excellent",null,null,"X"]
[null,null,null,null,null,null,null,null,null,null,null,"Planned A:",null,null,null,{"$f":"IF(Q689<2.999,\"Severely Degraded\",Q695)","v":"Excellent"},{"$f":"IF(Q689<4.999,\"Poor\",R695)","v":"Excellent"},{"$f":"IF(Q689<6.999,\"Fair\",S695)","v":"Excellent"},{"$f":"IF(Q689<8.999,\"Good\",T695)","v":"Excellent"},"Excellent"]
[null,null,null,null,null,null,null,null,null,null,null,"Planned B:",null,null,null,{"$f":"IF(Q690<2.999,\"Severely Degraded\",Q696)","v":"Excellent"},{"$f":"IF(Q690<4.999,\"Poor\",R696)","v":"Excellent"},{"$f":"IF(Q690<6.999,\"Fair\",S696)","v":"Excellent"},{"$f":"IF(Q690<8.999,\"Good\",T696)","v":"Excellent"},"Excellent"]
[]
[]
[]
[null,null,"Evaluation Summary",null,null,null,null,null,null,null,null,null,null,null,null,null,null,null,null,null,null,"Back to Top"]
[]
[]
[null,"Exemptions to meeting Planning Criteria"]
[]
[null,"Here is a list of reasons why a landowner might still meet Planning Criteria even if their SVAP2 score is low:"]
[]
[]
[null,"Check one of more boxes below as rationale for why a SVAP2 element is below Planning Criteria, and out of the participants control to address when working to meet Planning Criteria.  In all these cases, the client’s management of the riparian area and upland practices must not adversely affect stream habitat and function.  These watershed issues must be reviewed and approved by an NRCS Biologist or Area Resource Conservationist before any stream resource concern can be dismissed from the planning process."]
[]
[]
[]
[]
[]
[]
[null,null,null,"A. A natural event, such as the eruption of Mount St. Helens, a forest fire in the watershed or a major flood event added excess stream sediment to the channel or caused changes to the channel condition."]
[]
[]
[null,"Notes:"]
[]
[]
[]
[]
[]
[]
[]
[null,null,null,"B. A dam (including beaver dams), bridge, or other structure, is upstream or downstream of the client’s property."]
[]
[null,"Notes:"]
[]
[]
[]
[]
[]
[]
[]
[null,null,null,"C. The client does not own both sides of the stream, and the bank owned by someone else is highly erosive or has structures (i.e., riprap)?"]
[]
[null,"Notes:"]
[]
[]
[]
[]
[]
[]
[]
[null,null,null,"D. The client does not own both sides of the stream, and the riparian area owned by someone else is small or narrow with many gaps?"]
[]
[null,"Notes:"]
[]
[]
[]
[]
[]
[]
[]
[]
[null,null,null,"E. The client does not own both sides of the stream and the riparian area owned by someone else is not diverse and/or has a high percentage of invasive species."]
[]
[null,"Notes:"]
[]
[]
[]
[]
[]
[]
[]
[null,null,null,"F. If there is evidence of oil or excess sediment (turbidity) in the stream, but client doesn’t have any road crossings and has a wide riparian buffer."]
[]
[null,"Notes:"]
[]
[]
[]
[]
[]
[]
[]
[null,null,null,"G. There is evidence of excess nutrients, but client has a nutrient management plan, with a wide riparian buffer and doesn’t allow grazing within the riparian area."]
[]
[null,"Notes:"]
[]
[]
[]
[]
[]
[]
[]
[null,null,null,"H. Other (fill in): "]
[]
[]
[]
[]
[null,"Notes:"]
[]
[]
[]
[]
[]
[]
[]
[]
[null,null,"Evaluation Summary",null,null,null,null,null,null,null,null,null,null,null,null,null,null,null,null,null,null,"Back to Top"]

{"sheet":"SVAP II Narrative","index":17,"n_rows":537,"n_cols":11,"rows_kept":537,"cut":false,"hidden":false,"merged":[[232,1,232,7],[250,1,250,8],[267,1,267,8],[293,1,293,8],[297,2,298,10],[286,1,288,10],[282,2,285,10],[335,1,338,10],[378,9,378,11],[333,1,333,7],[271,2,277,10],[254,2,260,10],[262,2,265,10],[238,2,239,9],[241,2,242,8],[244,2,245,8],[302,2,303,9],[305,2,309,10],[311,2,312,10],[278,2,281,11],[536,9,536,11],[515,2,517,10],[519,2,522,10],[530,2,531,10],[533,2,534,10],[340,1,340,7],[358,1,358,8],[508,1,508,6],[524,1,524,5],[505,9,505,11],[456,9,456,11],[512,2,513,10],[370,2,376,10],[365,2,368,10],[360,2,363,10],[354,2,355,10],[351,2,352,10],[348,2,349,10],[342,1,344,10],[216,2,217,10],[201,2,201,6],[201,7,201,9],[202,2,202,6],[202,7,202,9],[203,2,203,6],[203,7,203,9],[147,1,147,5],[149,2,159,10],[160,2,165,10],[166,2,170,10],[172,1,172,9],[209,2,211,10],[213,2,214,10],[194,2,196,10],[189,2,191,10],[205,1,205,6],[199,2,199,6],[199,7,199,9],[200,2,200,6],[200,7,200,9],[1,2,2,3],[1,4,3,8],[3,1,4,3],[5,1,5,3],[7,1,7,3],[7,8,7,10],[82,2,87,10],[100,2,102,10],[104,2,106,10],[78,2,80,10],[114,2,115,10],[91,1,91,5],[93,2,98,10],[111,9,111,11],[89,1,89,5],[51,9,51,11],[117,2,118,10],[64,2,67,10],[69,2,76,10],[228,9,228,11],[290,8,290,10],[356,9,356,11],[24,1,24,6],[9,1,11,10],[15,1,19,10],[20,1,23,10],[142,2,143,10],[314,2,317,10],[221,2,225,10],[247,2,248,9],[120,1,120,6],[145,1,145,6],[55,1,55,6],[185,1,185,6],[59,2,62,10],[122,1,122,6],[124,2,126,10],[128,2,131,10],[133,2,136,10],[138,2,141,10],[176,2,183,10],[12,1,13,10],[108,2,110,10]]}
[]
[null,null,"NRCS",null,"Biology Technical Note # 14 Wildlife Habitat Evaluation Guide"]
[]
[null,"Natural Resources Conservation Service"]
[null,null,null,null,"SVAP II / Stream Narrative"]
[null,"WASHINGTON",null,null,"(Planning Criteria = 70%)",null,null,null,null,null,"PASSWORD: SVAP N"]
[]
[null,"Table of Contents",null,null,null,null,null,null,"Revised March 2013"]
[]
[null,"SVAP 2 should only be conducted during low flow conditions and on wadable streams.  Using the stream criteria below, only assess the SVAP 2 elements as described."]
[]
[]
[null,"Ditches/Irrigation Ditches:  Are equivalent to WA DNR Stream Types N, Np and Ns.  SVAP 2 Tab Elements to inventory: 1, 2 ,3, 5, 6, 7, 8 9, and 11; as well as all Riparian Tab Elements."]
[]
[]
[null,"Small and Medium Streams: Are equivalent to WA DNR Stream Types F; Small Streams: equal to or less than 2 ft. Bank Full Width, with channel gradients 16% or less.  Medium Streams:  are 2 to 19 ft. Bank Full Width.  SVAP 2 Elements to inventory: Complete all Elements. Riparian Area Tab Elements to inventory: Complete all Elements."]
[]
[]
[]
[]
[null,"Large Streams or Rivers: Are equivalent to WA DNR Stream Type F or S.   Large Streams or Rivers (are not wadable):  Equal to or greater than 20 ft. Bank Full Width, channel gradients less than 4%.  SVAP 2 Elements to inventory: 1, 2, 3, 5, 9 and 11; as well as all Riparian Tab Elements."]
[]
[]
[]
[null,"Element 1. Channel Condition Narrative",null,null,null,null,null,null,null,null,"Element 1"]
[]
[]
[]
[]
[]
[]
[]
[]
[]
[]
[]
[]
[]
[]
[]
[]
[]
[]
[]
[]
[]
[]
[]
[]
[]
[]
[null,null,null,null,null,null,null,null,null,"Back to Top"]
[]
[]
[]
[null,"Element 2. Hydrologic Alteration Narrative",null,null,null,null,null,null,null,null,"Element 2"]
[]
[null,"What to look for: "]
[]
[null,"R","Ask the landowner about the frequency of bankfull, overbank, and low flows, referring to Figure 2 as needed.  Be cautious—water in an adjacent field does not necessarily indicate natural flooding. The water may have flowed overland from a low spot in the bank outside the assessment reach or be an artifact of irrigation or drainage management."]
[]
[]
[]
[]
[null,"R","Look for indicators that help identify bankfull stage (refer to Channel Condition element).  If you see newly deposited debris (e.g., leaves, branches, etc.) or unvegetated mineral sediments (mud lines, sands and silts) near the edge of the active channel it is very likely that bankfull or higher flows have occurred in recent months."]
[]
[]
[]
[]
[null,"R","If channel bars are present, inspect the type and general age of vegetation.  A vegetative community dominated by invasive species or seedlings less than two years old is a good indicator that bankfull or higher flows have occurred in the last two years, or with some regularity.  An absence of vegetation on bars could be interpreted in the same manner, unless the stream is braided (three or more channels with excessive sand, gravel and/or cobble substrates and a notable lack of permanent vegetation) and/or streamflow is significantly regulated. "]
[]
[]
[]
[]
[]
[]
[]
[]
[null,"R","Evidence of flooding includes high water marks (such as water stain lines), sediment deposits, or stream debris well above the stream channel.  Look for these on streambanks, trees or rocks, or other structures (such as bridge pilings or culverts)."]
[]
[]
[]
[null,"R","Water control structures are any feature that alters streamflow. Examples commonly include stream surface intakes (e.g., pump stations, flashboard or full-round risers, drop pipes, stop log structures, screw or flap gate structures), streamside infiltration galleries or ring wells, diversions, dikes, or dams (both temporary and permanent). Any water control structures that divert water directly out of a stream should be suitably “screened” to prevent entrapment or capture of fish. "]
[]
[]
[]
[]
[]
[]
[null,"Element 3. Bank Condition Narrative ",null,null,null,null,null,null,null,null,"Element 3"]
[]
[null,"What to look for: "]
[]
[null,"R","Evaluate the entire length of all banks along the assessment reach, and then consider the proportion of unstable to stable banks.  Obviously, if a quantifiable portion of the reach shows signs of accelerated erosion or bank failures, bank stability is a problem and should be scored as such.  Conversely, if the majority of the reach shows minimal erosion and no signs of bank failure, bank stability is likely good.  Finally, it is best to score this element during the summer or whenever flows in your assessment reach are low."]
[]
[]
[]
[]
[]
[]
[null,"R","Signs of erosion and possible bank stability problems include unvegetated stretches, exposed tree roots, and scalloped edges (sections of eroded bank between relatively intact sections)."]
[]
[]
[]
[null,"R","When observing banks from within the active channel or below bankfull elevation, look for piping holes, rills, and or gullies.  Each of these concentrated flow paths is associated with eventual bank stability problems or outright failures."]
[]
[]
[]
[null,"R","Look for tension cracks while walking along streambanks.  Tension cracks will appear as vertical fissures or crevices running along the top of the streambank roughly parallel to the flow."]
[]
[]
[null,null,null,null,null,null,null,null,null,"Back to Top"]
[]
[]
[null,"R","Evidence of construction, vehicular, or animal paths near banks or grazing areas leading directly to the water's edge suggest conditions that may lead to bank collapse."]
[]
[]
[null,"R","Sections of streambank lying instream adjacent to existing banks are a telltale sign of active bank erosion and instability."]
[]
[]
[null,"Element 4. Riparian Area Quantity Narrative",null,null,null,null,null,null,null,null,"Element 4"]
[]
[null,"What to look for:"]
[]
[null,"R","This element rates the extent of the riparian area on the property (length x width). Estimate the width of the vegetation area from the edge of the active channel outward to where natural riparian vegetation ends and other land-use/land cover begins."]
[]
[]
[]
[null,"R","Vegetation gaps are lengths of streamside with no natural vegetation ecologically suitable for the site and at a density and spacing uncharacteristic of the plant community being assessed. Estimate gap percentage by dividing the total length of gaps by the total length of the stream within the property boundary multiplied by 100.  "]
[]
[]
[]
[]
[null,"R","For this element, “natural plant community” means one with species native to the site or introduced species that have become “naturalized” and function similarly to native species of designated reference sites, growing at densities characteristic of the site. Regional plant guidebooks are useful to have in the field for scoring this element."]
[]
[]
[]
[]
[null,"R","Compare the width of the riparian area to the bankfull channel width. In steep, V-shaped valley forms there may not be enough room for a floodplain riparian area to extend as far as one or two active channel widths. In this case, a score may be adjusted to a higher value, based on reference site conditions."]
[]
[]
[]
[null,null,"Complete the Riparian Area Tab to populate these entries."]
[]
[]
[null,"Element 5. Riparian Area Quality Narrative",null,null,null,null,null,null,null,null,"Element 5"]
[]
[null,"What to look for:"]
[]
[null,"R","Plant species should be native or naturalized and consist of multiple structural layers (grasses and forbs, shrubs, and some trees). Forested sites should also have a diverse mix of shrubs, understory trees, and new shrub and tree regeneration. Early successional sites (recently disturbed by fire, tree harvesting, grazing, land clearing) should have representative native species (typically herbaceous, woody and tree seedlings).  Continually disturbed sites usually have only a few species and often these include non-native invasive species.  As “early” vegetation matures, the structure of the plant community becomes more diverse with a multi-layer canopy.  Finally, the plant community reaches a mature stage with regeneration, growth and mortality occurring in all layers.  In forested streams, mature trees with potential for falling into the stream are present. Regional plant guidebooks are useful for scoring this element."]
[]
[]
[]
[]
[]
[]
[]
[]
[]
[]
[null,"R","Vigorously growing vegetation in the riparian area on both sides of the stream is important for healthy stream and riparian conditions. In doing the assessment, examine both sides of the stream and note on the site diagram (Page 4 of the Summary Sheet) which side of the stream has problems. For the highest ratings, there should be no evidence of concentrated flows through the riparian area that are not adequately buffered or intended to “short-circuit” the riparian area or buffer, and no non-native invasive species."]
[]
[]
[]
[]
[]
[null,"R","The type, timing, intensity, and extent of activities in riparian areas are critical in determining the impact on these areas. Note these in the summary sheet. Riparian areas that have roads, agricultural activities, residential or commercial structures, excessive animal use, or significant areas of bare soils have reduced functional value for the stream and its watershed."]
[]
[]
[]
[]
[]
[null,"Element 6. Canopy Cover: Coldwater & Warmwater Streams Narrative",null,null,null,null,null,null,null,null,"Element 6"]
[]
[null,null,"What to look for:  "]
[]
[null,"R","Estimate the percent of the stream surface area that is shaded over the entire property.  This may require cover estimates at several points within and outside the assessment reach.  Time of the year, time of the day, and weather can affect your observation of shading.  Therefore, the relative amount of shade is estimated by assuming that the sun is directly overhead and the vegetation is in full leaf-out.  To enhance accuracy of the assessment, aerial photographs taken during full leaf-out should be used to supplement your visual assessments.  The following illustration may be used as a guide for both visual and aerial estimates.  "]
[]
[]
[]
[]
[]
[]
[]
[]
[null,"Element 7. Water Appearance Narrative",null,null,null,null,null,null,null,null,"Element 7"]
[]
[null,null,"What to Look For:  "]
[]
[null,"R","Clarity of the water is an obvious and easy feature to assess.  The deeper an object in the water can be seen, the lower the amount of turbidity.  This measure should be taken after a stream has had the opportunity to \"settle down\" following a storm event."]
[]
[]
[null,"R","A  stream should not smell like oil or have pronounced motor oil sheen on its surface."]
[]
[null,"R","Use the depth that objects are visible only if the stream is deep enough to evaluate turbidity using this approach.  For example, if the water is clear but only 1 foot deep, do not rate it as if an object became obscured at a depth of 1 foot."]
[]
[]
[null,"Visibility Depth Range Guidance:"]
[]
[null,null,"Clarity",null,null,null,null,"Feet"]
[null,null,"Clear Visibility",null,null,null,null,"3-6"]
[null,null,"Slightly Turbid",null,null,null,null,"1.5-3"]
[null,null,"Turbid",null,null,null,null,"0.5-1.5"]
[null,null,"High Turbidity",null,null,null,null,"<0.5"]
[]
[null,"Element 8.  Nutrient Enrichment Narrative",null,null,null,null,null,null,null,null,"Element 8"]
[]
[null,null,"What to look for:  "]
[]
[null,"R","Velocity: Streams with high velocity >.33 ft/sec and high concentrations of nutrients are typically not dominated by filamentous algae. Thus, the water may appear very clear yet still have high nutrient concentrations.  "]
[]
[]
[]
[null,"R","Light: If light is a limiting factor, due to shading from riparian vegetation, look for algal growth on rocks and boulders in reaches exposed to light."]
[]
[]
[null,"R","Temperature:  Most algae grow more rapidly at higher temperatures.  Within a range of 32° F to 77° F, increasing temperature by 18° F typically doubles the rate of algal growth.  "]
[]
[]
[null,"R","Substrate:  Low complexity of substrate reduces filamentous algal growth."]
[]
[null,"R","Macrophyte Presence: The presence of dense stands of aquatic macrophytes may be an indicator of nutrient availability.  Diversity with the aquatic plant community should be noted and considered. Some species typically associated with springs, such as water cress, may not be associated with heavy nutrient loading..  Clear water and a diverse, dispersed aquatic plant community are optimal for this characteristic."]
[]
[]
[]
[]
[]
[]
[null,null,null,null,null,null,null,null,null,"Back to Top"]
[]
[]
[]
[null,"Element 9.  Manure or Human Waste Narrative",null,null,null,null,null,null,null,null,"Element 9"]
[]
[null,null,"What to look for:  "]
[]
[null,"R","Indications of livestock droppings in or adjacent to the stream channel."]
[]
[null,"R","Features such as fences, water gaps, and hardened crossings that limit livestock access to stream."]
[]
[]
[null,"R","Areas with slow moving water and sunlight with unusually dense vegetation or algal blooms."]
[]
[]
[null,"R","Pipes or concentrated flow areas that may be dumping livestock or human waste directly into the stream.  "]
[]
[]
[null,null,"Only one pool morphology type (low gradient OR high gradient) should be used per assessment reach."]
[]
[]
[null,"Element 10. Pools: Low-Gradient Streams Narrative (<2%)",null,null,null,null,null,null,null,null,"Element 10L"]
[]
[null,null,"What to look for: "]
[]
[null,"R","The number of pools per assessment reach is estimated based on walking the stream or probing from the streambank with a stick or pole.  You should find deep pools on the outside of meander bends.  Pools are typically separated by riffles or other shallow water habitats. In drier climates, deep pools may be temporarily isolated from their riffles, yet still provide important refuge habitat .  Pools are formed by obstructions in the stream channel  such as fallen trees, accumulations of wood (jams), beaver dams, boulders, root wads, rock outcrops, beaver dams, and accumulated plant debris."]
[]
[]
[]
[]
[]
[]
[]
[null,"R","Assess pool cover by estimating the percent of the pool bottom that is obscured by cover features, or depth, assuming you are positioned directly over the feature looking straight down at the stream bottom. In shallow, clear streams a visual inspection may provide an accurate estimate."]
[]
[]
[]
[]
[null,"Element 10. Pools: High-Gradient Streams (>2%) Narrative",null,null,null,null,null,null,null,null,"Element 10H"]
[]
[null,null,"What to look for: "]
[]
[null,"R","In high-gradient streams energy is dissipated by alternating slow and fast water conditions with step/pools and rapids/scour pools.  Step/pools operate similar to stair steps with water dropping vertically over nearly complete channel obstructions (often a large rock and/or large wood) scouring out small depressions, or plunge pools (Hunter, 1991).  Streams with step/pool conditions usually have gradients >4% and pools are spaced at 1 pool every 1.5 to 4 bankfull channel widths.  Pool spacing decreases as gradient increases (Rosgen, 1996)."]
[]
[]
[]
[]
[]
[]
[null,"R","Streams with gradients between 2 and 4% are often rapids and lateral scour pool dominated.  Scour pool spacing is typically 1 pool every 4 to 5 bankfull channel widths and is created by channel confinements and wood or sediments."]
[]
[]
[]
[null,"R","Plunge pools and scour pools are important aquatic habitat features providing resting and hiding cover for fish and aquatic species.  With these pools, turbulence, large rock, wood, and the depth of water all contribute hiding cover for fish."]
[]
[]
[]
[null,"In fish bearing streams, a general rule of thumb to distinguish deep pools from shallow pools is this:  a deep pool is 2 times deeper than the maimum depth of its upstream riffle, while a shallow pool is less than 2 times deeper than the maximum depth of its upstream riffle."]
[]
[]
[]
[null,null,null,null,null,null,null,null,"Back to Top"]
[]
[]
[null,"Element 11.  Barriers to Aquatic Species Movement Narrative ",null,null,null,null,null,null,null,null,"Element 11"]
[]
[null,null,"What to look for: "]
[]
[null,"R","Ask the landowner about any dams or other barriers that may be present 3 to 5 miles upstream or downstream of his or her property."]
[]
[]
[null,"R","Note the presence of natural barriers along the assessment reach, their size."]
[]
[null,"R","Beaver dams generally do not prevent fish migration and should not be identified as passage barriers unless supporting information exists."]
[]
[]
[null,"R","Livestock and/or equipment crossings can be passage barriers if water flows fast and shallow (less than 6 inches) across smooth or uniform surfaces at least half as wide (from upstream to downstream) as the bankfull width.  For example, a 12-foot wide hardened vehicle ford that crosses a stream with a bankfull width of 20 feet is likely a temporary passage barrier."]
[]
[]
[]
[]
[]
[null,"R","Low-head dams are most likely temporary or complete barriers, especially if outfitted with a concrete apron that covers the streambed along the entire downstream face."]
[]
[]
[null,"R","Culverts can be especially problematic to migratory aquatic organisms.  Unless specifically designed with passage purposes in mind, most culverts are partial upstream passage barriers for the smallest life stages of native fish.  Culverts should be scored as temporary or complete passage barriers if the culvert:"]
[]
[]
[]
[]
[null,null,null,"Ø alignment doesn’t match the stream"]
[]
[null,null,null,"Ø width is less than bankfull width"]
[]
[null,null,null,"Ø slope is greater than channel slope"]
[]
[null,null,null,"Ø is not countersunk"]
[]
[null,null,null,"Ø is perched (elevated) above the outlet pool"]
[]
[null,null,null,"Ø inlet is plugged with debris"]
[]
[null,null,null,"Ø inlet or outlet shows sign of erosion or instability"]
[]
[null,"Element 12. Fish Habitat Complexity Narrative",null,null,null,null,null,null,null,null,"Element 12"]
[]
[null,"What to look for: Within the entire assessment reach, observe the number of different habitat features that provide diverse and complex habitats for fish. Each habitat feature must be present in appreciable amounts to score (as compared to suitable reference sites). Features include:  "]
[]
[]
[]
[]
[null,"Element 13.  Aquatic Invertebrate Habitat Narrative",null,null,null,null,null,null,null,null,"Element 13"]
[]
[null,"Aquatic invertebrate habitat types, in order of importance:  Logs/large wood, cobble within riffles, boulders within riffles. Additional habitat features should include: leaf packs, fine woody debris, overhanging vegetation, aquatic vegetation, undercut banks, pools, and root mats."]
[]
[]
[]
[null,null,"What to look for:  "]
[]
[null,"R","Observe the abundance of wood and riffles with boulder\\cobbles.  Remember these two types of substrate play a significant role in invertebrate diversity and abundance."]
[]
[]
[null,"R","Observe the number of different types of habitat within a representative subsection of the assessment reach that is equivalent in length to five times the active channel width."]
[]
[]
[null,"R","Habitat types should be present in appreciable amounts (as expected in reference conditions or least impaired conditions) to score. "]
[]
[null,null,null,null,null,null,null,null,null,"Back to Top"]
[]
[null,"Element 14.  Aquatic Invertebrate Community Narrative",null,null,null,null,null,null,null,null,"Element 14"]
[]
[null,null,"What to look for:  Figure 5 (below) contains illustrations for each of the three groups of macroinvertebrates with the listing of invertebrate taxonomic order.  This rating is qualitative and therefore potential biases should be avoided to provide accurate representation of each site."]
[]
[]
[]
[]
[null,"R","Collect macroinvertebrates by picking up cobbles, gravel, leaf packs, silt, fine woody debris, and other submerged objects in the water.  Sample all types of potential insect habitat (refer to Insect/Invertebrate Habitat Element) for an equal amount of time to  reduce biases and improve accuracy.  "]
[]
[]
[]
[]
[null,"R","A healthy and stable invertebrate community will be consistent in its proportional representation (evenness) of species, though individual species abundance may vary in magnitude.  Note the kinds of macroinvertebrates (group type), approximate number of each species, and relative abundance of each species sampled.  Determine if one or two species dominate the aquatic invertebrate community.  An abundance of an individual species, such as caddisflies or snails, is often equated to a tolerance of stress and lower diversity.  "]
[]
[]
[]
[]
[]
[]
[]
[]
[]
[]
[]
[]
[]
[]
[]
[]
[]
[]
[]
[]
[]
[]
[]
[]
[]
[]
[]
[]
[]
[]
[]
[]
[]
[]
[]
[]
[]
[]
[]
[]
[]
[]
[]
[]
[]
[]
[]
[]
[]
[]
[]
[]
[]
[]
[]
[]
[]
[]
[]
[]
[]
[]
[]
[]
[]
[]
[]
[]
[]
[]
[]
[]
[]
[]
[]
[]
[]
[]
[]
[]
[]
[]
[]
[]
[]
[null,null,null,null,null,null,null,null,null,"Back to Top"]
[]
[]
[]
[]
[]
[]
[]
[]
[]
[]
[]
[]
[]
[]
[]
[]
[]
[]
[]
[]
[]
[]
[]
[]
[]
[]
[]
[]
[]
[]
[]
[]
[]
[]
[]
[]
[]
[]
[]
[]
[]
[]
[]
[]
[]
[]
[]
[]
[null,null,null,null,null,null,null,null,null,"Back to Top"]
[]
[]
[null,"Element 15. Riffle Embeddedness Narrative",null,null,null,null,null,null,null,null,"Element 15"]
[]
[null,null,null,"What to look for:  "]
[]
[null,"R","This element should be used only in riffle areas and in streams where this is a natural feature. "]
[]
[]
[null,"R","The measure is the depth to which objects are buried by sediment.  This assessment is made by picking up particles of gravel or cobble with your fingertips at the fine sediment layer.  Pull the particle out of the bed and estimate what percent of the particle was buried. "]
[]
[]
[]
[null,"R","Some streams have been so smothered by fine sediment that the original stream bottom is not visible.  Test for complete burial of a streambed by probing with a measuring stick.  Does substrate move easily when you move the substrate around with your feet?  If not, substrate material is likely > 40% embedded.  "]
[]
[]
[]
[]
[null,"Element 16. Salinity Narrative",null,null,null,null,null,null,null,null,"Element 16"]
[]
[null,"Do not assess this element unless elevated salinity levels caused by people are suspected."]
[]
[null,null,"What to look for:"]
[]
[null,"R","High salinity levels can cause a “burning “or “bleaching” of riparian vegetation.  Wilting, loss of plant color, decreased productivity and stunted growth are visible signs."]
[]
[]
[null,"R","Other indicators include whitish salt accumulations on streambanks and displacement of salt intolerant vegetation by more tolerant species."]
[]
[]
[null,null,null,null,null,null,null,null,null,"Back to Top"]

{"sheet":"Evaluation Summary","index":18,"n_rows":228,"n_cols":13,"rows_kept":228,"cut":false,"hidden":false,"merged":[[162,1,162,2],[93,1,93,4],[227,6,227,8],[65,6,65,8],[38,1,38,3],[65,9,65,11],[114,5,114,7],[153,6,153,8],[185,1,185,2],[186,1,186,2],[187,1,187,3],[158,8,160,8],[170,1,170,3],[175,1,177,2],[175,3,177,3],[175,4,177,4],[175,5,177,5],[175,6,177,6],[227,10,227,12],[114,10,114,12],[71,10,71,12],[153,10,153,12],[190,10,190,12],[158,6,160,6],[184,1,184,2],[186,11,186,12],[163,1,163,2],[164,1,164,2],[165,1,165,2],[166,1,166,2],[182,1,182,2],[183,1,183,2],[178,1,178,2],[179,1,179,2],[15,0,15,2],[190,6,190,8],[175,7,177,7],[175,8,177,8],[165,10,165,12],[168,10,168,12],[169,11,169,12],[185,10,185,12],[51,1,51,4],[108,1,108,4],[124,1,124,4],[158,5,160,5],[78,1,78,4],[158,1,160,2],[158,3,160,3],[169,1,169,2],[117,1,117,4],[161,1,161,2],[180,1,180,2],[168,1,168,2],[158,4,160,4],[167,1,167,2],[158,7,160,7],[181,1,181,2],[205,1,205,2],[206,1,206,2],[213,7,215,7],[213,8,215,8],[1,2,2,3],[1,4,3,8],[4,4,5,8],[40,1,40,4],[17,1,17,4],[28,1,28,4],[7,1,7,3],[9,3,9,4],[11,3,11,4],[13,3,13,4],[15,3,15,4],[3,1,4,3],[5,1,5,3],[13,8,13,11],[15,8,15,9],[9,0,9,2],[11,0,11,2],[9,8,9,9],[11,8,11,9],[13,0,13,2],[213,4,215,4],[225,1,225,3],[217,1,217,2],[218,1,218,2],[219,1,219,2],[220,1,220,2],[221,1,221,2],[222,1,222,2],[223,1,223,2],[224,1,224,2],[206,10,206,12],[207,11,207,12],[223,10,223,12],[224,11,224,12],[199,1,199,2],[200,1,200,2],[201,1,201,2],[196,1,198,2],[196,3,198,3],[196,4,198,4],[196,5,198,5],[196,6,198,6],[213,5,215,5],[213,6,215,6],[207,1,207,2],[208,1,208,3],[202,1,202,2],[203,1,203,2],[204,1,204,2],[196,7,198,7],[196,8,198,8],[216,1,216,2],[213,1,215,2],[213,3,215,3]]}
[]
[null,null,"NRCS",null,"Biology Technical Note # 14 Wildlife Habitat Evaluation Guide"]
[]
[null,"Natural Resources Conservation Service"]
[null,null,null,null,"Evaluation Summary"]
[null,"WASHINGTON",null,null,null,null,null,null,null,null,null,null,"PASSWORD:TOTAL"]
[]
[null,"Table of Contents",null,null,null,null,null,null,null,null,null,null,"Revised March 2013"]
[]
["Client/Operating Unit:",null,null,{"$f":"IF(ISBLANK('Table of Contents'!$D$40),\" \",'Table of Contents'!$D$40)","v":" "},null,null,null,"Tract Number:",{"$f":"IF(ISBLANK('Table of Contents'!$K$40),\" \",'Table of Contents'!$K$40)","v":" "}]
[]
["Farm/Ranch Location:",null,null,{"$f":"IF(ISBLANK('Table of Contents'!$D$42),\" \",'Table of Contents'!$D$42)","v":" "},null,null,null,"Farm Number:",{"$f":"IF(ISBLANK('Table of Contents'!$K$42),\" \",'Table of Contents'!$K$42)","v":" "}]
[]
["Evaluation Date:",null,null,{"$f":"IF(ISBLANK('Table of Contents'!$D$44),\" \",'Table of Contents'!$D$44)","v":" "},null,null,null,"Field Number(s):",{"$f":"IF(ISBLANK('Table of Contents'!$K$44),\" \",'Table of Contents'!$K$44)","v":" "}]
[]
["Planner:",null,null,{"$f":"IF(ISBLANK('Table of Contents'!$D$46),\" \",'Table of Contents'!$D$46)","v":" "},null,null,null,"Program:",{"$f":"IF(ISBLANK('Table of Contents'!$K$46),\" \",'Table of Contents'!$K$46)","v":" "}]
[null,null,null,null,null,null,null,null,null,null," *P.C. = Planning Criteria"]
[null,"Cropland & Hayland (Planning Criteria = 40%)",null,null,null,"Present","P.C.*","No Action","P.C.","Planned A","P.C.","Planned B","P.C."]
[null,"Distance to Undisturbed Cover",null,null,"Present",{"$f":"IF(OR('Cropland (50%)'!$B24<0.001,'Cropland (50%)'!$B24>10),\" \",'Cropland (50%)'!$B24/10)","v":" "},{"$f":"IF(F19=\" \",\" \",(IF(F19>0.4999,\"Meets PC \",\"Below PC\")))","v":" "},{"$f":"IF(OR('Cropland (50%)'!$B26<0.001,'Cropland (50%)'!$B26>10),\" \",'Cropland (50%)'!$B26/10)","v":" "},{"$f":"IF(H19=\" \",\" \",(IF(H19>0.4999,\"Meets PC \",\"Below PC\")))","v":" "},{"$f":"IF(OR('Cropland (50%)'!$B28<0.001,'Cropland (50%)'!$B28>10),\" \",'Cropland (50%)'!$B28/10)","v":" "},{"$f":"IF(J19=\" \",\" \",(IF(J19>0.4999,\"Meets PC \",\"Below PC\")))","v":" "},{"$f":"IF(OR('Cropland (50%)'!$B30<0.001,'Cropland (50%)'!$B30>10),\" \",'Cropland (50%)'!$B30/10)","v":" "},{"$f":"IF(L19=\" \",\" \",(IF(L19>0.4999,\"Meets PC \",\"Below PC\")))","v":" "}]
[null,"Crop Rotation and Plant Residue Cover",null,null,"<.4",{"$f":"IF(OR('Cropland (50%)'!$B36<0.001,'Cropland (50%)'!$B36>8),\" \",'Cropland (50%)'!$B36/8)","v":" "}," ",{"$f":"IF(OR('Cropland (50%)'!$B38<0.001,'Cropland (50%)'!$B38>8),\" \",'Cropland (50%)'!$B38/8)","v":" "}," ",{"$f":"IF(OR('Cropland (50%)'!$B40<0.001,'Cropland (50%)'!$B40>8),\" \",'Cropland (50%)'!$B40/8)","v":" "}," ",{"$f":"IF(OR('Cropland (50%)'!$B42<0.001,'Cropland (50%)'!$B42>8),\" \",'Cropland (50%)'!$B42/8)","v":" "}," "]
[null,"Average Residue on Cropland After Planting",null,null,"No Action",{"$f":"IF(OR('Cropland (50%)'!$B62<0.001,'Cropland (50%)'!$B62>8),\" \",'Cropland (50%)'!$B62/8)","v":" "}," ",{"$f":"IF(OR('Cropland (50%)'!$B64<0.001,'Cropland (50%)'!$B64>8),\" \",'Cropland (50%)'!$B64/8)","v":" "}," ",{"$f":"IF(OR('Cropland (50%)'!$B66<0.001,'Cropland (50%)'!$B66>8),\" \",'Cropland (50%)'!$B66/8)","v":" "}," ",{"$f":"IF(OR('Cropland (50%)'!$B68<0.001,'Cropland (50%)'!$B68>8),\" \",'Cropland (50%)'!$B68/8)","v":" "}," "]
[null,"Wildlife Drinking Water",null,null,"<.4",{"$f":"IF(OR('Cropland (50%)'!$B77<0.001,'Cropland (50%)'!$B77>4),\" \",'Cropland (50%)'!$B77/4)","v":" "}," ",{"$f":"IF(OR('Cropland (50%)'!$B79<0.001,'Cropland (50%)'!$B79>4),\" \",'Cropland (50%)'!$B79/4)","v":" "}," ",{"$f":"IF(OR('Cropland (50%)'!$B81<0.001,'Cropland (50%)'!$B81>4),\" \",'Cropland (50%)'!$B81/4)","v":" "}," ",{"$f":"IF(OR('Cropland (50%)'!$B83<0.001,'Cropland (50%)'!$B83>4),\" \",'Cropland (50%)'!$B83/4)","v":" "}," "]
[null,"Habitat Fragmentation",null,null,"Planned A",{"$f":"IF(OR('Cropland (50%)'!$B94<0.001,'Cropland (50%)'!$B94>10),\" \",'Cropland (50%)'!$B94/10)","v":" "}," ",{"$f":"IF(OR('Cropland (50%)'!$B96<0.001,'Cropland (50%)'!$B96>10),\" \",'Cropland (50%)'!$B96/10)","v":" "}," ",{"$f":"IF(OR('Cropland (50%)'!$B98<0.001,'Cropland (50%)'!$B98>10),\" \",'Cropland (50%)'!$B98/10)","v":" "}," ",{"$f":"IF(OR('Cropland (50%)'!$B100<0.001,'Cropland (50%)'!$B100>10),\" \",'Cropland (50%)'!$B100/10)","v":" "}," "]
[null,"Nutrient Management",null,null,"<.4",{"$f":"IF(OR('Cropland (50%)'!$B120<0.001,'Cropland (50%)'!$B120>3),\" \",'Cropland (50%)'!$B120/3)","v":" "}," ",{"$f":"IF(OR('Cropland (50%)'!$B122<0.001,'Cropland (50%)'!$B122>3),\" \",'Cropland (50%)'!$B122/3)","v":" "}," ",{"$f":"IF(OR('Cropland (50%)'!$B124<0.001,'Cropland (50%)'!$B124>3),\" \",'Cropland (50%)'!$B124/3)","v":" "}," ",{"$f":"IF(OR('Cropland (50%)'!$B126<0.001,'Cropland (50%)'!$B126>3),\" \",'Cropland (50%)'!$B126/3)","v":" "}," "]
[null,"Integrated Pest Management",null,null,"Planned B",{"$f":"IF(OR('Cropland (50%)'!$B130<0.001,'Cropland (50%)'!$B130>3),\" \",'Cropland (50%)'!$B130/3)","v":" "}," ",{"$f":"IF(OR('Cropland (50%)'!$B132<0.001,'Cropland (50%)'!$B132>3),\" \",'Cropland (50%)'!$B122/3)","v":" "}," ",{"$f":"IF(OR('Cropland (50%)'!$B134<0.001,'Cropland (50%)'!$B134>3),\" \",'Cropland (50%)'!$B134/3)","v":" "}," ",{"$f":"IF(OR('Cropland (50%)'!$B136<0.001,'Cropland (50%)'!$B136>3),\" \",'Cropland (50%)'!$B136/3)","v":" "}," "]
[null,"Weed Control",null,null,"<.4",{"$f":"IF(OR('Cropland (50%)'!$B140<0.001,'Cropland (50%)'!$B140>3),\" \",'Cropland (50%)'!$B140/3)","v":" "}," ",{"$f":"IF(OR('Cropland (50%)'!$B142<0.001,'Cropland (50%)'!$B142>3),\" \",'Cropland (50%)'!$B142/3)","v":" "}," ",{"$f":"IF(OR('Cropland (50%)'!$B144<0.001,'Cropland (50%)'!$B144>3),\" \",'Cropland (50%)'!$B144/3)","v":" "}," ",{"$f":"IF(OR('Cropland (50%)'!$B146<0.001,'Cropland (50%)'!$B146>3),\" \",'Cropland (50%)'!$B146/3)","v":" "}," "]
[null,"Acres:",{"$f":"IF('Cropland (50%)'!O16<0.001,\" \",'Cropland (50%)'!O16)","v":" "},null,"Score:",{"$f":"IF(F28=0,G28,F28)","v":" "}," ",{"$f":"IF(H28=0,I28,H28)","v":" "}," ",{"$f":"IF(J28=0,K28,J28)","v":" "}," ",{"$f":"IF(L28=0,M28,L28)","v":" "}," "]
[null,null,null,null,null,{"$f":"IF(AND(F19=\" \",F20=\" \",F21=\" \",F22=\" \",F23=\" \",F24=\" \",F25=\" \",F26=\" \"),\" \",DMIN($F$18:$F$26,\"Present\",E19:E20))","v":" "},{"$f":"IF(F19=\" \",\" \",AVERAGE(F19:F26))","v":" "},{"$f":"IF(AND(H19=\" \",H20=\" \",H21=\" \",H22=\" \",H23=\" \",H24=\" \",H25=\" \",H26=\" \"),\" \",DMIN(H18:H26,\"No Action\",$E21:$E22))","v":" "},{"$f":"IF(H19=\" \",\" \",AVERAGE(H19:H26))","v":" "},{"$f":"IF(AND(J19=\" \",J20=\" \",J21=\" \",J22=\" \",J23=\" \",J24=\" \",J25=\" \",J26=\" \"),\" \",DMIN(J18:J26,\"Planned A\",$E23:$E24))","v":" "},{"$f":"IF(J19=\" \",\" \",AVERAGE(J19:J26))","v":" "},{"$f":"IF(AND(L19=\" \",L20=\" \",L21=\" \",L22=\" \",L23=\" \",L24=\" \",L25=\" \",L26=\" \"),\" \",DMIN(L18:L26,\"Planned B\",$E25:$E26))","v":" "},{"$f":"IF(L19=\" \",\" \",AVERAGE(L19:L26))","v":" "}]
[null,"Rangeland (Planning Criteria = 60%)",null,null,null,"Present","P.C.","No Action","P.C.","Planned A","P.C.","Planned B","P.C."]
[null,"Wildlife Food Source",null,null,"Present",{"$f":"IF(OR('Rangeland (60%)'!B23<0.001,'Rangeland (60%)'!B23>6),\" \",'Rangeland (60%)'!B23/6)","v":" "},{"$f":"IF(F30=\" \",\" \",(IF(F30>0.5999,\"Meets PC \",\"Below PC\")))","v":" "},{"$f":"IF(OR('Rangeland (60%)'!$B25<0.001,'Rangeland (60%)'!$B25>6),\" \",'Rangeland (60%)'!$B25/6)","v":" "},{"$f":"IF(H30=\" \",\" \",(IF(H30>0.5999,\"Meets PC \",\"Below PC\")))","v":" "},{"$f":"IF(OR('Rangeland (60%)'!$B27<0.001,'Rangeland (60%)'!$B27>6),\" \",'Rangeland (60%)'!$B27/6)","v":" "},{"$f":"IF(J30=\" \",\" \",(IF(J30>0.5999,\"Meets PC \",\"Below PC\")))","v":" "},{"$f":"IF(OR('Rangeland (60%)'!$B29<0.001,'Rangeland (60%)'!$B29>6),\" \",'Rangeland (60%)'!$B29/6)","v":" "},{"$f":"IF(L30=\" \",\" \",(IF(L30>0.5999,\"Meets PC \",\"Below PC\")))","v":" "}]
[null,"Grazing System",null,null,"<.6",{"$f":"IF(OR('Rangeland (60%)'!B33<0.001,'Rangeland (60%)'!B33>3),\" \",'Rangeland (60%)'!B33/3)","v":" "}," ",{"$f":"IF(OR('Rangeland (60%)'!$B35<0.001,'Rangeland (60%)'!$B35>3),\" \",'Rangeland (60%)'!$B35/3)","v":" "}," ",{"$f":"IF(OR('Rangeland (60%)'!$B37<0.001,'Rangeland (60%)'!$B37>3),\" \",'Rangeland (60%)'!$B37/3)","v":" "}," ",{"$f":"IF(OR('Rangeland (60%)'!$B39<0.001,'Rangeland (60%)'!$B39>3),\" \",'Rangeland (60%)'!$B39/3)","v":" "}," "]
[null,"Plant Community",null,null,"No Action",{"$f":"IF(OR('Rangeland (60%)'!B43<0.001,'Rangeland (60%)'!B43>6),\" \",'Rangeland (60%)'!B43/6)","v":" "}," ",{"$f":"IF(OR('Rangeland (60%)'!$B45<0.001,'Rangeland (60%)'!$B45>6),\" \",'Rangeland (60%)'!$B45/6)","v":" "}," ",{"$f":"IF(OR('Rangeland (60%)'!$B47<0.001,'Rangeland (60%)'!$B47>6),\" \",'Rangeland (60%)'!$B47/6)","v":" "}," ",{"$f":"IF(OR('Rangeland (60%)'!$B49<0.001,'Rangeland (60%)'!$B49>6),\" \",'Rangeland (60%)'!$B49/6)","v":" "}," "]
[null,"Wildlife Drinking Water",null,null,"<.6",{"$f":"IF(OR('Rangeland (60%)'!B53<0.001,'Rangeland (60%)'!B53>4),\" \",'Rangeland (60%)'!B53/4)","v":" "}," ",{"$f":"IF(OR('Rangeland (60%)'!$B55<0.001,'Rangeland (60%)'!$B55>4),\" \",'Rangeland (60%)'!$B55/4)","v":" "}," ",{"$f":"IF(OR('Rangeland (60%)'!$B57<0.001,'Rangeland (60%)'!$B57>4),\" \",'Rangeland (60%)'!$B57/4)","v":" "}," ",{"$f":"IF(OR('Rangeland (60%)'!$B59<0.001,'Rangeland (60%)'!$B59>4),\" \",'Rangeland (60%)'!$B59/4)","v":" "}," "]
[null,"Habitat Fragmentation",null,null,"Planned A",{"$f":"IF(OR('Rangeland (60%)'!B74<0.001,'Rangeland (60%)'!B74>10),\" \",'Rangeland (60%)'!B74/10)","v":" "}," ",{"$f":"IF(OR('Rangeland (60%)'!$B76<0.001,'Rangeland (60%)'!$B76>10),\" \",'Rangeland (60%)'!$B76/10)","v":" "}," ",{"$f":"IF(OR('Rangeland (60%)'!$B78<0.001,'Rangeland (60%)'!$B78>10),\" \",'Rangeland (60%)'!$B78/10)","v":" "}," ",{"$f":"IF(OR('Rangeland (60%)'!$B80<0.001,'Rangeland (60%)'!$B80>10),\" \",'Rangeland (60%)'!$B80/10)","v":" "}," "]
[null,"Nutrient Management",null,null,"<.6",{"$f":"IF(OR('Rangeland (60%)'!B97<0.001,'Rangeland (60%)'!B97>3),\" \",'Rangeland (60%)'!B97/3)","v":" "}," ",{"$f":"IF(OR('Rangeland (60%)'!$B99<0.001,'Rangeland (60%)'!$B99>3),\" \",'Rangeland (60%)'!$B99/3)","v":" "}," ",{"$f":"IF(OR('Rangeland (60%)'!$B101<0.001,'Rangeland (60%)'!$B101>3),\" \",'Rangeland (60%)'!$B101/3)","v":" "}," ",{"$f":"IF(OR('Rangeland (60%)'!$B103<0.001,'Rangeland (60%)'!$B103>3),\" \",'Rangeland (60%)'!$B103/3)","v":" "}," "]
[null,"Integrated Pest Management",null,null,"Planned B",{"$f":"IF(OR('Rangeland (60%)'!B107<0.001,'Rangeland (60%)'!B107>3),\" \",'Rangeland (60%)'!B107/3)","v":" "}," ",{"$f":"IF(OR('Rangeland (60%)'!$B109<0.001,'Rangeland (60%)'!$B109>3),\" \",'Rangeland (60%)'!$B109/3)","v":" "}," ",{"$f":"IF(OR('Rangeland (60%)'!$B111<0.001,'Rangeland (60%)'!$B111>3),\" \",'Rangeland (60%)'!$B111/3)","v":" "}," ",{"$f":"IF(OR('Rangeland (60%)'!$B113<0.001,'Rangeland (60%)'!$B113>3),\" \",'Rangeland (60%)'!$B113/3)","v":" "}," "]
[null,"Weed Control",null,null,"<.6",{"$f":"IF(OR('Rangeland (60%)'!$B117<0.001,'Rangeland (60%)'!$B117>3),\" \",'Rangeland (60%)'!$B117/3)","v":" "}," ",{"$f":"IF(OR('Rangeland (60%)'!$B119<0.001,'Rangeland (60%)'!$B119>3),\" \",'Rangeland (60%)'!$B119/3)","v":" "}," ",{"$f":"IF(OR('Rangeland (60%)'!$B121<0.001,'Rangeland (60%)'!$B121>3),\" \",'Rangeland (60%)'!$B121/3)","v":" "}," ",{"$f":"IF(OR('Rangeland (60%)'!$B123<0.001,'Rangeland (60%)'!$B123>3),\" \",'Rangeland (60%)'!$B123/3)","v":" "}," "]
[null,"Acres:",{"$f":"IF('Rangeland (60%)'!$O$16<0.001,\" \",'Rangeland (60%)'!$O$16)","v":" "},null,"Score:",{"$f":"IF(F39=0,G39,F39)","v":" "}," ",{"$f":"IF(H39=0,I39,H39)","v":" "}," ",{"$f":"IF(J39=0,K39,J39)","v":" "}," ",{"$f":"IF(L39=0,M39,L39)","v":" "}," "]
[null,"Back to Top",null,null,null,{"$f":"IF(AND(F30=\" \",F31=\" \",F32=\" \",F33=\" \",F34=\" \",F35=\" \",F36=\" \",F37=\" \"),\" \",DMIN($F29:$F37,\"Present\",$E30:$E31))","v":" "},{"$f":"IF(AND(F30=\" \",F31=\" \",F32=\" \",F33=\" \",F34=\" \",F35=\" \", F36=\" \",F37=\" \"),\" \",AVERAGE(F30:F37))","v":" "},{"$f":"IF(AND(H30=\" \",H31=\" \",H32=\" \",H33=\" \",H34=\" \",H35=\" \",H36=\" \",H37=\" \"),\" \",DMIN($H29:$H37,\"No Action\",$E32:$E33))","v":" "},{"$f":"IF(AND(H30=\" \",H31=\" \",H32=\" \",H33=\" \",H34=\" \",H35=\" \", H36=\" \",H37=\" \"),\" \",AVERAGE(H30:H37))","v":" "},{"$f":"IF(AND(J30=\" \",J31=\" \",J32=\" \",J33=\" \",J34=\" \",J35=\" \",J36=\" \",J37=\" \"),\" \",DMIN($J29:$J37,\"Planned A\",$E34:$E35))","v":" "},{"$f":"IF(AND(J30=\" \",J31=\" \",J32=\" \",J33=\" \",J34=\" \",J35=\" \", J36=\" \",J37=\" \"),\" \",AVERAGE(J30:J37))","v":" "},{"$f":"IF(AND(L30=\" \",L31=\" \",L32=\" \",L33=\" \",L34=\" \",L35=\" \",L36=\" \",L37=\" \"),\" \",DMIN($L29:$L37,\"Planned B\",$E36:$E37))","v":" "},{"$f":"IF(AND(L30=\" \",L31=\" \",L32=\" \",L33=\" \",L34=\" \",L35=\" \", L36=\" \",L37=\" \"),\" \",AVERAGE(L30:L37))","v":" "}]
[]
[null,"Pastureland (Planning Criteria = 50%)",null,null,null,"Present","P.C.","No Action","P.C.","Planned A","P.C.","Planned B","P.C."]
[null,"Harvesting System",null,null,"Present",{"$f":"IF(OR('Pastureland (50%)'!$B24<0.001,'Pastureland (50%)'!$B24>4),\" \",'Pastureland (50%)'!$B24/4)","v":" "},{"$f":"IF(F42=\" \",\" \",(IF(F42>0.4999,\"Meets PC \",\"Below PC\")))","v":" "},{"$f":"IF(OR('Pastureland (50%)'!$B26<0.001,'Pastureland (50%)'!$B26>4),\" \",'Pastureland (50%)'!$B26/4)","v":" "},{"$f":"IF(H42=\" \",\" \",(IF(H42>0.4999,\"Meets PC \",\"Below PC\")))","v":" "},{"$f":"IF(OR('Pastureland (50%)'!$B28<0.001,'Pastureland (50%)'!$B28>4),\" \",'Pastureland (50%)'!$B28/4)","v":" "},{"$f":"IF(J42=\" \",\" \",(IF(J42>0.4999,\"Meets PC \",\"Below PC\")))","v":" "},{"$f":"IF(OR('Pastureland (50%)'!$B30<0.001,'Pastureland (50%)'!$B30>4),\" \",'Pastureland (50%)'!$B30/4)","v":" "},{"$f":"IF(L42=\" \",\" \",(IF(L42>0.4999,\"Meets PC \",\"Below PC\")))","v":" "}]
[null,"Distance to Undisturbed Cover",null,null,"<.5",{"$f":"IF(OR('Pastureland (50%)'!$B35<0.001,'Pastureland (50%)'!$B35>10),\" \",'Pastureland (50%)'!$B35/10)","v":" "}," ",{"$f":"IF(OR('Pastureland (50%)'!$B37<0.001,'Pastureland (50%)'!$B37>10),\" \",'Pastureland (50%)'!$B37/10)","v":" "}," ",{"$f":"IF(OR('Pastureland (50%)'!$B39<0.001,'Pastureland (50%)'!$B39>10),\" \",'Pastureland (50%)'!$B39/10)","v":" "}," ",{"$f":"IF(OR('Pastureland (50%)'!$B41<0.001,'Pastureland (50%)'!$B41>10),\" \",'Pastureland (50%)'!$B41/10)","v":" "}," "]
[null,"Plant Diversity",null,null,"No Action",{"$f":"IF(OR('Pastureland (50%)'!$B47<0.001,'Pastureland (50%)'!$B47>4),\" \",'Pastureland (50%)'!$B47/4)","v":" "}," ",{"$f":"IF(OR('Pastureland (50%)'!$B49<0.001,'Pastureland (50%)'!$B49>4),\" \",'Pastureland (50%)'!$B49/4)","v":" "}," ",{"$f":"IF(OR('Pastureland (50%)'!$B51<0.001,'Pastureland (50%)'!$B51>4),\" \",'Pastureland (50%)'!$B51/4)","v":" "}," ",{"$f":"IF(OR('Pastureland (50%)'!$B53<0.001,'Pastureland (50%)'!$B53>4),\" \",'Pastureland (50%)'!$B53/4)","v":" "}," "]
[null,"Pasture Corridors",null,null,"<.5",{"$f":"IF(OR('Pastureland (50%)'!$B67<0.001,'Pastureland (50%)'!$B67>8),\" \",'Pastureland (50%)'!$B67/8)","v":" "}," ",{"$f":"IF(OR('Pastureland (50%)'!$B71<0.001,'Pastureland (50%)'!$B71>8),\" \",'Pastureland (50%)'!$B71/8)","v":" "}," ",{"$f":"IF(OR('Pastureland (50%)'!$B74<0.001,'Pastureland (50%)'!$B74>8),\" \",'Pastureland (50%)'!$B74/8)","v":" "}," ",{"$f":"IF(OR('Pastureland (50%)'!$B77<0.001,'Pastureland (50%)'!$B77>8),\" \",'Pastureland (50%)'!$B77/8)","v":" "}," "]
[null,"Wildlife Drinking Water",null,null,"Planned A",{"$f":"IF(OR('Pastureland (50%)'!$B82<0.001,'Pastureland (50%)'!$B82>4),\" \",'Pastureland (50%)'!$B82/4)","v":" "}," ",{"$f":"IF(OR('Pastureland (50%)'!$B85<0.001,'Pastureland (50%)'!$B85>4),\" \",'Pastureland (50%)'!$B85/4)","v":" "}," ",{"$f":"IF(OR('Pastureland (50%)'!$B87<0.001,'Pastureland (50%)'!$B87>4),\" \",'Pastureland (50%)'!$B87/4)","v":" "}," ",{"$f":"IF(OR('Pastureland (50%)'!$B90<0.001,'Pastureland (50%)'!$B90>4),\" \",'Pastureland (50%)'!$B90/4)","v":" "}," "]
[null,"Nutrient Management",null,null,"<.5",{"$f":"IF(OR('Pastureland (50%)'!$B99<0.001,'Pastureland (50%)'!$B99>3),\" \",'Pastureland (50%)'!$B99/3)","v":" "}," ",{"$f":"IF(OR('Pastureland (50%)'!$B101<0.001,'Pastureland (50%)'!$B101>3),\" \",'Pastureland (50%)'!$B101/3)","v":" "}," ",{"$f":"IF(OR('Pastureland (50%)'!$B103<0.001,'Pastureland (50%)'!$B103>3),\" \",'Pastureland (50%)'!$B103/3)","v":" "}," ",{"$f":"IF(OR('Pastureland (50%)'!$B105<0.001,'Pastureland (50%)'!$B105>3),\" \",'Pastureland (50%)'!$B105/3)","v":" "}," "]
[null,"Integrated Pest Management",null,null,"Planned B",{"$f":"IF(OR('Pastureland (50%)'!$B109<0.001,'Pastureland (50%)'!$B109>3),\" \",'Pastureland (50%)'!$B109/3)","v":" "}," ",{"$f":"IF(OR('Pastureland (50%)'!$B111<0.001,'Pastureland (50%)'!$B111>3),\" \",'Pastureland (50%)'!$B111/3)","v":" "}," ",{"$f":"IF(OR('Pastureland (50%)'!$B113<0.001,'Pastureland (50%)'!$B113>3),\" \",'Pastureland (50%)'!$B113/3)","v":" "}," ",{"$f":"IF(OR('Pastureland (50%)'!$B115<0.001,'Pastureland (50%)'!$B115>3),\" \",'Pastureland (50%)'!$B115/3)","v":" "}," "]
[null,"Weed Control",null,null,"<.5",{"$f":"IF(OR('Pastureland (50%)'!$B119<0.001,'Pastureland (50%)'!$B119>3),\" \",'Pastureland (50%)'!$B119/3)","v":" "}," ",{"$f":"IF(OR('Pastureland (50%)'!$B121<0.001,'Pastureland (50%)'!$B121>3),\" \",'Pastureland (50%)'!$B121/3)","v":" "}," ",{"$f":"IF(OR('Pastureland (50%)'!$B123<0.001,'Pastureland (50%)'!$B123>3),\" \",'Pastureland (50%)'!$B123/3)","v":" "}," ",{"$f":"IF(OR('Pastureland (50%)'!$B125<0.001,'Pastureland (50%)'!$B125>3),\" \",'Pastureland (50%)'!$B125/3)","v":" "}," "]
[null,"Acres:",{"$f":"IF('Pastureland (50%)'!$O$16<0.001,\" \",'Pastureland (50%)'!$O$16)","v":" "},null,"Score:",{"$f":"IF(F51=0,G51,F51)","v":" "}," ",{"$f":"IF(H51=0,I51,H51)","v":" "}," ",{"$f":"IF(J51=0,K51,J51)","v":" "}," ",{"$f":"IF(L51=0,M51,L51)","v":" "}," "]
[null,null,null,null,null,{"$f":"IF(AND(F42=\" \",F43=\" \",F44=\" \",F45=\" \",F46=\" \",F47=\" \",F48=\" \",F49=\" \"),\" \",DMIN($F41:$F49,\"Present\",$E42:$E43))","v":" "},{"$f":"IF(F42=\" \",\" \",AVERAGE(F42:F49))","v":" "},{"$f":"IF(AND(H42=\" \",H43=\" \",H44=\" \",H45=\" \",H46=\" \",H47=\" \",H48=\" \",H49=\" \"),\" \",DMIN($H41:$H49,\"No Action\",$E44:$E45))","v":" "},{"$f":"IF(H42=\" \",\" \",AVERAGE(H42:H49))","v":" "},{"$f":"IF(AND(J42=\" \",J43=\" \",J44=\" \",J45=\" \",J46=\" \",J47=\" \",J48=\" \",J49=\" \"),\" \",DMIN($J41:$J49,\"Planned A\",$E47:$E48))","v":" "},{"$f":"IF(J42=\" \",\" \",AVERAGE(J42:J49))","v":" "},{"$f":"IF(AND(L42=\" \",L43=\" \",L44=\" \",L45=\" \",L46=\" \",L47=\" \",L48=\" \",L49=\" \"),\" \",DMIN($L41:$L49,\"Planned B\",$E48:$E49))","v":" "},{"$f":"IF(L42=\" \",\" \",AVERAGE(L42:L49))","v":" "}]
[null,"Upland Woodland (Planning Criteria = 60%)",null,null,null,"Present","P.C.","No Action","P.C.","Planned A","P.C.","Planned B","P.C."]
[null,"Forest Diversity",null,null,"Present",{"$f":"IF(OR('Upland Woodland (60%)'!$B23<0.001,'Upland Woodland (60%)'!$B23>6),\" \",'Upland Woodland (60%)'!$B23/6)","v":" "},{"$f":"IF(F53=\" \",\" \",(IF(F53>0.5999,\"Meets PC \",\"Below PC\")))","v":" "},{"$f":"IF(OR('Upland Woodland (60%)'!$B25<0.001,'Upland Woodland (60%)'!$B25>6),\" \",'Upland Woodland (60%)'!$B25/6)","v":" "},{"$f":"IF(H53=\" \",\" \",(IF(H53>0.5999,\"Meets PC \",\"Below PC\")))","v":" "},{"$f":"IF(OR('Upland Woodland (60%)'!$B28<0.001,'Upland Woodland (60%)'!$B28>6),\" \",'Upland Woodland (60%)'!$B28/6)","v":" "},{"$f":"IF(J53=\" \",\" \",(IF(J53>0.5999,\"Meets PC \",\"Below PC\")))","v":" "},{"$f":"IF(OR('Upland Woodland (60%)'!$B30<0.001,'Upland Woodland (60%)'!$B30>6),\" \",'Upland Woodland (60%)'!$B30/6)","v":" "},{"$f":"IF(L53=\" \",\" \",(IF(L53>0.5999,\"Meets PC \",\"Below PC\")))","v":" "}]
[null,"Grazing System",null,null,"<.6",{"$f":"IF(OR('Upland Woodland (60%)'!$B51<0.001,'Upland Woodland (60%)'!$B51>6),\" \",'Upland Woodland (60%)'!$B51/6)","v":" "}," ",{"$f":"IF(OR('Upland Woodland (60%)'!$B53<0.001,'Upland Woodland (60%)'!$B53>6),\" \",'Upland Woodland (60%)'!$B53/6)","v":" "}," ",{"$f":"IF(OR('Upland Woodland (60%)'!$B55<0.001,'Upland Woodland (60%)'!$B55>6),\" \",'Upland Woodland (60%)'!$B55/6)","v":" "}," ",{"$f":"IF(OR('Upland Woodland (60%)'!$B57<0.001,'Upland Woodland (60%)'!$B57>6),\" \",'Upland Woodland (60%)'!$B57/6)","v":" "}," "]
[null,"Downed Woody Material",null,null,"No Action",{"$f":"IF(OR('Upland Woodland (60%)'!$B61<0.001,'Upland Woodland (60%)'!$B61>6),\" \",'Upland Woodland (60%)'!$B61/6)","v":" "}," ",{"$f":"IF(OR('Upland Woodland (60%)'!$B63<0.001,'Upland Woodland (60%)'!$B63>6),\" \",'Upland Woodland (60%)'!$B63/6)","v":" "}," ",{"$f":"IF(OR('Upland Woodland (60%)'!$B65<0.001,'Upland Woodland (60%)'!$B65>6),\" \",'Upland Woodland (60%)'!$B65/6)","v":" "}," ",{"$f":"IF(OR('Upland Woodland (60%)'!$B68<0.001,'Upland Woodland (60%)'!$B68>6),\" \",'Upland Woodland (60%)'!$B68/6)","v":" "}," "]
[null,"Snags",null,null,"<.6",{"$f":"IF(OR('Upland Woodland (60%)'!$B80<0.001,'Upland Woodland (60%)'!$B80>8),\" \",'Upland Woodland (60%)'!$B80/8)","v":" "}," ",{"$f":"IF(OR('Upland Woodland (60%)'!$B83<0.001,'Upland Woodland (60%)'!$B83>8),\" \",'Upland Woodland (60%)'!$B83/8)","v":" "}," ",{"$f":"IF(OR('Upland Woodland (60%)'!$B86<0.001,'Upland Woodland (60%)'!$B86>8),\" \",'Upland Woodland (60%)'!$B86/8)","v":" "}," ",{"$f":"IF(OR('Upland Woodland (60%)'!$B89<0.001,'Upland Woodland (60%)'!$B89>8),\" \",'Upland Woodland (60%)'!$B89/8)","v":" "}," "]
[null,"Forest Openings",null,null,"Planned A",{"$f":"IF(OR('Upland Woodland (60%)'!$B93<0.001,'Upland Woodland (60%)'!$B93>6),\" \",'Upland Woodland (60%)'!$B93/6)","v":" "}," ",{"$f":"IF(OR('Upland Woodland (60%)'!$B97<0.001,'Upland Woodland (60%)'!$B97>6),\" \",'Upland Woodland (60%)'!$B97/6)","v":" "}," ",{"$f":"IF(OR('Upland Woodland (60%)'!$B101<0.001,'Upland Woodland (60%)'!$B101>6),\" \",'Upland Woodland (60%)'!$B101/6)","v":" "}," ",{"$f":"IF(OR('Upland Woodland (60%)'!$B103<0.001,'Upland Woodland (60%)'!$B103>6),\" \",'Upland Woodland (60%)'!$B103/6)","v":" "}," "]
[null,"Wildlife Drinking Water",null,null,"<.6",{"$f":"IF(OR('Upland Woodland (60%)'!$B108<0.001,'Upland Woodland (60%)'!$B108>6),\" \",'Upland Woodland (60%)'!$B108/6)","v":" "}," ",{"$f":"IF(OR('Upland Woodland (60%)'!$B112<0.001,'Upland Woodland (60%)'!$B112>6),\" \",'Upland Woodland (60%)'!$B112/6)","v":" "}," ",{"$f":"IF(OR('Upland Woodland (60%)'!$B114<0.001,'Upland Woodland (60%)'!$B114>6),\" \",'Upland Woodland (60%)'!$B114/6)","v":" "}," ",{"$f":"IF(OR('Upland Woodland (60%)'!$B116<0.001,'Upland Woodland (60%)'!$B116>6),\" \",'Upland Woodland (60%)'!$B116/6)","v":" "}," "]
[null,"Habitat Fragmentation",null,null,"Planned B",{"$f":"IF('Upland Woodland (60%)'!$B123=\" \",\" \",'Upland Woodland (60%)'!$B123/10)","v":" "}," ",{"$f":"IF('Upland Woodland (60%)'!$B125=\" \",\" \",'Upland Woodland (60%)'!$B125/10)","v":" "}," ",{"$f":"IF('Upland Woodland (60%)'!$B127=\" \",\" \",'Upland Woodland (60%)'!$B127/10)","v":" "}," ",{"$f":"IF('Upland Woodland (60%)'!$B129=\" \",\" \",'Upland Woodland (60%)'!$B129/10)","v":" "}," "]
[null,"Integrated Pest Management",null,null,"<.6",{"$f":"IF(OR('Upland Woodland (60%)'!$B147<0.001,'Upland Woodland (60%)'!$B147>3),\" \",'Upland Woodland (60%)'!$B147/3)","v":" "}," ",{"$f":"IF(OR('Upland Woodland (60%)'!$B149<0.001,'Upland Woodland (60%)'!$B149>3),\" \",'Upland Woodland (60%)'!$B149/3)","v":" "}," ",{"$f":"IF(OR('Upland Woodland (60%)'!$B151<0.001,'Upland Woodland (60%)'!$B151>3),\" \",'Upland Woodland (60%)'!$B151/3)","v":" "}," ",{"$f":"IF(OR('Upland Woodland (60%)'!$B153<0.001,'Upland Woodland (60%)'!$B153>3),\" \",'Upland Woodland (60%)'!$B153/3)","v":" "}," "]
[null,"Weed Control",null,null,null,{"$f":"IF(OR('Upland Woodland (60%)'!$B157<0.001,'Upland Woodland (60%)'!$B157>3),\" \",'Upland Woodland (60%)'!$B157/3)","v":" "}," ",{"$f":"IF(OR('Upland Woodland (60%)'!$B159<0.001,'Upland Woodland (60%)'!$B159>3),\" \",'Upland Woodland (60%)'!$B159/3)","v":" "}," ",{"$f":"IF(OR('Upland Woodland (60%)'!$B161<0.001,'Upland Woodland (60%)'!$B161>3),\" \",'Upland Woodland (60%)'!$B161/3)","v":" "}," ",{"$f":"IF(OR('Upland Woodland (60%)'!$B163<0.001,'Upland Woodland (60%)'!$B163>3),\" \",'Upland Woodland (60%)'!$B163/3)","v":" "}," "]
[null,"Forest Management Plan",null,null,null,{"$f":"IF(OR('Upland Woodland (60%)'!$B167<0.001,'Upland Woodland (60%)'!$B167>3),\" \",'Upland Woodland (60%)'!$B167/3)","v":" "}," ",{"$f":"IF(OR('Upland Woodland (60%)'!$B169<0.001,'Upland Woodland (60%)'!$B169>3),\" \",'Upland Woodland (60%)'!$B169/3)","v":" "}," ",{"$f":"IF(OR('Upland Woodland (60%)'!$B171<0.001,'Upland Woodland (60%)'!$B171>3),\" \",'Upland Woodland (60%)'!$B171/3)","v":" "}," ",{"$f":"IF(OR('Upland Woodland (60%)'!$B173<0.001,'Upland Woodland (60%)'!$B173>3),\" \",'Upland Woodland (60%)'!$B173/3)","v":" "}," "]
[null,"Acres:",{"$f":"IF('Upland Woodland (60%)'!$O$16<0.001,\" \",'Upland Woodland (60%)'!$O$16)","v":" "},null,"Score:",{"$f":"IF(F64=0,G64,F64)","v":" "}," ",{"$f":"IF(H64=0,I64,H64)","v":" "}," ",{"$f":"IF(J64=0,K64,J64)","v":" "}," ",{"$f":"IF(L64=0,M64,L64)","v":" "}," "]
[null,null,null,null,null,{"$f":"IF(AND(F53=\" \",F54=\" \",F55=\" \",F56=\" \",F57=\" \",F58=\" \",F59=\" \",F60=\" \",F61=\" \",F62=\" \"),\" \",DMIN(F52:F62,\"Present\",E53:E54))","v":" "},{"$f":"IF(F53=\" \",\" \",AVERAGE(F53:F62))","v":" "},{"$f":"IF(AND(H53=\" \",H54=\" \",H55=\" \",H56=\" \",H57=\" \",H58=\" \",H59=\" \",H60=\" \",H61=\" \",H62=\" \"),\" \",DMIN($H52:$H62,\"No Action\",$E55:$E56))","v":" "},{"$f":"IF(H53=\" \",\" \",AVERAGE(H53:H62))","v":" "},{"$f":"IF(AND(J53=\" \",J54=\" \",J55=\" \",J56=\" \",J57=\" \",J58=\" \",J59=\" \",J60=\" \",J61=\" \",J62=\" \"),\" \",DMIN($J52:$J62,\"Planned A\",$E57:$E58))","v":" "},{"$f":"IF(J53=\" \",\" \",AVERAGE(J53:J62))","v":" "},{"$f":"IF(AND(L53=\" \",L54=\" \",L55=\" \",L56=\" \",L57=\" \",L58=\" \",L59=\" \",L60=\" \",L61=\" \",L62=\" \"),\" \",DMIN($L52:$L62,\"Planned B\",$E59:$E60))","v":" "},{"$f":"IF(L53=\" \",\" \",AVERAGE(L53:L62))","v":" "}]
[]
[null,null,null,null,null,null,"Back to Top"]
[]
[]
[]
[]
[]
[null,null,null,null,null,null,null,null,null,null,{"$f":"$D$10","v":" "}]
[]
[]
[]
[]
[]
[]
[null,"Riparian Area (Left Bank) (Planning Criteria =70%)",null,null,null,"Present","P.C.","No Action","P.C.","Planned A","P.C.","Planned B","P.C."]
[null,"Riparian Width",null,null,null,{"$f":"IF(OR('Riparian Area (70%)'!$B$32<0.001,'Riparian Area (70%)'!$B$32>10),\" \",'Riparian Area (70%)'!$B$32/10)","v":" "},{"$f":"IF(F80=\" \",\" \",(IF(F80>0.69999,\"Meets PC \",\"Below PC\")))","v":" "},{"$f":"IF(OR('Riparian Area (70%)'!$B$35<0.001,'Riparian Area (70%)'!$B$35>10),\" \",'Riparian Area (70%)'!$B$35/10)","v":" "},{"$f":"IF(H80=\" \",\" \",(IF(H80>0.69999,\"Meets PC \",\"Below PC\")))","v":" "},{"$f":"IF(OR('Riparian Area (70%)'!$B$38<0.001,'Riparian Area (70%)'!$B$38>10),\" \",'Riparian Area (70%)'!$B$38/10)","v":" "},{"$f":"IF(J80=\" \",\" \",(IF(J80>0.69999,\"Meets PC \",\"Below PC\")))","v":" "},{"$f":"IF(OR('Riparian Area (70%)'!$B$41<0.001,'Riparian Area (70%)'!$B$41>10),\" \",'Riparian Area (70%)'!$B$41/10)","v":" "},{"$f":"IF(L80=\" \",\" \",(IF(L80>0.69999,\"Meets PC \",\"Below PC\")))","v":" "}]
[null,"Riparian Length",null,null,"Present",{"$f":"IF(OR('Riparian Area (70%)'!$B$78<0.001,'Riparian Area (70%)'!$B$78>10),\" \",'Riparian Area (70%)'!$B$78/10)","v":" "},{"$f":"IF(F81=\" \",\" \",(IF(F81>0.69999,\"Meets PC \",\"Below PC\")))","v":" "},{"$f":"IF(OR('Riparian Area (70%)'!$B$80<0.001,'Riparian Area (70%)'!$B$80>10),\" \",'Riparian Area (70%)'!$B$80/10)","v":" "},{"$f":"IF(H81=\" \",\" \",(IF(H81>0.69999,\"Meets PC \",\"Below PC\")))","v":" "},{"$f":"IF(OR('Riparian Area (70%)'!$B$83<0.001,'Riparian Area (70%)'!$B$83>10),\" \",'Riparian Area (70%)'!$B$83/10)","v":" "},{"$f":"IF(J81=\" \",\" \",(IF(J81>0.69999,\"Meets PC \",\"Below PC\")))","v":" "},{"$f":"IF(OR('Riparian Area (70%)'!$B$85<0.001,'Riparian Area (70%)'!$B$85>10),\" \",'Riparian Area (70%)'!$B$85/10)","v":" "},{"$f":"IF(L81=\" \",\" \",(IF(L81>0.69999,\"Meets PC \",\"Below PC\")))","v":" "}]
[null,"Site Index Height",null,null,"<.75",{"$f":"IF(OR('Riparian Area (70%)'!$Y$32=TRUE,'Riparian Area (70%)'!$B106<0.001,'Riparian Area (70%)'!$B106>5),\" \",'Riparian Area (70%)'!$B106/5)","v":" "}," ",{"$f":"IF(OR('Riparian Area (70%)'!$Y$32=TRUE,'Riparian Area (70%)'!$B108<0.001,'Riparian Area (70%)'!$B108>5),\" \",'Riparian Area (70%)'!$B108/5)","v":" "}," ",{"$f":"IF(OR('Riparian Area (70%)'!$Y$32=TRUE,'Riparian Area (70%)'!$B110<0.001,'Riparian Area (70%)'!$B110>5),\" \",'Riparian Area (70%)'!$B110/5)","v":" "}," ",{"$f":"IF(OR('Riparian Area (70%)'!$Y$32=TRUE,'Riparian Area (70%)'!$B112<0.001,'Riparian Area (70%)'!$B112>5),\" \",'Riparian Area (70%)'!$B112/5)","v":" "}," "]
[null,"Bank Stability",null,null,"No Action",{"$f":"IF(OR('Riparian Area (70%)'!$B126<0.001,'Riparian Area (70%)'!$B126>5),\" \",'Riparian Area (70%)'!$B126/5)","v":" "}," ",{"$f":"IF(OR('Riparian Area (70%)'!$B128<0.001,'Riparian Area (70%)'!$B128>5),\" \",'Riparian Area (70%)'!$B128/5)","v":" "}," ",{"$f":"IF(OR('Riparian Area (70%)'!$B132<0.001,'Riparian Area (70%)'!$B132>5),\" \",'Riparian Area (70%)'!$B132/5)","v":" "}," ",{"$f":"IF(OR('Riparian Area (70%)'!$B134<0.001,'Riparian Area (70%)'!$B134>5),\" \",'Riparian Area (70%)'!$B134/5)","v":" "}," "]
[null,"Grazing System",null,null,"<.75",{"$f":"IF(OR('Riparian Area (70%)'!$B144<0.001,'Riparian Area (70%)'!$B144>6),\" \",'Riparian Area (70%)'!$B144/6)","v":" "}," ",{"$f":"IF(OR('Riparian Area (70%)'!$B146<0.001,'Riparian Area (70%)'!$B146>6),\" \",'Riparian Area (70%)'!$B146/6)","v":" "}," ",{"$f":"IF(OR('Riparian Area (70%)'!$B148<0.001,'Riparian Area (70%)'!$B148>6),\" \",'Riparian Area (70%)'!$B148/6)","v":" "}," ",{"$f":"IF(OR('Riparian Area (70%)'!$B150<0.001,'Riparian Area (70%)'!$B150>6),\" \",'Riparian Area (70%)'!$B150/6)","v":" "}," "]
[null,"Plant Community",null,null,"Planned A",{"$f":"IF(OR('Riparian Area (70%)'!$B157<0.001,'Riparian Area (70%)'!$B157>4),\" \",'Riparian Area (70%)'!$B157/4)","v":" "}," ",{"$f":"IF(OR('Riparian Area (70%)'!$B159<0.001,'Riparian Area (70%)'!$B159>4),\" \",'Riparian Area (70%)'!$B159/4)","v":" "}," ",{"$f":"IF(OR('Riparian Area (70%)'!$B161<0.001,'Riparian Area (70%)'!$B161>4),\" \",'Riparian Area (70%)'!$B161/4)","v":" "}," ",{"$f":"IF(OR('Riparian Area (70%)'!$B163<0.001,'Riparian Area (70%)'!$B163>4),\" \",'Riparian Area (70%)'!$B163/4)","v":" "}," "]
[null,"Snags",null,null,"<.75",{"$f":"IF(OR('Riparian Area (70%)'!$Y$32=TRUE,'Riparian Area (70%)'!$B173<0.001,'Riparian Area (70%)'!$B173>8),\" \",'Riparian Area (70%)'!$B173/8)","v":" "}," ",{"$f":"IF(OR('Riparian Area (70%)'!$Y$32=TRUE,'Riparian Area (70%)'!$B175<0.001,'Riparian Area (70%)'!$B175>8),\" \",'Riparian Area (70%)'!$B175/8)","v":" "}," ",{"$f":"IF(OR('Riparian Area (70%)'!$Y$32=TRUE,'Riparian Area (70%)'!$B177<0.001,'Riparian Area (70%)'!$B177>8),\" \",'Riparian Area (70%)'!$B177/8)","v":" "}," ",{"$f":"IF(OR('Riparian Area (70%)'!$Y$32=TRUE,'Riparian Area (70%)'!$B179<0.001,'Riparian Area (70%)'!$B179>8),\" \",'Riparian Area (70%)'!$B179/8)","v":" "}," "]
[null,"Downed Woody Material",null,null,"Planned B",{"$f":"IF(OR('Riparian Area (70%)'!$Y$32=TRUE,'Riparian Area (70%)'!$B189<0.001,'Riparian Area (70%)'!$B189>4),\" \",'Riparian Area (70%)'!$B189/4)","v":" "}," ",{"$f":"IF(OR('Riparian Area (70%)'!$Y$32=TRUE,'Riparian Area (70%)'!$B191<0.001,'Riparian Area (70%)'!$B191>4),\" \",'Riparian Area (70%)'!$B191/4)","v":" "}," ",{"$f":"IF(OR('Riparian Area (70%)'!$Y$32=TRUE,'Riparian Area (70%)'!$B193<0.001,'Riparian Area (70%)'!$B193>4),\" \",'Riparian Area (70%)'!$B193/4)","v":" "}," ",{"$f":"IF(OR('Riparian Area (70%)'!$Y$32=TRUE,'Riparian Area (70%)'!$B195<0.001,'Riparian Area (70%)'!$B195>4),\" \",'Riparian Area (70%)'!$B195/4)","v":" "}," "]
[null,"Habitat Fragmentation",null,null,"<.75",{"$f":"IF('Riparian Area (70%)'!$B223=\" \",\" \",'Riparian Area (70%)'!$B223/10)","v":" "}," ",{"$f":"IF('Riparian Area (70%)'!$B225=\" \",\" \",'Riparian Area (70%)'!$B225/10)","v":" "}," ",{"$f":"IF('Riparian Area (70%)'!$B227=\" \",\" \",'Riparian Area (70%)'!$B227/10)","v":" "}," ",{"$f":"IF('Riparian Area (70%)'!$B229=\" \",\" \",'Riparian Area (70%)'!$B229/10)","v":" "}," "]
[null,"Nutrient Management",null,null,null,{"$f":"IF(OR('Riparian Area (70%)'!$B280<0.001,'Riparian Area (70%)'!$B280>3),\" \",'Riparian Area (70%)'!$B280/3)","v":" "}," ",{"$f":"IF(OR('Riparian Area (70%)'!$B282<0.001,'Riparian Area (70%)'!$B282>3),\" \",'Riparian Area (70%)'!$B282/3)","v":" "}," ",{"$f":"IF(OR('Riparian Area (70%)'!$B284<0.001,'Riparian Area (70%)'!$B284>3),\" \",'Riparian Area (70%)'!$B284/3)","v":" "}," ",{"$f":"IF(OR('Riparian Area (70%)'!$B286<0.001,'Riparian Area (70%)'!$B286>3),\" \",'Riparian Area (70%)'!$B286/3)","v":" "}," "]
[null,"Integrated Pest Management",null,null,null,{"$f":"IF(OR('Riparian Area (70%)'!$B292<0.001,'Riparian Area (70%)'!$B292>3),\" \",'Riparian Area (70%)'!$B292/3)","v":" "}," ",{"$f":"IF(OR('Riparian Area (70%)'!$B294<0.001,'Riparian Area (70%)'!$B294>3),\" \",'Riparian Area (70%)'!$B294/3)","v":" "}," ",{"$f":"IF(OR('Riparian Area (70%)'!$B296<0.001,'Riparian Area (70%)'!$B296>3),\" \",'Riparian Area (70%)'!$B296/3)","v":" "}," ",{"$f":"IF(OR('Riparian Area (70%)'!$B298<0.001,'Riparian Area (70%)'!$B298>3),\" \",'Riparian Area (70%)'!$B298/3)","v":" "}," "]
[null,"Weed Control",null,null,null,{"$f":"IF(OR('Riparian Area (70%)'!$B304<0.001,'Riparian Area (70%)'!$B304>3),\" \",'Riparian Area (70%)'!$B304/3)","v":" "}," ",{"$f":"IF(OR('Riparian Area (70%)'!$B306<0.001,'Riparian Area (70%)'!$B306>3),\" \",'Riparian Area (70%)'!$B306/3)","v":" "}," ",{"$f":"IF(OR('Riparian Area (70%)'!$B308<0.001,'Riparian Area (70%)'!$B308>3),\" \",'Riparian Area (70%)'!$B308/3)","v":" "}," ",{"$f":"IF(OR('Riparian Area (70%)'!$B310<0.001,'Riparian Area (70%)'!$B310>3),\" \",'Riparian Area (70%)'!$B310/3)","v":" "}," "]
[null,"Acres:",{"$f":"IF('Riparian Area (70%)'!$G$24<0.001,\" \",'Riparian Area (70%)'!$G$24)","v":" "},null,"Score:",{"$f":"IF(F93=0,G93,F93)","v":" "}," ",{"$f":"IF(H93=0,I93,H93)","v":" "}," ",{"$f":"IF(J93=0,K93,J93)","v":" "}," ",{"$f":"IF(L93=0,M93,L93)","v":" "}," "]
[null,null,null,null,null,{"$f":"IF(AND(F80=\" \",F81=\" \",F82=\" \",F83=\" \",F84=\" \",F85=\" \",F86=\" \",F87=\" \",F88=\" \",F89=\" \",F90=\" \",F91=\" \"),\" \",DMIN(F79:F91,\"Present\",E81:E82))","v":" "},{"$f":"IF(F80=\" \",\" \",AVERAGE(F80:F91))","v":" "},{"$f":"IF(AND(H80=\" \",H81=\" \",H82=\" \",H83=\" \",H84=\" \",H85=\" \",H86=\" \",H87=\" \",H88=\" \",H89=\" \",H90=\" \",H91=\" \",),\" \",DMIN($H79:$H91,\"No Action\",$E83:$E84))","v":0},{"$f":"IF(H80=\" \",\" \",AVERAGE(H80:H91))","v":" "},{"$f":"IF(AND(J80=\" \",J81=\" \",J82=\" \",J83=\" \",J84=\" \",J85=\" \",J86=\" \",J87=\" \",J88=\" \",J89=\" \",J90=\" \",J91=\" \"),\" \",DMIN($J79:$J91,\"Planned A\",$E85:$E86))","v":" "},{"$f":"IF(J80=\" \",\" \",AVERAGE(J80:J91))","v":" "},{"$f":"IF(AND(L80=\" \",L81=\" \",L82=\" \",L83=\" \",L84=\" \",L85=\" \",L86=\" \",L87=\" \",L88=\" \",L89=\" \",L90=\" \",L91=\" \"),\" \",DMIN($L79:$L91,\"Planned B\",$E87:$E88))","v":" "},{"$f":"IF(L80=\" \",\" \",AVERAGE(L80:L91))","v":" "}]
[null,"Riparian Area (Right Bank) (Planning Criteria =70%)",null,null,null,"Present","P.C.","No Action","P.C.","Planned A","P.C.","Planned B","P.C."]
[null,"Riparian Width",null,null,null,{"$f":"IF(OR('Riparian Area (70%)'!$F$32<0.001,'Riparian Area (70%)'!$F$32>10),\" \",'Riparian Area (70%)'!$F$32/10)","v":" "},{"$f":"IF(F95=\" \",\" \",(IF(F95>0.69999,\"Meets PC \",\"Below PC\")))","v":" "},{"$f":"IF(OR('Riparian Area (70%)'!$F$35<0.001,'Riparian Area (70%)'!$F$35>10),\" \",'Riparian Area (70%)'!$F$35/10)","v":" "},{"$f":"IF(H95=\" \",\" \",(IF(H95>0.69999,\"Meets PC \",\"Below PC\")))","v":" "},{"$f":"IF(OR('Riparian Area (70%)'!$F$38<0.001,'Riparian Area (70%)'!$F$38>10),\" \",'Riparian Area (70%)'!$F$38/10)","v":" "},{"$f":"IF(J95=\" \",\" \",(IF(J95>0.69999,\"Meets PC \",\"Below PC\")))","v":" "},{"$f":"IF(OR('Riparian Area (70%)'!$F$41<0.001,'Riparian Area (70%)'!$F$41>10),\" \",'Riparian Area (70%)'!$F$41/10)","v":" "},{"$f":"IF(L95=\" \",\" \",(IF(L95>0.69999,\"Meets PC \",\"Below PC\")))","v":" "}]
[null,"Riparian Length",null,null,"Present",{"$f":"IF(OR('Riparian Area (70%)'!$F$78<0.001,'Riparian Area (70%)'!$F$78>10),\" \",'Riparian Area (70%)'!$F$78/10)","v":" "},{"$f":"IF(F96=\" \",\" \",(IF(F96>0.69999,\"Meets PC \",\"Below PC\")))","v":" "},{"$f":"IF(OR('Riparian Area (70%)'!$F$80<0.001,'Riparian Area (70%)'!$F$80>10),\" \",'Riparian Area (70%)'!$F$80/10)","v":" "},{"$f":"IF(H96=\" \",\" \",(IF(H96>0.69999,\"Meets PC \",\"Below PC\")))","v":" "},{"$f":"IF(OR('Riparian Area (70%)'!$F$83<0.001,'Riparian Area (70%)'!$F$83>10),\" \",'Riparian Area (70%)'!$F$83/10)","v":" "},{"$f":"IF(J96=\" \",\" \",(IF(J96>0.69999,\"Meets PC \",\"Below PC\")))","v":" "},{"$f":"IF(OR('Riparian Area (70%)'!$F$85<0.001,'Riparian Area (70%)'!$F$85>10),\" \",'Riparian Area (70%)'!$F$85/10)","v":" "},{"$f":"IF(L96=\" \",\" \",(IF(L96>0.69999,\"Meets PC \",\"Below PC\")))","v":" "}]
[null,"Site Index Height",null,null,"<.75",{"$f":"IF(OR('Riparian Area (70%)'!$Y$32=TRUE,'Riparian Area (70%)'!$F106<0.001,'Riparian Area (70%)'!$F106>5),\" \",'Riparian Area (70%)'!$F106/5)","v":" "},{"$f":"IF(F97=\" \",\" \",(IF(F97>0.69999,\"Meets PC \",\"Below PC\")))","v":" "},{"$f":"IF(OR('Riparian Area (70%)'!$Y$32=TRUE,'Riparian Area (70%)'!$F108<0.001,'Riparian Area (70%)'!$F108>5),\" \",'Riparian Area (70%)'!$F108/5)","v":" "},{"$f":"IF(H97=\" \",\" \",(IF(H97>0.69999,\"Meets PC \",\"Below PC\")))","v":" "},{"$f":"IF(OR('Riparian Area (70%)'!$Y$32=TRUE,'Riparian Area (70%)'!$F110<0.001,'Riparian Area (70%)'!$F110>5),\" \",'Riparian Area (70%)'!$F110/5)","v":" "},{"$f":"IF(J97=\" \",\" \",(IF(J97>0.69999,\"Meets PC \",\"Below PC\")))","v":" "},{"$f":"IF(OR('Riparian Area (70%)'!$Y$32=TRUE,'Riparian Area (70%)'!$F112<0.001,'Riparian Area (70%)'!$F112>5),\" \",'Riparian Area (70%)'!$F112/5)","v":" "},{"$f":"IF(L97=\" \",\" \",(IF(L97>0.69999,\"Meets PC \",\"Below PC\")))","v":" "}]
[null,"Bank Stability",null,null,"No Action",{"$f":"IF(OR('Riparian Area (70%)'!$F126<0.001,'Riparian Area (70%)'!$F126>5),\" \",'Riparian Area (70%)'!$F126/5)","v":" "}," ",{"$f":"IF(OR('Riparian Area (70%)'!$F128<0.001,'Riparian Area (70%)'!$F128>5),\" \",'Riparian Area (70%)'!$F128/5)","v":" "}," ",{"$f":"IF(OR('Riparian Area (70%)'!$F132<0.001,'Riparian Area (70%)'!$F132>5),\" \",'Riparian Area (70%)'!$F132/5)","v":" "}," ",{"$f":"IF(OR('Riparian Area (70%)'!$F134<0.001,'Riparian Area (70%)'!$F134>5),\" \",'Riparian Area (70%)'!$F134/5)","v":" "}," "]
[null,"Grazing System",null,null,"<.75",{"$f":"IF(OR('Riparian Area (70%)'!$F144<0.001,'Riparian Area (70%)'!$F144>6),\" \",'Riparian Area (70%)'!$F144/6)","v":" "}," ",{"$f":"IF(OR('Riparian Area (70%)'!$F146<0.001,'Riparian Area (70%)'!$F146>6),\" \",'Riparian Area (70%)'!$F146/6)","v":" "}," ",{"$f":"IF(OR('Riparian Area (70%)'!$F148<0.001,'Riparian Area (70%)'!$F148>6),\" \",'Riparian Area (70%)'!$F148/6)","v":" "}," ",{"$f":"IF(OR('Riparian Area (70%)'!$F150<0.001,'Riparian Area (70%)'!$F150>6),\" \",'Riparian Area (70%)'!$F150/6)","v":" "}," "]
[null,"Plant Community",null,null,"Planned A",{"$f":"IF(OR('Riparian Area (70%)'!$F157<0.001,'Riparian Area (70%)'!$F157>4),\" \",'Riparian Area (70%)'!$F157/4)","v":" "}," ",{"$f":"IF(OR('Riparian Area (70%)'!$F159<0.001,'Riparian Area (70%)'!$F159>4),\" \",'Riparian Area (70%)'!$F159/4)","v":" "}," ",{"$f":"IF(OR('Riparian Area (70%)'!$F161<0.001,'Riparian Area (70%)'!$F161>4),\" \",'Riparian Area (70%)'!$F161/4)","v":" "}," ",{"$f":"IF(OR('Riparian Area (70%)'!$F163<0.001,'Riparian Area (70%)'!$F163>4),\" \",'Riparian Area (70%)'!$F163/4)","v":" "}," "]
[null,"Snags",null,null,"<.75",{"$f":"IF(OR('Riparian Area (70%)'!$Y$32=TRUE,'Riparian Area (70%)'!$F173<0.001,'Riparian Area (70%)'!$F173>8),\" \",'Riparian Area (70%)'!$F173/8)","v":" "}," ",{"$f":"IF(OR('Riparian Area (70%)'!$Y$32=TRUE,'Riparian Area (70%)'!$F175<0.001,'Riparian Area (70%)'!$F175>8),\" \",'Riparian Area (70%)'!$F175/8)","v":" "}," ",{"$f":"IF(OR('Riparian Area (70%)'!$Y$32=TRUE,'Riparian Area (70%)'!$F177<0.001,'Riparian Area (70%)'!$F177>8),\" \",'Riparian Area (70%)'!$F177/8)","v":" "}," ",{"$f":"IF(OR('Riparian Area (70%)'!$Y$32=TRUE,'Riparian Area (70%)'!$F179<0.001,'Riparian Area (70%)'!$F179>8),\" \",'Riparian Area (70%)'!$F179/8)","v":" "}," "]
[null,"Downed Woody Material",null,null,"Planned B",{"$f":"IF(OR('Riparian Area (70%)'!$Y$32=TRUE,'Riparian Area (70%)'!$F189<0.001,'Riparian Area (70%)'!$F189>4),\" \",'Riparian Area (70%)'!$F189/4)","v":" "}," ",{"$f":"IF(OR('Riparian Area (70%)'!$Y$32=TRUE,'Riparian Area (70%)'!$F191<0.001,'Riparian Area (70%)'!$F191>4),\" \",'Riparian Area (70%)'!$F191/4)","v":" "}," ",{"$f":"IF(OR('Riparian Area (70%)'!$Y$32=TRUE,'Riparian Area (70%)'!$F193<0.001,'Riparian Area (70%)'!$F193>4),\" \",'Riparian Area (70%)'!$F193/4)","v":" "}," ",{"$f":"IF(OR('Riparian Area (70%)'!$Y$32=TRUE,'Riparian Area (70%)'!$F195<0.001,'Riparian Area (70%)'!$F195>4),\" \",'Riparian Area (70%)'!$F195/4)","v":" "}," "]
[null,"Habitat Fragmentation",null,null,"<.75",{"$f":"IF('Riparian Area (70%)'!$B248=\" \",\" \",'Riparian Area (70%)'!$B248/10)","v":" "}," ",{"$f":"IF('Riparian Area (70%)'!B250=\" \",\" \",'Riparian Area (70%)'!B250/10)","v":" "}," ",{"$f":"IF('Riparian Area (70%)'!B252=\" \",\" \",'Riparian Area (70%)'!B252/10)","v":" "}," ",{"$f":"IF('Riparian Area (70%)'!B254=\" \",\" \",'Riparian Area (70%)'!B254/10)","v":" "}," "]
[null,"Nutrient Management",null,null,null,{"$f":"IF(OR('Riparian Area (70%)'!$F280<0.001,'Riparian Area (70%)'!$F280>3),\" \",'Riparian Area (70%)'!$F280/3)","v":" "}," ",{"$f":"IF(OR('Riparian Area (70%)'!$F282<0.001,'Riparian Area (70%)'!$F282>3),\" \",'Riparian Area (70%)'!$F282/3)","v":" "}," ",{"$f":"IF(OR('Riparian Area (70%)'!$F284<0.001,'Riparian Area (70%)'!$F284>3),\" \",'Riparian Area (70%)'!$F284/3)","v":" "}," ",{"$f":"IF(OR('Riparian Area (70%)'!$F286<0.001,'Riparian Area (70%)'!$F286>3),\" \",'Riparian Area (70%)'!$F286/3)","v":" "}," "]
[null,"Integrated Pest Management",null,null,null,{"$f":"IF(OR('Riparian Area (70%)'!$F292<0.001,'Riparian Area (70%)'!$F292>3),\" \",'Riparian Area (70%)'!$F292/3)","v":" "}," ",{"$f":"IF(OR('Riparian Area (70%)'!$F294<0.001,'Riparian Area (70%)'!$F294>3),\" \",'Riparian Area (70%)'!$F294/3)","v":" "}," ",{"$f":"IF(OR('Riparian Area (70%)'!$F296<0.001,'Riparian Area (70%)'!$F296>3),\" \",'Riparian Area (70%)'!$F296/3)","v":" "}," ",{"$f":"IF(OR('Riparian Area (70%)'!$F298<0.001,'Riparian Area (70%)'!$F298>3),\" \",'Riparian Area (70%)'!$F298/3)","v":" "}," "]
[null,"Weed Control",null,null,null,{"$f":"IF(OR('Riparian Area (70%)'!$F304<0.001,'Riparian Area (70%)'!$F304>3),\" \",'Riparian Area (70%)'!$F304/3)","v":" "}," ",{"$f":"IF(OR('Riparian Area (70%)'!$F306<0.001,'Riparian Area (70%)'!$F306>3),\" \",'Riparian Area (70%)'!$F306/3)","v":" "}," ",{"$f":"IF(OR('Riparian Area (70%)'!$F308<0.001,'Riparian Area (70%)'!$F308>3),\" \",'Riparian Area (70%)'!$F308/3)","v":" "}," ",{"$f":"IF(OR('Riparian Area (70%)'!$F310<0.001,'Riparian Area (70%)'!$F310>3),\" \",'Riparian Area (70%)'!$F310/3)","v":" "}," "]
[null,"Acres:",{"$f":"IF('Riparian Area (70%)'!$K$24<0.001,\" \",'Riparian Area (70%)'!$K$24)","v":" "},null,"Score:",{"$f":"IF(F108=0,G108,F108)","v":" "}," ",{"$f":"IF(H108=0,I108,H108)","v":" "}," ",{"$f":"IF(J108=0,K108,J108)","v":" "}," ",{"$f":"IF(L108=0,M108,L108)","v":" "}," "]
[null,null,null,null,null,{"$f":"IF(AND(F95=\" \",F96=\" \",F97=\" \",F98=\" \",F99=\" \",F100=\" \",F101=\" \",F102=\" \",F103=\" \",F104=\" \",F105=\" \",F106=\" \"),\" \",DMIN(F94:F106,\"Present\",E96:E97))","v":" "},{"$f":"IF(F95=\" \",\" \",AVERAGE(F95:F106))","v":" "},{"$f":"IF(AND(H95=\" \",H96=\" \",H97=\" \",H98=\" \",H99=\" \",H100=\" \",H101=\" \",H102=\" \",H103=\" \",H104=\" \",H105=\" \",H106=\" \",),\" \",DMIN($H94:$H106,\"No Action\",$E98:$E99))","v":0},{"$f":"IF(H95=\" \",\" \",AVERAGE(H95:H106))","v":" "},{"$f":"IF(AND(J95=\" \",J96=\" \",J97=\" \",J98=\" \",J99=\" \",J100=\" \",J101=\" \",J102=\" \",J103=\" \",J104=\" \",J105=\" \",J106=\" \"),\" \",DMIN($J94:$J106,\"Planned A\",$E100:$E101))","v":" "},{"$f":"IF(J95=\" \",\" \",AVERAGE(J95:J106))","v":" "},{"$f":"IF(AND(L95=\" \",L96=\" \",L97=\" \",L98=\" \",L99=\" \",L100=\" \",L101=\" \",L102=\" \",L103=\" \",L104=\" \",L105=\" \",L106=\" \"),\" \",DMIN($L94:$L106,\"Planned B\",$E102:$E103))","v":" "},{"$f":"IF(L95=\" \",\" \",AVERAGE(L95:L106))","v":" "}]
[null,"Wetland (Planning Criteria =70%)",null,null,null,"Present","P.C.","No Action","P.C.","Planned A","P.C.","Planned B","P.C."]
[null,"Water Regime",null,null,"Present",{"$f":"IF(OR('Wetland (70%)'!$B23<0.001,'Wetland (70%)'!$B23>4),\" \",'Wetland (70%)'!$B23/4)","v":" "},{"$f":"IF(F110=\" \",\" \",(IF(F110>0.69999,\"Meets PC \",\"Below PC\")))","v":" "},{"$f":"IF(OR('Wetland (70%)'!$B25<0.001,'Wetland (70%)'!$B25>4),\" \",'Wetland (70%)'!$B25/4)","v":" "},{"$f":"IF(H110=\" \",\" \",(IF(H110>0.69999,\"Meets PC \",\"Below PC\")))","v":" "},{"$f":"IF(OR('Wetland (70%)'!$B27<0.001,'Wetland (70%)'!$B27>4),\" \",'Wetland (70%)'!$B27/4)","v":" "},{"$f":"IF(J110=\" \",\" \",(IF(J110>0.69999,\"Meets PC \",\"Below PC\")))","v":" "},{"$f":"IF(OR('Wetland (70%)'!$B29<0.001,'Wetland (70%)'!$B29>4),\" \",'Wetland (70%)'!$B29/4)","v":" "},{"$f":"IF(L110=\" \",\" \",(IF(L110>0.69999,\"Meets PC \",\"Below PC\")))","v":" "}]
[null,"Plant Diversity",null,null,null,{"$f":"IF(OR('Wetland (70%)'!$B37<0.001,'Wetland (70%)'!$B37>10),\" \",'Wetland (70%)'!$B37/10)","v":" "},{"$f":"IF(F111=\" \",\" \",(IF(F111>0.69999,\"Meets PC \",\"Below PC\")))","v":" "},{"$f":"IF(OR('Wetland (70%)'!$B39<0.001,'Wetland (70%)'!$B39>10),\" \",'Wetland (70%)'!$B39/10)","v":" "},{"$f":"IF(H111=\" \",\" \",(IF(H111>0.69999,\"Meets PC \",\"Below PC\")))","v":" "},{"$f":"IF(OR('Wetland (70%)'!$B41<0.001,'Wetland (70%)'!$B41>10),\" \",'Wetland (70%)'!$B41/10)","v":" "},{"$f":"IF(J111=\" \",\" \",(IF(J111>0.69999,\"Meets PC \",\"Below PC\")))","v":" "},{"$f":"IF(OR('Wetland (70%)'!$B43<0.001,'Wetland (70%)'!$B43>10),\" \",'Wetland (70%)'!$B43/10)","v":" "},{"$f":"IF(L111=\" \",\" \",(IF(L111>0.69999,\"Meets PC \",\"Below PC\")))","v":" "}]
[null,"Grazing System",null,null,null,{"$f":"IF(OR('Wetland (70%)'!$B56<0.001,'Wetland (70%)'!$B56>4),\" \",'Wetland (70%)'!$B56/4)","v":" "},{"$f":"IF(F112=\" \",\" \",(IF(F112>0.69999,\"Meets PC \",\"Below PC\")))","v":" "},{"$f":"IF(OR('Wetland (70%)'!$B58<0.001,'Wetland (70%)'!$B58>4),\" \",'Wetland (70%)'!$B58/4)","v":" "},{"$f":"IF(H112=\" \",\" \",(IF(H112>0.69999,\"Meets PC \",\"Below PC\")))","v":" "},{"$f":"IF(OR('Wetland (70%)'!$B60<0.001,'Wetland (70%)'!$B60>4),\" \",'Wetland (70%)'!$B60/4)","v":" "},{"$f":"IF(J112=\" \",\" \",(IF(J112>0.69999,\"Meets PC \",\"Below PC\")))","v":" "},{"$f":"IF(OR('Wetland (70%)'!$B62<0.001,'Wetland (70%)'!$B62>4),\" \",'Wetland (70%)'!$B62/4)","v":" "},{"$f":"IF(L112=\" \",\" \",(IF(L112>0.69999,\"Meets PC \",\"Below PC\")))","v":" "}]
[null,"Acres:",{"$f":"IF('Wetland (70%)'!$O$16<0.001,\" \",'Wetland (70%)'!$O$16)","v":" "},null,"Score:",{"$f":"IF(F114=0,G114,F114)","v":" "},{"$f":"IF(F113=\" \",\" \",(IF(F113>0.69999,\"Meets PC \",\"Below PC\")))","v":" "},{"$f":"IF(H114=0,I114,H114)","v":" "},{"$f":"IF(H113=\" \",\" \",(IF(H113>0.69999,\"Meets PC \",\"Below PC\")))","v":" "},{"$f":"IF(J114=0,K114,J114)","v":" "},{"$f":"IF(J113=\" \",\" \",(IF(J113>0.69999,\"Meets PC \",\"Below PC\")))","v":" "},{"$f":"IF(L114=0,M114,L114)","v":" "},{"$f":"IF(L113=\" \",\" \",(IF(L113>0.69999,\"Meets PC \",\"Below PC\")))","v":" "}]
[null,null,null,null,null,{"$f":"IF(AND(F110=\" \",F110=\" \",F111=\" \",F112=\" \"),\" \",DMIN(F109:F112,\"Present\",E95:E97))","v":" "},{"$f":"IF(F110=\" \",\" \",AVERAGE(F110:F112))","v":" "},{"$f":"IF(AND(H110=\" \",H111=\" \",H112=\" \"),\" \",DMIN($H109:$H112,\"No Action\",$E98:$E99))","v":" "},{"$f":"IF(H110=\" \",\" \",AVERAGE(H110:H112))","v":" "},{"$f":"IF(AND(J110=\" \",J111=\" \",J112=\" \"),\" \",DMIN($J109:$J112,\"Planned A\",$E101:$E102))","v":" "},{"$f":"IF(J110=\" \",\" \",AVERAGE(J110:J112))","v":" "},{"$f":"IF(AND(L110=\" \",L111=\" \",L112=\" \"),\" \",DMIN($L109:$L112,\"Planned B\",$E102:$E103))","v":" "},{"$f":"IF(L110=\" \",\" \",AVERAGE(L110:L112))","v":" "}]
[null,null,null,null,null,"Back to Top",null,null,null,null,{"$f":"$D$10","v":" "}]
[]
[]
[null,"Ponds & Small Lakes (Planning Criteria =70%)",null,null,null,"Present","P.C.","No Action","P.C.","Planned A","P.C.","Planned B","P.C."]
[null,"Water Quality",null,null,"Present",{"$f":"IF(OR('Ponds & Small Lakes (70%)'!$B23<0.001,'Ponds & Small Lakes (70%)'!$B23>4),\" \",'Ponds & Small Lakes (70%)'!$B23/4)","v":" "},{"$f":"IF(F119=\" \",\" \",(IF(F119>0.69999,\"Meets PC \",\"Below PC\")))","v":" "},{"$f":"IF(OR('Ponds & Small Lakes (70%)'!$B25<0.001,'Ponds & Small Lakes (70%)'!$B25>4),\" \",'Ponds & Small Lakes (70%)'!$B25/4)","v":" "},{"$f":"IF(H119=\" \",\" \",(IF(H119>0.69999,\"Meets PC \",\"Below PC\")))","v":" "},{"$f":"IF(OR('Ponds & Small Lakes (70%)'!$B27<0.001,'Ponds & Small Lakes (70%)'!$B27>4),\" \",'Ponds & Small Lakes (70%)'!$B27/4)","v":" "},{"$f":"IF(J119=\" \",\" \",(IF(J119>0.69999,\"Meets PC \",\"Below PC\")))","v":" "},{"$f":"IF(OR('Ponds & Small Lakes (70%)'!$B29<0.001,'Ponds & Small Lakes (70%)'!$B29>4),\" \",'Ponds & Small Lakes (70%)'!$B29/4)","v":" "},{"$f":"IF(L119=\" \",\" \",(IF(L119>0.69999,\"Meets PC \",\"Below PC\")))","v":" "}]
[null,"Substrate",null,null,null,{"$f":"IF(OR('Ponds & Small Lakes (70%)'!$B38<0.001,'Ponds & Small Lakes (70%)'!$B38>4),\" \",'Ponds & Small Lakes (70%)'!$B38/4)","v":" "},{"$f":"IF(F120=\" \",\" \",(IF(F120>0.69999,\"Meets PC \",\"Below PC\")))","v":" "},{"$f":"IF(OR('Ponds & Small Lakes (70%)'!$B40<0.001,'Ponds & Small Lakes (70%)'!$B40>4),\" \",'Ponds & Small Lakes (70%)'!$B40/4)","v":" "},{"$f":"IF(H120=\" \",\" \",(IF(H120>0.69999,\"Meets PC \",\"Below PC\")))","v":" "},{"$f":"IF(OR('Ponds & Small Lakes (70%)'!$B42<0.001,'Ponds & Small Lakes (70%)'!$B42>4),\" \",'Ponds & Small Lakes (70%)'!$B42/4)","v":" "},{"$f":"IF(J120=\" \",\" \",(IF(J120>0.69999,\"Meets PC \",\"Below PC\")))","v":" "},{"$f":"IF(OR('Ponds & Small Lakes (70%)'!$B44<0.001,'Ponds & Small Lakes (70%)'!$B44>4),\" \",'Ponds & Small Lakes (70%)'!$B44/4)","v":" "},{"$f":"IF(L120=\" \",\" \",(IF(L120>0.69999,\"Meets PC \",\"Below PC\")))","v":" "}]
[null,"Cover",null,null,null,{"$f":"IF(OR('Ponds & Small Lakes (70%)'!$B53<0.001,'Ponds & Small Lakes (70%)'!$B53>4),\" \",'Ponds & Small Lakes (70%)'!$B53/4)","v":" "},{"$f":"IF(F121=\" \",\" \",(IF(F121>0.69999,\"Meets PC \",\"Below PC\")))","v":" "},{"$f":"IF(OR('Ponds & Small Lakes (70%)'!$B55<0.001,'Ponds & Small Lakes (70%)'!$B55>4),\" \",'Ponds & Small Lakes (70%)'!$B55/4)","v":" "},{"$f":"IF(H121=\" \",\" \",(IF(H121>0.69999,\"Meets PC \",\"Below PC\")))","v":" "},{"$f":"IF(OR('Ponds & Small Lakes (70%)'!$B57<0.001,'Ponds & Small Lakes (70%)'!$B57>4),\" \",'Ponds & Small Lakes (70%)'!$B57/4)","v":" "},{"$f":"IF(J121=\" \",\" \",(IF(J121>0.69999,\"Meets PC \",\"Below PC\")))","v":" "},{"$f":"IF(OR('Ponds & Small Lakes (70%)'!$B59<0.001,'Ponds & Small Lakes (70%)'!$B59>4),\" \",'Ponds & Small Lakes (70%)'!$B59/4)","v":" "},{"$f":"IF(L121=\" \",\" \",(IF(L121>0.69999,\"Meets PC \",\"Below PC\")))","v":" "}]
[null,"Water Withdrawals / Water Quantity",null,null,null,{"$f":"IF(OR('Ponds & Small Lakes (70%)'!$B63<0.001,'Ponds & Small Lakes (70%)'!$B63>4),\" \",'Ponds & Small Lakes (70%)'!$B63/4)","v":" "},{"$f":"IF(F122=\" \",\" \",(IF(F122>0.69999,\"Meets PC \",\"Below PC\")))","v":" "},{"$f":"IF(OR('Ponds & Small Lakes (70%)'!$B65<0.001,'Ponds & Small Lakes (70%)'!$B65>4),\" \",'Ponds & Small Lakes (70%)'!$B65/4)","v":" "},{"$f":"IF(H122=\" \",\" \",(IF(H122>0.69999,\"Meets PC \",\"Below PC\")))","v":" "},{"$f":"IF(OR('Ponds & Small Lakes (70%)'!$B67<0.001,'Ponds & Small Lakes (70%)'!$B67>4),\" \",'Ponds & Small Lakes (70%)'!$B67/4)","v":" "},{"$f":"IF(J122=\" \",\" \",(IF(J122>0.69999,\"Meets PC \",\"Below PC\")))","v":" "},{"$f":"IF(OR('Ponds & Small Lakes (70%)'!$B69<0.001,'Ponds & Small Lakes (70%)'!$B69>4),\" \",'Ponds & Small Lakes (70%)'!$B69/4)","v":" "},{"$f":"IF(L122=\" \",\" \",(IF(L122>0.69999,\"Meets PC \",\"Below PC\")))","v":" "}]
[null,"Acres:",{"$f":"IF('Ponds & Small Lakes (70%)'!$O$16<0.001,\" \",'Ponds & Small Lakes (70%)'!$O$16)","v":" "},null,"Score:",{"$f":"IF(F124=0,G124,F124)","v":" "},{"$f":"IF(F123=\" \",\" \",(IF(F123>0.69999,\"Meets PC \",\"Below PC\")))","v":" "},{"$f":"IF(H124=0,I124,H124)","v":" "},{"$f":"IF(H123=\" \",\" \",(IF(H123>0.69999,\"Meets PC \",\"Below PC\")))","v":" "},{"$f":"IF(J124=0,K124,J124)","v":" "},{"$f":"IF(J123=\" \",\" \",(IF(J123>0.69999,\"Meets PC \",\"Below PC\")))","v":" "},{"$f":"IF(L124=0,M124,L124)","v":" "},{"$f":"IF(L123=\" \",\" \",(IF(L123>0.69999,\"Meets PC \",\"Below PC\")))","v":" "}]
[null,null,null,null,null,{"$f":"IF(AND(F119=\" \",F120=\" \",F121=\" \",F122=\" \"),\" \",DMIN(F118:F122,\"Present\",E95:E97))","v":" "},{"$f":"IF(F119=\" \",\" \",AVERAGE(F119:F122))","v":" "},{"$f":"IF(AND(H119=\" \",H120=\" \",H121=\" \",H122=\" \"),\" \",DMIN($H118:$H122,\"No Action\",$E98:$E99))","v":" "},{"$f":"IF(H119=\" \",\" \",AVERAGE(H119:H122))","v":" "},{"$f":"IF(AND(J119=\" \",J120=\" \",J121=\" \",J122=\" \"),\" \",DMIN($J118:$J122,\"Planned A\",$E100:$E101))","v":" "},{"$f":"IF(J119=\" \",\" \",AVERAGE(J119:J122))","v":" "},{"$f":"IF(AND(L119=\" \",L120=\" \",L121=\" \",L122=\" \"),\" \",DMIN($L118:$L122,\"Planned B\",$E102:$E103))","v":" "},{"$f":"IF(L119=\" \",\" \",AVERAGE(L119:L122))","v":" "}]
[null,"Stream SVAP II (Planning Criteria =70%)",null,null,null,"Present","P.C.","No Action","P.C.","Planned A","P.C.","Planned B","P.C."]
[null,"Channel Condition",null,null,"Present",{"$f":"IF(OR('Stream SVAP II (70%)'!$B133<0.001,'Stream SVAP II (70%)'!$B133>10),\" \",'Stream SVAP II (70%)'!$B133/10)","v":" "},{"$f":"IF(F126=\" \",\" \",(IF(F126>0.69999,\"Meets PC \",\"Below PC\")))","v":" "},{"$f":"IF(OR('Stream SVAP II (70%)'!$B135<0.001,'Stream SVAP II (70%)'!$B135>10),\" \",'Stream SVAP II (70%)'!$B135/10)","v":" "}," ",{"$f":"IF(OR('Stream SVAP II (70%)'!$B137<0.001,'Stream SVAP II (70%)'!$B137>10),\" \",'Stream SVAP II (70%)'!$B137/10)","v":" "},{"$f":"IF(J126=\" \",\" \",(IF(J126>0.69999,\"Meets PC \",\"Below PC\")))","v":" "},{"$f":"IF(OR('Stream SVAP II (70%)'!$B140<0.001,'Stream SVAP II (70%)'!$B140>10),\" \",'Stream SVAP II (70%)'!$B140/10)","v":" "},{"$f":"IF(L126=\" \",\" \",(IF(L126>0.69999,\"Meets PC \",\"Below PC\")))","v":" "}]
[null,"Hydrologic Alteration",null,null,"<.70",{"$f":"IF(OR('Stream SVAP II (70%)'!$B184<0.001,'Stream SVAP II (70%)'!$B184>10),\" \",'Stream SVAP II (70%)'!$B184/10)","v":" "}," ",{"$f":"IF(OR('Stream SVAP II (70%)'!$B186<0.001,'Stream SVAP II (70%)'!$B186>10),\" \",'Stream SVAP II (70%)'!$B186/10)","v":" "}," ",{"$f":"IF(OR('Stream SVAP II (70%)'!$B188<0.001,'Stream SVAP II (70%)'!$B188>10),\" \",'Stream SVAP II (70%)'!$B188/10)","v":" "}," ",{"$f":"IF(OR('Stream SVAP II (70%)'!$B190<0.001,'Stream SVAP II (70%)'!$B190>10),\" \",'Stream SVAP II (70%)'!$B190/10)","v":" "}," "]
[null,"Bank Condition (Left Bank)",null,null,"No Action",{"$f":"IF(OR('Stream SVAP II (70%)'!$B222<0.001,'Stream SVAP II (70%)'!$B222>10),\" \",'Stream SVAP II (70%)'!$B222/10)","v":" "}," ",{"$f":"IF(OR('Stream SVAP II (70%)'!$B224<0.001,'Stream SVAP II (70%)'!$B224>10),\" \",'Stream SVAP II (70%)'!$B224/10)","v":" "}," ",{"$f":"IF(OR('Stream SVAP II (70%)'!$B226<0.001,'Stream SVAP II (70%)'!$B226>10),\" \",'Stream SVAP II (70%)'!$B226/10)","v":" "}," ",{"$f":"IF(OR('Stream SVAP II (70%)'!$B229<0.001,'Stream SVAP II (70%)'!$B229>10),\" \",'Stream SVAP II (70%)'!$B229/10)","v":" "}," "]
[null,"Bank Condition (Right Bank)",null,null,"<.70",{"$f":"IF(OR('Stream SVAP II (70%)'!$B234<0.001,'Stream SVAP II (70%)'!$B234>10),\" \",'Stream SVAP II (70%)'!$B234/10)","v":" "}," ",{"$f":"IF(OR('Stream SVAP II (70%)'!$B236<0.001,'Stream SVAP II (70%)'!$B236>10),\" \",'Stream SVAP II (70%)'!$B236/10)","v":" "}," ",{"$f":"IF(OR('Stream SVAP II (70%)'!$B238<0.001,'Stream SVAP II (70%)'!$B238>10),\" \",'Stream SVAP II (70%)'!$B238/10)","v":" "}," ",{"$f":"IF(OR('Stream SVAP II (70%)'!$B241<0.001,'Stream SVAP II (70%)'!$B241>10),\" \",'Stream SVAP II (70%)'!$B241/10)","v":" "}," "]
[null,"Bank Condition (Average)",null,null,"Planned A",{"$f":"IF(OR(F128=\" \",F129=\" \"),\" \",(F128+F129)/2)","v":" "}," ",{"$f":"IF(OR(H128=\" \",H129=\" \"),\" \",(H128+H129)/2)","v":" "}," ",{"$f":"IF(OR(J128=\" \",J129=\" \"),\" \",(J128+J129)/2)","v":" "}," ",{"$f":"IF(OR(L128=\" \",L129=\" \"),\" \",(L128+L129)/2)","v":" "}," "]
[null,"Riparian Area Quantity Width (Left Bank)",null,null,"<.70",{"$f":"IF(OR('Stream SVAP II (70%)'!$B263<0.001,'Stream SVAP II (70%)'!$B263>10),\" \",'Stream SVAP II (70%)'!$B263/10)","v":" "}," ",{"$f":"IF(OR('Stream SVAP II (70%)'!$B263<0.001,'Stream SVAP II (70%)'!$B263>10),\" \",'Stream SVAP II (70%)'!$B263/10)","v":" "}," ",{"$f":"IF(OR('Stream SVAP II (70%)'!$B267<0.001,'Stream SVAP II (70%)'!$B267>10),\" \",'Stream SVAP II (70%)'!$B267/10)","v":" "}," ",{"$f":"IF(OR('Stream SVAP II (70%)'!$B269<0.001,'Stream SVAP II (70%)'!$B269>10),\" \",'Stream SVAP II (70%)'!$B269/10)","v":" "}," "]
[null,"Riparian Area Quantity Width (Right Bank)",null,null,"Planned B",{"$f":"IF(OR('Stream SVAP II (70%)'!$F263<0.001,'Stream SVAP II (70%)'!$F263>10),\" \",'Stream SVAP II (70%)'!$F263/10)","v":" "}," ",{"$f":"IF(OR('Stream SVAP II (70%)'!$F263<0.001,'Stream SVAP II (70%)'!$F263>10),\" \",'Stream SVAP II (70%)'!$F263/10)","v":" "}," ",{"$f":"IF(OR('Stream SVAP II (70%)'!$F267<0.001,'Stream SVAP II (70%)'!$F267>10),\" \",'Stream SVAP II (70%)'!$F267/10)","v":" "}," ",{"$f":"IF(OR('Stream SVAP II (70%)'!$F269<0.001,'Stream SVAP II (70%)'!$F269>10),\" \",'Stream SVAP II (70%)'!$F269/10)","v":" "}," "]
[null,"Riparian Area Quantity Width (Average)",null,null,"<.70",{"$f":"IF(OR(F131=\" \",F132=\" \"),\" \",IF(OR(AND(F131>=7,F132<=4),AND(F132>=7,F131<=4)),(((F131+F132)/2)-2),((F131+F132)/2)))","v":" "}," ",{"$f":"IF(OR(H131=\" \",H132=\" \"),\" \",(H131+H132)/2)","v":" "}," ",{"$f":"IF(OR(J131=\" \",J132=\" \"),\" \",(J131+J132)/2)","v":" "}," ",{"$f":"IF(OR(L131=\" \",L132=\" \"),\" \",(L131+L132)/2)","v":" "}," "]
[null,"Riparian Area Quantity Length (Left Bank)",null,null,null,{"$f":"IF(OR('Stream SVAP II (70%)'!$B275<0.001,'Stream SVAP II (70%)'!$B275>10),\" \",'Stream SVAP II (70%)'!$B275/10)","v":" "},{"$f":"IF(F134=\" \",\" \",(IF(F134>0.69999,\"Meets PC \",\"Below PC\")))","v":" "},{"$f":"IF(OR('Stream SVAP II (70%)'!$B277<0.001,'Stream SVAP II (70%)'!$B277>10),\" \",'Stream SVAP II (70%)'!$B277/10)","v":" "},{"$f":"IF(H134=\" \",\" \",(IF(H134>0.69999,\"Meets PC \",\"Below PC\")))","v":" "},{"$f":"IF(OR('Stream SVAP II (70%)'!$B279<0.001,'Stream SVAP II (70%)'!$B279>10),\" \",'Stream SVAP II (70%)'!$B279/10)","v":" "},{"$f":"IF(J134=\" \",\" \",(IF(J134>0.69999,\"Meets PC \",\"Below PC\")))","v":" "},{"$f":"IF(OR('Stream SVAP II (70%)'!$B281<0.001,'Stream SVAP II (70%)'!$B281>10),\" \",'Stream SVAP II (70%)'!$B281/10)","v":" "},{"$f":"IF(L134=\" \",\" \",(IF(L134>0.69999,\"Meets PC \",\"Below PC\")))","v":" "}]
[null,"Riparian Area Quantity Length (Right Bank)",null,null,null,{"$f":"IF(OR('Stream SVAP II (70%)'!$F275<0.001,'Stream SVAP II (70%)'!$F275>10),\" \",'Stream SVAP II (70%)'!$F275/10)","v":" "}," ",{"$f":"IF(OR('Stream SVAP II (70%)'!$F277<0.001,'Stream SVAP II (70%)'!$F277>10),\" \",'Stream SVAP II (70%)'!$F277/10)","v":" "}," ",{"$f":"IF(OR('Stream SVAP II (70%)'!$F279<0.001,'Stream SVAP II (70%)'!$F279>10),\" \",'Stream SVAP II (70%)'!$F279/10)","v":" "}," ",{"$f":"IF(OR('Stream SVAP II (70%)'!$F281<0.001,'Stream SVAP II (70%)'!$F281>10),\" \",'Stream SVAP II (70%)'!$F281/10)","v":" "}," "]
[null,"Riparian Area Quantity Length (Average)",null,null,null,{"$f":"IF(OR(F134=\" \",F135=\" \"),\" \",IF(OR(AND(F134>=7,F135<=4),AND(F135>=7,F134<=4)),(((F134+F135)/2)-2),((F134+F135)/2)))","v":" "},{"$f":"IF(F136=\" \",\" \",(IF(F136>0.69999,\"Meets PC \",\"Below PC\")))","v":" "},{"$f":"IF(OR(H134=\" \",H135=\" \"),\" \",IF(OR(AND(H134>=7,H135<=4),AND(H135>=7,H134<=4)),(((H134+H135)/2)-2),((H134+H135)/2)))","v":" "},{"$f":"IF(H136=\" \",\" \",(IF(H136>0.69999,\"Meets PC \",\"Below PC\")))","v":" "},{"$f":"IF(OR(J134=\" \",J135=\" \"),\" \",IF(OR(AND(J134>=7,J135<=4),AND(J135>=7,J134<=4)),(((J134+J135)/2)-2),((J134+J135)/2)))","v":" "},{"$f":"IF(J136=\" \",\" \",(IF(J136>0.69999,\"Meets PC \",\"Below PC\")))","v":" "},{"$f":"IF(OR(L134=\" \",L135=\" \"),\" \",IF(OR(AND(L134>=7,L135<=4),AND(L135>=7,L134<=4)),(((L134+L135)/2)-2),((L134+L135)/2)))","v":" "},{"$f":"IF(L136=\" \",\" \",(IF(L136>0.69999,\"Meets PC \",\"Below PC\")))","v":" "}]
[null,"Riparian Area Quality (Left Bank)",null,null,null,{"$f":"IF(OR('Stream SVAP II (70%)'!$B296<0.001,'Stream SVAP II (70%)'!$B296>10),\" \",'Stream SVAP II (70%)'!$B296/10)","v":" "}," ",{"$f":"IF(OR('Stream SVAP II (70%)'!$B298<0.001,'Stream SVAP II (70%)'!$B298>10),\" \",'Stream SVAP II (70%)'!$B298/10)","v":" "}," ",{"$f":"IF(OR('Stream SVAP II (70%)'!$B300<0.001,'Stream SVAP II (70%)'!$B300>10),\" \",'Stream SVAP II (70%)'!$B300/10)","v":" "}," ",{"$f":"IF(OR('Stream SVAP II (70%)'!$B302<0.001,'Stream SVAP II (70%)'!$B302>10),\" \",'Stream SVAP II (70%)'!$B302/10)","v":" "}," "]
[null,"Riparian Area Quality (Right Bank)",null,null,null,{"$f":"IF(OR('Stream SVAP II (70%)'!$B306<0.001,'Stream SVAP II (70%)'!$B306>10),\" \",'Stream SVAP II (70%)'!$B306/10)","v":" "}," ",{"$f":"IF(OR('Stream SVAP II (70%)'!$B308<0.001,'Stream SVAP II (70%)'!$B308>10),\" \",'Stream SVAP II (70%)'!$B308/10)","v":" "}," ",{"$f":"IF(OR('Stream SVAP II (70%)'!$B310<0.001,'Stream SVAP II (70%)'!$B310>10),\" \",'Stream SVAP II (70%)'!$B310/10)","v":" "}," ",{"$f":"IF(OR('Stream SVAP II (70%)'!$B312<0.001,'Stream SVAP II (70%)'!$B312>10),\" \",'Stream SVAP II (70%)'!$B312/10)","v":" "}," "]
[null,"Riparian Area Quality (Average)",null,null,null,{"$f":"IF(OR(F137=\" \",F138=\" \"),\" \",(F137+F138)/2)","v":" "}," ",{"$f":"IF(OR(H137=\" \",H138=\" \"),\" \",(H137+H138)/2)","v":" "}," ",{"$f":"IF(OR(J137=\" \",J138=\" \"),\" \",(J137+J138)/2)","v":" "}," ",{"$f":"IF(OR(L137=\" \",L138=\" \"),\" \",(L137+L138)/2)","v":" "}," "]
[null,{"$f":"IF(AND('Stream SVAP II (70%)'!$M$330=TRUE,'Stream SVAP II (70%)'!$M$344=FALSE),\"Canopy Cover (Cold Water)\",IF(AND('Stream SVAP II (70%)'!$M$344=TRUE,'Stream SVAP II (70%)'!$M$330=FALSE),\"Canopy Cover (Warm Water)\",\"Canopy Cover (Check Cold or Warm)\"))","v":"Canopy Cover (Check Cold or Warm)"},null,null,null,{"$f":"IF(OR('Stream SVAP II (70%)'!$O669<0.001,'Stream SVAP II (70%)'!$O669>10),\" \",'Stream SVAP II (70%)'!$O669/10)","v":" "}," ",{"$f":"IF(OR('Stream SVAP II (70%)'!$R669<0.001,'Stream SVAP II (70%)'!$R669>10),\" \",'Stream SVAP II (70%)'!$R669/10)","v":" "}," ",{"$f":"IF(OR('Stream SVAP II (70%)'!$U669<0.001,'Stream SVAP II (70%)'!$U669>10),\" \",'Stream SVAP II (70%)'!$U669/10)","v":" "}," ",{"$f":"IF(OR('Stream SVAP II (70%)'!$X669<0.001,'Stream SVAP II (70%)'!$X669>10),\" \",'Stream SVAP II (70%)'!$X669/10)","v":" "}," "]
[null,"Water Appearance",null,null,null,{"$f":"IF(OR('Stream SVAP II (70%)'!$B371<0.001,'Stream SVAP II (70%)'!$B371>10),\" \",'Stream SVAP II (70%)'!$B371/10)","v":" "},{"$f":"IF(F141=\" \",\" \",(IF(F141>0.69999,\"Meets PC \",\"Below PC\")))","v":" "},{"$f":"IF(OR('Stream SVAP II (70%)'!$B374<0.001,'Stream SVAP II (70%)'!$B374>10),\" \",'Stream SVAP II (70%)'!$B374/10)","v":" "}," ",{"$f":"IF(OR('Stream SVAP II (70%)'!$B377<0.001,'Stream SVAP II (70%)'!$B377>10),\" \",'Stream SVAP II (70%)'!$B377/10)","v":" "}," ",{"$f":"IF(OR('Stream SVAP II (70%)'!$B380<0.001,'Stream SVAP II (70%)'!$B380>10),\" \",'Stream SVAP II (70%)'!$B380/10)","v":" "}," "]
[null,"Nutrient Enrichment",null,null,null,{"$f":"IF(OR('Stream SVAP II (70%)'!$B397<0.001,'Stream SVAP II (70%)'!$B397>10),\" \",'Stream SVAP II (70%)'!$B397/10)","v":" "}," ",{"$f":"IF(OR('Stream SVAP II (70%)'!$B399<0.001,'Stream SVAP II (70%)'!$B399>10),\" \",'Stream SVAP II (70%)'!$B399/10)","v":" "}," ",{"$f":"IF(OR('Stream SVAP II (70%)'!$B401<0.001,'Stream SVAP II (70%)'!$B401>10),\" \",'Stream SVAP II (70%)'!$B401/10)","v":" "}," ",{"$f":"IF(OR('Stream SVAP II (70%)'!$B403<0.001,'Stream SVAP II (70%)'!$B403>10),\" \",'Stream SVAP II (70%)'!$B403/10)","v":" "}," "]
[null,"Manure or Human Waste",null,null,null,{"$f":"IF(OR('Stream SVAP II (70%)'!$B417<0.001,'Stream SVAP II (70%)'!$B417>10),\" \",'Stream SVAP II (70%)'!$B417/10)","v":" "}," ",{"$f":"IF(OR('Stream SVAP II (70%)'!$B420<0.001,'Stream SVAP II (70%)'!$B420>10),\" \",'Stream SVAP II (70%)'!$B420/10)","v":" "}," ",{"$f":"IF(OR('Stream SVAP II (70%)'!$B424<0.001,'Stream SVAP II (70%)'!$B424>10),\" \",'Stream SVAP II (70%)'!$B424/10)","v":" "}," ",{"$f":"IF(OR('Stream SVAP II (70%)'!$B427<0.001,'Stream SVAP II (70%)'!$B427>10),\" \",'Stream SVAP II (70%)'!$B427/10)","v":" "}," "]
[null,{"$f":"IF(AND('Stream SVAP II (70%)'!$B$440=TRUE,'Stream SVAP II (70%)'!$B$473=FALSE),\"Pools (Low Gradient)\",IF(AND('Stream SVAP II (70%)'!$B$473=TRUE,'Stream SVAP II (70%)'!$B$440=FALSE),\"Pools (High Gradient)\",\"Pools (Check High or Low)\"))","v":"Pools (Check High or Low)"},null,null,null,{"$f":"IF(OR('Stream SVAP II (70%)'!$O673<0.001,'Stream SVAP II (70%)'!$O673>10),\" \",'Stream SVAP II (70%)'!$O673/10)","v":" "}," ",{"$f":"IF(OR('Stream SVAP II (70%)'!$R673<0.001,'Stream SVAP II (70%)'!$R673>10),\" \",'Stream SVAP II (70%)'!$R673/10)","v":" "}," ",{"$f":"IF(OR('Stream SVAP II (70%)'!$U673<0.001,'Stream SVAP II (70%)'!$U673>10),\" \",'Stream SVAP II (70%)'!$U673/10)","v":" "}," ",{"$f":"IF(OR('Stream SVAP II (70%)'!$X673<0.001,'Stream SVAP II (70%)'!$X673>10),\" \",'Stream SVAP II (70%)'!$X673/10)","v":" "}," "]
[null,"Barriers to Movement",null,null,null,{"$f":"IF(OR('Stream SVAP II (70%)'!$B484<0.001,'Stream SVAP II (70%)'!$B484>10),\" \",'Stream SVAP II (70%)'!$B484/10)","v":" "}," ",{"$f":"IF(OR('Stream SVAP II (70%)'!$B487<0.001,'Stream SVAP II (70%)'!$B487>10),\" \",'Stream SVAP II (70%)'!$B487/10)","v":" "}," ",{"$f":"IF(OR('Stream SVAP II (70%)'!$B490<0.001,'Stream SVAP II (70%)'!$B490>10),\" \",'Stream SVAP II (70%)'!$B490/10)","v":" "}," ",{"$f":"IF(OR('Stream SVAP II (70%)'!$B493<0.001,'Stream SVAP II (70%)'!$B493>10),\" \",'Stream SVAP II (70%)'!$B493/10)","v":" "}," "]
[null,"Fish Habitat Complexity",null,null,null,{"$f":"IF(OR('Stream SVAP II (70%)'!$B518<0.001,'Stream SVAP II (70%)'!$B518>10),\" \",'Stream SVAP II (70%)'!$B518/10)","v":" "}," ",{"$f":"IF(OR('Stream SVAP II (70%)'!$B521<0.001,'Stream SVAP II (70%)'!$B521>10),\" \",'Stream SVAP II (70%)'!$B521/10)","v":" "}," ",{"$f":"IF(OR('Stream SVAP II (70%)'!$B523<0.001,'Stream SVAP II (70%)'!$B523>10),\" \",'Stream SVAP II (70%)'!$B523/10)","v":" "}," ",{"$f":"IF(OR('Stream SVAP II (70%)'!$B525<0.001,'Stream SVAP II (70%)'!$B525>10),\" \",'Stream SVAP II (70%)'!$B525/10)","v":" "}," "]
[null,"Aquatic Invertebrate Habitat ",null,null,null,{"$f":"IF(OR('Stream SVAP II (70%)'!$B543<0.001,'Stream SVAP II (70%)'!$B543>10),\" \",'Stream SVAP II (70%)'!$B543/10)","v":" "}," ",{"$f":"IF(OR('Stream SVAP II (70%)'!$B547<0.001,'Stream SVAP II (70%)'!$B547>10),\" \",'Stream SVAP II (70%)'!$B547/10)","v":" "}," ",{"$f":"IF(OR('Stream SVAP II (70%)'!$B550<0.001,'Stream SVAP II (70%)'!$B550>10),\" \",'Stream SVAP II (70%)'!$B550/10)","v":" "}," ",{"$f":"IF(OR('Stream SVAP II (70%)'!$B552<0.001,'Stream SVAP II (70%)'!$B552>10),\" \",'Stream SVAP II (70%)'!$B552/10)","v":" "}," "]
[null,"Aquatic Invertebrate Community",null,null,null,{"$f":"IF(OR('Stream SVAP II (70%)'!$B565<0.001,'Stream SVAP II (70%)'!$B565>10),\" \",'Stream SVAP II (70%)'!$B565/10)","v":" "}," ",{"$f":"IF(OR('Stream SVAP II (70%)'!$B568<0.001,'Stream SVAP II (70%)'!$B568>10),\" \",'Stream SVAP II (70%)'!$B568/10)","v":" "}," ",{"$f":"IF(OR('Stream SVAP II (70%)'!$B571<0.001,'Stream SVAP II (70%)'!$B571>10),\" \",'Stream SVAP II (70%)'!$B571/10)","v":" "}," ",{"$f":"IF(OR('Stream SVAP II (70%)'!$B574<0.001,'Stream SVAP II (70%)'!$B574>10),\" \",'Stream SVAP II (70%)'!$B574/10)","v":" "}," "]
[null,"Riffle Embeddedness*",null,null,null,{"$f":"IF(OR('Stream SVAP II (70%)'!$L$586=FALSE,'Stream SVAP II (70%)'!$B588<0.001,'Stream SVAP II (70%)'!$B588>10),\" \",'Stream SVAP II (70%)'!$B588/10)","v":" "}," ",{"$f":"IF(OR('Stream SVAP II (70%)'!$L$586=FALSE,'Stream SVAP II (70%)'!$B590<0.001,'Stream SVAP II (70%)'!$B590>10),\" \",'Stream SVAP II (70%)'!$B590/10)","v":" "}," ",{"$f":"IF(OR('Stream SVAP II (70%)'!$L$586=FALSE,'Stream SVAP II (70%)'!$B592<0.001,'Stream SVAP II (70%)'!$B592>10),\" \",'Stream SVAP II (70%)'!$B592/10)","v":" "}," ",{"$f":"IF(OR('Stream SVAP II (70%)'!$L$586=FALSE,'Stream SVAP II (70%)'!$B594<0.001,'Stream SVAP II (70%)'!$B594>10),\" \",'Stream SVAP II (70%)'!$B594/10)","v":" "}," "]
[null,"Salinity*",null,null,null,{"$f":"IF(OR('Stream SVAP II (70%)'!$H$611=FALSE,'Stream SVAP II (70%)'!$B613<0.001,'Stream SVAP II (70%)'!$B613>10),\" \",'Stream SVAP II (70%)'!$B613/10)","v":" "}," ",{"$f":"IF(OR('Stream SVAP II (70%)'!$H611=FALSE,'Stream SVAP II (70%)'!$B616<0.001,'Stream SVAP II (70%)'!$B616>10),\" \",'Stream SVAP II (70%)'!$B616/10)","v":" "}," ",{"$f":"IF(OR('Stream SVAP II (70%)'!$H$611=FALSE,'Stream SVAP II (70%)'!$B619<0.001,'Stream SVAP II (70%)'!$B619>10),\" \",'Stream SVAP II (70%)'!$B619/10)","v":" "}," ",{"$f":"IF(OR('Stream SVAP II (70%)'!$H$611=FALSE,'Stream SVAP II (70%)'!$B622<0.001,'Stream SVAP II (70%)'!$B622>10),\" \",'Stream SVAP II (70%)'!$B622/10)","v":" "}," "]
[null,"Acres:",{"$f":"IF('Stream SVAP II (70%)'!$X$16<0.001,\" \",'Stream SVAP II (70%)'!$X$16)","v":" "},null,"Score:",{"$f":"IF(F152=0,G152,F152)","v":" "},{"$f":"IF(F151=\" \",\" \",(IF(F151>0.74999,\"Meets PC \",\"Below PC\")))","v":" "},{"$f":"IF(H152=0,I152,H152)","v":" "},{"$f":"IF(H151=\" \",\" \",(IF(H151>0.74999,\"Meets PC \",\"Below PC\")))","v":" "},{"$f":"IF(J152=0,K152,J152)","v":" "},{"$f":"IF(J151=\" \",\" \",(IF(J151>0.74999,\"Meets PC \",\"Below PC\")))","v":" "},{"$f":"IF(L152=0,M152,L152)","v":" "},{"$f":"IF(L151=\" \",\" \",(IF(L151>0.74999,\"Meets PC \",\"Below PC\")))","v":" "}]
[null,null,null,null,null,{"$f":"IF(AND(F126=\" \",F127=\" \",F128=\" \",F129=\" \",F130=\" \",F131=\" \",F132=\" \",F133=\" \",F137=\" \",F138=\" \",F139=\" \",F140=\" \",F141=\" \",F142=\" \",F143=\" \",F144=\" \",F145=\" \",F146=\" \",F147=\" \",F148=\" \"),\" \",DMIN(F125:F150,\"Present\",E126:E127))","v":" "},{"$f":"IF(F126=\" \",\" \",AVERAGE(F126:F150))","v":" "},{"$f":"IF(AND(H126=\" \",H127=\" \",H128=\" \",H129=\" \",H130=\" \",H131=\" \",H132=\" \",H133=\" \",H137=\" \",H138=\" \",H139=\" \",H140=\" \",H141=\" \",H142=\" \",H143=\" \",H144=\" \",H145=\" \",H146=\" \",H147=\" \",H148=\" \"),\" \",DMIN(H125:H150,\"No Action\",E128:E129))","v":" "},{"$f":"IF(H126=\" \",\" \",AVERAGE(H126:H150))","v":" "},{"$f":"IF(AND(J126=\" \",J127=\" \",J128=\" \",J129=\" \",J130=\" \",J131=\" \",J132=\" \",J133=\" \",J137=\" \",J138=\" \",J139=\" \",J140=\" \",J141=\" \",J142=\" \",J143=\" \",J144=\" \",J145=\" \",J146=\" \",J147=\" \",J148=\" \"),\" \",DMIN(J125:J150,\"Planned A\",E130:E131))","v":" "},{"$f":"IF(J126=\" \",\" \",AVERAGE(J126:J150))","v":" "},{"$f":"IF(AND(L126=\" \",L127=\" \",L128=\" \",L129=\" \",L130=\" \",L131=\" \",L132=\" \",L133=\" \",L137=\" \",L138=\" \",L139=\" \",L140=\" \",L141=\" \",L142=\" \",L143=\" \",L144=\" \",L145=\" \",L146=\" \",L147=\" \",L148=\" \"),\" \",DMIN(L125:L150,\"Planned B\",E132:E133))","v":" "},{"$f":"IF(L126=\" \",\" \",AVERAGE(L126:L150))","v":" "}]
[null,"* Elements in tan (Riffle Embeddedness & Salinity) are optional."]
[null,null,null,null,null,null,"Back to Top",null,null,null,{"$f":"$D$10","v":" "}]
[]
[]
[null,"Present Condition:"]
[]
[null," Habitat Type",null,"Habitat Type Score","Score Times Acres","Acres","Equals","Weighted Score","Evaluation Area Score"]
[]
[]
[null,"Cropland & Hayland",null,{"$f":"F$27","v":" "},"X",{"$f":"$C$27","v":" "},"=",{"$f":"IF(OR(D162=\" \",F162=\" \"),\" \",D162*F162)","v":" "},{"$f":"IF(D162=\" \",\" \",(IF(D162>0.3999,\"Meets PC \",\"Below PC\")))","v":" "}]
[null,"Rangeland",null,{"$f":"F$38","v":" "},"X",{"$f":"$C$38","v":" "},"=",{"$f":"IF(OR(D163=\" \",F163=\" \"),\" \",D163*F163)","v":" "},{"$f":"IF(D163=\" \",\" \",(IF(D163>0.5999,\"Meets PC \",\"Below PC\")))","v":" "}]
[null,"Pastureland",null,{"$f":"F$50","v":" "},"X",{"$f":"$C$50","v":" "},"="," ",{"$f":"IF(D164=\" \",\" \",(IF(D164>0.4999,\"Meets PC \",\"Below PC\")))","v":" "}]
[null,"Upland Woodland",null,{"$f":"F$63","v":" "},"X",{"$f":"$C$63","v":" "},"="," ",{"$f":"IF(D165=\" \",\" \",(IF(D165>0.5999,\"Meets PC \",\"Below PC\")))","v":" "}]
[null,"Riparian (Left Bank)",null,{"$f":"F$92","v":" "},"X",{"$f":"$C$92","v":" "},"="," ",{"$f":"IF(D166=\" \",\" \",(IF(D166>0.69999,\"Meets PC \",\"Below PC\")))","v":" "}]
[null,"Riparian (Right Bank)",null,{"$f":"F$107","v":" "},"X",{"$f":"$C$107","v":" "},"="," ",{"$f":"IF(D167=\" \",\" \",(IF(D167>0.69999,\"Meets PC \",\"Below PC\")))","v":" "}]
[null,"Wetland",null,{"$f":"F$113","v":" "},"X",{"$f":"$C$113","v":" "},"="," ",{"$f":"IF(D168=\" \",\" \",(IF(D168>0.69999,\"Meets PC \",\"Below PC\")))","v":" "}]
[null,"Ponds & Small Lakes",null,{"$f":"F$123","v":" "},"X",{"$f":"$C$123","v":" "},"="," ",{"$f":"IF(D169=\" \",\" \",(IF(D169>0.69999,\"Meets PC \",\"Below PC\")))","v":" "},null,"Stream Condition: Present"]
[null,"Stream (SVAP II)",null,{"$f":"F$151","v":" "},"X",{"$f":"$C$151","v":" "},"="," ",{"$f":"IF(D170=\" \",\" \",(IF(D170>0.69999,\"Meets PC \",\"Below PC\")))","v":" "},null,{"$f":"'Stream SVAP II (70%)'!$Q$687","v":" "},{"$f":"'Stream SVAP II (70%)'!$S$687","v":" "}]
[null,{"$f":"IF(I171=\"Below PC\",\"WARNING PRESENT CONDITION IS BELOW THE PC\",\" \")","v":" "},null,null,"Totals:",{"$f":"IF(AND(F162=\" \",F163=\" \",F164=\" \",F165=\" \",F166=\" \",F167=\" \",F168=\" \",F169=\" \",F170=\" \"),\" \",SUM(F162:F170))","v":" "},"=",{"$f":"IF(AND(H162=\" \",H163=\" \",H164=\" \",H165=\" \",H166=\" \",H167=\" \",H168=\" \",H169=\" \",H170=\" \"),\" \",SUM(H162:H170)/F171)","v":" "},{"$f":"IF(OR(F171=\" \",H171=\" \"),\" \",IF(OR(I162=\"Below PC\",I163=\"Below PC\",I164=\"Below PC\",I165=\"Below PC\",I166=\"Below PC\",I167=\"Below PC\",I168=\"Below PC\",I169=\"Below PC\",I170=\"Below PC\"),\"Below PC\",\"Meets PC\"))","v":" "}]
[null,null," *P.C. = Planning Criteria"]
[]
[null,"No Action:"]
[]
[null," Habitat Type",null,"Habitat Type Score","Score Times Acres","Acres","Equals","Weighted Score","Evaluation Area Score"]
[]
[]
[null,"Cropland & Hayland",null,{"$f":"H$27","v":" "},"X",{"$f":"$C$27","v":" "},"=",{"$f":"IF(OR(D179=\" \",F179=\" \"),\" \",D179*F179)","v":" "},{"$f":"IF(D179=\" \",\" \",(IF(D179>0.3999,\"Meets PC \",\"Below PC\")))","v":" "}]
[null,"Rangeland",null,{"$f":"H$38","v":" "},"X",{"$f":"$C$38","v":" "},"=",{"$f":"IF(OR(D180=\" \",F180=\" \"),\" \",D180*F180)","v":" "},{"$f":"IF(D180=\" \",\" \",(IF(D180>0.5999,\"Meets PC \",\"Below PC\")))","v":" "}]
[null,"Pastureland",null,{"$f":"H$50","v":" "},"X",{"$f":"$C$50","v":" "},"="," ",{"$f":"IF(D181=\" \",\" \",(IF(D181>0.4999,\"Meets PC \",\"Below PC\")))","v":" "}]
[null,"Upland Woodland",null,{"$f":"H$63","v":" "},"X",{"$f":"$C$63","v":" "},"="," ",{"$f":"IF(D182=\" \",\" \",(IF(D182>0.5999,\"Meets PC \",\"Below PC\")))","v":" "}]
[null,"Riparian (Left Bank)",null,{"$f":"H$92","v":" "},"X",{"$f":"$C$92","v":" "},"="," ",{"$f":"IF(D183=\" \",\" \",(IF(D183>0.69999,\"Meets PC \",\"Below PC\")))","v":" "}]
[null,"Riparian (Right Bank)",null,{"$f":"H$107","v":" "},"X",{"$f":"$C$107","v":" "},"="," ",{"$f":"IF(D184=\" \",\" \",(IF(D184>0.69999,\"Meets PC \",\"Below PC\")))","v":" "}]
[null,"Wetland",null,{"$f":"H$113","v":" "},"X",{"$f":"$C$113","v":" "},"="," ",{"$f":"IF(D185=\" \",\" \",(IF(D185>0.69999,\"Meets PC \",\"Below PC\")))","v":" "}]
[null,"Ponds & Small Lakes",null,{"$f":"H$123","v":" "},"X",{"$f":"$C$123","v":" "},"="," ",{"$f":"IF(D186=\" \",\" \",(IF(D186>0.69999,\"Meets PC \",\"Below PC\")))","v":" "},null,"Stream Condition: No Action"]
[null,"Stream (SVAP II)",null,{"$f":"H$151","v":" "},"X",{"$f":"$C$151","v":" "},"="," ",{"$f":"IF(D187=\" \",\" \",(IF(D187>0.69999,\"Meets PC \",\"Below PC\")))","v":" "},null,{"$f":"'Stream SVAP II (70%)'!$Q$688","v":" "},{"$f":"'Stream SVAP II (70%)'!$S$688","v":" "}]
[null,{"$f":"IF(I188=\"Below PC\",\"WARNING PRESENT CONDITION IS BELOW THE PC\",\" \")","v":" "},null,null,"Totals:",{"$f":"IF(AND(F179=\" \",F180=\" \",F181=\" \",F182=\" \",F183=\" \",F184=\" \",F185=\" \",F186=\" \",F187=\" \"),\" \",SUM(F179:F187))","v":" "},"=",{"$f":"IF(AND(H179=\" \",H180=\" \",H181=\" \",H182=\" \",H183=\" \",H184=\" \",H185=\" \",H186=\" \",H187=\" \"),\" \",SUM(H179:H187)/F188)","v":" "},{"$f":"IF(OR(F188=\" \",H188=\" \"),\" \",IF(OR(I179=\"Below PC\",I180=\"Below PC\",I181=\"Below PC\",I182=\"Below PC\",I183=\"Below PC\",I184=\"Below PC\",I185=\"Below PC\",I186=\"Below PC\",I187=\"Below PC\"),\"Below PC\",\"Meets PC\"))","v":" "}]
[null,null," *P.C. = Planning Criteria"]
[]
[null,null,null,null,null,null,"Back to Top",null,null,null,{"$f":"$D$10","v":" "}]
[]
[]
[]
[null,"Planned A:"]
[]
[null," Habitat Type",null,"Habitat Type Score","Score Times Acres","Acres","Equals","Weighted Score","Evaluation Area Score"]
[]
[]
[null,"Cropland & Hayland",null,{"$f":"J$27","v":" "},"X",{"$f":"$C$27","v":" "},"=",{"$f":"IF(OR(D200=\" \",F200=\" \"),\" \",D200*F200)","v":" "},{"$f":"IF(D200=\" \",\" \",(IF(D200>0.3999,\"Meets PC \",\"Below PC\")))","v":" "}]
[null,"Rangeland",null,{"$f":"J$38","v":" "},"X",{"$f":"$C$38","v":" "},"=",{"$f":"IF(OR(D201=\" \",F201=\" \"),\" \",D201*F201)","v":" "},{"$f":"IF(D201=\" \",\" \",(IF(D201>0.5999,\"Meets PC \",\"Below PC\")))","v":" "}]
[null,"Pastureland",null,{"$f":"J$50","v":" "},"X",{"$f":"$C$50","v":" "},"="," ",{"$f":"IF(D202=\" \",\" \",(IF(D202>0.4999,\"Meets PC \",\"Below PC\")))","v":" "}]
[null,"Upland Woodland",null,{"$f":"J$63","v":" "},"X",{"$f":"$C$63","v":" "},"="," ",{"$f":"IF(D203=\" \",\" \",(IF(D203>0.5999,\"Meets PC \",\"Below PC\")))","v":" "}]
[null,"Riparian (Left Bank)",null,{"$f":"J$92","v":" "},"X",{"$f":"$C$92","v":" "},"="," ",{"$f":"IF(D204=\" \",\" \",(IF(D204>0.69999,\"Meets PC \",\"Below PC\")))","v":" "}]
[null,"Riparian (Right Bank)",null,{"$f":"J$107","v":" "},"X",{"$f":"$C$107","v":" "},"="," ",{"$f":"IF(D205=\" \",\" \",(IF(D205>0.69999,\"Meets PC \",\"Below PC\")))","v":" "}]
[null,"Wetland",null,{"$f":"J$113","v":" "},"X",{"$f":"$C$113","v":" "},"="," ",{"$f":"IF(D206=\" \",\" \",(IF(D206>0.69999,\"Meets PC \",\"Below PC\")))","v":" "}]
[null,"Ponds & Small Lakes",null,{"$f":"J$123","v":" "},"X",{"$f":"$C$123","v":" "},"="," ",{"$f":"IF(D207=\" \",\" \",(IF(D207>0.69999,\"Meets PC \",\"Below PC\")))","v":" "},null,"Stream Condition: Planned A"]
[null,"Stream (SVAP II)",null,{"$f":"J$151","v":" "},"X",{"$f":"$C$151","v":" "},"="," ",{"$f":"IF(D208=\" \",\" \",(IF(D208>0.69999,\"Meets PC \",\"Below PC\")))","v":" "},null,{"$f":"'Stream SVAP II (70%)'!$Q$689","v":" "},{"$f":"'Stream SVAP II (70%)'!$S$689","v":" "}]
[null,{"$f":"IF(I209=\"Below PC\",\"WARNING PRESENT CONDITION IS BELOW THE PC\",\" \")","v":" "},null,null,"Totals:",{"$f":"IF(AND(F200=\" \",F201=\" \",F202=\" \",F203=\" \",F204=\" \",F205=\" \",F206=\" \",F207=\" \",F208=\" \"),\" \",SUM(F200:F208))","v":" "},"=",{"$f":"IF(AND(H200=\" \",H201=\" \",H202=\" \",H203=\" \",H204=\" \",H205=\" \",H206=\" \",H207=\" \",H208=\" \"),\" \",SUM(H200:H208)/F209)","v":" "},{"$f":"IF(OR(F209=\" \",H209=\" \"),\" \",IF(OR(I200=\"Below PC\",I201=\"Below PC\",I202=\"Below PC\",I203=\"Below PC\",I204=\"Below PC\",I205=\"Below PC\",I206=\"Below PC\",I207=\"Below PC\",I208=\"Below PC\"),\"Below PC\",\"Meets PC\"))","v":" "}]
[null,null," *P.C. = Planning Criteria"]
[]
[null,"Planned B:"]
[]
[null," Habitat Type",null,"Habitat Type Score","Score Times Acres","Acres","Equals","Weighted Score","Evaluation Area Score"]
[]
[]
[null,"Cropland & Hayland",null,{"$f":"L$27","v":" "},"X",{"$f":"$C$27","v":" "},"=",{"$f":"IF(OR(D217=\" \",F217=\" \"),\" \",D217*F217)","v":" "},{"$f":"IF(D217=\" \",\" \",(IF(D217>0.3999,\"Meets PC \",\"Below PC\")))","v":" "}]
[null,"Rangeland",null,{"$f":"L$38","v":" "},"X",{"$f":"$C$38","v":" "},"=",{"$f":"IF(OR(D218=\" \",F218=\" \"),\" \",D218*F218)","v":" "},{"$f":"IF(D218=\" \",\" \",(IF(D218>0.5999,\"Meets PC \",\"Below PC\")))","v":" "}]
[null,"Pastureland",null,{"$f":"L$50","v":" "},"X",{"$f":"$C$50","v":" "},"="," ",{"$f":"IF(D219=\" \",\" \",(IF(D219>0.4999,\"Meets PC \",\"Below PC\")))","v":" "}]
[null,"Upland Woodland",null,{"$f":"L$63","v":" "},"X",{"$f":"$C$63","v":" "},"="," ",{"$f":"IF(D220=\" \",\" \",(IF(D220>0.5999,\"Meets PC \",\"Below PC\")))","v":" "}]
[null,"Riparian (Left Bank)",null,{"$f":"L$92","v":" "},"X",{"$f":"$C$92","v":" "},"="," ",{"$f":"IF(D221=\" \",\" \",(IF(D221>0.69999,\"Meets PC \",\"Below PC\")))","v":" "}]
[null,"Riparian (Right Bank)",null,{"$f":"L$107","v":" "},"X",{"$f":"$C$107","v":" "},"="," ",{"$f":"IF(D222=\" \",\" \",(IF(D222>0.69999,\"Meets PC \",\"Below PC\")))","v":" "}]
[null,"Wetland",null,{"$f":"L$113","v":" "},"X",{"$f":"$C$113","v":" "},"="," ",{"$f":"IF(D223=\" \",\" \",(IF(D223>0.69999,\"Meets PC \",\"Below PC\")))","v":" "}]
[null,"Ponds & Small Lakes",null,{"$f":"L$123","v":" "},"X",{"$f":"$C$123","v":" "},"="," ",{"$f":"IF(D224=\" \",\" \",(IF(D224>0.69999,\"Meets PC \",\"Below PC\")))","v":" "},null,"Stream Condition: Planned B"]
[null,"Stream (SVAP II)",null,{"$f":"L$151","v":" "},"X",{"$f":"$C$151","v":" "},"="," ",{"$f":"IF(D225=\" \",\" \",(IF(D225>0.69999,\"Meets PC \",\"Below PC\")))","v":" "},null,{"$f":"'Stream SVAP II (70%)'!$Q$690","v":" "},{"$f":"'Stream SVAP II (70%)'!$S$690","v":" "}]
[null,{"$f":"IF(I226=\"Below PC\",\"WARNING PRESENT CONDITION IS BELOW THE PC\",\" \")","v":" "},null,null,"Totals:",{"$f":"IF(AND(F217=\" \",F218=\" \",F219=\" \",F220=\" \",F221=\" \",F222=\" \",F223=\" \",F224=\" \",F225=\" \"),\" \",SUM(F217:F225))","v":" "},"=",{"$f":"IF(AND(H217=\" \",H218=\" \",H219=\" \",H220=\" \",H221=\" \",H222=\" \",H223=\" \",H224=\" \",H225=\" \"),\" \",SUM(H217:H225)/F226)","v":" "},{"$f":"IF(OR(F226=\" \",H226=\" \"),\" \",IF(OR(I217=\"Below PC\",I218=\"Below PC\",I219=\"Below PC\",I220=\"Below PC\",I221=\"Below PC\",I222=\"Below PC\",I223=\"Below PC\",I224=\"Below PC\",I225=\"Below PC\"),\"Below PC\",\"Meets PC\"))","v":" "}]
[null,null," *P.C. = Planning Criteria"]
[null,null,null,null,null,null,"Back to Top",null,null,null,{"$f":"$D$10","v":" "}]

{"sheet":"Glossary","index":19,"n_rows":571,"n_cols":10,"rows_kept":571,"cut":false,"hidden":false,"merged":[[195,1,198,9],[308,1,313,9],[81,1,83,9],[23,1,23,2],[108,1,112,9],[23,3,24,9],[129,1,134,9],[135,1,136,9],[116,1,119,9],[267,1,268,9],[278,1,280,9],[264,1,266,9],[154,1,156,9],[157,1,160,9],[161,1,162,9],[168,1,168,9],[175,1,177,9],[178,1,180,9],[181,1,183,9],[184,1,185,9],[186,1,188,9],[189,1,191,9],[192,1,194,9],[170,1,172,8],[173,1,173,9],[254,1,256,9],[9,2,9,8],[1,2,2,3],[1,4,3,8],[4,4,5,8],[3,1,4,3],[5,1,5,3],[70,1,73,9],[44,1,46,9],[47,1,48,9],[49,1,51,9],[52,1,54,9],[55,1,58,9],[59,1,61,9],[62,1,65,9],[67,1,69,9],[7,1,7,3],[11,2,18,9],[30,1,35,9],[20,1,20,2],[20,3,21,9],[36,1,39,9],[40,1,43,9],[26,1,29,9],[74,1,79,9],[84,1,88,9],[163,1,167,9],[92,1,95,9],[101,1,104,9],[96,1,97,9],[98,1,100,9],[105,1,107,9],[113,1,115,9],[120,1,123,9],[124,1,126,9],[127,1,128,9],[137,1,139,9],[142,1,143,9],[140,1,141,9],[144,1,146,9],[147,1,150,9],[151,1,153,9],[89,1,91,9],[199,1,201,9],[202,1,204,9],[207,1,208,9],[209,1,211,9],[212,1,215,9],[216,1,217,9],[218,1,220,9],[221,1,222,9],[223,1,225,9],[226,1,227,9],[228,1,230,9],[231,1,234,9],[235,1,237,9],[241,1,243,9],[244,1,246,9],[247,1,249,9],[250,1,253,9],[238,1,240,9],[291,1,297,9],[305,1,307,9],[257,1,260,9],[261,1,263,9],[270,1,274,9],[281,1,284,9],[285,1,286,9],[287,1,290,9],[302,1,304,9],[299,1,301,9],[383,1,385,9],[314,1,315,9],[316,1,318,9],[319,1,321,9],[322,1,325,9],[326,1,327,9],[335,1,336,9],[337,1,338,9],[339,1,341,9],[347,1,352,9],[328,1,331,9],[353,1,357,9],[358,1,360,9],[361,1,363,9],[364,1,366,9],[367,1,370,9],[371,1,372,9],[373,1,376,9],[377,1,379,9],[380,1,382,9],[332,1,334,9],[420,1,422,9],[397,1,398,9],[386,1,388,9],[389,1,390,9],[391,1,393,9],[394,1,396,9],[399,1,401,9],[402,1,403,9],[409,1,410,9],[417,1,419,9],[407,1,407,9],[404,1,406,9],[411,1,414,9]]}
[]
[null,null,"NRCS",null,"Biology Technical Note # 14 Wildlife Habitat Evaluation Guide"]
[]
[null,"Natural Resources Conservation Service"]
[null,null,null,null,"Glossary"]
[null,"WASHINGTON",null,null,null,null,null,null,null,"PASSWORD:GLOSSARY"]
[]
[null,"Table of Contents",null,null,null,null,null,null,null,"Revised January 2013"]
[]
[null,"Find:"," "]
[]
[null,null,{"$f":"VLOOKUP(C10,B457:D571,3,FALSE)","v":" "}]
[]
[]
[]
[]
[]
[]
[]
[]
[null,"Evaluation Area- ",null,"The area in which wildlife habitat is being addressed.  It may be a field, tract, CMU, etc."]
[]
[]
[null,"No Action - ",null,"What changes would occur to wildlife habitat in the evaluation area, if no federal dollars were spent, after ten years."]
[]
[]
[null,"Aggradation - is the geologic process by which a stream bottom or floodplain is raised in elevation by the deposition of substrate material.  The stream has more substrate in the system than the water can move."]
[]
[]
[]
[null,"Aggraded stream - when streams have too much substrate for the amount of water within the stream, substrates are not moved through the system and begin to accumulate. When this happens, multiple channels may form and/or the channel bottom rises.  This can cause severe flooding in the floodplain because the channel is now higher. This channel aggradation also prevents the stream from properly connecting with the floodplain."]
[]
[]
[]
[]
[]
[null,"Aquatic habitat - the area or environment in which aquatic species live.  In streams, for example, habitat can consist of clean, cold water with pools, riffles, substrate, instream large wood, boulders, undercut banks, overhanging vegetation, side channels.  "]
[]
[]
[]
[null,"Bankfull width - is the width of the stream where water just begins to leave the stream channel and spread out onto the floodplain.  Permanent vegetation generally does not become established below bankfull width."]
[]
[]
[]
[null,"Basking log - is a log onto which a reptile, typically a turtle, will climb in order to absorb radiant heat from the sun to increase it's internal body temperature."]
[]
[]
[null,"Boulders - are large rocks measuring more than 10 inches across."]
[]
[null,"Braiding or Braided channel - is a channel that is going through the process of aggradation and has formed several areas through which the water flows downstream.   The stream has multiple channels."]
[]
[]
[null,"Brushpiles - are clumps of limbs, sticks, small trees pushed into piles so that there are spaces underneath which provide cover for small mammals and birds."]
[]
[]
[null,"Cascades - is the term used to define a stream higher up in the watershed that is mostly composed of larger substrates (boulders) and steeper gradients causing small waterfalls to flow over boulders into small pools.  "]
[]
[]
[]
[null,"Channelized - is the term applied to streams that have been straightened in order to make the water move faster."]
[]
[]
[null,"Clear cut - is the type of logging practice whereby a majority of the trees are removed from an area.  This is the most efficient and cost effective way of logging due to the fact that the operation does not have to selectively remove trees or work around trees to be left standing."]
[]
[]
[]
[]
[null,"Cobbles - are medium sized rocks that measure 2.5 to 10 inches across.  This is used as spawing material by some fishes and used as hiding cover by some aquatic insects. "]
[]
[]
[null,"Complex mosaic of desireable plant communities - is the vegetation structure, both vertically and horizontally, in an area.  It should be comprised of a diversity of plant species that are not invasive or noxious and should be native or adapted to the site. "]
[]
[]
[]
[null,"Corridor -  is an area of habitat connecting wildlife populations separated by human activities (such as roads, development, or logging). This allows an exchange of individuals between populations, which may help prevent the negative effects of inbreeding and reduced genetic diversity (via genetic drift) that often occur within isolated populations. Corridors may also help facilitate the re-establishment of populations that have been reduced or eliminated due to random events (such as fires or disease). This may potentially moderate some of the worst effects of habitat fragmentation.\n\n"]
[]
[]
[]
[]
[]
[]
[null,"Crib walls - are metal baskets (walls) that are filled with rock material used to stabilize streambanks and other slopes."]
[]
[]
[null,"Cropland and Hayland - is land on which growing crops or producing hay is the primary objective. Forage which is harvested primarily mechanically, such as hay or silage is considered cropland, even if incidental grazing occurs.  Score the following under Cropland: Corn and grass silage, mint, alfalfa and hayland."]
[]
[]
[]
[]
[null,"Crop rotation - may be defined as specified plant covers in the field, occurring either sequentially in consecutive seasons or simultaneously in separate areas (strip cropping)."]
[]
[]
[null,"Cropland field flooded during spring waterfowl migration - is an area within the cropland field where in 3 years out of 5, a grain crop is unharvested, or crop residues are untilled and ungrazed.  Cropland will be flooded or ponded to a depth of 3 to 18 inches during spring waterfowl migration."]
[]
[]
[]
[null,"Decayed heartwood - the state in which the center of the tree is rotted.  "]
[]
[null,"Degradation - is the geologic process by which a stream bottom or floodplain is lowered in elevation due to the net loss of substrate material.  This is often called downcutting."]
[]
[]
[null,"Dike - an earthen longitudinal mound of earth that is pushed up along the sides of waterbodies to prevent movement of water into an area deemed important by humans for protection, such as cities, roads, agricultural fields, parks, etc."]
[]
[]
[]
[null,"Disconnected - is the term applied to a channel that is no longer connected to it's floodplain through flood events."]
[]
[]
[null,"Ditch - These are channels for converying water that NEVER were streams historically; these were constructed solely for the purpose of moving water to or from a farm. Ditches can have seasonal fish use during winter months when fish move into channel reaches and flooded fields where flow rates are reduced or stagnate."]
[]
[]
[]
[]
[null,"Downed woody material - trees that have fallen to the forest floor and are in a state of decay (rotting).  "]
[]
[]
[null,"Entrenched stream - this is when a stream's bed or bottom has downcut or degraded (entrenched) and the stream no longer flows out of its banks and on to the historical floodplain during normal bankfull events (not connected)."]
[]
[]
[]
[null,"Escape cover - is cover that allows fish or wildlife to leave an area quickly, typically because a predator is attacking.  Escape habitat could consist of overhanging vegetation, a hole, a brushpile, a deep pool."]
[]
[]
[]
[null,"Even-aged forest stand - is a forest stand comprised of trees of the same age.  This is more typical of managed forest conditions."]
[]
[]
[null,"Evaluation Area - The area to be evaluated for Planning and quantity of wildlife habitat."]
[]
[null,"Fish bearing stream - a Fish Bearing Stream is a naturally occuring channel which has fish living in it.  Often, Fish Bearing Streams have been or are modified.  These are some of the ways modifications have occurred: occasionally ditched, moved and/or straightened historically, occasionally cleaned and/or dredged, removal of woody debris and/or trees, removal of gravels, silts and other substrates."]
[]
[]
[]
[]
[]
[null,"Fishless Stream - a Fishless Stream is a naturally occuring channel which has no fish living in it."]
[]
[null,"Fish Screens - are metal mesh screens attached to inlet pipes (or other water intake structures) that prevent aquatic organisms from entering irrigation pipes and systems."]
[]
[]
[null,"Flood-control dikes - see Dike"]
[]
[null,"Floodplain connectivity - the connection of the stream to it's floodplain through flooding events."]
[]
[null,"Floodplains - are the level areas of land near a stream channel, constructed by the stream in the present climate, and overflowed during moderate flow events."]
[]
[]
[null,"Girdling - is the process of killing a tree by cutting into the tree to a certain depth disrupting the trees ability to bring nutrients and water up from the roots.  This is typically done by cutting the tree all the way around (in a ring) through the cambium layer."]
[]
[]
[]
[null,"Glides - are areas in streams  of deeper water for long distances.  Glides are habitat units that are combinations of riffles and pools."]
[]
[]
[null,"Gravel - is rocks within a stream that measure 0.825 to 2.5 inches across.  This is used as spawing material by some fishes and used as hiding cover by some aquatic insects. "]
[]
[]
[null,"Guzzlers - are artificial watering devices, typically found in grazed range, built to provide water for wildlife.  They are bins sunk into the ground with protective covers over the bins and often have wildlife escape ramps built in them to allow small mammals who fall into the guzzler to get out and not drown.  "]
[]
[]
[]
[null,"Habitat niches - the different areas occupied by organisms based on lifecycle, feeding, breeding, etc.  "]
[]
[null,"Head-cut - is the term used to define an area where the streambed is becoming lower due to water erosion.  This head-cut will move upstream until the stream reaches an energy equilibrium between the amount of water needed to erode the streambed and the resistance of the streambed material to erosion by water.  "]
[]
[]
[]
[]
[null,"Herbaceous vegetation - plant material that does not have woody stems."]
[]
[null,"High-cut - is the process of killing a tree by climbing to the top and cutting off the upper portion of the tree."]
[]
[]
[null,"Hoofed game - is a term used to reference wildlife with hooves, for example, deer or elk.   "]
[]
[null,"Hydrology - is the scietific study of the properties, distribution, and effects of water in the atmosphere, on the earths' surface and in soil and rocks."]
[]
[]
[null,"Incision or Incised channel - is a channel with a streambed lower in elevation than its historic elevation in relation to the floodplain."]
[]
[]
[null,"Inoculation with fungal rots - is the process of killing a tree by injecting the tree with a fungus that attacks and kills the tree.  "]
[]
[]
[null,"Inorganic debris - is the material within waterbodies not organic, such as gravel"]
[]
[null,"Interspersion - is the addition of diversity into something simple.  For example, the addition of forbs and legumes into a stand of pasture grasses.  "]
[]
[]
[null,"Interstitial spaces - the spaces between substrates (gravels, cobbles) where aquatic organisms live, grow and/or hide."]
[]
[]
[null,"Lifecycle - is the natural progression from birth to death, with various growth stages inbetween.  Different fish and wildlife growth stages have different names. "]
[]
[]
[null,"Limiting factor - a component of habitat that is needed by fish or wildlife and it is lacking.  This limits their normal growth, reproduction, or behavior.  An example of this can be the lack of gravel in a stream.  The lack of gravel would be a limiting factor for fish to reproduce."]
[]
[]
[]
[null,"Macrophyte beds - are beds of emergent, submerged, or floating leaf aquatic plants thick enough to serve as cover."]
[]
[]
[null,"Malnutrition - is poor nutrition resulting from an insufficient or poorly balanced diet or from defective digestion or defective assimilation of foods.    "]
[]
[]
[]
[]
[null,"Meandering channel - is the term applied to streams that have many bends."]
[]
[null,"Migration - the movement of fish and wildlife from one place to another, typically centered around prime breeding or foraging grounds.  "]
[]
[]
[null,"Moisture regimes - (in association with downed wood): is the process by which downed wood retains moisture providing moist cool places for wildlife to live and the water is slowly released back into the forest floor."]
[]
[]
[]
[null,"Monoculture - a stand of vegetation comprised all of the same species."]
[]
[null,"Multi-aged forest stand - is a forest stand comprised of trees of varying ages thereby giving the forest stand multiple tree heights and canopy layers.  This is more typical of natural forest conditions."]
[]
[]
[null,"Multiple canopy layers - see Multi-aged stands"]
[]
[null,"Mycorrhizal fungi growth mediums - the association between fungus and the roots of certain plants, such as conifers.  "]
[]
[]
[null,"Native vegetation - vegetation that historically was present at a site before human intervention."]
[]
[null,"Natural vegetation - vegetation that is native or naturally adapted to a site.  This does not include noxious or invasive plant materials."]
[]
[]
[null,"Nesting season or nesting cycles - is the timing for grassland birds; they build their nest, lay their eggs and feed the young until they fledge.  This typically occurs in WA between October 1st through July 15th."]
[]
[]
[]
[null,"Nitrogen fixation - conversion by certain algae and soil bacteria of inorganic nitrogen compounds into organic compounds assimilated by plants."]
[]
[]
[null,"Nutrient cycling - nutrients moving from the atmosphere to soil and parent material to living organisms to water, and back into the atmosphere continuously."]
[]
[]
[null,"Off-channel habitats - side channels, floodplain wetland, backwater or alcoves.  These are places aquatic organisms can go for refuge."]
[]
[]
[null,"Ordinary high water line - is the horizontal area influenced by high water.  This can be found on streams and tidal areas.  In streams, this is the area wetted by winter or high water flows.  "]
[]
[]
[null,"Organic debris - is material that was once living, such as leaves, sticks, needles, bark, whole trees, dead animals, such as salmon carcasses, etc.  "]
[]
[]
[null,"Overhanging vegetation - tree branches, shrub branches, or perennial herbaceous vegetation growing along a streambank and extending outward over the stream's surface, providing shade organic debris and cover."]
[]
[]
[]
[null,"Oxbows - are old meander bends that have been abandoned by a stream channel and may continue to hold water.  "]
[]
[]
[null,"Palatable plant material - is any portion of plants that are acceptable and nutritious food sources for fish or wildlife and can include algae, moss, lichens, fungi, twigs, leaves, seeds, nectar, fruits, bark and roots, etc. "]
[]
[]
[]
[null,"Passage barrier - is a structure or water Planning element preventing the movement of aquatic organisms."]
[]
[]
[null,"Pastureland - is land in which the primary use is grazing, although incidental hay or silage harvest may occur. Include grasslands which are not regularly harvested such as wildlife habitat."]
[]
[]
[null,"Perching - is done by birds, whereby they will land on a tree branch or a snag to rest or to look for prey."]
[]
[]
[null,"Perennial grassy cover - is a grassy area within the cropland field that is not grazed, hayed, burned, mowed, tilled or otherwise disturbed during the nesting season.  Examples may include field border strips, grassed waterways, critical area plantings or unharvested pastureland that meets Planning Criteria."]
[]
[]
[]
[]
[]
[]
[]
[null,"Ponds - could be natural, but mostly man-made, and smaller than 5 acres in size.  These may be more intensively managed, such as providing a source of water for livestock. "]
[]
[]
[null,"Pools - are depressions in streams, formed by rock or logs, in which aquatic organisms rest and/or feed.   Streams typically have deep (over 3 feet) and shallow pools.  Pools typically have smaller substrates due to the lower water velocities."]
[]
[]
[]
[null,"Preen - is when birds smooth or clean their feathers with their bill."]
[]
[null,"Prescribed grazing system - a system structural and management practices that ensure livestock health, growth and reproduction while at the same time is not destructive to plant and animal communities and their habitat."]
[]
[]
[]
[null,"Prior converted (PC) and Farmed wetlands (FW) - These are wetland labels used for determining wetland compliance in the 1985 Food Security Act.  Prior converted labels indicate land which was once a wetland, but prior to 1985 the land was converted by fill, drainage or other means to remove wetland hydrology make farming possible. Farmed wetlands still maintain hydrology, soils, and vegetation characterstics, but are farmed in years when there is inadequate hydrology so as to prevent the site from being cropped."]
[]
[]
[]
[]
[]
[]
[]
[null,"Rangeland - is Land on which the historic climax plant community is predominantly grasses, grass-like plants, forbs, or shrubs. "]
[]
[]
[null,"Rearing - to care for young animals during their early lifestages.  Rearing areas are the areas where young are raised or live."]
[]
[]
[null,"Riffles - are areas in streams of shallow water and larger substrates (typically).  They are mostly used as travel areas by fish between pools and have high populations of aquatic insects."]
[]
[]
[null,"Riparian areas - are ecotones that occur along watercourses or water bodies. They are distinctly different from the surrounding lands because of unique soil and vegetation characteristics that are strongly influenced by free or unbound water in the soil. Riparian ecotones occupy the transitional area between the terrestrial and aquatic ecosystems. Typical examples would include perennial and intermittent streambanks, floodplains, and lake shores."]
[]
[]
[]
[]
[]
[null,"Riprap - is rock material of varying sizes used to stabilize streambanks and other slopes."]
[]
[null,"Runs - are areas of slower moving water in low gradient streams with fine substrates and deep water.  Similar to glides.  "]
[]
[]
[null,"Screening criteria - is the criteria used by the Washington Department of Fish and Wildlife (WDFW) for determing the design of fish screens.  "]
[]
[]
[null,"Side channels - small stream channels that leave the main channel and connect back to it further downstream.  These are areas of slower water during high flow events that provide a place of refuge for juvenile aquatic organisms."]
[]
[]
[]
[null,"Sinuous - see Meandering"]
[]
[null,"Site Index Height - Site index is the height of a \"free to grow\" tree of a given species at a base age on the site of interest. Common base ages include 25, 50, and 100, depending on the lifespan and common management practices for that species. Site indexes are part of a forest soil description."]
[]
[]
[]
[null,"Small lakes - could be natural lakes on a client's property that are smaller than 5 acres in size. They will typically be affected by wind and minor wave action."]
[]
[]
[null,"Snags - a standing dead, or partially dead tree.  Snags provide areas for birds to land, or perch on. "]
[]
[null,"Sod-forming grass species - grass species that grow from densely packed root systems."]
[]
[null,"Sole climax species - is the species which occurs at the end of succession.  For example, ponderosa pine is the last stage in succession of the plant community in eastern Washington.  "]
[]
[]
[]
[]
[]
[]
[]
[null,"Spawning habitat - the area in streams, lakes, ponds, or estuaries where aquatic organisms release eggs and are then fertilized by males.  In streams with salmon, this can be areas of gravel at the ends of pools where female salmon dig a \"redd\" (or nest) into the gravel substrate.  The female releases the eggs into the redd and the male fertilizes the eggs at the same time.  The female then covers the eggs back up with gravel."]
[]
[]
[]
[]
[]
[null,"Species - specific habitat appraisal - A habitat guide that evaluates habitat for a particular species.  For example, if landowners want to improve habitat for mule deer, then the planner should use Technical Note XX that appraises the habitat for mule deer and recommends ways to promote habitat for mule deer.  "]
[]
[]
[]
[]
[null,"Spring development - is the manipulation of a natural spring into a water storage device to provide water for wildlife or livestock in grazed range.  "]
[]
[]
[null,"Subsurface flow - the movement of water under the soil from the uplands into a waterbody lower in the watershed."]
[]
[]
[null,"Surface agitation - is the rough movement of water over cobbles and gravels.  This is typically seen in riffle habitats."]
[]
[]
[null,"Tail-outs of pools - is the area of gravels just downsteam of a pool as the pool is turning into a riffle.  This area is used for spawning by some fish because there is good water flow over the rocks bringing oxyzen to the eggs buried below."]
[]
[]
[]
[null,"Talus slopes - is a slope formed by an accumulation of debris at the base of a cliff."]
[]
[null,"Terrestrial habitat - the area or environment in which terrestrial species live.  In woods, for example, habitat can consist of varying plant heights, plants with berries, grasses for cover, brush for hiding and nesting.  "]
[]
[]
[]
[null,"Thermal buffering - is the process by which trees provide protection to waterbodies from solar radiation thereby moderating water temperatures.  "]
[]
[]
[null,"Thermoregulate - is the maintenance of a constant internal body temperature regardless of the environmental temperature. "]
[]
[]
[null,"Thick root mats - mats of roots and rootlets, generally from trees but sometimes from mature dense shrubs at or beneath the water surface."]
[]
[]
[null,"Topping - is the process of removing the top of a tree to create a snag.  This can be done through the use of a chain saw or dynamite."]
[]
[]
[null,"Travel routes - trails created by wildlife movement within different habitat types.  "]
[]
[null,"Tree/Shrub planting - is an area within a landuse that has been planted for wildlife with site-adapted trees and shurbs."]
[]
[]
[null,"Undercut banks - are water scoured areas extending horizontally beneathe the surface of the bank, forming underwater pockets used by fish for hiding and thermal cover."]
[]
[]
[null,"Understory diversity - the small trees and shrubs growing beneath the tallest tree canopy layer."]
[]
[null,"Uneven growth stage management - is a management strategy to have several tree layers (age classes) in order to increase diversity within the forest stand"]
[]
[]
[null,"Ungulates - See Hoofed game"]
[]
[null,"Upland Woodland - is land in which the  primary use is the production of  trees, with no ecological relationship to a stream, river, lake, pond, wetland, or other surface water source."]
[]
[]
[null,"Water-dependent plant - is a plant that requires water throughout it's lifecycle."]
[]
[null,"Waterfowl - is the term denoting birds whose lifecycle is dependent upon lakes, wetlands and ponds.  "]
[]
[null,"Wetland - is land inundated or saturated by surface or ground-water at a frequency and duration sufficient to support a prevalence of hydrophytic vegetation typically adapted for life in saturated soil conditions; and under normal circumstances does support a prevalence of such vegetation. "]
[]
[]
[]
[]
[]
[null,"Winter food plots - is an area within the cropland field that has been seeded to a wildlife food mix, or crop (corn, milo, etc.), not harvested, and left undisturbed over winter"]
[]
[]
[null,"Winter thermal protection - is an area of high cover that moderates temperatures during winter months.  An example of this can be a forested stand that regulates temperatures for deer."]
[]
[]
[]
[]
[]
[]
[]
[]
[]
[]
[]
[]
[]
[]
[]
[]
[]
[]
[]
[]
[]
[]
[]
[]
[]
[]
[]
[]
[]
[]
[]
[]
[]
[]
[]
[null," ",null," "]
[null,"Evaluation Area",null,"The area in which wildlife habitat is being addressed.  It may be a field, tract, CMU, etc."]
[null,"No Action",null,"What changes would occur to wildlife habitat in the evaluation area, if no federal dollars were spent, after ten years."]
[null,"Aggradation",null,"Is the geologic process by which a stream bottom or floodplain is raised in elevation by the deposition of substrate material.  The stream has more substrate in the system than the water can move."]
[null,"Aggraded stream",null,"When streams have too much substrate for the amount of water within the stream, substrates are not moved through the system and begin to accumulate. When this happens, multiple channels may form and/or the channel bottom rises.  This can cause severe flooding in the floodplain because the channel is now higher. This channel aggradation also prevents the stream from properly connecting with the floodplain."]
[null,"Aquatic habitat",null,"The area or environment in which aquatic species live.  In streams, for example, habitat can consist of clean, cold water with pools, riffles, substrate, instream large wood, boulders, undercut banks, overhanging vegetation, side channels.  "]
[null,"Bankfull width",null,"Is the width of the stream where water just begins to leave the stream channel and spread out onto the floodplain.  Permanent vegetation generally does not become established below bankfull width."]
[null,"Basking log",null,"Is a log onto which a reptile, typically a turtle, will climb in order to absorb radiant heat from the sun to increase it's internal body temperature."]
[null,"Boulders",null,"Are large rocks measuring more than 10 inches across."]
[null,"Braiding or Braided channel",null,"Is a channel that is going through the process of aggradation and has formed several areas through which the water flows downstream.   The stream has multiple channels."]
[null,"Brushpiles",null,"Are clumps of limbs, sticks, small trees pushed into piles so that there are spaces underneath which provide cover for small mammals and birds."]
[null,"Cascades",null,"Is the term used to define a stream higher up in the watershed that is mostly composed of larger substrates (boulders) and steeper gradients causing small waterfalls to flow over boulders into small pools.  "]
[null,"Channelized",null,"Is the term applied to streams that have been straightened in order to make the water move faster."]
[null,"Clear cut",null,"Is the type of logging practice whereby a majority of the trees are removed from an area.  This is the most efficient and cost effective way of logging due to the fact that the operation does not have to selectively remove trees or work around trees to be left standing."]
[null,"Cobbles",null,"Are medium sized rocks that measure 2.5 to 10 inches across.  This is used as spawing material by some fishes and used as hiding cover by some aquatic insects. "]
[null,"Complex mosaic of desireable plant communities",null,"Is the vegetation structure, both vertically and horizontally, in an area.  It should be comprised of a diversity of plant species that are not invasive or noxious and should be native or adapted to the site. "]
[null,"Corridor",null,"Is an area of habitat connecting wildlife populations separated by human activities (such as roads, development, or logging). This allows an exchange of individuals between populations, which may help prevent the negative effects of inbreeding and reduced genetic diversity (via genetic drift) that often occur within isolated populations. Corridors may also help facilitate the re-establishment of populations that have been reduced or eliminated due to random events (such as fires or disease). This may potentially moderate some of the worst effects of habitat fragmentation.\n\n"]
[null,"Crib walls",null,"Are metal baskets (walls) that are filled with rock material used to stabilize streambanks and other slopes."]
[null,"Cropland and Hayland",null,"Land on which growing crops or producing hay is the primary objective. Forage which is harvested primarily mechanically, such as hay or silage is considered cropland, even if incidental grazing occurs.  Score the following under Cropland: Corn and grass silage, mint, alfalfa and hayland."]
[null,"Dike",null,"An earthen longitudinal mound of earth that is pushed up along the sides of waterbodies to prevent movement of water into an area deemed important by humans for protection, such as cities, roads, agricultural fields, parks, etc."]
[null,"Disconnected",null,"Is the term applied to a channel that is no longer connected to it's floodplain through flood events."]
[null,"Ditch",null,"These are channels for converying water that NEVER were streams historically; these were constructed solely for the purpose of moving water to or from a farm. Ditches can have seasonal fish use during winter months when fish move into channel reaches and flooded fields where flow rates are reduced or stagnate."]
[null,"Downed woody material",null,"Trees that have fallen to the forest floor and are in a state of decay (rotting).  "]
[null,"Entrenched stream",null,"This is when a stream's bed or bottom has downcut or degraded (entrenched) and the stream no longer flows out of its banks and on to the historical floodplain during normal bankfull events (not connected)."]
[null,"Escape cover",null,"Is cover that allows fish or wildlife to leave an area quickly, typically because a predator is attacking.  Escape habitat could consist of overhanging vegetation, a hole, a brushpile, a deep pool."]
[null,"Even-aged forest stand",null,"Is a forest stand comprised of trees of the same age.  This is more typical of managed forest conditions."]
[null,"Evaluation Area",null,"The area to be evaluated for Planning and quantity of wildlife habitat."]
[null,"Fish bearing stream",null,"A Fish Bearing Stream is a naturally occuring channel which has fish living in it.  Often, Fish Bearing Streams have been or are modified.  These are some of the ways modifications have occurred: occasionally ditched, moved and/or straightened historically, occasionally cleaned and/or dredged, removal of woody debris and/or trees, removal of gravels, silts and other substrates."]
[null,"Fishless stream",null,"A Fishless Stream is a naturally occuring channel which has no fish living in it."]
[null,"Fish screens",null,"Are metal mesh screens attached to inlet pipes (or other water intake structures) that prevent aquatic organisms from entering irrigation pipes and systems."]
[null,"Flood-control dikes",null,"See Dike"]
[null,"Floodplain connectivity",null,"The connection of the stream to it's floodplain through flooding events."]
[null,"Floodplains",null,"Are the level areas of land near a stream channel, constructed by the stream in the present climate, and overflowed during moderate flow events."]
[null,"Girdling",null,"Is the process of killing a tree by cutting into the tree to a certain depth disrupting the trees ability to bring nutrients and water up from the roots.  This is typically done by cutting the tree all the way around (in a ring) through the cambium layer."]
[null,"Glides",null,"Are areas in streams  of deeper water for long distances.  Glides are habitat units that are combinations of riffles and pools."]
[null,"Gravel",null,"Is rock within a stream that measures 0.825 to 2.5 inches across.  This is used as spawing material by some fishes and used as hiding cover by some aquatic insects. "]
[null,"Guzzlers",null,"Are artificial watering devices, typically found in grazed range, built to provide water for wildlife.  They are bins sunk into the ground with protective covers over the bins and often have wildlife escape ramps built in them to allow small mammals who fall into the guzzler to get out and not drown.  "]
[null,"Habitat niches",null,"The different areas occupied by organisms based on lifecycle, feeding, breeding, etc.  "]
[null,"Head-cut",null,"Is the term used to define an area where the streambed is becoming lower due to water erosion.  This head-cut will move upstream until the stream reaches an energy equilibrium between the amount of water needed to erode the streambed and the resistance of the streambed material to erosion by water.  "]
[null,"Herbaceous vegetation ",null,"Plant material that does not have woody stems."]
[null,"High-cut",null,"Is the process of killing a tree by climbing to the top and cutting off the upper portion of the tree."]
[null,"Hoofed game",null,"Is a term used to reference wildlife with hooves, for example, deer or elk.   "]
[null,"Hydrology",null,"Is the scietific study of the properties, distribution, and effects of water in the atmosphere, on the earths' surface and in soil and rocks."]
[null,"Incision or Incised channel",null,"Is a channel with a streambed lower in elevation than its historic elevation in relation to the floodplain."]
[null,"Inoculation with fungal rots",null,"Is the process of killing a tree by injecting the tree with a fungus that attacks and kills the tree.  "]
[null,"Inorganic debris",null,"Is the material within waterbodies not organic, such as gravel"]
[null,"Interspersion",null,"Is the addition of diversity into something simple.  For example, the addition of forbs and legumes into a stand of pasture grasses.  "]
[null,"Interstitial spaces",null,"The spaces between substrates (gravels, cobbles) where aquatic organisms live, grow and/or hide."]
[null,"Lifecycle",null,"Is the natural progression from birth to death, with various growth stages inbetween.  Different fish and wildlife growth stages have different names. "]
[null,"Limiting factor",null,"A component of habitat that is needed by fish or wildlife and it is lacking.  This limits their normal growth, reproduction, or behavior.  An example of this can be the lack of gravel in a stream.  The lack of gravel would be a limiting factor for fish to reproduce."]
[null,"Macrophyte beds",null,"Are beds of emergent, submerged, or floating leaf aquatic plants thick enough to serve as cover."]
[null,"Malnutrition ",null,"Is poor nutrition resulting from an insufficient or poorly balanced diet or from defective digestion or defective assimilation of foods.    "]
[null,"Meandering channel - is the term applied to streams that have many bends.",null,"Is the term applied to streams that have many bends."]
[null,"Migration",null,"The movement of fish and wildlife from one place to another, typically centered around prime breeding or foraging grounds.  "]
[null,"Moisture regimes  - (in association with downed wood)",null,"Is the process by which downed wood retains moisture providing moist cool places for wildlife to live and the water is slowly released back into the forest floor."]
[null,"Monoculture",null,"A stand of vegetation comprised all of the same species."]
[null,"Multi-aged forest stand",null,"Is a forest stand comprised of trees of varying ages thereby giving the forest stand multiple tree heights and canopy layers.  This is more typical of natural forest conditions."]
[null,"Multiple canopy layers",null,"See Multi-aged stands"]
[null,"Mycorrhizal fungi growth mediums",null,"The association between fungus and the roots of certain plants, such as conifers.  "]
[null,"Native vegetation",null,"Vegetation that historically was present at a site before human intervention."]
[null,"Natural vegetation",null,"Vegetation that is native or naturally adapted to a site.  This does not include noxious or invasive plant materials."]
[null,"Nesting season or nesting cycles",null,"Is the timing for grassland birds; they build their nest, lay their eggs and feed the young until they fledge.  This typically occurs in WA between October 1st through July 15th."]
[null,"Nitrogen fixation",null,"Conversion by certain algae and soil bacteria of inorganic nitrogen compounds into organic compounds assimilated by plants."]
[null,"Nutrient cycling",null,"Nutrients moving from the atmosphere to soil and parent material to living organisms to water, and back into the atmosphere continuously."]
[null,"Off-channel habitats",null,"Side channels, floodplain wetland, backwater or alcoves.  These are places aquatic organisms can go for refuge."]
[null,"Ordinary high water line",null,"Is the horizontal area influenced by high water.  This can be found on streams and tidal areas.  In streams, this is the area wetted by winter or high water flows.  "]
[null,"Organic debris",null,"Is material that was once living, such as leaves, sticks, needles, bark, whole trees, dead animals, such as salmon carcasses, etc.  "]
[null,"Overhanging vegetation",null,"Tree branches, shrub branches, or perennial herbaceous vegetation growing along a streambank and extending outward over the stream's surface, providing shade organic debris and cover."]
[null,"Oxbows",null,"Are old meander bends that have been abandoned by a stream channel and may continue to hold water.  "]
[null,"Palatable plant material",null,"Is any portion of plants that are acceptable and nutritious food sources for fish or wildlife and can include algae, moss, lichens, fungi, twigs, leaves, seeds, nectar, fruits, bark and roots, etc. "]
[null,"Passage barrier",null,"Is a structure or water Planning element preventing the movement of aquatic organisms."]
[null,"Pastureland",null,"Land in which the primary use is grazing, although incidental hay or silage harvest may occur. Include grasslands which are not regularly harvested such as wildlife habitat."]
[null,"Perching",null,"Perching is done by birds, whereby they will land on a tree branch or a snag to rest or to look for prey."]
[null,"Perennial grassy cover",null,"A grassy area within the cropland field that is not grazed, hayed, burned, mowed, tilled or otherwise disturbed during the nesting season.  Examples may include field border strips, grassed waterways, critical area plantings or unharvested pastureland that meets Planning Criteria."]
[null,"Ponds",null,"Ponds could be natural, but mostly man-made, and smaller than 5 acres in size.  These may be more intensively managed, such as providing a source of water for livestock. "]
[null,"Pools",null,"Are depressions in streams, formed by rock or logs, in which aquatic organisms rest and/or feed.   Streams typically have deep (over 3 feet) and shallow pools.  Pools typically have smaller substrates due to the lower water velocities."]
[null,"Preen",null,"Is when birds smooth or clean their feathers with their bill."]
[null,"Prescribed grazing system",null,"A system structural and management practices that ensure livestock health, growth and reproduction while at the same time is not destructive to plant and animal communities and their habitat."]
[null,"Prior converted (PC) and Farmed wetlands (FW)",null,"These are wetland labels used for determining wetland compliance in the 1985 Food Security Act.  Prior converted labels indicate land which was once a wetland, but prior to 1985 the land was converted by fill, drainage or other means to remove wetland hydrology and make farming possible. Farmed wetlands still maintain hydrology, soils, and vegetation characterstics, but are farmed in years when there is inadequate hydrology so as to prevent the site from being cropped."]
[null,"Rangeland",null,"Land on which the historic climax plant community is predominantly grasses, grass-like plants, forbs, or shrubs. "]
[null,"Rearing",null,"To care for young animals during their early lifestages.  Rearing areas are the areas where young are raised or live."]
[null,"Riffles",null,"Are areas in streams of shallow water and larger substrates (typically).  They are mostly used as travel areas by fish between pools and have high populations of aquatic insects."]
[null,"Riparian areas",null,"Riparian areas are ecotones that occur along watercourses or water bodies. They are distinctly different from the surrounding lands because of unique soil and vegetation characteristics that are strongly influenced by free or unbound water in the soil. Riparian ecotones occupy the transitional area between the terrestrial and aquatic ecosystems. Typical examples would include perennial and intermittent streambanks, floodplains, and lake shores."]
[null,"Riprap",null,"Is rock material of varying sizes used to stabilize streambanks and other slopes."]
[null,"Runs",null,"Are areas of slower moving water in low gradient streams with fine substrates and deep water.  Similar to glides.  "]
[null,"Screening criteria",null,"Is the criteria used by the Washington Department of Fish and Wildlife (WDFW) for determing the design of fish screens.  "]
[null,"Side channels",null,"Small stream channels that leave the main channel and connect back to it further downstream.  These are areas of slower water during high flow events that provide a place of refuge for juvenile aquatic organisms."]
[null,"Sinuous",null,"See Meandering"]
[null,"Site Index Height",null,"Site index is the height of a \"free to grow\" tree of a given species at a base age on the site of interest. Common base ages include 25, 50, and 100, depending on the lifespan and common management practices for that species. Site indexes are part of a forest soil description."]
[null,"Small Lakes",null,"Small lakes could be natural lakes on a client's property that are smaller than 5 acres in size. They will typically be affected by wind and minor wave action."]
[null,"Snags",null,"A standing dead, or partially dead tree.  Snags provide areas for birds to land, or perch on. "]
[null,"Sod-forming grass species",null,"Grass species that grow from densely packed root systems."]
[null,"Sole climax species",null,"Is the species which occurs at the end of succession.  For example, ponderosa pine is the last stage in succession of the plant community in eastern Washington.  "]
[null,"Spawning habitat",null,"The area in streams, lakes, ponds, or estuaries where aquatic organisms release eggs and are then fertilized by males.  In streams with salmon, this can be areas of gravel at the ends of pools where female salmon dig a \"redd\" (or nest) into the gravel substrate.  The female releases the eggs into the redd and the male fertilizes the eggs at the same time.  The female then covers the eggs back up with gravel."]
[null,"Species - specific habitat appraisal",null,"A habitat guide that evaluates habitat for a particular species.  For example, if landowners want to improve habitat for mule deer, then the planner should use Technical Note XX that appraises the habitat for mule deer and recommends ways to promote habitat for mule deer.  "]
[null,"Spring development",null,"Is the manipulation of a natural spring into a water storage device to provide water for wildlife or livestock in grazed range.  "]
[null,"Subsurface flow",null,"The movement of water under the soil from the uplands into a waterbody lower in the watershed."]
[null,"Surface agitation",null,"Is the rough movement of water over cobbles and gravels.  This is typically seen in riffle habitats."]
[null,"Tail-outs of pools",null,"Is the area of gravels just downsteam of a pool as the pool is turning into a riffle.  This area is used for spawning by some fish because there is good water flow over the rocks bringing oxyzen to the eggs buried below."]
[null,"Talus slopes",null,"Is a slope formed by an accumulation of debris at the base of a cliff."]
[null,"Terrestrial habitat",null,"The area or environment in which terrestrial species live.  In woods, for example, habitat can consist of varying plant heights, plants with berries, grasses for cover, brush for hiding and nesting.  "]
[null,"Thermal buffering",null,"Is the process by which trees provide protection to waterbodies from solar radiation thereby moderating water temperatures.  "]
[null,"Thermoregulate",null,"Is the maintenance of a constant internal body temperature regardless of the environmental temperature. "]
[null,"Thick root mats",null,"Mats of roots and rootlets, generally from trees but sometimes from mature dense shrubs at or beneath the water surface."]
[null,"Topping",null,"Is the process of removing the top of a tree to create a snag.  This can be done through the use of a chain saw or dynamite."]
[null,"Travel routes",null,"Trails created by wildlife movement within different habitat types.  "]
[null,"Tree/Shrub planting",null,"Is an area within a landuse that has been planted for wildlife with site-adapted trees and shurbs."]
[null,"Undercut banks",null,"Are water scoured areas extending horizontally beneathe the surface of the bank, forming underwater pockets used by fish for hiding and thermal cover."]
[null,"Understory diversity",null,"The small trees and shrubs growing beneath the tallest tree canopy layer."]
[null,"Uneven growth stage management",null,"Is a management strategy to have several tree layers (age classes) in order to increase diversity within the forest stand"]
[null,"Ungulates",null,"See Hoofed game"]
[null,"Upland Woodland",null,"Land in which the  primary use is the production of  trees, with no ecological relationship to a stream, river, lake, pond, wetland, or other surface water source."]
[null,"Wetland",null,"Land inundated or saturated by surface or ground-water at a frequency and duration sufficient to support a prevalence of hydrophytic vegetation typically adapted for life in saturated soil conditions; and under normal circumstances does support a prevalence of such vegetation. "]
[null,"Winter food plots",null,"Is an area within the cropland field that has been seeded to a wildlife food mix, or crop (corn, milo, etc.), not harvested, and left undisturbed over winter"]
[null,"Winter thermal protection",null,"Is an area of high cover that moderates temperatures during winter months.  An example of this can be a forested stand that regulates temperatures for deer."]

{"sheet":"Bibliography","index":20,"n_rows":158,"n_cols":10,"rows_kept":158,"cut":false,"hidden":false,"merged":[[82,1,84,9],[157,8,157,9],[129,1,130,9],[153,1,154,9],[144,1,145,9],[138,1,139,9],[141,1,142,8],[150,1,151,9],[147,1,148,8],[136,1,136,9],[133,8,133,9],[126,1,127,9],[105,1,105,9],[94,1,95,8],[97,1,98,8],[100,1,103,9],[123,1,124,9],[115,1,116,9],[110,1,113,9],[118,1,119,8],[121,1,121,9],[75,1,77,9],[1,1,1,9],[8,1,8,9],[24,1,24,9],[35,1,35,9],[3,8,3,10],[5,1,6,9],[10,1,11,9],[13,1,15,9],[17,1,19,9],[21,1,22,9],[26,1,27,9],[32,1,33,8],[29,1,30,9],[85,1,86,9],[44,1,45,9],[40,1,42,9],[37,1,38,9],[107,1,108,9],[91,1,92,9],[61,1,62,7],[58,1,59,8],[53,1,56,9],[50,1,51,8],[47,1,48,8],[66,8,66,9],[70,1,70,9],[79,1,80,8],[88,1,89,8],[72,1,73,9]]}
[]
[null,"BIBLIOGRAPHY "]
[]
[null,"Cropland & Hayland",null,null,null,null,null,null,"Table of Contents"]
[]
[null,"Barickman, Gene. 1994.  Illinois Biology Technical Note 18 :The Illinois Wildlife Habitat Evaluation Guide. USDA-NRCS. December."]
[]
[]
[null,"Rangeland"]
[]
[null,"Giles, Robert H. Jr. and Larry Toschik. 1971. Wildlife Management Techniques, Third Edition Revised. The Wildlife Society, Washington D.C.. January.  633 Pages."]
[]
[]
[null,"Larsen, Eric M., Elizabeth Rodrick and Ruth Milner. 1995.  Management Recommendations for Washington's Priority Species - Volume I: Invertebrates. Washington Department of Fish and Wildlife. December. 82 Pages."]
[]
[]
[]
[null,"Larsen, Eric M. 1997.  Management Recommendations for Washington's Priority Species-Volume lll: Amphibians and Reptiles. Washington Department of Fish & Wildlife. December. 122 pages."]
[]
[]
[]
[null,"Rodrick, Elizabeth and Ruth Milner. 1991.  Management Recommendations for Washington's Priority Habitats and Species. Washington Department of Fish & Wildlife."]
[]
[]
[null,"Pastureland"]
[]
[null,"Butler, L.D., J.B.Cropper, R.H. Johnson, A.J. Norman and P.L.Shaver. 1997.  National Range and Pasture Handbook.  USDA-NRCS Grazing Lands Technology Institute. September."]
[]
[]
[null,"Heath, Maurice E., Darrel S. Metcalfe and Robert F. Barnes. 1973.  Forages: The Science of Grassland Agriculture, 3rd ed. The Iowa State University Press. 755 Pages."]
[]
[]
[null,"Schemnitz, Sanford D. editor. 1980.  Wildlife Management Techniques Manual - Fourth Edition. The Wildlife Society.  686 Pages."]
[]
[]
[null,"Upland Woodland"]
[]
[null,"Brown, Reade E., editor. 1985.  Management of Wildlife and Fish Habitats in Forests of Western Oregon and Washington. U.S. Forest Service, Pacific Northwest Region. June. 332 Pages."]
[]
[]
[null,"Cunningham, J.B., R.P. Balda, and W.S. Gaud. 1980. Selection and Use of Snags by Secondary Cavity-Nesting Birds of the Ponderosa Pine Forest.  USDA Forest Service, Rocky Mountain Forest and Range Experimental Station, Fort Collins, Colorado. 15 Pages."]
[]
[]
[]
[null,"Fazio, James R. and Kristin R. Aufdenberg. 1985. The Woodland Steward: A Practical Guide to the Management of Small Private Forests. The Woodland Press. 211 Pages. "]
[]
[]
[null,"Fink, Frank. 1994.  Idaho Biology Technical Note 19: The Idaho Wildlife Habitat Evaluation Guide.  USDA-NRCS."]
[]
[]
[null,"Madsen, S.J. 1985.  Habitat Use by Cavity-Nesting Birds in the Okanogan Forest, Washington.  M.S. Thesis, Oregon State University, Corvallis, Oregon.  114 Pages."]
[]
[]
[null,"United States Forest Service.  1993a.  Region 6 Interim Old Growth Definition for Douglas Fir Series, Grand Fir/White Fir Series, Interior Douglar Fir Series, Lodgepole Pine Series, Pacific Silver Fir Series, Ponderosa Pine Series, Port-Orford-Cedar and tanoak (Redwood) Series, Subalpine Fir Series, Western Hemlock Series.  USDA Forest Service. "]
[]
[]
[]
[]
[null,"Schemnitz, Sanford D. editor. 1980.  Wildlife Management Techniques Manual - Fourth Edition. The Wildlife Society.  686 Pages."]
[]
[]
[null,"Scott, V.E. 1979.  Bird Response to Snag Removal in Ponderosa Pine. Journal of Forestry 77:26-28."]
[]
[]
[null,null,null,null,null,null,null,null,null,"PASSWORD:BIBLIO"]
[]
[null,null,null,null,null,null,null,null,"Back to Top"]
[]
[]
[]
[null,"Riparian Forest"]
[]
[null,"Brown, Reade E., editor. 1985.  Management of Wildlife and Fish Habitats in Forests of Western Oregon and Washington. U.S.Forest Service, Pacific Northwest Region. June. 332 Pages."]
[]
[]
[null,"Cunningham, J.B., R.P. Balda, and W.S. Gaud. 1980. Selection and Use of Snags by Secondary Cavity-Nesting Birds of the Ponderosa Pine Forest.  USDA Forest Service, Rocky Mountain Forest and Range Experimental Station, Fort Collins, Colorado. 15 Pages."]
[]
[]
[]
[null,"Fink, Frank. 1994.  Idaho Biology Technical Note 19: The Idaho Wildlife Habitat Evaluation Guide.  USDA-NRCS."]
[]
[]
[null,"Forest practices illustrated: A simplified guide to forest practice rules in Washington State. Olympia, WA: Washington State Department of Natural Resources, Forest Practices Division."]
[]
[]
[null,"Knutson, K.L. and V.L. Naef. 1997. Management recommendations for Washington's priority habitats: riparian. Washington Department of Fish and Wildlife, Olympia. 181 Pages."]
[]
[]
[null,"Madsen, S.J. 1985.  Habitat Use by Cavity-Nesting Birds in the Okanogan Forest, Washington.  M.S. Thesis, Oregon State University, Corvallis, Oregon.  114 Pages."]
[]
[]
[null,"USDA Natural Resources Conservation Service, 2009. National Biological Handbook, Part 614 Subpart B – Conservation Planning. Stream Visual Assessment Protocol Version 2."]
[]
[]
[null,"Prichard, Don, et. Al..  1998.  Riparian Area Management, Technical Reference 1737-15, USDI-BLM Denver, Colorado.  126 Pages."]
[]
[]
[null,"Scott, V.E. 1979.  Bird Response to Snag Removal in Ponderosa Pine. Journal of Forestry 77:26-28."]
[]
[]
[null,"United States Forest Service.  1993a.  Region 6 Interim Old Growth Definition for Douglas Fir Series, Grand Fir/White Fir Series, Interior Douglar Fir Series, Lodgepole Pine Series, Pacific Silver Fir Series, Ponderosa Pine Series, Port-Orford-Cedar and tanoak (Redwood) Series, Subalpine Fir Series, Western Hemlock Series.  USDA Forest Service. "]
[]
[]
[]
[]
[null,"Wetland"]
[]
[null,"Spear, S.C. ed. 1997. A Field Guide to the Common Wetland Plants of Western Washington and Northwestern Oregon.  Seattle Audubon Society, Seattle, Washington.  417 Pages."]
[]
[]
[null,"Stevens, Michelle and Ron Vanbianchi, eds. Wendy Eliot, David G. Gordon and Dyanne Sheldon.  1993.  Restoring Wetlands in Washington, A guidebook for Wetland Restoration, Planning and Implementation.  Washington State Department of Ecology, Olympia, Washington, Publication # 93-17.  109 Pages."]
[]
[]
[]
[]
[null,"Terrell, Charles R. and Patricia Bytnar Perfetti. 1989.  Water Quality Indicators Guide: Surface Waters.  UDSA-SCS (now NRCS), Washington D.C.. 129 Pages."]
[]
[]
[null,"Fink, Frank. 1994.  Idaho Biology Technical Note 19: The Idaho Wildlife Habitat Evaluation Guide.  USDA-NRCS."]
[]
[]
[null,"Ponds & Small Lakes"]
[]
[null,"Easterbrooks, John and Ken Bates. 1995. WDFW Screening Criteria for Water Diversions.  Washington Department of Fish and Wildlife."]
[]
[]
[null,"Spear, S.C. ed. 1997. A Field Guide to the Common Wetland Plants of Western Washington and Northwestern Oregon.  Seattle Audubon Society, Seattle, Washington.  417 Pages."]
[]
[]
[null,"Terrell, Charles R. and Patricia Bytnar Perfetti. 1989.  Water Quality Indicators Guide: Surface Waters.  UDSA-SCS (now NRCS), Washington D.C.. 129 Pages."]
[]
[]
[]
[null,null,null,null,null,null,null,null,"Back to Top"]
[]
[]
[null,"Stream (SVAP II)"]
[]
[null,"Bates, Ken, B. Barnard, B. Heiner, P. Klavas, and P. Powers. 1999.  Fish Passage Design at Road Culverts. Washington Department of Fish and Wildlife."]
[]
[]
[null,"Bates, Ken. 1992. Fishway Design Guidelines for Pacific Salmon.  Washington Department of Fish and Wildlife."]
[]
[]
[null,"Easterbrooks, John and Ken Bates. 1995. WDFW Screening Criteria for Water Diversions.  Washington Department of Fish and Wildlife."]
[]
[]
[null,"Fink, Frank. 1994.  Idaho Biology Technical Note 19: The Idaho Wildlife Habitat Evaluation Guide.  USDA-NRCS."]
[]
[]
[null,"USDA Natural Resources Conservation Service, 2009. National Biological Handbook, Part 614 Subpart B – Conservation Planning. Stream Visual Assessment Protocol Version 2."]
[]
[]
[null,"Peterson, N., A. Hendry and Dr. T. Quinn. 1992. Assessment of Cumulative Effects on Salmonid Habitat: Some Suggested Parameters and Target Conditions."]
[]
[]
[]
[null,null,null,null,null,null,null,null,"Back to Top"]

{"sheet":"Etc","index":21,"n_rows":259,"n_cols":9,"rows_kept":259,"cut":false,"hidden":true,"merged":[[223,2,224,2],[223,3,223,6],[230,2,231,2],[230,3,230,6],[247,2,248,2],[247,3,247,6],[175,2,176,2],[175,3,175,6],[193,2,194,2],[193,3,193,6],[208,2,209,2],[208,3,208,6],[139,2,140,2],[139,3,139,6],[151,2,152,2],[151,3,151,6],[163,2,164,2],[163,3,163,6],[99,2,100,2],[99,3,99,6],[107,2,108,2],[107,3,107,6],[61,2,62,2],[61,3,61,6],[76,2,77,2],[76,3,76,6],[92,2,93,2],[92,3,92,6],[46,2,47,2],[1,3,1,6],[13,3,13,6],[46,3,46,6],[25,3,25,6],[1,2,2,2],[13,2,14,2],[25,2,26,2]]}
[]
[null,"ALL DATA WILL BE IN COLUMN B","MAX Points","ROW NUMBER",null,null,null,null,"PASSWORD: ETC"]
[null,"Cropland & Hayland (Quality Criteria = 40%)",null,"Present","No Action","Planned A","Planned B"]
[null,"Distance to undisturbed cover",10]
[null,"Crop rotation and plant residue cover",8]
[null,"Average residue on cropland after planting",8]
[null,"Wildlife drinking water",4]
[null,"Habitat Fragmentation",10]
[null,"Nutrient Management",3]
[null,"Integrated Pest Management",3]
[null,"Herbaceous Weed Control",3]
[null,"Total Maximum Points",{"$f":"SUM(C4:C11)","v":49}]
[]
[null,"ALL DATA WILL BE IN COLUMN B","MAX Points","ROW NUMBER"]
[null,"Rangeland (Quality Criteria = 60%)",null,"Present","No Action","Planned A","Planned B"]
[null,"Wildlife food source",6]
[null,"Grazing system",3]
[null,"Plant community",6]
[null,"Wildlife drinking water",4]
[null,"Habitat Fragmentation",10]
[null,"Nutrient Management",3]
[null,"Integrated Pest Management",3]
[null,"Herbaceous Weed Control",3]
[null,"Total Maximum Points",{"$f":"SUM(C16:C23)","v":38}]
[]
[null,"ALL DATA WILL BE IN COLUMN B","MAX Points","ROW NUMBER"]
[null,"Pastureland (Quality Criteria = 50%)",null,"Present","No Action","Planned A","Planned B"]
[null,"Harvesting system",4]
[null,"Distance to undisturbed cover",10]
[null,"Plant diversity",4]
[null,"Harvest rotation",8]
[null,"Wildlife drinking water",4]
[null,"Nutrient Management",3]
[null,"Integrated Pest Management",3]
[null,"Herbaceous Weed Control",3]
[null,"Total Maximum Points",{"$f":"SUM(C28:C35)","v":39}]
[]
[]
[]
[]
[]
[]
[]
[]
[]
[]
[null,"ALL DATA WILL BE IN COLUMN B","MAX Points","ROW NUMBER"]
[null,"Upland Woodland (Quality Criteria = 60%)",null,"Present","No Action","Planned A","Planned B"]
[null,"Forest Diversity",6]
[null,"Grazing System",6]
[null,"Downed Woody Material",6]
[null,"Snags",8]
[null,"Understory Cover",6]
[null,"Forest Openings",6]
[null,"Wildlife Drinking Water",6]
[null,"Habitat Fragmentation",10]
[null,"Integrated Pest Management",3]
[null,"Herbaceous Weed Control",3]
[null,"Forest Management Plan",3]
[null,"Total Maximum Points",{"$f":"SUM(C49:C59)","v":63}]
[]
[null,"ALL DATA WILL BE IN COLUMN B","MAX Points","ROW NUMBER"]
[null,"Riparian Area Left Bank (Quality Criteria = 75%)",null,"Present","No Action","Planned A","Planned B"]
[null,"Riparian Forest Width",4]
[null,"Site Index Height",5]
[null,"Bank Stability",5]
[null,"Grazing System",6]
[null,"Plant Community",4]
[null,"Snags",8]
[null,"Downed Woody Material",4]
[null,"Habitat Fragmentation",10]
[null,"Nutrient Management",3]
[null,"Integrated Pest Management",3]
[null,"Herbaceous Weed Control",3]
[null,"Total Maximum Points",{"$f":"SUM(C63:C74)","v":55}]
[]
[null,"ALL DATA WILL BE IN COLUMN D","MAX Points","ROW NUMBER"]
[null,"Riparian Area Right Bank (Quality Criteria = 75%)",null,"Present","No Action","Planned A","Planned B"]
[null,"Riparian Forest Width",4]
[null,"Site Index Height",5]
[null,"Bank Stability",5]
[null,"Grazing System",6]
[null,"Plant Community",4]
[null,"Snags",8]
[null,"Downed Woody Material",4]
[null,"Habitat Fragmentation",10]
[null,"Nutrient Management",3]
[null,"Integrated Pest Management",3]
[null,"Herbaceous Weed Control",3]
[null,"Total Maximum Points",{"$f":"SUM(C78:C89)","v":55}]
[]
[]
[null,"ALL DATA WILL BE IN COLUMN B","MAX Points","ROW NUMBER"]
[null,"Wetland (Quality Criteria = 75%)",null,"Present","No Action","Planned A","Planned B"]
[null,"Water Regime",4]
[null,"Plant Diversity",10]
[null,"Grazing System",4]
[null,"Total Maximum Points",{"$f":"SUM(C95:C97)","v":18}]
[]
[null,"ALL DATA WILL BE IN COLUMN B","MAX Points","ROW NUMBER"]
[null,"Ponds & Small Lakes (Quality Criteria = 75%)",null,"Present","No Action","Planned A","Planned B"]
[null,"Water Quality",4]
[null,"Substrate",4]
[null,"Cover",4]
[null,"Water Withdrawals / Water Quantity",4]
[null,"Total Maximum Points",{"$f":"SUM(C102:C105)","v":16}]
[]
[null,"ALL DATA WILL BE IN COLUMN B","MAX Points","ROW NUMBER"]
[null,"Stream (Quality Criteria = 75%)",null,"Present","No Action","Planned A","Planned B"]
[null,"Passage Barrier",4]
[null,"Water Withdrawals / Water Quantity",4]
[null,"Water Quality",4]
[null,"Aquatic Insects",4]
[null,"Pools",4]
[null,"Substrate",4]
[null,"Cover",4]
[null,"Floodplain Connectivity",4]
[null,"Channel Condition",4]
[null,"Total Maximum Points",{"$f":"SUM(C110:C118)","v":36}]
[]
[]
[]
[]
[]
[]
[]
[]
[]
[]
[]
[]
[]
[]
[]
[]
[]
[]
[]
[]
[null,"ALL DATA WILL BE IN COLUMN B","MAX Points","ROW NUMBER"]
[null,"Cropland & Hayland (Quality Criteria = 40%)",null,"Present","No Action","Planned A","Planned B"]
[null,"Distance to undisturbed cover",10]
[null,"Crop rotation and plant residue cover",8]
[null,"Average residue on cropland after planting",8]
[null,"Wildlife drinking water",4]
[null,"Habitat Fragmentation",10]
[null,"Nutrient Management",3]
[null,"Integrated Pest Management",3]
[null,"Herbaceous Weed Control",3]
[null,"Total Maximum Points",{"$f":"SUM(C142:C149)","v":49}]
[]
[null,"ALL DATA WILL BE IN COLUMN B","MAX Points","ROW NUMBER"]
[null,"Rangeland (Quality Criteria = 60%)",null,"Present","No Action","Planned A","Planned B"]
[null,"Wildlife food source",6]
[null,"Grazing system",3]
[null,"Plant community",6]
[null,"Wildlife drinking water",4]
[null,"Habitat Fragmentation",10]
[null,"Nutrient Management",3]
[null,"Integrated Pest Management",3]
[null,"Herbaceous Weed Control",3]
[null,"Total Maximum Points",{"$f":"SUM(C154:C161)","v":38}]
[]
[null,"ALL DATA WILL BE IN COLUMN B","MAX Points","ROW NUMBER"]
[null,"Pastureland (Quality Criteria = 50%)",null,"Present","No Action","Planned A","Planned B"]
[null,"Harvesting system",4]
[null,"Distance to undisturbed cover",10]
[null,"Plant diversity",4]
[null,"Harvest rotation",8]
[null,"Wildlife drinking water",4]
[null,"Nutrient Management",3]
[null,"Integrated Pest Management",3]
[null,"Herbaceous Weed Control",3]
[null,"Total Maximum Points",{"$f":"SUM(C166:C173)","v":39}]
[]
[null,"ALL DATA WILL BE IN COLUMN B","MAX Points","ROW NUMBER"]
[null,"Upland Woodland (Quality Criteria = 60%)",null,"Present","No Action","Planned A","Planned B"]
[null,"Forest Diversity",6]
[null,"Grazing System",6]
[null,"Downed Woody Material",6]
[null,"Snags",8]
[null,"Understory Cover",6]
[null,"Forest Openings",6]
[null,"Wildlife Drinking Water",6]
[null,"Habitat Fragmentation",10]
[null,"Nutrient Management",3]
[null,"Integrated Pest Management",3]
[null,"Herbaceous Weed Control",3]
[null,"Forest Management Plan",3]
[null,"Total Maximum Points",{"$f":"SUM(C178:C189)","v":66}]
[]
[]
[]
[null,"ALL DATA WILL BE IN COLUMN B","MAX Points","ROW NUMBER"]
[null,"Riparian Area Left Bank (Quality Criteria = 75%)",null,"Present","No Action","Planned A","Planned B"]
[null,"Riparian Forest Width",4]
[null,"Site Index Height",5]
[null,"Bank Stability",5]
[null,"Grazing System",6]
[null,"Plant Community",4]
[null,"Snags",8]
[null,"Downed Woody Material",4]
[null,"Habitat Fragmentation",10]
[null,"Nutrient Management",3]
[null,"Integrated Pest Management",3]
[null,"Herbaceous Weed Control",3]
[null,"Total Maximum Points",{"$f":"SUM(C195:C206)","v":55}]
[]
[null,"ALL DATA WILL BE IN COLUMN D","MAX Points","ROW NUMBER"]
[null,"Riparian Area Right Bank (Quality Criteria = 75%)",null,"Present","No Action","Planned A","Planned B"]
[null,"Riparian Forest Width",4]
[null,"Site Index Height",5]
[null,"Bank Stability",5]
[null,"Grazing System",6]
[null,"Plant Community",4]
[null,"Snags",8]
[null,"Downed Woody Material",4]
[null,"Habitat Fragmentation",10]
[null,"Nutrient Management",3]
[null,"Integrated Pest Management",3]
[null,"Herbaceous Weed Control",3]
[null,"Total Maximum Points",{"$f":"SUM(C210:C221)","v":55}]
[]
[null,"ALL DATA WILL BE IN COLUMN B","MAX Points","ROW NUMBER"]
[null,"Wetland (Quality Criteria = 75%)",null,"Present","No Action","Planned A","Planned B"]
[null,"Water Regime",4]
[null,"Plant Diversity",10]
[null,"Grazing System",4]
[null,"Total Maximum Points",{"$f":"SUM(C226:C228)","v":18}]
[]
[null,"ALL DATA WILL BE IN COLUMN B","MAX Points","ROW NUMBER"]
[null,"Ponds & Small Lakes (Quality Criteria = 75%)",null,"Present","No Action","Planned A","Planned B"]
[null,"Water Quality",4]
[null,"Substrate",4]
[null,"Cover",4]
[null,"Water Withdrawals / Water Quantity",4]
[null,"Total Maximum Points",{"$f":"SUM(C233:C236)","v":16}]
[]
[]
[]
[]
[]
[]
[]
[]
[]
[]
[null,"ALL DATA WILL BE IN COLUMN B","MAX Points","ROW NUMBER"]
[null,"Stream (Quality Criteria = 75%)",null,"Present","No Action","Planned A","Planned B"]
[null,"Passage Barrier",4]
[null,"Water Withdrawals / Water Quantity",4]
[null,"Water Quality",4]
[null,"Aquatic Insects",4]
[null,"Pools",4]
[null,"Substrate",4]
[null,"Cover",4]
[null,"Floodplain Connectivity",4]
[null,"Channel Condition",4]
[null,"Total Maximum Points",{"$f":"SUM(C250:C258)","v":36}]